Workbook

Sheet Control
A1: Sheets | B1: Text File Names | C1: Description | E1: Notes: 50 sheets maximum
A2: EP_Pore_Conc | B2: Pits\Concentrations\EP_Pore_Concs_Output.txt | C2: Project concentrations for the East Pit porewater | E2: Referenced text files must be in same root folder as this spreadsheet
A3: EP_Wetland_Conc | B3: Pits\Concentrations\EP_Wetland_Concs_Output.txt | C3: Project concentrations for the East Pit upper wetland water
A4: WP_Conc | B4: PIts\Concentrations\WP_Concs_Output.txt | C4: Project concentrations for the West Pit water
A5: WWTF_Outflow_Conc | B5: Other\Concentrations\WWTF_Effluent_Conc_PostClos.txt | C5: Project concentrations for the Long-term WWTF effluent
A6: Cat1SP_Conc | B6: Stockpiles\Concentrations\Cat1SP_Conc_Output.txt | C6: Project concentrations for the Category 1 Stockpile seepage
A8: EP_Pore_Conc_SDEIS | B8: SDEIS\Pits\Concentrations\EP_Pore_Concs_Output.txt | C8: SDEIS Project concentrations for the East Pit porewater
A9: EP_Wetland_Conc_SDEIS | B9: SDEIS\Pits\Concentrations\EP_Wetland_Concs_Output.txt | C9: SDEIS Project concentrations for the East Pit upper wetland water | F9: Run Time Min: | G9: =MIN(EP_Pore_Conc!B5,EP_Wetland_Conc!B5,WP_Conc!B5,Cat1SP_Conc!B5) -> 2014-12-15T22:56:18 | I9: FEIS Outputs
A10: WP_Conc_SDEIS | B10: SDEIS\PIts\Concentrations\WP_Concs_Output.txt | C10: SDEIS Project concentrations for the West Pit water | F10: Run Time Max: | G10: =MAX(EP_Pore_Conc!B5,EP_Wetland_Conc!B5,WP_Conc!B5,Cat1SP_Conc!B5) -> 2014-12-15T22:56:18
A11: WWTF_Outflow_Conc_SDEIS | B11: SDEIS\Other\Concentrations\WWTF_Effluent_Conc_PostClos.txt | C11: SDEIS Project concentrations for the Long-term WWTF effluent
A12: Cat1SP_Conc_SDEIS | B12: SDEIS\Stockpiles\Concentrations\Cat1SP_Conc_Output.txt | C12: SDEIS Project concentrations for the Category 1 Stockpile seepage | F12: Run Time Min: | G12: =MIN(EP_Pore_Conc_SDEIS!B5,EP_Wetland_Conc_SDEIS!B5,WP_Conc_SDEIS!B5,Cat1SP_Conc_SDEIS!B5) -> 2013-01-28T18:20:45 | I12: SDEIS Outputs
F13: Run Time Max: | G13: =MAX(EP_Pore_Conc_SDEIS!B5,EP_Wetland_Conc_SDEIS!B5,WP_Conc_SDEIS!B5,Cat1SP_Conc_SDEIS!B5) -> 2013-01-28T18:20:45

Sheet PlotControl
A2: Model Name: | B2: Mine Site Version 6.0
A4: Plot: | B4: Annual Max | C4: =B2 & " Model vs. SDEIS (v5.0) " & IF(B4="Annual Max", "Annual Maximum", B4) & " of Concentration Statistics " & B6 & " in the " & B8 -> Mine Site Version 6.0 Model vs. SDEIS (v5.0) Annual Maximum of Concentration Statistics SO4 in the West Pit | T4: Directory to save PDFs to: | U4: C:\Users\jem4\Desktop\temp
C5: =B2 & " Model vs. SDEIS (v5.0) Monthly Concentration and Flow Statistics " & B6 & " in the " & B8 -> Mine Site Version 6.0 Model vs. SDEIS (v5.0) Monthly Concentration and Flow Statistics SO4 in the West Pit | T5: Starting figure caption | U5: Figure H-11-10.2 | W5: Figure H-09-19.1
A6: Constituent to Plot (dropdown): | B6: SO4 | C6: =MATCH(B6,$A$25:$A$51,0) -> 24
T7: Note: This loops through the plots, constituent, and location drop down menus.
A8: Location to Plot (dropdown): | B8: West Pit | C8: =MATCH(B8,$A$15:$A$19,0) -> 3
A10: Initial Time for Monthly Plot (yr): | B10: 40
B11: =B10+20 -> 60
A14: Locations | C14: Number
A15: East Pit Lower Porewater | C15: 9
A16: East Pit Upper/Wetland Porewater | C16: 10
A17: West Pit | C17: 11
A18: Long-term WWTF Effluent | C18: 999
A19: Category 1 Stockpile Drainage | C19: 7
I23: Annual Project Results | L23: Annual SDEIS Project Results | Q23: Monthly Project Results | T23: Monthly Project Results
A24: Constituent | B24: Partridge Standard (ug/L) | C24: Colby Standard (ug/L) | D24: Hardness Based "A" | E24: Hardness Based "B" | F24: Hardness Based at SW-004a hardness (ug/L) | H24: Time | I24: P10 | J24: P50 | K24: P90 | L24: P10 | M24: P50 | N24: P90 | P24: Time | Q24: P10 | R24: P50 | S24: P90 | T24: P10 | U24: P50 | V24: P90
A25: Ag | B25: 1 | C25: 1 | F25: =EXP(D25*LN(102)+E25) ->  | H25: 1 | I25: =VLOOKUP($H25,Conc_All!$A$5:$P$204,3*($C$8-1)+2) -> 1913000 | J25: =VLOOKUP($H25,Conc_All!$A$5:$P$204,3*($C$8-1)+3) -> 2489400 | K25: =VLOOKUP($H25,Conc_All!$A$5:$P$204,3*($C$8-1)+4) -> 3142100 | L25: =VLOOKUP($H25,Conc_All_SDEIS!$A$5:$P$204,3*($C$8-1)+2) -> 1722100 | M25: =VLOOKUP($H25,Conc_All_SDEIS!$A$5:$P$204,3*($C$8-1)+3) -> 2356600 | N25: =VLOOKUP($H25,Conc_All_SDEIS!$A$5:$P$204,3*($C$8-1)+4) -> 2978000 | P25: =B10 -> 40 | Q25: =VLOOKUP($P25,Conc_All!$R$5:$AG$245,3*($C$8-1)+2) -> 59295 | R25: =VLOOKUP($P25,Conc_All!$R$5:$AG$245,3*($C$8-1)+3) -> 67601 | S25: =VLOOKUP($P25,Conc_All!$R$5:$AG$245,3*($C$8-1)+4) -> 79330 | T25: =VLOOKUP($P25,Conc_All_SDEIS!$R$5:$AG$245,3*($C$8-1)+2) -> 67571 | U25: =VLOOKUP($P25,Conc_All_SDEIS!$R$5:$AG$245,3*($C$8-1)+3) -> 74002 | V25: =VLOOKUP($P25,Conc_All_SDEIS!$R$5:$AG$245,3*($C$8-1)+4) -> 83113
A26: Al | B26: 125 | C26: 125 | H26: 2 | I26: =VLOOKUP($H26,Conc_All!$A$5:$P$204,3*($C$8-1)+2) -> 2260300 | J26: =VLOOKUP($H26,Conc_All!$A$5:$P$204,3*($C$8-1)+3) -> 2711700 | K26: =VLOOKUP($H26,Conc_All!$A$5:$P$204,3*($C$8-1)+4) -> 3470500 | L26: =VLOOKUP($H26,Conc_All_SDEIS!$A$5:$P$204,3*($C$8-1)+2) -> 2260300 | M26: =VLOOKUP($H26,Conc_All_SDEIS!$A$5:$P$204,3*($C$8-1)+3) -> 2701000 | N26: =VLOOKUP($H26,Conc_All_SDEIS!$A$5:$P$204,3*($C$8-1)+4) -> 3443400 | P26: =P25+1/12 -> 40.08333333 | Q26: =VLOOKUP($P26,Conc_All!$R$5:$AG$245,3*($C$8-1)+2) -> 59254 | R26: =VLOOKUP($P26,Conc_All!$R$5:$AG$245,3*($C$8-1)+3) -> 67576 | S26: =VLOOKUP($P26,Conc_All!$R$5:$AG$245,3*($C$8-1)+4) -> 79308 | T26: =VLOOKUP($P26,Conc_All_SDEIS!$R$5:$AG$245,3*($C$8-1)+2) -> 67566 | U26: =VLOOKUP($P26,Conc_All_SDEIS!$R$5:$AG$245,3*($C$8-1)+3) -> 74004 | V26: =VLOOKUP($P26,Conc_All_SDEIS!$R$5:$AG$245,3*($C$8-1)+4) -> 83122
A27: Alkalinity | H27: 3 | I27: =VLOOKUP($H27,Conc_All!$A$5:$P$204,3*($C$8-1)+2) -> 416030 | J27: =VLOOKUP($H27,Conc_All!$A$5:$P$204,3*($C$8-1)+3) -> 668820 | K27: =VLOOKUP($H27,Conc_All!$A$5:$P$204,3*($C$8-1)+4) -> 1004900 | L27: =VLOOKUP($H27,Conc_All_SDEIS!$A$5:$P$204,3*($C$8-1)+2) -> 432320 | M27: =VLOOKUP($H27,Conc_All_SDEIS!$A$5:$P$204,3*($C$8-1)+3) -> 700300 | N27: =VLOOKUP($H27,Conc_All_SDEIS!$A$5:$P$204,3*($C$8-1)+4) -> 1039900 | P27: =P26+1/12 -> 40.16666667 | Q27: =VLOOKUP($P27,Conc_All!$R$5:$AG$245,3*($C$8-1)+2) -> 59213 | R27: =VLOOKUP($P27,Conc_All!$R$5:$AG$245,3*($C$8-1)+3) -> 67545 | S27: =VLOOKUP($P27,Conc_All!$R$5:$AG$245,3*($C$8-1)+4) -> 79291 | T27: =VLOOKUP($P27,Conc_All_SDEIS!$R$5:$AG$245,3*($C$8-1)+2) -> 67561 | U27: =VLOOKUP($P27,Conc_All_SDEIS!$R$5:$AG$245,3*($C$8-1)+3) -> 74002 | V27: =VLOOKUP($P27,Conc_All_SDEIS!$R$5:$AG$245,3*($C$8-1)+4) -> 83130
A28: As | B28: 53 | C28: 2 | H28: 4 | I28: =VLOOKUP($H28,Conc_All!$A$5:$P$204,3*($C$8-1)+2) -> 532010 | J28: =VLOOKUP($H28,Conc_All!$A$5:$P$204,3*($C$8-1)+3) -> 866670 | K28: =VLOOKUP($H28,Conc_All!$A$5:$P$204,3*($C$8-1)+4) -> 1277600 | L28: =VLOOKUP($H28,Conc_All_SDEIS!$A$5:$P$204,3*($C$8-1)+2) -> 525130 | M28: =VLOOKUP($H28,Conc_All_SDEIS!$A$5:$P$204,3*($C$8-1)+3) -> 856410 | N28: =VLOOKUP($H28,Conc_All_SDEIS!$A$5:$P$204,3*($C$8-1)+4) -> 1260300 | P28: 40.25 | Q28: =VLOOKUP($P28,Conc_All!$R$5:$AG$245,3*($C$8-1)+2) -> 59166 | R28: =VLOOKUP($P28,Conc_All!$R$5:$AG$245,3*($C$8-1)+3) -> 67532 | S28: =VLOOKUP($P28,Conc_All!$R$5:$AG$245,3*($C$8-1)+4) -> 79286 | T28: =VLOOKUP($P28,Conc_All_SDEIS!$R$5:$AG$245,3*($C$8-1)+2) -> 67557 | U28: =VLOOKUP($P28,Conc_All_SDEIS!$R$5:$AG$245,3*($C$8-1)+3) -> 73997 | V28: =VLOOKUP($P28,Conc_All_SDEIS!$R$5:$AG$245,3*($C$8-1)+4) -> 83140
A29: B | B29: 500 | C29: 500 | H29: 5 | I29: =VLOOKUP($H29,Conc_All!$A$5:$P$204,3*($C$8-1)+2) -> 557830 | J29: =VLOOKUP($H29,Conc_All!$A$5:$P$204,3*($C$8-1)+3) -> 917630 | K29: =VLOOKUP($H29,Conc_All!$A$5:$P$204,3*($C$8-1)+4) -> 1423300 | L29: =VLOOKUP($H29,Conc_All_SDEIS!$A$5:$P$204,3*($C$8-1)+2) -> 565610 | M29: =VLOOKUP($H29,Conc_All_SDEIS!$A$5:$P$204,3*($C$8-1)+3) -> 940180 | N29: =VLOOKUP($H29,Conc_All_SDEIS!$A$5:$P$204,3*($C$8-1)+4) -> 1445700 | P29: 40.33333333 | Q29: =VLOOKUP($P29,Conc_All!$R$5:$AG$245,3*($C$8-1)+2) -> 58867 | R29: =VLOOKUP($P29,Conc_All!$R$5:$AG$245,3*($C$8-1)+3) -> 67157 | S29: =VLOOKUP($P29,Conc_All!$R$5:$AG$245,3*($C$8-1)+4) -> 79058 | T29: =VLOOKUP($P29,Conc_All_SDEIS!$R$5:$AG$245,3*($C$8-1)+2) -> 67374 | U29: =VLOOKUP($P29,Conc_All_SDEIS!$R$5:$AG$245,3*($C$8-1)+3) -> 73741 | V29: =VLOOKUP($P29,Conc_All_SDEIS!$R$5:$AG$245,3*($C$8-1)+4) -> 82886
A30: Ba | C30: 2000 | H30: 6 | I30: =VLOOKUP($H30,Conc_All!$A$5:$P$204,3*($C$8-1)+2) -> 551130 | J30: =VLOOKUP($H30,Conc_All!$A$5:$P$204,3*($C$8-1)+3) -> 879300 | K30: =VLOOKUP($H30,Conc_All!$A$5:$P$204,3*($C$8-1)+4) -> 1303000 | L30: =VLOOKUP($H30,Conc_All_SDEIS!$A$5:$P$204,3*($C$8-1)+2) -> 573770 | M30: =VLOOKUP($H30,Conc_All_SDEIS!$A$5:$P$204,3*($C$8-1)+3) -> 915580 | N30: =VLOOKUP($H30,Conc_All_SDEIS!$A$5:$P$204,3*($C$8-1)+4) -> 1383100 | P30: 40.41666667 | Q30: =VLOOKUP($P30,Conc_All!$R$5:$AG$245,3*($C$8-1)+2) -> 58760 | R30: =VLOOKUP($P30,Conc_All!$R$5:$AG$245,3*($C$8-1)+3) -> 67109 | S30: =VLOOKUP($P30,Conc_All!$R$5:$AG$245,3*($C$8-1)+4) -> 78954 | T30: =VLOOKUP($P30,Conc_All_SDEIS!$R$5:$AG$245,3*($C$8-1)+2) -> 67384 | U30: =VLOOKUP($P30,Conc_All_SDEIS!$R$5:$AG$245,3*($C$8-1)+3) -> 73713 | V30: =VLOOKUP($P30,Conc_All_SDEIS!$R$5:$AG$245,3*($C$8-1)+4) -> 82904
A31: Be | C31: 4 | H31: 7 | I31: =VLOOKUP($H31,Conc_All!$A$5:$P$204,3*($C$8-1)+2) -> 463330 | J31: =VLOOKUP($H31,Conc_All!$A$5:$P$204,3*($C$8-1)+3) -> 758050 | K31: =VLOOKUP($H31,Conc_All!$A$5:$P$204,3*($C$8-1)+4) -> 1156400 | L31: =VLOOKUP($H31,Conc_All_SDEIS!$A$5:$P$204,3*($C$8-1)+2) -> 487650 | M31: =VLOOKUP($H31,Conc_All_SDEIS!$A$5:$P$204,3*($C$8-1)+3) -> 828430 | N31: =VLOOKUP($H31,Conc_All_SDEIS!$A$5:$P$204,3*($C$8-1)+4) -> 1208600 | P31: 40.5 | Q31: =VLOOKUP($P31,Conc_All!$R$5:$AG$245,3*($C$8-1)+2) -> 58666 | R31: =VLOOKUP($P31,Conc_All!$R$5:$AG$245,3*($C$8-1)+3) -> 67053 | S31: =VLOOKUP($P31,Conc_All!$R$5:$AG$245,3*($C$8-1)+4) -> 78876 | T31: =VLOOKUP($P31,Conc_All_SDEIS!$R$5:$AG$245,3*($C$8-1)+2) -> 67389 | U31: =VLOOKUP($P31,Conc_All_SDEIS!$R$5:$AG$245,3*($C$8-1)+3) -> 73688 | V31: =VLOOKUP($P31,Conc_All_SDEIS!$R$5:$AG$245,3*($C$8-1)+4) -> 82919
A32: Ca | H32: 8 | I32: =VLOOKUP($H32,Conc_All!$A$5:$P$204,3*($C$8-1)+2) -> 493650 | J32: =VLOOKUP($H32,Conc_All!$A$5:$P$204,3*($C$8-1)+3) -> 784060 | K32: =VLOOKUP($H32,Conc_All!$A$5:$P$204,3*($C$8-1)+4) -> 1207800 | L32: =VLOOKUP($H32,Conc_All_SDEIS!$A$5:$P$204,3*($C$8-1)+2) -> 508020 | M32: =VLOOKUP($H32,Conc_All_SDEIS!$A$5:$P$204,3*($C$8-1)+3) -> 806240 | N32: =VLOOKUP($H32,Conc_All_SDEIS!$A$5:$P$204,3*($C$8-1)+4) -> 1253400 | P32: 40.58333333 | Q32: =VLOOKUP($P32,Conc_All!$R$5:$AG$245,3*($C$8-1)+2) -> 58550 | R32: =VLOOKUP($P32,Conc_All!$R$5:$AG$245,3*($C$8-1)+3) -> 67009 | S32: =VLOOKUP($P32,Conc_All!$R$5:$AG$245,3*($C$8-1)+4) -> 78901 | T32: =VLOOKUP($P32,Conc_All_SDEIS!$R$5:$AG$245,3*($C$8-1)+2) -> 67403 | U32: =VLOOKUP($P32,Conc_All_SDEIS!$R$5:$AG$245,3*($C$8-1)+3) -> 73676 | V32: =VLOOKUP($P32,Conc_All_SDEIS!$R$5:$AG$245,3*($C$8-1)+4) -> 82950
A33: Cd | C33: 5 | D33: 0.7852 | E33: -2.715 | F33: =EXP(D33*LN(102)+E33) -> 2.500594874 | H33: 9 | I33: =VLOOKUP($H33,Conc_All!$A$5:$P$204,3*($C$8-1)+2) -> 588610 | J33: =VLOOKUP($H33,Conc_All!$A$5:$P$204,3*($C$8-1)+3) -> 981450 | K33: =VLOOKUP($H33,Conc_All!$A$5:$P$204,3*($C$8-1)+4) -> 1527500 | L33: =VLOOKUP($H33,Conc_All_SDEIS!$A$5:$P$204,3*($C$8-1)+2) -> 598220 | M33: =VLOOKUP($H33,Conc_All_SDEIS!$A$5:$P$204,3*($C$8-1)+3) -> 988780 | N33: =VLOOKUP($H33,Conc_All_SDEIS!$A$5:$P$204,3*($C$8-1)+4) -> 1570500 | P33: 40.66666667 | Q33: =VLOOKUP($P33,Conc_All!$R$5:$AG$245,3*($C$8-1)+2) -> 58460 | R33: =VLOOKUP($P33,Conc_All!$R$5:$AG$245,3*($C$8-1)+3) -> 66952 | S33: =VLOOKUP($P33,Conc_All!$R$5:$AG$245,3*($C$8-1)+4) -> 78835 | T33: =VLOOKUP($P33,Conc_All_SDEIS!$R$5:$AG$245,3*($C$8-1)+2) -> 67384 | U33: =VLOOKUP($P33,Conc_All_SDEIS!$R$5:$AG$245,3*($C$8-1)+3) -> 73643 | V33: =VLOOKUP($P33,Conc_All_SDEIS!$R$5:$AG$245,3*($C$8-1)+4) -> 82956
A34: Cl | B34: 230000 | C34: 230000 | F34: =EXP(D34*LN(102)+E34) ->  | H34: 10 | I34: =VLOOKUP($H34,Conc_All!$A$5:$P$204,3*($C$8-1)+2) -> 633820 | J34: =VLOOKUP($H34,Conc_All!$A$5:$P$204,3*($C$8-1)+3) -> 1044300 | K34: =VLOOKUP($H34,Conc_All!$A$5:$P$204,3*($C$8-1)+4) -> 1575800 | L34: =VLOOKUP($H34,Conc_All_SDEIS!$A$5:$P$204,3*($C$8-1)+2) -> 655750 | M34: =VLOOKUP($H34,Conc_All_SDEIS!$A$5:$P$204,3*($C$8-1)+3) -> 1083500 | N34: =VLOOKUP($H34,Conc_All_SDEIS!$A$5:$P$204,3*($C$8-1)+4) -> 1623700 | P34: 40.75 | Q34: =VLOOKUP($P34,Conc_All!$R$5:$AG$245,3*($C$8-1)+2) -> 58360 | R34: =VLOOKUP($P34,Conc_All!$R$5:$AG$245,3*($C$8-1)+3) -> 66816 | S34: =VLOOKUP($P34,Conc_All!$R$5:$AG$245,3*($C$8-1)+4) -> 78681 | T34: =VLOOKUP($P34,Conc_All_SDEIS!$R$5:$AG$245,3*($C$8-1)+2) -> 67326 | U34: =VLOOKUP($P34,Conc_All_SDEIS!$R$5:$AG$245,3*($C$8-1)+3) -> 73563 | V34: =VLOOKUP($P34,Conc_All_SDEIS!$R$5:$AG$245,3*($C$8-1)+4) -> 82889
A35: Co | B35: 5 | C35: 2.8 | H35: 11 | I35: =VLOOKUP($H35,Conc_All!$A$5:$P$204,3*($C$8-1)+2) -> 653330 | J35: =VLOOKUP($H35,Conc_All!$A$5:$P$204,3*($C$8-1)+3) -> 1018900 | K35: =VLOOKUP($H35,Conc_All!$A$5:$P$204,3*($C$8-1)+4) -> 1478600 | L35: =VLOOKUP($H35,Conc_All_SDEIS!$A$5:$P$204,3*($C$8-1)+2) -> 672740 | M35: =VLOOKUP($H35,Conc_All_SDEIS!$A$5:$P$204,3*($C$8-1)+3) -> 1050700 | N35: =VLOOKUP($H35,Conc_All_SDEIS!$A$5:$P$204,3*($C$8-1)+4) -> 1525400 | P35: 40.83333333 | Q35: =VLOOKUP($P35,Conc_All!$R$5:$AG$245,3*($C$8-1)+2) -> 58230 | R35: =VLOOKUP($P35,Conc_All!$R$5:$AG$245,3*($C$8-1)+3) -> 66695 | S35: =VLOOKUP($P35,Conc_All!$R$5:$AG$245,3*($C$8-1)+4) -> 78531 | T35: =VLOOKUP($P35,Conc_All_SDEIS!$R$5:$AG$245,3*($C$8-1)+2) -> 67236 | U35: =VLOOKUP($P35,Conc_All_SDEIS!$R$5:$AG$245,3*($C$8-1)+3) -> 73503 | V35: =VLOOKUP($P35,Conc_All_SDEIS!$R$5:$AG$245,3*($C$8-1)+4) -> 82806
A36: Cr | B36: 11 | C36: 11 | H36: 12 | I36: =VLOOKUP($H36,Conc_All!$A$5:$P$204,3*($C$8-1)+2) -> 347730 | J36: =VLOOKUP($H36,Conc_All!$A$5:$P$204,3*($C$8-1)+3) -> 578360 | K36: =VLOOKUP($H36,Conc_All!$A$5:$P$204,3*($C$8-1)+4) -> 871130 | L36: =VLOOKUP($H36,Conc_All_SDEIS!$A$5:$P$204,3*($C$8-1)+2) -> 348330 | M36: =VLOOKUP($H36,Conc_All_SDEIS!$A$5:$P$204,3*($C$8-1)+3) -> 597930 | N36: =VLOOKUP($H36,Conc_All_SDEIS!$A$5:$P$204,3*($C$8-1)+4) -> 900720 | P36: 40.91666667 | Q36: =VLOOKUP($P36,Conc_All!$R$5:$AG$245,3*($C$8-1)+2) -> 58174 | R36: =VLOOKUP($P36,Conc_All!$R$5:$AG$245,3*($C$8-1)+3) -> 66616 | S36: =VLOOKUP($P36,Conc_All!$R$5:$AG$245,3*($C$8-1)+4) -> 78547 | T36: =VLOOKUP($P36,Conc_All_SDEIS!$R$5:$AG$245,3*($C$8-1)+2) -> 67233 | U36: =VLOOKUP($P36,Conc_All_SDEIS!$R$5:$AG$245,3*($C$8-1)+3) -> 73517 | V36: =VLOOKUP($P36,Conc_All_SDEIS!$R$5:$AG$245,3*($C$8-1)+4) -> 82807
A37: Cu | D37: 0.8545 | E37: -1.702 | F37: =EXP(D37*LN(102)+E37) -> 9.488108417 | H37: 13 | I37: =VLOOKUP($H37,Conc_All!$A$5:$P$204,3*($C$8-1)+2) -> 467150 | J37: =VLOOKUP($H37,Conc_All!$A$5:$P$204,3*($C$8-1)+3) -> 748170 | K37: =VLOOKUP($H37,Conc_All!$A$5:$P$204,3*($C$8-1)+4) -> 1143800 | L37: =VLOOKUP($H37,Conc_All_SDEIS!$A$5:$P$204,3*($C$8-1)+2) -> 425130 | M37: =VLOOKUP($H37,Conc_All_SDEIS!$A$5:$P$204,3*($C$8-1)+3) -> 689990 | N37: =VLOOKUP($H37,Conc_All_SDEIS!$A$5:$P$204,3*($C$8-1)+4) -> 1075600 | P37: 41 | Q37: =VLOOKUP($P37,Conc_All!$R$5:$AG$245,3*($C$8-1)+2) -> 58103 | R37: =VLOOKUP($P37,Conc_All!$R$5:$AG$245,3*($C$8-1)+3) -> 66563 | S37: =VLOOKUP($P37,Conc_All!$R$5:$AG$245,3*($C$8-1)+4) -> 78578 | T37: =VLOOKUP($P37,Conc_All_SDEIS!$R$5:$AG$245,3*($C$8-1)+2) -> 67230 | U37: =VLOOKUP($P37,Conc_All_SDEIS!$R$5:$AG$245,3*($C$8-1)+3) -> 73528 | V37: =VLOOKUP($P37,Conc_All_SDEIS!$R$5:$AG$245,3*($C$8-1)+4) -> 82808
A38: F | C38: 4000 | H38: 14 | I38: =VLOOKUP($H38,Conc_All!$A$5:$P$204,3*($C$8-1)+2) -> 458960 | J38: =VLOOKUP($H38,Conc_All!$A$5:$P$204,3*($C$8-1)+3) -> 758300 | K38: =VLOOKUP($H38,Conc_All!$A$5:$P$204,3*($C$8-1)+4) -> 1143000 | L38: =VLOOKUP($H38,Conc_All_SDEIS!$A$5:$P$204,3*($C$8-1)+2) -> 457880 | M38: =VLOOKUP($H38,Conc_All_SDEIS!$A$5:$P$204,3*($C$8-1)+3) -> 762330 | N38: =VLOOKUP($H38,Conc_All_SDEIS!$A$5:$P$204,3*($C$8-1)+4) -> 1149800 | P38: 41.08333333 | Q38: =VLOOKUP($P38,Conc_All!$R$5:$AG$245,3*($C$8-1)+2) -> 58036 | R38: =VLOOKUP($P38,Conc_All!$R$5:$AG$245,3*($C$8-1)+3) -> 66696 | S38: =VLOOKUP($P38,Conc_All!$R$5:$AG$245,3*($C$8-1)+4) -> 78571 | T38: =VLOOKUP($P38,Conc_All_SDEIS!$R$5:$AG$245,3*($C$8-1)+2) -> 67228 | U38: =VLOOKUP($P38,Conc_All_SDEIS!$R$5:$AG$245,3*($C$8-1)+3) -> 73529 | V38: =VLOOKUP($P38,Conc_All_SDEIS!$R$5:$AG$245,3*($C$8-1)+4) -> 82810
A39: Fe | C39: 300 | H39: 15 | I39: =VLOOKUP($H39,Conc_All!$A$5:$P$204,3*($C$8-1)+2) -> 557450 | J39: =VLOOKUP($H39,Conc_All!$A$5:$P$204,3*($C$8-1)+3) -> 844120 | K39: =VLOOKUP($H39,Conc_All!$A$5:$P$204,3*($C$8-1)+4) -> 1291700 | L39: =VLOOKUP($H39,Conc_All_SDEIS!$A$5:$P$204,3*($C$8-1)+2) -> 494040 | M39: =VLOOKUP($H39,Conc_All_SDEIS!$A$5:$P$204,3*($C$8-1)+3) -> 757910 | N39: =VLOOKUP($H39,Conc_All_SDEIS!$A$5:$P$204,3*($C$8-1)+4) -> 1159000 | P39: 41.16666667 | Q39: =VLOOKUP($P39,Conc_All!$R$5:$AG$245,3*($C$8-1)+2) -> 57964 | R39: =VLOOKUP($P39,Conc_All!$R$5:$AG$245,3*($C$8-1)+3) -> 66635 | S39: =VLOOKUP($P39,Conc_All!$R$5:$AG$245,3*($C$8-1)+4) -> 78554 | T39: =VLOOKUP($P39,Conc_All_SDEIS!$R$5:$AG$245,3*($C$8-1)+2) -> 67225 | U39: =VLOOKUP($P39,Conc_All_SDEIS!$R$5:$AG$245,3*($C$8-1)+3) -> 73529 | V39: =VLOOKUP($P39,Conc_All_SDEIS!$R$5:$AG$245,3*($C$8-1)+4) -> 82816
A40: K | H40: 16 | I40: =VLOOKUP($H40,Conc_All!$A$5:$P$204,3*($C$8-1)+2) -> 555730 | J40: =VLOOKUP($H40,Conc_All!$A$5:$P$204,3*($C$8-1)+3) -> 842450 | K40: =VLOOKUP($H40,Conc_All!$A$5:$P$204,3*($C$8-1)+4) -> 1238200 | L40: =VLOOKUP($H40,Conc_All_SDEIS!$A$5:$P$204,3*($C$8-1)+2) -> 473560 | M40: =VLOOKUP($H40,Conc_All_SDEIS!$A$5:$P$204,3*($C$8-1)+3) -> 725080 | N40: =VLOOKUP($H40,Conc_All_SDEIS!$A$5:$P$204,3*($C$8-1)+4) -> 1061400 | P40: 41.25 | Q40: =VLOOKUP($P40,Conc_All!$R$5:$AG$245,3*($C$8-1)+2) -> 57883 | R40: =VLOOKUP($P40,Conc_All!$R$5:$AG$245,3*($C$8-1)+3) -> 66554 | S40: =VLOOKUP($P40,Conc_All!$R$5:$AG$245,3*($C$8-1)+4) -> 78520 | T40: =VLOOKUP($P40,Conc_All_SDEIS!$R$5:$AG$245,3*($C$8-1)+2) -> 67222 | U40: =VLOOKUP($P40,Conc_All_SDEIS!$R$5:$AG$245,3*($C$8-1)+3) -> 73531 | V40: =VLOOKUP($P40,Conc_All_SDEIS!$R$5:$AG$245,3*($C$8-1)+4) -> 82819
A41: Mg | H41: 17 | I41: =VLOOKUP($H41,Conc_All!$A$5:$P$204,3*($C$8-1)+2) -> 528050 | J41: =VLOOKUP($H41,Conc_All!$A$5:$P$204,3*($C$8-1)+3) -> 820710 | K41: =VLOOKUP($H41,Conc_All!$A$5:$P$204,3*($C$8-1)+4) -> 1226400 | L41: =VLOOKUP($H41,Conc_All_SDEIS!$A$5:$P$204,3*($C$8-1)+2) -> 444250 | M41: =VLOOKUP($H41,Conc_All_SDEIS!$A$5:$P$204,3*($C$8-1)+3) -> 702600 | N41: =VLOOKUP($H41,Conc_All_SDEIS!$A$5:$P$204,3*($C$8-1)+4) -> 1045900 | P41: 41.33333333 | Q41: =VLOOKUP($P41,Conc_All!$R$5:$AG$245,3*($C$8-1)+2) -> 57511 | R41: =VLOOKUP($P41,Conc_All!$R$5:$AG$245,3*($C$8-1)+3) -> 66213 | S41: =VLOOKUP($P41,Conc_All!$R$5:$AG$245,3*($C$8-1)+4) -> 78173 | T41: =VLOOKUP($P41,Conc_All_SDEIS!$R$5:$AG$245,3*($C$8-1)+2) -> 67015 | U41: =VLOOKUP($P41,Conc_All_SDEIS!$R$5:$AG$245,3*($C$8-1)+3) -> 73291 | V41: =VLOOKUP($P41,Conc_All_SDEIS!$R$5:$AG$245,3*($C$8-1)+4) -> 82629
A42: Mn | C42: 50 | H42: 18 | I42: =VLOOKUP($H42,Conc_All!$A$5:$P$204,3*($C$8-1)+2) -> 539050 | J42: =VLOOKUP($H42,Conc_All!$A$5:$P$204,3*($C$8-1)+3) -> 803950 | K42: =VLOOKUP($H42,Conc_All!$A$5:$P$204,3*($C$8-1)+4) -> 1186300 | L42: =VLOOKUP($H42,Conc_All_SDEIS!$A$5:$P$204,3*($C$8-1)+2) -> 530680 | M42: =VLOOKUP($H42,Conc_All_SDEIS!$A$5:$P$204,3*($C$8-1)+3) -> 787250 | N42: =VLOOKUP($H42,Conc_All_SDEIS!$A$5:$P$204,3*($C$8-1)+4) -> 1164900 | P42: 41.41666667 | Q42: =VLOOKUP($P42,Conc_All!$R$5:$AG$245,3*($C$8-1)+2) -> 57555 | R42: =VLOOKUP($P42,Conc_All!$R$5:$AG$245,3*($C$8-1)+3) -> 66126 | S42: =VLOOKUP($P42,Conc_All!$R$5:$AG$245,3*($C$8-1)+4) -> 78176 | T42: =VLOOKUP($P42,Conc_All_SDEIS!$R$5:$AG$245,3*($C$8-1)+2) -> 66993 | U42: =VLOOKUP($P42,Conc_All_SDEIS!$R$5:$AG$245,3*($C$8-1)+3) -> 73299 | V42: =VLOOKUP($P42,Conc_All_SDEIS!$R$5:$AG$245,3*($C$8-1)+4) -> 82643
A43: Na | H43: 19 | I43: =VLOOKUP($H43,Conc_All!$A$5:$P$204,3*($C$8-1)+2) -> 507710 | J43: =VLOOKUP($H43,Conc_All!$A$5:$P$204,3*($C$8-1)+3) -> 789590 | K43: =VLOOKUP($H43,Conc_All!$A$5:$P$204,3*($C$8-1)+4) -> 1184500 | L43: =VLOOKUP($H43,Conc_All_SDEIS!$A$5:$P$204,3*($C$8-1)+2) -> 514170 | M43: =VLOOKUP($H43,Conc_All_SDEIS!$A$5:$P$204,3*($C$8-1)+3) -> 797370 | N43: =VLOOKUP($H43,Conc_All_SDEIS!$A$5:$P$204,3*($C$8-1)+4) -> 1190300 | P43: 41.5 | Q43: =VLOOKUP($P43,Conc_All!$R$5:$AG$245,3*($C$8-1)+2) -> 57509 | R43: =VLOOKUP($P43,Conc_All!$R$5:$AG$245,3*($C$8-1)+3) -> 66023 | S43: =VLOOKUP($P43,Conc_All!$R$5:$AG$245,3*($C$8-1)+4) -> 78102 | T43: =VLOOKUP($P43,Conc_All_SDEIS!$R$5:$AG$245,3*($C$8-1)+2) -> 66959 | U43: =VLOOKUP($P43,Conc_All_SDEIS!$R$5:$AG$245,3*($C$8-1)+3) -> 73271 | V43: =VLOOKUP($P43,Conc_All_SDEIS!$R$5:$AG$245,3*($C$8-1)+4) -> 82656
A44: Ni | D44: 0.846 | E44: 0.0584 | F44: 53.04427807 | H44: 20 | I44: =VLOOKUP($H44,Conc_All!$A$5:$P$204,3*($C$8-1)+2) -> 408820 | J44: =VLOOKUP($H44,Conc_All!$A$5:$P$204,3*($C$8-1)+3) -> 743560 | K44: =VLOOKUP($H44,Conc_All!$A$5:$P$204,3*($C$8-1)+4) -> 1225200 | L44: =VLOOKUP($H44,Conc_All_SDEIS!$A$5:$P$204,3*($C$8-1)+2) -> 422550 | M44: =VLOOKUP($H44,Conc_All_SDEIS!$A$5:$P$204,3*($C$8-1)+3) -> 684400 | N44: =VLOOKUP($H44,Conc_All_SDEIS!$A$5:$P$204,3*($C$8-1)+4) -> 1043000 | P44: 41.58333333 | Q44: =VLOOKUP($P44,Conc_All!$R$5:$AG$245,3*($C$8-1)+2) -> 57424 | R44: =VLOOKUP($P44,Conc_All!$R$5:$AG$245,3*($C$8-1)+3) -> 65964 | S44: =VLOOKUP($P44,Conc_All!$R$5:$AG$245,3*($C$8-1)+4) -> 78048 | T44: =VLOOKUP($P44,Conc_All_SDEIS!$R$5:$AG$245,3*($C$8-1)+2) -> 66941 | U44: =VLOOKUP($P44,Conc_All_SDEIS!$R$5:$AG$245,3*($C$8-1)+3) -> 73252 | V44: =VLOOKUP($P44,Conc_All_SDEIS!$R$5:$AG$245,3*($C$8-1)+4) -> 82669
A45: Pb | D45: 1.273 | E45: -4.705 | F45: 3.262815234 | H45: 21 | I45: =VLOOKUP($H45,Conc_All!$A$5:$P$204,3*($C$8-1)+2) -> 264150 | J45: =VLOOKUP($H45,Conc_All!$A$5:$P$204,3*($C$8-1)+3) -> 605460 | K45: =VLOOKUP($H45,Conc_All!$A$5:$P$204,3*($C$8-1)+4) -> 1086400 | L45: =VLOOKUP($H45,Conc_All_SDEIS!$A$5:$P$204,3*($C$8-1)+2) -> 221590 | M45: =VLOOKUP($H45,Conc_All_SDEIS!$A$5:$P$204,3*($C$8-1)+3) -> 500160 | N45: =VLOOKUP($H45,Conc_All_SDEIS!$A$5:$P$204,3*($C$8-1)+4) -> 899620 | P45: 41.66666667 | Q45: =VLOOKUP($P45,Conc_All!$R$5:$AG$245,3*($C$8-1)+2) -> 57324 | R45: =VLOOKUP($P45,Conc_All!$R$5:$AG$245,3*($C$8-1)+3) -> 65870 | S45: =VLOOKUP($P45,Conc_All!$R$5:$AG$245,3*($C$8-1)+4) -> 77970 | T45: =VLOOKUP($P45,Conc_All_SDEIS!$R$5:$AG$245,3*($C$8-1)+2) -> 66895 | U45: =VLOOKUP($P45,Conc_All_SDEIS!$R$5:$AG$245,3*($C$8-1)+3) -> 73231 | V45: =VLOOKUP($P45,Conc_All_SDEIS!$R$5:$AG$245,3*($C$8-1)+4) -> 82654
A46: Sb | B46: 31 | C46: 5.5 | H46: 22 | I46: =VLOOKUP($H46,Conc_All!$A$5:$P$204,3*($C$8-1)+2) -> 107260 | J46: =VLOOKUP($H46,Conc_All!$A$5:$P$204,3*($C$8-1)+3) -> 134480 | K46: =VLOOKUP($H46,Conc_All!$A$5:$P$204,3*($C$8-1)+4) -> 167280 | L46: =VLOOKUP($H46,Conc_All_SDEIS!$A$5:$P$204,3*($C$8-1)+2) -> 112350 | M46: =VLOOKUP($H46,Conc_All_SDEIS!$A$5:$P$204,3*($C$8-1)+3) -> 126910 | N46: =VLOOKUP($H46,Conc_All_SDEIS!$A$5:$P$204,3*($C$8-1)+4) -> 142920 | O46: =(K46-N46)/N46 -> 0.1704450042 | P46: 41.75 | Q46: =VLOOKUP($P46,Conc_All!$R$5:$AG$245,3*($C$8-1)+2) -> 57180 | R46: =VLOOKUP($P46,Conc_All!$R$5:$AG$245,3*($C$8-1)+3) -> 65797 | S46: =VLOOKUP($P46,Conc_All!$R$5:$AG$245,3*($C$8-1)+4) -> 77865 | T46: =VLOOKUP($P46,Conc_All_SDEIS!$R$5:$AG$245,3*($C$8-1)+2) -> 66804 | U46: =VLOOKUP($P46,Conc_All_SDEIS!$R$5:$AG$245,3*($C$8-1)+3) -> 73177 | V46: =VLOOKUP($P46,Conc_All_SDEIS!$R$5:$AG$245,3*($C$8-1)+4) -> 82582
A47: Se | B47: 5 | C47: 5 | H47: 23 | I47: =VLOOKUP($H47,Conc_All!$A$5:$P$204,3*($C$8-1)+2) -> 100780 | J47: =VLOOKUP($H47,Conc_All!$A$5:$P$204,3*($C$8-1)+3) -> 113400 | K47: =VLOOKUP($H47,Conc_All!$A$5:$P$204,3*($C$8-1)+4) -> 134930 | L47: =VLOOKUP($H47,Conc_All_SDEIS!$A$5:$P$204,3*($C$8-1)+2) -> 115300 | M47: =VLOOKUP($H47,Conc_All_SDEIS!$A$5:$P$204,3*($C$8-1)+3) -> 127150 | N47: =VLOOKUP($H47,Conc_All_SDEIS!$A$5:$P$204,3*($C$8-1)+4) -> 142370 | O47: =(K47-N47)/N47 -> -0.05225820046 | P47: 41.83333333 | Q47: =VLOOKUP($P47,Conc_All!$R$5:$AG$245,3*($C$8-1)+2) -> 57154 | R47: =VLOOKUP($P47,Conc_All!$R$5:$AG$245,3*($C$8-1)+3) -> 65713 | S47: =VLOOKUP($P47,Conc_All!$R$5:$AG$245,3*($C$8-1)+4) -> 77719 | T47: =VLOOKUP($P47,Conc_All_SDEIS!$R$5:$AG$245,3*($C$8-1)+2) -> 66705 | U47: =VLOOKUP($P47,Conc_All_SDEIS!$R$5:$AG$245,3*($C$8-1)+3) -> 73089 | V47: =VLOOKUP($P47,Conc_All_SDEIS!$R$5:$AG$245,3*($C$8-1)+4) -> 82498
A48: SO4 | C48: 250000 | H48: 24 | I48: =VLOOKUP($H48,Conc_All!$A$5:$P$204,3*($C$8-1)+2) -> 98156 | J48: =VLOOKUP($H48,Conc_All!$A$5:$P$204,3*($C$8-1)+3) -> 108400 | K48: =VLOOKUP($H48,Conc_All!$A$5:$P$204,3*($C$8-1)+4) -> 127080 | L48: =VLOOKUP($H48,Conc_All_SDEIS!$A$5:$P$204,3*($C$8-1)+2) -> 114540 | M48: =VLOOKUP($H48,Conc_All_SDEIS!$A$5:$P$204,3*($C$8-1)+3) -> 124440 | N48: =VLOOKUP($H48,Conc_All_SDEIS!$A$5:$P$204,3*($C$8-1)+4) -> 140930 | O48: -0.09827573973 | P48: 41.91666667 | Q48: =VLOOKUP($P48,Conc_All!$R$5:$AG$245,3*($C$8-1)+2) -> 57085 | R48: =VLOOKUP($P48,Conc_All!$R$5:$AG$245,3*($C$8-1)+3) -> 65664 | S48: =VLOOKUP($P48,Conc_All!$R$5:$AG$245,3*($C$8-1)+4) -> 77684 | T48: =VLOOKUP($P48,Conc_All_SDEIS!$R$5:$AG$245,3*($C$8-1)+2) -> 66703 | U48: =VLOOKUP($P48,Conc_All_SDEIS!$R$5:$AG$245,3*($C$8-1)+3) -> 73083 | V48: =VLOOKUP($P48,Conc_All_SDEIS!$R$5:$AG$245,3*($C$8-1)+4) -> 82505
A49: Tl | B49: 0.56 | C49: 0.28 | H49: 25 | I49: =VLOOKUP($H49,Conc_All!$A$5:$P$204,3*($C$8-1)+2) -> 95748 | J49: =VLOOKUP($H49,Conc_All!$A$5:$P$204,3*($C$8-1)+3) -> 105180 | K49: =VLOOKUP($H49,Conc_All!$A$5:$P$204,3*($C$8-1)+4) -> 124620 | L49: =VLOOKUP($H49,Conc_All_SDEIS!$A$5:$P$204,3*($C$8-1)+2) -> 110320 | M49: =VLOOKUP($H49,Conc_All_SDEIS!$A$5:$P$204,3*($C$8-1)+3) -> 118250 | N49: =VLOOKUP($H49,Conc_All_SDEIS!$A$5:$P$204,3*($C$8-1)+4) -> 133260 | O49: -0.06483565961 | P49: 42 | Q49: =VLOOKUP($P49,Conc_All!$R$5:$AG$245,3*($C$8-1)+2) -> 57018 | R49: =VLOOKUP($P49,Conc_All!$R$5:$AG$245,3*($C$8-1)+3) -> 65596 | S49: =VLOOKUP($P49,Conc_All!$R$5:$AG$245,3*($C$8-1)+4) -> 77652 | T49: =VLOOKUP($P49,Conc_All_SDEIS!$R$5:$AG$245,3*($C$8-1)+2) -> 66700 | U49: =VLOOKUP($P49,Conc_All_SDEIS!$R$5:$AG$245,3*($C$8-1)+3) -> 73077 | V49: =VLOOKUP($P49,Conc_All_SDEIS!$R$5:$AG$245,3*($C$8-1)+4) -> 82505
A50: V | H50: 26 | I50: =VLOOKUP($H50,Conc_All!$A$5:$P$204,3*($C$8-1)+2) -> 94735 | J50: =VLOOKUP($H50,Conc_All!$A$5:$P$204,3*($C$8-1)+3) -> 104840 | K50: =VLOOKUP($H50,Conc_All!$A$5:$P$204,3*($C$8-1)+4) -> 124720 | L50: =VLOOKUP($H50,Conc_All_SDEIS!$A$5:$P$204,3*($C$8-1)+2) -> 104900 | M50: =VLOOKUP($H50,Conc_All_SDEIS!$A$5:$P$204,3*($C$8-1)+3) -> 111960 | N50: =VLOOKUP($H50,Conc_All_SDEIS!$A$5:$P$204,3*($C$8-1)+4) -> 125160 | O50: -0.00351550016 | P50: 42.08333333 | Q50: =VLOOKUP($P50,Conc_All!$R$5:$AG$245,3*($C$8-1)+2) -> 56944 | R50: =VLOOKUP($P50,Conc_All!$R$5:$AG$245,3*($C$8-1)+3) -> 65568 | S50: =VLOOKUP($P50,Conc_All!$R$5:$AG$245,3*($C$8-1)+4) -> 77626 | T50: =VLOOKUP($P50,Conc_All_SDEIS!$R$5:$AG$245,3*($C$8-1)+2) -> 66697 | U50: =VLOOKUP($P50,Conc_All_SDEIS!$R$5:$AG$245,3*($C$8-1)+3) -> 73070 | V50: =VLOOKUP($P50,Conc_All_SDEIS!$R$5:$AG$245,3*($C$8-1)+4) -> 82502
A51: Zn | D51: 0.8473 | E51: 0.884 | F51: 121.8437474 | H51: 27 | I51: =VLOOKUP($H51,Conc_All!$A$5:$P$204,3*($C$8-1)+2) -> 90843 | J51: =VLOOKUP($H51,Conc_All!$A$5:$P$204,3*($C$8-1)+3) -> 100850 | K51: =VLOOKUP($H51,Conc_All!$A$5:$P$204,3*($C$8-1)+4) -> 119500 | L51: =VLOOKUP($H51,Conc_All_SDEIS!$A$5:$P$204,3*($C$8-1)+2) -> 98873 | M51: =VLOOKUP($H51,Conc_All_SDEIS!$A$5:$P$204,3*($C$8-1)+3) -> 105490 | N51: =VLOOKUP($H51,Conc_All_SDEIS!$A$5:$P$204,3*($C$8-1)+4) -> 117670 | O51: 0.01555196737 | P51: 42.16666667 | Q51: =VLOOKUP($P51,Conc_All!$R$5:$AG$245,3*($C$8-1)+2) -> 56856 | R51: =VLOOKUP($P51,Conc_All!$R$5:$AG$245,3*($C$8-1)+3) -> 65525 | S51: =VLOOKUP($P51,Conc_All!$R$5:$AG$245,3*($C$8-1)+4) -> 77598 | T51: =VLOOKUP($P51,Conc_All_SDEIS!$R$5:$AG$245,3*($C$8-1)+2) -> 66693 | U51: =VLOOKUP($P51,Conc_All_SDEIS!$R$5:$AG$245,3*($C$8-1)+3) -> 73064 | V51: =VLOOKUP($P51,Conc_All_SDEIS!$R$5:$AG$245,3*($C$8-1)+4) -> 82499
H52: 28 | I52: =VLOOKUP($H52,Conc_All!$A$5:$P$204,3*($C$8-1)+2) -> 86029 | J52: =VLOOKUP($H52,Conc_All!$A$5:$P$204,3*($C$8-1)+3) -> 95316 | K52: =VLOOKUP($H52,Conc_All!$A$5:$P$204,3*($C$8-1)+4) -> 112150 | L52: =VLOOKUP($H52,Conc_All_SDEIS!$A$5:$P$204,3*($C$8-1)+2) -> 91433 | M52: =VLOOKUP($H52,Conc_All_SDEIS!$A$5:$P$204,3*($C$8-1)+3) -> 98034 | N52: =VLOOKUP($H52,Conc_All_SDEIS!$A$5:$P$204,3*($C$8-1)+4) -> 109270 | O52: 0.02635673103 | P52: 42.25 | Q52: =VLOOKUP($P52,Conc_All!$R$5:$AG$245,3*($C$8-1)+2) -> 56771 | R52: =VLOOKUP($P52,Conc_All!$R$5:$AG$245,3*($C$8-1)+3) -> 65483 | S52: =VLOOKUP($P52,Conc_All!$R$5:$AG$245,3*($C$8-1)+4) -> 77531 | T52: =VLOOKUP($P52,Conc_All_SDEIS!$R$5:$AG$245,3*($C$8-1)+2) -> 66690 | U52: =VLOOKUP($P52,Conc_All_SDEIS!$R$5:$AG$245,3*($C$8-1)+3) -> 73057 | V52: =VLOOKUP($P52,Conc_All_SDEIS!$R$5:$AG$245,3*($C$8-1)+4) -> 82496
H53: 29 | I53: =VLOOKUP($H53,Conc_All!$A$5:$P$204,3*($C$8-1)+2) -> 81611 | J53: =VLOOKUP($H53,Conc_All!$A$5:$P$204,3*($C$8-1)+3) -> 90575 | K53: =VLOOKUP($H53,Conc_All!$A$5:$P$204,3*($C$8-1)+4) -> 107130 | L53: =VLOOKUP($H53,Conc_All_SDEIS!$A$5:$P$204,3*($C$8-1)+2) -> 84476 | M53: =VLOOKUP($H53,Conc_All_SDEIS!$A$5:$P$204,3*($C$8-1)+3) -> 90797 | N53: =VLOOKUP($H53,Conc_All_SDEIS!$A$5:$P$204,3*($C$8-1)+4) -> 101560 | O53: 0.05484442694 | P53: 42.33333333 | Q53: =VLOOKUP($P53,Conc_All!$R$5:$AG$245,3*($C$8-1)+2) -> 56434 | R53: =VLOOKUP($P53,Conc_All!$R$5:$AG$245,3*($C$8-1)+3) -> 65100 | S53: =VLOOKUP($P53,Conc_All!$R$5:$AG$245,3*($C$8-1)+4) -> 77155 | T53: =VLOOKUP($P53,Conc_All_SDEIS!$R$5:$AG$245,3*($C$8-1)+2) -> 66503 | U53: =VLOOKUP($P53,Conc_All_SDEIS!$R$5:$AG$245,3*($C$8-1)+3) -> 72857 | V53: =VLOOKUP($P53,Conc_All_SDEIS!$R$5:$AG$245,3*($C$8-1)+4) -> 82231
H54: 30 | I54: =VLOOKUP($H54,Conc_All!$A$5:$P$204,3*($C$8-1)+2) -> 78465 | J54: =VLOOKUP($H54,Conc_All!$A$5:$P$204,3*($C$8-1)+3) -> 86621 | K54: =VLOOKUP($H54,Conc_All!$A$5:$P$204,3*($C$8-1)+4) -> 102260 | L54: =VLOOKUP($H54,Conc_All_SDEIS!$A$5:$P$204,3*($C$8-1)+2) -> 79178 | M54: =VLOOKUP($H54,Conc_All_SDEIS!$A$5:$P$204,3*($C$8-1)+3) -> 85413 | N54: =VLOOKUP($H54,Conc_All_SDEIS!$A$5:$P$204,3*($C$8-1)+4) -> 95589 | O54: 0.06978836477 | P54: 42.41666667 | Q54: =VLOOKUP($P54,Conc_All!$R$5:$AG$245,3*($C$8-1)+2) -> 56348 | R54: =VLOOKUP($P54,Conc_All!$R$5:$AG$245,3*($C$8-1)+3) -> 65042 | S54: =VLOOKUP($P54,Conc_All!$R$5:$AG$245,3*($C$8-1)+4) -> 77071 | T54: =VLOOKUP($P54,Conc_All_SDEIS!$R$5:$AG$245,3*($C$8-1)+2) -> 66519 | U54: =VLOOKUP($P54,Conc_All_SDEIS!$R$5:$AG$245,3*($C$8-1)+3) -> 72852 | V54: =VLOOKUP($P54,Conc_All_SDEIS!$R$5:$AG$245,3*($C$8-1)+4) -> 82238
A55: Locations | H55: 31 | I55: =VLOOKUP($H55,Conc_All!$A$5:$P$204,3*($C$8-1)+2) -> 76161 | J55: =VLOOKUP($H55,Conc_All!$A$5:$P$204,3*($C$8-1)+3) -> 84285 | K55: =VLOOKUP($H55,Conc_All!$A$5:$P$204,3*($C$8-1)+4) -> 98935 | L55: =VLOOKUP($H55,Conc_All_SDEIS!$A$5:$P$204,3*($C$8-1)+2) -> 75186 | M55: =VLOOKUP($H55,Conc_All_SDEIS!$A$5:$P$204,3*($C$8-1)+3) -> 81231 | N55: =VLOOKUP($H55,Conc_All_SDEIS!$A$5:$P$204,3*($C$8-1)+4) -> 90768 | O55: 0.08997664375 | P55: 42.5 | Q55: =VLOOKUP($P55,Conc_All!$R$5:$AG$245,3*($C$8-1)+2) -> 56291 | R55: =VLOOKUP($P55,Conc_All!$R$5:$AG$245,3*($C$8-1)+3) -> 64962 | S55: =VLOOKUP($P55,Conc_All!$R$5:$AG$245,3*($C$8-1)+4) -> 76962 | T55: =VLOOKUP($P55,Conc_All_SDEIS!$R$5:$AG$245,3*($C$8-1)+2) -> 66534 | U55: =VLOOKUP($P55,Conc_All_SDEIS!$R$5:$AG$245,3*($C$8-1)+3) -> 72842 | V55: =VLOOKUP($P55,Conc_All_SDEIS!$R$5:$AG$245,3*($C$8-1)+4) -> 82239
A56: Annual Max | H56: 32 | I56: =VLOOKUP($H56,Conc_All!$A$5:$P$204,3*($C$8-1)+2) -> 73900 | J56: =VLOOKUP($H56,Conc_All!$A$5:$P$204,3*($C$8-1)+3) -> 82331 | K56: =VLOOKUP($H56,Conc_All!$A$5:$P$204,3*($C$8-1)+4) -> 95991 | L56: =VLOOKUP($H56,Conc_All_SDEIS!$A$5:$P$204,3*($C$8-1)+2) -> 71599 | M56: =VLOOKUP($H56,Conc_All_SDEIS!$A$5:$P$204,3*($C$8-1)+3) -> 77502 | N56: =VLOOKUP($H56,Conc_All_SDEIS!$A$5:$P$204,3*($C$8-1)+4) -> 87068 | O56: 0.1024831166 | P56: 42.58333333 | Q56: =VLOOKUP($P56,Conc_All!$R$5:$AG$245,3*($C$8-1)+2) -> 56281 | R56: =VLOOKUP($P56,Conc_All!$R$5:$AG$245,3*($C$8-1)+3) -> 64904 | S56: =VLOOKUP($P56,Conc_All!$R$5:$AG$245,3*($C$8-1)+4) -> 76871 | T56: =VLOOKUP($P56,Conc_All_SDEIS!$R$5:$AG$245,3*($C$8-1)+2) -> 66547 | U56: =VLOOKUP($P56,Conc_All_SDEIS!$R$5:$AG$245,3*($C$8-1)+3) -> 72832 | V56: =VLOOKUP($P56,Conc_All_SDEIS!$R$5:$AG$245,3*($C$8-1)+4) -> 82254
A57: Annual Average | H57: 33 | I57: =VLOOKUP($H57,Conc_All!$A$5:$P$204,3*($C$8-1)+2) -> 71774 | J57: =VLOOKUP($H57,Conc_All!$A$5:$P$204,3*($C$8-1)+3) -> 80285 | K57: =VLOOKUP($H57,Conc_All!$A$5:$P$204,3*($C$8-1)+4) -> 93573 | L57: =VLOOKUP($H57,Conc_All_SDEIS!$A$5:$P$204,3*($C$8-1)+2) -> 71207 | M57: =VLOOKUP($H57,Conc_All_SDEIS!$A$5:$P$204,3*($C$8-1)+3) -> 77000 | N57: =VLOOKUP($H57,Conc_All_SDEIS!$A$5:$P$204,3*($C$8-1)+4) -> 86180 | O57: 0.0857855651 | P57: 42.66666667 | Q57: =VLOOKUP($P57,Conc_All!$R$5:$AG$245,3*($C$8-1)+2) -> 56346 | R57: =VLOOKUP($P57,Conc_All!$R$5:$AG$245,3*($C$8-1)+3) -> 64881 | S57: =VLOOKUP($P57,Conc_All!$R$5:$AG$245,3*($C$8-1)+4) -> 76775 | T57: =VLOOKUP($P57,Conc_All_SDEIS!$R$5:$AG$245,3*($C$8-1)+2) -> 66529 | U57: =VLOOKUP($P57,Conc_All_SDEIS!$R$5:$AG$245,3*($C$8-1)+3) -> 72812 | V57: =VLOOKUP($P57,Conc_All_SDEIS!$R$5:$AG$245,3*($C$8-1)+4) -> 82232
H58: 34 | I58: =VLOOKUP($H58,Conc_All!$A$5:$P$204,3*($C$8-1)+2) -> 69466 | J58: =VLOOKUP($H58,Conc_All!$A$5:$P$204,3*($C$8-1)+3) -> 78119 | K58: =VLOOKUP($H58,Conc_All!$A$5:$P$204,3*($C$8-1)+4) -> 91255 | L58: =VLOOKUP($H58,Conc_All_SDEIS!$A$5:$P$204,3*($C$8-1)+2) -> 70703 | M58: =VLOOKUP($H58,Conc_All_SDEIS!$A$5:$P$204,3*($C$8-1)+3) -> 76770 | N58: =VLOOKUP($H58,Conc_All_SDEIS!$A$5:$P$204,3*($C$8-1)+4) -> 85698 | O58: 0.06484398702 | P58: 42.75 | Q58: =VLOOKUP($P58,Conc_All!$R$5:$AG$245,3*($C$8-1)+2) -> 56270 | R58: =VLOOKUP($P58,Conc_All!$R$5:$AG$245,3*($C$8-1)+3) -> 64821 | S58: =VLOOKUP($P58,Conc_All!$R$5:$AG$245,3*($C$8-1)+4) -> 76663 | T58: =VLOOKUP($P58,Conc_All_SDEIS!$R$5:$AG$245,3*($C$8-1)+2) -> 66474 | U58: =VLOOKUP($P58,Conc_All_SDEIS!$R$5:$AG$245,3*($C$8-1)+3) -> 72769 | V58: =VLOOKUP($P58,Conc_All_SDEIS!$R$5:$AG$245,3*($C$8-1)+4) -> 82157
H59: 35 | I59: =VLOOKUP($H59,Conc_All!$A$5:$P$204,3*($C$8-1)+2) -> 67259 | J59: =VLOOKUP($H59,Conc_All!$A$5:$P$204,3*($C$8-1)+3) -> 76073 | K59: =VLOOKUP($H59,Conc_All!$A$5:$P$204,3*($C$8-1)+4) -> 88661 | L59: =VLOOKUP($H59,Conc_All_SDEIS!$A$5:$P$204,3*($C$8-1)+2) -> 70316 | M59: =VLOOKUP($H59,Conc_All_SDEIS!$A$5:$P$204,3*($C$8-1)+3) -> 76294 | N59: =VLOOKUP($H59,Conc_All_SDEIS!$A$5:$P$204,3*($C$8-1)+4) -> 85253 | O59: 0.03997513284 | P59: 42.83333333 | Q59: =VLOOKUP($P59,Conc_All!$R$5:$AG$245,3*($C$8-1)+2) -> 56142 | R59: =VLOOKUP($P59,Conc_All!$R$5:$AG$245,3*($C$8-1)+3) -> 64748 | S59: =VLOOKUP($P59,Conc_All!$R$5:$AG$245,3*($C$8-1)+4) -> 76651 | T59: =VLOOKUP($P59,Conc_All_SDEIS!$R$5:$AG$245,3*($C$8-1)+2) -> 66396 | U59: =VLOOKUP($P59,Conc_All_SDEIS!$R$5:$AG$245,3*($C$8-1)+3) -> 72731 | V59: =VLOOKUP($P59,Conc_All_SDEIS!$R$5:$AG$245,3*($C$8-1)+4) -> 82059
H60: 36 | I60: =VLOOKUP($H60,Conc_All!$A$5:$P$204,3*($C$8-1)+2) -> 65453 | J60: =VLOOKUP($H60,Conc_All!$A$5:$P$204,3*($C$8-1)+3) -> 74276 | K60: =VLOOKUP($H60,Conc_All!$A$5:$P$204,3*($C$8-1)+4) -> 86193 | L60: =VLOOKUP($H60,Conc_All_SDEIS!$A$5:$P$204,3*($C$8-1)+2) -> 69653 | M60: =VLOOKUP($H60,Conc_All_SDEIS!$A$5:$P$204,3*($C$8-1)+3) -> 75849 | N60: =VLOOKUP($H60,Conc_All_SDEIS!$A$5:$P$204,3*($C$8-1)+4) -> 84813 | O60: 0.01627109052 | P60: 42.91666667 | Q60: =VLOOKUP($P60,Conc_All!$R$5:$AG$245,3*($C$8-1)+2) -> 56116 | R60: =VLOOKUP($P60,Conc_All!$R$5:$AG$245,3*($C$8-1)+3) -> 64716 | S60: =VLOOKUP($P60,Conc_All!$R$5:$AG$245,3*($C$8-1)+4) -> 76772 | T60: =VLOOKUP($P60,Conc_All_SDEIS!$R$5:$AG$245,3*($C$8-1)+2) -> 66384 | U60: =VLOOKUP($P60,Conc_All_SDEIS!$R$5:$AG$245,3*($C$8-1)+3) -> 72726 | V60: =VLOOKUP($P60,Conc_All_SDEIS!$R$5:$AG$245,3*($C$8-1)+4) -> 82058
H61: 37 | I61: =VLOOKUP($H61,Conc_All!$A$5:$P$204,3*($C$8-1)+2) -> 63835 | J61: =VLOOKUP($H61,Conc_All!$A$5:$P$204,3*($C$8-1)+3) -> 72695 | K61: =VLOOKUP($H61,Conc_All!$A$5:$P$204,3*($C$8-1)+4) -> 84534 | L61: =VLOOKUP($H61,Conc_All_SDEIS!$A$5:$P$204,3*($C$8-1)+2) -> 69166 | M61: =VLOOKUP($H61,Conc_All_SDEIS!$A$5:$P$204,3*($C$8-1)+3) -> 75428 | N61: =VLOOKUP($H61,Conc_All_SDEIS!$A$5:$P$204,3*($C$8-1)+4) -> 84431 | O61: 0.001219931068 | P61: 43 | Q61: =VLOOKUP($P61,Conc_All!$R$5:$AG$245,3*($C$8-1)+2) -> 56078 | R61: =VLOOKUP($P61,Conc_All!$R$5:$AG$245,3*($C$8-1)+3) -> 64697 | S61: =VLOOKUP($P61,Conc_All!$R$5:$AG$245,3*($C$8-1)+4) -> 76725 | T61: =VLOOKUP($P61,Conc_All_SDEIS!$R$5:$AG$245,3*($C$8-1)+2) -> 66383 | U61: =VLOOKUP($P61,Conc_All_SDEIS!$R$5:$AG$245,3*($C$8-1)+3) -> 72721 | V61: =VLOOKUP($P61,Conc_All_SDEIS!$R$5:$AG$245,3*($C$8-1)+4) -> 82056
H62: 38 | I62: =VLOOKUP($H62,Conc_All!$A$5:$P$204,3*($C$8-1)+2) -> 62767 | J62: =VLOOKUP($H62,Conc_All!$A$5:$P$204,3*($C$8-1)+3) -> 71145 | K62: =VLOOKUP($H62,Conc_All!$A$5:$P$204,3*($C$8-1)+4) -> 83367 | L62: =VLOOKUP($H62,Conc_All_SDEIS!$A$5:$P$204,3*($C$8-1)+2) -> 68749 | M62: =VLOOKUP($H62,Conc_All_SDEIS!$A$5:$P$204,3*($C$8-1)+3) -> 75179 | N62: =VLOOKUP($H62,Conc_All_SDEIS!$A$5:$P$204,3*($C$8-1)+4) -> 83986 | O62: -0.007370275998 | P62: 43.08333333 | Q62: =VLOOKUP($P62,Conc_All!$R$5:$AG$245,3*($C$8-1)+2) -> 56037 | R62: =VLOOKUP($P62,Conc_All!$R$5:$AG$245,3*($C$8-1)+3) -> 64641 | S62: =VLOOKUP($P62,Conc_All!$R$5:$AG$245,3*($C$8-1)+4) -> 76678 | T62: =VLOOKUP($P62,Conc_All_SDEIS!$R$5:$AG$245,3*($C$8-1)+2) -> 66382 | U62: =VLOOKUP($P62,Conc_All_SDEIS!$R$5:$AG$245,3*($C$8-1)+3) -> 72716 | V62: =VLOOKUP($P62,Conc_All_SDEIS!$R$5:$AG$245,3*($C$8-1)+4) -> 82053
H63: 39 | I63: =VLOOKUP($H63,Conc_All!$A$5:$P$204,3*($C$8-1)+2) -> 61656 | J63: =VLOOKUP($H63,Conc_All!$A$5:$P$204,3*($C$8-1)+3) -> 70077 | K63: =VLOOKUP($H63,Conc_All!$A$5:$P$204,3*($C$8-1)+4) -> 81897 | L63: =VLOOKUP($H63,Conc_All_SDEIS!$A$5:$P$204,3*($C$8-1)+2) -> 68372 | M63: =VLOOKUP($H63,Conc_All_SDEIS!$A$5:$P$204,3*($C$8-1)+3) -> 74823 | N63: =VLOOKUP($H63,Conc_All_SDEIS!$A$5:$P$204,3*($C$8-1)+4) -> 83673 | O63: -0.02122548492 | P63: 43.16666667 | Q63: =VLOOKUP($P63,Conc_All!$R$5:$AG$245,3*($C$8-1)+2) -> 56010 | R63: =VLOOKUP($P63,Conc_All!$R$5:$AG$245,3*($C$8-1)+3) -> 64590 | S63: =VLOOKUP($P63,Conc_All!$R$5:$AG$245,3*($C$8-1)+4) -> 76633 | T63: =VLOOKUP($P63,Conc_All_SDEIS!$R$5:$AG$245,3*($C$8-1)+2) -> 66380 | U63: =VLOOKUP($P63,Conc_All_SDEIS!$R$5:$AG$245,3*($C$8-1)+3) -> 72712 | V63: =VLOOKUP($P63,Conc_All_SDEIS!$R$5:$AG$245,3*($C$8-1)+4) -> 82050
H64: 40 | I64: =VLOOKUP($H64,Conc_All!$A$5:$P$204,3*($C$8-1)+2) -> 60478 | J64: =VLOOKUP($H64,Conc_All!$A$5:$P$204,3*($C$8-1)+3) -> 68756 | K64: =VLOOKUP($H64,Conc_All!$A$5:$P$204,3*($C$8-1)+4) -> 80538 | L64: =VLOOKUP($H64,Conc_All_SDEIS!$A$5:$P$204,3*($C$8-1)+2) -> 67942 | M64: =VLOOKUP($H64,Conc_All_SDEIS!$A$5:$P$204,3*($C$8-1)+3) -> 74448 | N64: =VLOOKUP($H64,Conc_All_SDEIS!$A$5:$P$204,3*($C$8-1)+4) -> 83436 | O64: -0.03473320869 | P64: 43.25 | Q64: =VLOOKUP($P64,Conc_All!$R$5:$AG$245,3*($C$8-1)+2) -> 55971 | R64: =VLOOKUP($P64,Conc_All!$R$5:$AG$245,3*($C$8-1)+3) -> 64571 | S64: =VLOOKUP($P64,Conc_All!$R$5:$AG$245,3*($C$8-1)+4) -> 76586 | T64: =VLOOKUP($P64,Conc_All_SDEIS!$R$5:$AG$245,3*($C$8-1)+2) -> 66379 | U64: =VLOOKUP($P64,Conc_All_SDEIS!$R$5:$AG$245,3*($C$8-1)+3) -> 72707 | V64: =VLOOKUP($P64,Conc_All_SDEIS!$R$5:$AG$245,3*($C$8-1)+4) -> 82047
H65: 41 | I65: =VLOOKUP($H65,Conc_All!$A$5:$P$204,3*($C$8-1)+2) -> 59295 | J65: =VLOOKUP($H65,Conc_All!$A$5:$P$204,3*($C$8-1)+3) -> 67601 | K65: =VLOOKUP($H65,Conc_All!$A$5:$P$204,3*($C$8-1)+4) -> 79330 | L65: =VLOOKUP($H65,Conc_All_SDEIS!$A$5:$P$204,3*($C$8-1)+2) -> 67571 | M65: =VLOOKUP($H65,Conc_All_SDEIS!$A$5:$P$204,3*($C$8-1)+3) -> 74004 | N65: =VLOOKUP($H65,Conc_All_SDEIS!$A$5:$P$204,3*($C$8-1)+4) -> 83140 | O65: -0.04582631706 | P65: 43.33333333 | Q65: =VLOOKUP($P65,Conc_All!$R$5:$AG$245,3*($C$8-1)+2) -> 55689 | R65: =VLOOKUP($P65,Conc_All!$R$5:$AG$245,3*($C$8-1)+3) -> 64236 | S65: =VLOOKUP($P65,Conc_All!$R$5:$AG$245,3*($C$8-1)+4) -> 76165 | T65: =VLOOKUP($P65,Conc_All_SDEIS!$R$5:$AG$245,3*($C$8-1)+2) -> 66133 | U65: =VLOOKUP($P65,Conc_All_SDEIS!$R$5:$AG$245,3*($C$8-1)+3) -> 72541 | V65: =VLOOKUP($P65,Conc_All_SDEIS!$R$5:$AG$245,3*($C$8-1)+4) -> 81814
H66: 42 | I66: =VLOOKUP($H66,Conc_All!$A$5:$P$204,3*($C$8-1)+2) -> 58103 | J66: =VLOOKUP($H66,Conc_All!$A$5:$P$204,3*($C$8-1)+3) -> 66696 | K66: =VLOOKUP($H66,Conc_All!$A$5:$P$204,3*($C$8-1)+4) -> 78578 | L66: =VLOOKUP($H66,Conc_All_SDEIS!$A$5:$P$204,3*($C$8-1)+2) -> 67230 | M66: =VLOOKUP($H66,Conc_All_SDEIS!$A$5:$P$204,3*($C$8-1)+3) -> 73531 | N66: =VLOOKUP($H66,Conc_All_SDEIS!$A$5:$P$204,3*($C$8-1)+4) -> 82819 | O66: -0.05120805612 | P66: 43.41666667 | Q66: =VLOOKUP($P66,Conc_All!$R$5:$AG$245,3*($C$8-1)+2) -> 55648 | R66: =VLOOKUP($P66,Conc_All!$R$5:$AG$245,3*($C$8-1)+3) -> 64244 | S66: =VLOOKUP($P66,Conc_All!$R$5:$AG$245,3*($C$8-1)+4) -> 76082 | T66: =VLOOKUP($P66,Conc_All_SDEIS!$R$5:$AG$245,3*($C$8-1)+2) -> 66138 | U66: =VLOOKUP($P66,Conc_All_SDEIS!$R$5:$AG$245,3*($C$8-1)+3) -> 72529 | V66: =VLOOKUP($P66,Conc_All_SDEIS!$R$5:$AG$245,3*($C$8-1)+4) -> 81836
H67: 43 | I67: =VLOOKUP($H67,Conc_All!$A$5:$P$204,3*($C$8-1)+2) -> 57018 | J67: =VLOOKUP($H67,Conc_All!$A$5:$P$204,3*($C$8-1)+3) -> 65596 | K67: =VLOOKUP($H67,Conc_All!$A$5:$P$204,3*($C$8-1)+4) -> 77652 | L67: =VLOOKUP($H67,Conc_All_SDEIS!$A$5:$P$204,3*($C$8-1)+2) -> 66700 | M67: =VLOOKUP($H67,Conc_All_SDEIS!$A$5:$P$204,3*($C$8-1)+3) -> 73077 | N67: =VLOOKUP($H67,Conc_All_SDEIS!$A$5:$P$204,3*($C$8-1)+4) -> 82505 | O67: -0.05882067753 | P67: 43.5 | Q67: =VLOOKUP($P67,Conc_All!$R$5:$AG$245,3*($C$8-1)+2) -> 55603 | R67: =VLOOKUP($P67,Conc_All!$R$5:$AG$245,3*($C$8-1)+3) -> 64171 | S67: =VLOOKUP($P67,Conc_All!$R$5:$AG$245,3*($C$8-1)+4) -> 75988 | T67: =VLOOKUP($P67,Conc_All_SDEIS!$R$5:$AG$245,3*($C$8-1)+2) -> 66138 | U67: =VLOOKUP($P67,Conc_All_SDEIS!$R$5:$AG$245,3*($C$8-1)+3) -> 72508 | V67: =VLOOKUP($P67,Conc_All_SDEIS!$R$5:$AG$245,3*($C$8-1)+4) -> 81854
H68: 44 | I68: =VLOOKUP($H68,Conc_All!$A$5:$P$204,3*($C$8-1)+2) -> 56078 | J68: =VLOOKUP($H68,Conc_All!$A$5:$P$204,3*($C$8-1)+3) -> 64697 | K68: =VLOOKUP($H68,Conc_All!$A$5:$P$204,3*($C$8-1)+4) -> 76725 | L68: =VLOOKUP($H68,Conc_All_SDEIS!$A$5:$P$204,3*($C$8-1)+2) -> 66383 | M68: =VLOOKUP($H68,Conc_All_SDEIS!$A$5:$P$204,3*($C$8-1)+3) -> 72721 | N68: =VLOOKUP($H68,Conc_All_SDEIS!$A$5:$P$204,3*($C$8-1)+4) -> 82056 | O68: -0.06496782685 | P68: 43.58333333 | Q68: =VLOOKUP($P68,Conc_All!$R$5:$AG$245,3*($C$8-1)+2) -> 55574 | R68: =VLOOKUP($P68,Conc_All!$R$5:$AG$245,3*($C$8-1)+3) -> 64079 | S68: =VLOOKUP($P68,Conc_All!$R$5:$AG$245,3*($C$8-1)+4) -> 76076 | T68: =VLOOKUP($P68,Conc_All_SDEIS!$R$5:$AG$245,3*($C$8-1)+2) -> 66147 | U68: =VLOOKUP($P68,Conc_All_SDEIS!$R$5:$AG$245,3*($C$8-1)+3) -> 72504 | V68: =VLOOKUP($P68,Conc_All_SDEIS!$R$5:$AG$245,3*($C$8-1)+4) -> 81888
H69: 45 | I69: =VLOOKUP($H69,Conc_All!$A$5:$P$204,3*($C$8-1)+2) -> 55326 | J69: =VLOOKUP($H69,Conc_All!$A$5:$P$204,3*($C$8-1)+3) -> 63729 | K69: =VLOOKUP($H69,Conc_All!$A$5:$P$204,3*($C$8-1)+4) -> 75582 | L69: =VLOOKUP($H69,Conc_All_SDEIS!$A$5:$P$204,3*($C$8-1)+2) -> 65990 | M69: =VLOOKUP($H69,Conc_All_SDEIS!$A$5:$P$204,3*($C$8-1)+3) -> 72320 | N69: =VLOOKUP($H69,Conc_All_SDEIS!$A$5:$P$204,3*($C$8-1)+4) -> 81747 | O69: -0.07541561158 | P69: 43.66666667 | Q69: =VLOOKUP($P69,Conc_All!$R$5:$AG$245,3*($C$8-1)+2) -> 55530 | R69: =VLOOKUP($P69,Conc_All!$R$5:$AG$245,3*($C$8-1)+3) -> 64022 | S69: =VLOOKUP($P69,Conc_All!$R$5:$AG$245,3*($C$8-1)+4) -> 75982 | T69: =VLOOKUP($P69,Conc_All_SDEIS!$R$5:$AG$245,3*($C$8-1)+2) -> 66139 | U69: =VLOOKUP($P69,Conc_All_SDEIS!$R$5:$AG$245,3*($C$8-1)+3) -> 72471 | V69: =VLOOKUP($P69,Conc_All_SDEIS!$R$5:$AG$245,3*($C$8-1)+4) -> 81898
H70: 46 | I70: =VLOOKUP($H70,Conc_All!$A$5:$P$204,3*($C$8-1)+2) -> 54253 | J70: =VLOOKUP($H70,Conc_All!$A$5:$P$204,3*($C$8-1)+3) -> 62922 | K70: =VLOOKUP($H70,Conc_All!$A$5:$P$204,3*($C$8-1)+4) -> 74468 | L70: =VLOOKUP($H70,Conc_All_SDEIS!$A$5:$P$204,3*($C$8-1)+2) -> 65559 | M70: =VLOOKUP($H70,Conc_All_SDEIS!$A$5:$P$204,3*($C$8-1)+3) -> 71959 | N70: =VLOOKUP($H70,Conc_All_SDEIS!$A$5:$P$204,3*($C$8-1)+4) -> 81469 | O70: -0.08593452724 | P70: 43.75 | Q70: =VLOOKUP($P70,Conc_All!$R$5:$AG$245,3*($C$8-1)+2) -> 55456 | R70: =VLOOKUP($P70,Conc_All!$R$5:$AG$245,3*($C$8-1)+3) -> 63912 | S70: =VLOOKUP($P70,Conc_All!$R$5:$AG$245,3*($C$8-1)+4) -> 75829 | T70: =VLOOKUP($P70,Conc_All_SDEIS!$R$5:$AG$245,3*($C$8-1)+2) -> 66086 | U70: =VLOOKUP($P70,Conc_All_SDEIS!$R$5:$AG$245,3*($C$8-1)+3) -> 72423 | V70: =VLOOKUP($P70,Conc_All_SDEIS!$R$5:$AG$245,3*($C$8-1)+4) -> 81849
H71: 47 | I71: =VLOOKUP($H71,Conc_All!$A$5:$P$204,3*($C$8-1)+2) -> 53355 | J71: =VLOOKUP($H71,Conc_All!$A$5:$P$204,3*($C$8-1)+3) -> 62009 | K71: =VLOOKUP($H71,Conc_All!$A$5:$P$204,3*($C$8-1)+4) -> 73825 | L71: =VLOOKUP($H71,Conc_All_SDEIS!$A$5:$P$204,3*($C$8-1)+2) -> 65211 | M71: =VLOOKUP($H71,Conc_All_SDEIS!$A$5:$P$204,3*($C$8-1)+3) -> 71540 | N71: =VLOOKUP($H71,Conc_All_SDEIS!$A$5:$P$204,3*($C$8-1)+4) -> 81251 | O71: -0.09139579821 | P71: 43.83333333 | Q71: =VLOOKUP($P71,Conc_All!$R$5:$AG$245,3*($C$8-1)+2) -> 55367 | R71: =VLOOKUP($P71,Conc_All!$R$5:$AG$245,3*($C$8-1)+3) -> 63796 | S71: =VLOOKUP($P71,Conc_All!$R$5:$AG$245,3*($C$8-1)+4) -> 75671 | T71: =VLOOKUP($P71,Conc_All_SDEIS!$R$5:$AG$245,3*($C$8-1)+2) -> 65998 | U71: =VLOOKUP($P71,Conc_All_SDEIS!$R$5:$AG$245,3*($C$8-1)+3) -> 72329 | V71: =VLOOKUP($P71,Conc_All_SDEIS!$R$5:$AG$245,3*($C$8-1)+4) -> 81771
H72: 48 | I72: =VLOOKUP($H72,Conc_All!$A$5:$P$204,3*($C$8-1)+2) -> 52476 | J72: =VLOOKUP($H72,Conc_All!$A$5:$P$204,3*($C$8-1)+3) -> 61193 | K72: =VLOOKUP($H72,Conc_All!$A$5:$P$204,3*($C$8-1)+4) -> 72995 | L72: =VLOOKUP($H72,Conc_All_SDEIS!$A$5:$P$204,3*($C$8-1)+2) -> 64934 | M72: =VLOOKUP($H72,Conc_All_SDEIS!$A$5:$P$204,3*($C$8-1)+3) -> 71187 | N72: =VLOOKUP($H72,Conc_All_SDEIS!$A$5:$P$204,3*($C$8-1)+4) -> 80946 | O72: -0.09822597781 | P72: 43.91666667 | Q72: =VLOOKUP($P72,Conc_All!$R$5:$AG$245,3*($C$8-1)+2) -> 55347 | R72: =VLOOKUP($P72,Conc_All!$R$5:$AG$245,3*($C$8-1)+3) -> 63766 | S72: =VLOOKUP($P72,Conc_All!$R$5:$AG$245,3*($C$8-1)+4) -> 75620 | T72: =VLOOKUP($P72,Conc_All_SDEIS!$R$5:$AG$245,3*($C$8-1)+2) -> 65994 | U72: =VLOOKUP($P72,Conc_All_SDEIS!$R$5:$AG$245,3*($C$8-1)+3) -> 72325 | V72: =VLOOKUP($P72,Conc_All_SDEIS!$R$5:$AG$245,3*($C$8-1)+4) -> 81749
H73: 49 | I73: =VLOOKUP($H73,Conc_All!$A$5:$P$204,3*($C$8-1)+2) -> 51576 | J73: =VLOOKUP($H73,Conc_All!$A$5:$P$204,3*($C$8-1)+3) -> 60221 | K73: =VLOOKUP($H73,Conc_All!$A$5:$P$204,3*($C$8-1)+4) -> 72368 | L73: =VLOOKUP($H73,Conc_All_SDEIS!$A$5:$P$204,3*($C$8-1)+2) -> 64707 | M73: =VLOOKUP($H73,Conc_All_SDEIS!$A$5:$P$204,3*($C$8-1)+3) -> 70852 | N73: =VLOOKUP($H73,Conc_All_SDEIS!$A$5:$P$204,3*($C$8-1)+4) -> 80597 | O73: -0.1021005745 | P73: 44 | Q73: =VLOOKUP($P73,Conc_All!$R$5:$AG$245,3*($C$8-1)+2) -> 55326 | R73: =VLOOKUP($P73,Conc_All!$R$5:$AG$245,3*($C$8-1)+3) -> 63729 | S73: =VLOOKUP($P73,Conc_All!$R$5:$AG$245,3*($C$8-1)+4) -> 75582 | T73: =VLOOKUP($P73,Conc_All_SDEIS!$R$5:$AG$245,3*($C$8-1)+2) -> 65990 | U73: =VLOOKUP($P73,Conc_All_SDEIS!$R$5:$AG$245,3*($C$8-1)+3) -> 72320 | V73: =VLOOKUP($P73,Conc_All_SDEIS!$R$5:$AG$245,3*($C$8-1)+4) -> 81747
H74: 50 | I74: =VLOOKUP($H74,Conc_All!$A$5:$P$204,3*($C$8-1)+2) -> 50887 | J74: =VLOOKUP($H74,Conc_All!$A$5:$P$204,3*($C$8-1)+3) -> 59534 | K74: =VLOOKUP($H74,Conc_All!$A$5:$P$204,3*($C$8-1)+4) -> 71629 | L74: =VLOOKUP($H74,Conc_All_SDEIS!$A$5:$P$204,3*($C$8-1)+2) -> 64338 | M74: =VLOOKUP($H74,Conc_All_SDEIS!$A$5:$P$204,3*($C$8-1)+3) -> 70481 | N74: =VLOOKUP($H74,Conc_All_SDEIS!$A$5:$P$204,3*($C$8-1)+4) -> 80203 | O74: -0.1069037318 | P74: 44.08333333 | Q74: =VLOOKUP($P74,Conc_All!$R$5:$AG$245,3*($C$8-1)+2) -> 55294 | R74: =VLOOKUP($P74,Conc_All!$R$5:$AG$245,3*($C$8-1)+3) -> 63669 | S74: =VLOOKUP($P74,Conc_All!$R$5:$AG$245,3*($C$8-1)+4) -> 75541 | T74: =VLOOKUP($P74,Conc_All_SDEIS!$R$5:$AG$245,3*($C$8-1)+2) -> 65986 | U74: =VLOOKUP($P74,Conc_All_SDEIS!$R$5:$AG$245,3*($C$8-1)+3) -> 72316 | V74: =VLOOKUP($P74,Conc_All_SDEIS!$R$5:$AG$245,3*($C$8-1)+4) -> 81744
H75: 51 | I75: =VLOOKUP($H75,Conc_All!$A$5:$P$204,3*($C$8-1)+2) -> 50210 | J75: =VLOOKUP($H75,Conc_All!$A$5:$P$204,3*($C$8-1)+3) -> 58793 | K75: =VLOOKUP($H75,Conc_All!$A$5:$P$204,3*($C$8-1)+4) -> 70796 | L75: =VLOOKUP($H75,Conc_All_SDEIS!$A$5:$P$204,3*($C$8-1)+2) -> 63984 | M75: =VLOOKUP($H75,Conc_All_SDEIS!$A$5:$P$204,3*($C$8-1)+3) -> 70105 | N75: =VLOOKUP($H75,Conc_All_SDEIS!$A$5:$P$204,3*($C$8-1)+4) -> 79659 | O75: -0.1112617532 | P75: 44.16666667 | Q75: =VLOOKUP($P75,Conc_All!$R$5:$AG$245,3*($C$8-1)+2) -> 55238 | R75: =VLOOKUP($P75,Conc_All!$R$5:$AG$245,3*($C$8-1)+3) -> 63629 | S75: =VLOOKUP($P75,Conc_All!$R$5:$AG$245,3*($C$8-1)+4) -> 75514 | T75: =VLOOKUP($P75,Conc_All_SDEIS!$R$5:$AG$245,3*($C$8-1)+2) -> 65982 | U75: =VLOOKUP($P75,Conc_All_SDEIS!$R$5:$AG$245,3*($C$8-1)+3) -> 72312 | V75: =VLOOKUP($P75,Conc_All_SDEIS!$R$5:$AG$245,3*($C$8-1)+4) -> 81741
H76: 52 | I76: =VLOOKUP($H76,Conc_All!$A$5:$P$204,3*($C$8-1)+2) -> 49686 | J76: =VLOOKUP($H76,Conc_All!$A$5:$P$204,3*($C$8-1)+3) -> 58250 | K76: =VLOOKUP($H76,Conc_All!$A$5:$P$204,3*($C$8-1)+4) -> 70345 | L76: =VLOOKUP($H76,Conc_All_SDEIS!$A$5:$P$204,3*($C$8-1)+2) -> 63688 | M76: =VLOOKUP($H76,Conc_All_SDEIS!$A$5:$P$204,3*($C$8-1)+3) -> 69709 | N76: =VLOOKUP($H76,Conc_All_SDEIS!$A$5:$P$204,3*($C$8-1)+4) -> 79349 | O76: -0.1134733897 | P76: 44.25 | Q76: =VLOOKUP($P76,Conc_All!$R$5:$AG$245,3*($C$8-1)+2) -> 55174 | R76: =VLOOKUP($P76,Conc_All!$R$5:$AG$245,3*($C$8-1)+3) -> 63585 | S76: =VLOOKUP($P76,Conc_All!$R$5:$AG$245,3*($C$8-1)+4) -> 75494 | T76: =VLOOKUP($P76,Conc_All_SDEIS!$R$5:$AG$245,3*($C$8-1)+2) -> 65978 | U76: =VLOOKUP($P76,Conc_All_SDEIS!$R$5:$AG$245,3*($C$8-1)+3) -> 72308 | V76: =VLOOKUP($P76,Conc_All_SDEIS!$R$5:$AG$245,3*($C$8-1)+4) -> 81738
H77: 53 | I77: =VLOOKUP($H77,Conc_All!$A$5:$P$204,3*($C$8-1)+2) -> 49227 | J77: =VLOOKUP($H77,Conc_All!$A$5:$P$204,3*($C$8-1)+3) -> 57784 | K77: =VLOOKUP($H77,Conc_All!$A$5:$P$204,3*($C$8-1)+4) -> 69948 | L77: =VLOOKUP($H77,Conc_All_SDEIS!$A$5:$P$204,3*($C$8-1)+2) -> 63300 | M77: =VLOOKUP($H77,Conc_All_SDEIS!$A$5:$P$204,3*($C$8-1)+3) -> 69288 | N77: =VLOOKUP($H77,Conc_All_SDEIS!$A$5:$P$204,3*($C$8-1)+4) -> 79128 | O77: -0.1160145587 | P77: 44.33333333 | Q77: =VLOOKUP($P77,Conc_All!$R$5:$AG$245,3*($C$8-1)+2) -> 54870 | R77: =VLOOKUP($P77,Conc_All!$R$5:$AG$245,3*($C$8-1)+3) -> 63323 | S77: =VLOOKUP($P77,Conc_All!$R$5:$AG$245,3*($C$8-1)+4) -> 75170 | T77: =VLOOKUP($P77,Conc_All_SDEIS!$R$5:$AG$245,3*($C$8-1)+2) -> 65755 | U77: =VLOOKUP($P77,Conc_All_SDEIS!$R$5:$AG$245,3*($C$8-1)+3) -> 72109 | V77: =VLOOKUP($P77,Conc_All_SDEIS!$R$5:$AG$245,3*($C$8-1)+4) -> 81494
H78: 54 | I78: =VLOOKUP($H78,Conc_All!$A$5:$P$204,3*($C$8-1)+2) -> 48879 | J78: =VLOOKUP($H78,Conc_All!$A$5:$P$204,3*($C$8-1)+3) -> 57319 | K78: =VLOOKUP($H78,Conc_All!$A$5:$P$204,3*($C$8-1)+4) -> 69305 | L78: =VLOOKUP($H78,Conc_All_SDEIS!$A$5:$P$204,3*($C$8-1)+2) -> 62918 | M78: =VLOOKUP($H78,Conc_All_SDEIS!$A$5:$P$204,3*($C$8-1)+3) -> 68956 | N78: =VLOOKUP($H78,Conc_All_SDEIS!$A$5:$P$204,3*($C$8-1)+4) -> 78608 | O78: -0.1183467332 | P78: 44.41666667 | Q78: =VLOOKUP($P78,Conc_All!$R$5:$AG$245,3*($C$8-1)+2) -> 54803 | R78: =VLOOKUP($P78,Conc_All!$R$5:$AG$245,3*($C$8-1)+3) -> 63255 | S78: =VLOOKUP($P78,Conc_All!$R$5:$AG$245,3*($C$8-1)+4) -> 75093 | T78: =VLOOKUP($P78,Conc_All_SDEIS!$R$5:$AG$245,3*($C$8-1)+2) -> 65737 | U78: =VLOOKUP($P78,Conc_All_SDEIS!$R$5:$AG$245,3*($C$8-1)+3) -> 72117 | V78: =VLOOKUP($P78,Conc_All_SDEIS!$R$5:$AG$245,3*($C$8-1)+4) -> 81497
H79: 55 | I79: =VLOOKUP($H79,Conc_All!$A$5:$P$204,3*($C$8-1)+2) -> 48570 | J79: =VLOOKUP($H79,Conc_All!$A$5:$P$204,3*($C$8-1)+3) -> 56782 | K79: =VLOOKUP($H79,Conc_All!$A$5:$P$204,3*($C$8-1)+4) -> 68765 | L79: =VLOOKUP($H79,Conc_All_SDEIS!$A$5:$P$204,3*($C$8-1)+2) -> 62552 | M79: =VLOOKUP($H79,Conc_All_SDEIS!$A$5:$P$204,3*($C$8-1)+3) -> 68482 | N79: =VLOOKUP($H79,Conc_All_SDEIS!$A$5:$P$204,3*($C$8-1)+4) -> 78200 | O79: -0.1206521739 | P79: 44.5 | Q79: =VLOOKUP($P79,Conc_All!$R$5:$AG$245,3*($C$8-1)+2) -> 54734 | R79: =VLOOKUP($P79,Conc_All!$R$5:$AG$245,3*($C$8-1)+3) -> 63211 | S79: =VLOOKUP($P79,Conc_All!$R$5:$AG$245,3*($C$8-1)+4) -> 75008 | T79: =VLOOKUP($P79,Conc_All_SDEIS!$R$5:$AG$245,3*($C$8-1)+2) -> 65709 | U79: =VLOOKUP($P79,Conc_All_SDEIS!$R$5:$AG$245,3*($C$8-1)+3) -> 72131 | V79: =VLOOKUP($P79,Conc_All_SDEIS!$R$5:$AG$245,3*($C$8-1)+4) -> 81492
H80: 56 | I80: =VLOOKUP($H80,Conc_All!$A$5:$P$204,3*($C$8-1)+2) -> 48086 | J80: =VLOOKUP($H80,Conc_All!$A$5:$P$204,3*($C$8-1)+3) -> 56486 | K80: =VLOOKUP($H80,Conc_All!$A$5:$P$204,3*($C$8-1)+4) -> 68295 | L80: =VLOOKUP($H80,Conc_All_SDEIS!$A$5:$P$204,3*($C$8-1)+2) -> 62124 | M80: =VLOOKUP($H80,Conc_All_SDEIS!$A$5:$P$204,3*($C$8-1)+3) -> 68120 | N80: =VLOOKUP($H80,Conc_All_SDEIS!$A$5:$P$204,3*($C$8-1)+4) -> 77646 | O80: -0.1204311877 | P80: 44.58333333 | Q80: =VLOOKUP($P80,Conc_All!$R$5:$AG$245,3*($C$8-1)+2) -> 54681 | R80: =VLOOKUP($P80,Conc_All!$R$5:$AG$245,3*($C$8-1)+3) -> 63172 | S80: =VLOOKUP($P80,Conc_All!$R$5:$AG$245,3*($C$8-1)+4) -> 74937 | T80: =VLOOKUP($P80,Conc_All_SDEIS!$R$5:$AG$245,3*($C$8-1)+2) -> 65707 | U80: =VLOOKUP($P80,Conc_All_SDEIS!$R$5:$AG$245,3*($C$8-1)+3) -> 72146 | V80: =VLOOKUP($P80,Conc_All_SDEIS!$R$5:$AG$245,3*($C$8-1)+4) -> 81504
H81: 57 | I81: =VLOOKUP($H81,Conc_All!$A$5:$P$204,3*($C$8-1)+2) -> 47763 | J81: =VLOOKUP($H81,Conc_All!$A$5:$P$204,3*($C$8-1)+3) -> 56169 | K81: =VLOOKUP($H81,Conc_All!$A$5:$P$204,3*($C$8-1)+4) -> 67974 | L81: =VLOOKUP($H81,Conc_All_SDEIS!$A$5:$P$204,3*($C$8-1)+2) -> 61653 | M81: =VLOOKUP($H81,Conc_All_SDEIS!$A$5:$P$204,3*($C$8-1)+3) -> 67765 | N81: =VLOOKUP($H81,Conc_All_SDEIS!$A$5:$P$204,3*($C$8-1)+4) -> 77204 | O81: -0.119553391 | P81: 44.66666667 | Q81: =VLOOKUP($P81,Conc_All!$R$5:$AG$245,3*($C$8-1)+2) -> 54601 | R81: =VLOOKUP($P81,Conc_All!$R$5:$AG$245,3*($C$8-1)+3) -> 63099 | S81: =VLOOKUP($P81,Conc_All!$R$5:$AG$245,3*($C$8-1)+4) -> 74836 | T81: =VLOOKUP($P81,Conc_All_SDEIS!$R$5:$AG$245,3*($C$8-1)+2) -> 65697 | U81: =VLOOKUP($P81,Conc_All_SDEIS!$R$5:$AG$245,3*($C$8-1)+3) -> 72121 | V81: =VLOOKUP($P81,Conc_All_SDEIS!$R$5:$AG$245,3*($C$8-1)+4) -> 81487
H82: 58 | I82: =VLOOKUP($H82,Conc_All!$A$5:$P$204,3*($C$8-1)+2) -> 47554 | J82: =VLOOKUP($H82,Conc_All!$A$5:$P$204,3*($C$8-1)+3) -> 55875 | K82: =VLOOKUP($H82,Conc_All!$A$5:$P$204,3*($C$8-1)+4) -> 67650 | L82: =VLOOKUP($H82,Conc_All_SDEIS!$A$5:$P$204,3*($C$8-1)+2) -> 61300 | M82: =VLOOKUP($H82,Conc_All_SDEIS!$A$5:$P$204,3*($C$8-1)+3) -> 67335 | N82: =VLOOKUP($H82,Conc_All_SDEIS!$A$5:$P$204,3*($C$8-1)+4) -> 76879 | O82: -0.1200457862 | P82: 44.75 | Q82: =VLOOKUP($P82,Conc_All!$R$5:$AG$245,3*($C$8-1)+2) -> 54493 | R82: =VLOOKUP($P82,Conc_All!$R$5:$AG$245,3*($C$8-1)+3) -> 63013 | S82: =VLOOKUP($P82,Conc_All!$R$5:$AG$245,3*($C$8-1)+4) -> 74712 | T82: =VLOOKUP($P82,Conc_All_SDEIS!$R$5:$AG$245,3*($C$8-1)+2) -> 65651 | U82: =VLOOKUP($P82,Conc_All_SDEIS!$R$5:$AG$245,3*($C$8-1)+3) -> 72062 | V82: =VLOOKUP($P82,Conc_All_SDEIS!$R$5:$AG$245,3*($C$8-1)+4) -> 81425
H83: 59 | I83: =VLOOKUP($H83,Conc_All!$A$5:$P$204,3*($C$8-1)+2) -> 47168 | J83: =VLOOKUP($H83,Conc_All!$A$5:$P$204,3*($C$8-1)+3) -> 55676 | K83: =VLOOKUP($H83,Conc_All!$A$5:$P$204,3*($C$8-1)+4) -> 67318 | L83: =VLOOKUP($H83,Conc_All_SDEIS!$A$5:$P$204,3*($C$8-1)+2) -> 60934 | M83: =VLOOKUP($H83,Conc_All_SDEIS!$A$5:$P$204,3*($C$8-1)+3) -> 67002 | N83: =VLOOKUP($H83,Conc_All_SDEIS!$A$5:$P$204,3*($C$8-1)+4) -> 76466 | O83: -0.1196348704 | P83: 44.83333333 | Q83: =VLOOKUP($P83,Conc_All!$R$5:$AG$245,3*($C$8-1)+2) -> 54370 | R83: =VLOOKUP($P83,Conc_All!$R$5:$AG$245,3*($C$8-1)+3) -> 62929 | S83: =VLOOKUP($P83,Conc_All!$R$5:$AG$245,3*($C$8-1)+4) -> 74541 | T83: =VLOOKUP($P83,Conc_All_SDEIS!$R$5:$AG$245,3*($C$8-1)+2) -> 65567 | U83: =VLOOKUP($P83,Conc_All_SDEIS!$R$5:$AG$245,3*($C$8-1)+3) -> 71968 | V83: =VLOOKUP($P83,Conc_All_SDEIS!$R$5:$AG$245,3*($C$8-1)+4) -> 81384
H84: 60 | I84: =VLOOKUP($H84,Conc_All!$A$5:$P$204,3*($C$8-1)+2) -> 46948 | J84: =VLOOKUP($H84,Conc_All!$A$5:$P$204,3*($C$8-1)+3) -> 55295 | K84: =VLOOKUP($H84,Conc_All!$A$5:$P$204,3*($C$8-1)+4) -> 66913 | L84: =VLOOKUP($H84,Conc_All_SDEIS!$A$5:$P$204,3*($C$8-1)+2) -> 60582 | M84: =VLOOKUP($H84,Conc_All_SDEIS!$A$5:$P$204,3*($C$8-1)+3) -> 66619 | N84: =VLOOKUP($H84,Conc_All_SDEIS!$A$5:$P$204,3*($C$8-1)+4) -> 75873 | O84: -0.1180920749 | P84: 44.91666667 | Q84: =VLOOKUP($P84,Conc_All!$R$5:$AG$245,3*($C$8-1)+2) -> 54312 | R84: =VLOOKUP($P84,Conc_All!$R$5:$AG$245,3*($C$8-1)+3) -> 62928 | S84: =VLOOKUP($P84,Conc_All!$R$5:$AG$245,3*($C$8-1)+4) -> 74503 | T84: =VLOOKUP($P84,Conc_All_SDEIS!$R$5:$AG$245,3*($C$8-1)+2) -> 65563 | U84: =VLOOKUP($P84,Conc_All_SDEIS!$R$5:$AG$245,3*($C$8-1)+3) -> 71963 | V84: =VLOOKUP($P84,Conc_All_SDEIS!$R$5:$AG$245,3*($C$8-1)+4) -> 81402
H85: 61 | I85: =VLOOKUP($H85,Conc_All!$A$5:$P$204,3*($C$8-1)+2) -> 46655 | J85: =VLOOKUP($H85,Conc_All!$A$5:$P$204,3*($C$8-1)+3) -> 55020 | K85: =VLOOKUP($H85,Conc_All!$A$5:$P$204,3*($C$8-1)+4) -> 66600 | L85: =VLOOKUP($H85,Conc_All_SDEIS!$A$5:$P$204,3*($C$8-1)+2) -> 60241 | M85: =VLOOKUP($H85,Conc_All_SDEIS!$A$5:$P$204,3*($C$8-1)+3) -> 66280 | N85: =VLOOKUP($H85,Conc_All_SDEIS!$A$5:$P$204,3*($C$8-1)+4) -> 75417 | O85: -0.1169099805 | P85: 45 | Q85: =VLOOKUP($P85,Conc_All!$R$5:$AG$245,3*($C$8-1)+2) -> 54253 | R85: =VLOOKUP($P85,Conc_All!$R$5:$AG$245,3*($C$8-1)+3) -> 62914 | S85: =VLOOKUP($P85,Conc_All!$R$5:$AG$245,3*($C$8-1)+4) -> 74468 | T85: =VLOOKUP($P85,Conc_All_SDEIS!$R$5:$AG$245,3*($C$8-1)+2) -> 65559 | U85: =VLOOKUP($P85,Conc_All_SDEIS!$R$5:$AG$245,3*($C$8-1)+3) -> 71959 | V85: =VLOOKUP($P85,Conc_All_SDEIS!$R$5:$AG$245,3*($C$8-1)+4) -> 81419
H86: 62 | I86: =VLOOKUP($H86,Conc_All!$A$5:$P$204,3*($C$8-1)+2) -> 46474 | J86: =VLOOKUP($H86,Conc_All!$A$5:$P$204,3*($C$8-1)+3) -> 54731 | K86: =VLOOKUP($H86,Conc_All!$A$5:$P$204,3*($C$8-1)+4) -> 66315 | L86: =VLOOKUP($H86,Conc_All_SDEIS!$A$5:$P$204,3*($C$8-1)+2) -> 59977 | M86: =VLOOKUP($H86,Conc_All_SDEIS!$A$5:$P$204,3*($C$8-1)+3) -> 65945 | N86: =VLOOKUP($H86,Conc_All_SDEIS!$A$5:$P$204,3*($C$8-1)+4) -> 75032 | O86: -0.1161770978 | P86: 45.08333333 | Q86: =VLOOKUP($P86,Conc_All!$R$5:$AG$245,3*($C$8-1)+2) -> 54202 | R86: =VLOOKUP($P86,Conc_All!$R$5:$AG$245,3*($C$8-1)+3) -> 62922 | S86: =VLOOKUP($P86,Conc_All!$R$5:$AG$245,3*($C$8-1)+4) -> 74443 | T86: =VLOOKUP($P86,Conc_All_SDEIS!$R$5:$AG$245,3*($C$8-1)+2) -> 65555 | U86: =VLOOKUP($P86,Conc_All_SDEIS!$R$5:$AG$245,3*($C$8-1)+3) -> 71954 | V86: =VLOOKUP($P86,Conc_All_SDEIS!$R$5:$AG$245,3*($C$8-1)+4) -> 81436
H87: 63 | I87: =VLOOKUP($H87,Conc_All!$A$5:$P$204,3*($C$8-1)+2) -> 46177 | J87: =VLOOKUP($H87,Conc_All!$A$5:$P$204,3*($C$8-1)+3) -> 54425 | K87: =VLOOKUP($H87,Conc_All!$A$5:$P$204,3*($C$8-1)+4) -> 65934 | L87: =VLOOKUP($H87,Conc_All_SDEIS!$A$5:$P$204,3*($C$8-1)+2) -> 59606 | M87: =VLOOKUP($H87,Conc_All_SDEIS!$A$5:$P$204,3*($C$8-1)+3) -> 65642 | N87: =VLOOKUP($H87,Conc_All_SDEIS!$A$5:$P$204,3*($C$8-1)+4) -> 74564 | O87: -0.115739499 | P87: 45.16666667 | Q87: =VLOOKUP($P87,Conc_All!$R$5:$AG$245,3*($C$8-1)+2) -> 54152 | R87: =VLOOKUP($P87,Conc_All!$R$5:$AG$245,3*($C$8-1)+3) -> 62866 | S87: =VLOOKUP($P87,Conc_All!$R$5:$AG$245,3*($C$8-1)+4) -> 74418 | T87: =VLOOKUP($P87,Conc_All_SDEIS!$R$5:$AG$245,3*($C$8-1)+2) -> 65551 | U87: =VLOOKUP($P87,Conc_All_SDEIS!$R$5:$AG$245,3*($C$8-1)+3) -> 71949 | V87: =VLOOKUP($P87,Conc_All_SDEIS!$R$5:$AG$245,3*($C$8-1)+4) -> 81449
H88: 64 | I88: =VLOOKUP($H88,Conc_All!$A$5:$P$204,3*($C$8-1)+2) -> 45872 | J88: =VLOOKUP($H88,Conc_All!$A$5:$P$204,3*($C$8-1)+3) -> 54109 | K88: =VLOOKUP($H88,Conc_All!$A$5:$P$204,3*($C$8-1)+4) -> 65541 | L88: =VLOOKUP($H88,Conc_All_SDEIS!$A$5:$P$204,3*($C$8-1)+2) -> 59185 | M88: =VLOOKUP($H88,Conc_All_SDEIS!$A$5:$P$204,3*($C$8-1)+3) -> 65202 | N88: =VLOOKUP($H88,Conc_All_SDEIS!$A$5:$P$204,3*($C$8-1)+4) -> 74189 | P88: 45.25 | Q88: =VLOOKUP($P88,Conc_All!$R$5:$AG$245,3*($C$8-1)+2) -> 54100 | R88: =VLOOKUP($P88,Conc_All!$R$5:$AG$245,3*($C$8-1)+3) -> 62812 | S88: =VLOOKUP($P88,Conc_All!$R$5:$AG$245,3*($C$8-1)+4) -> 74376 | T88: =VLOOKUP($P88,Conc_All_SDEIS!$R$5:$AG$245,3*($C$8-1)+2) -> 65547 | U88: =VLOOKUP($P88,Conc_All_SDEIS!$R$5:$AG$245,3*($C$8-1)+3) -> 71945 | V88: =VLOOKUP($P88,Conc_All_SDEIS!$R$5:$AG$245,3*($C$8-1)+4) -> 81469
H89: 65 | I89: =VLOOKUP($H89,Conc_All!$A$5:$P$204,3*($C$8-1)+2) -> 45621 | J89: =VLOOKUP($H89,Conc_All!$A$5:$P$204,3*($C$8-1)+3) -> 53797 | K89: =VLOOKUP($H89,Conc_All!$A$5:$P$204,3*($C$8-1)+4) -> 65216 | L89: =VLOOKUP($H89,Conc_All_SDEIS!$A$5:$P$204,3*($C$8-1)+2) -> 58921 | M89: =VLOOKUP($H89,Conc_All_SDEIS!$A$5:$P$204,3*($C$8-1)+3) -> 64866 | N89: =VLOOKUP($H89,Conc_All_SDEIS!$A$5:$P$204,3*($C$8-1)+4) -> 73882 | P89: 45.33333333 | Q89: =VLOOKUP($P89,Conc_All!$R$5:$AG$245,3*($C$8-1)+2) -> 53779 | R89: =VLOOKUP($P89,Conc_All!$R$5:$AG$245,3*($C$8-1)+3) -> 62625 | S89: =VLOOKUP($P89,Conc_All!$R$5:$AG$245,3*($C$8-1)+4) -> 74038 | T89: =VLOOKUP($P89,Conc_All_SDEIS!$R$5:$AG$245,3*($C$8-1)+2) -> 65343 | U89: =VLOOKUP($P89,Conc_All_SDEIS!$R$5:$AG$245,3*($C$8-1)+3) -> 71713 | V89: =VLOOKUP($P89,Conc_All_SDEIS!$R$5:$AG$245,3*($C$8-1)+4) -> 81205
H90: 66 | I90: =VLOOKUP($H90,Conc_All!$A$5:$P$204,3*($C$8-1)+2) -> 45414 | J90: =VLOOKUP($H90,Conc_All!$A$5:$P$204,3*($C$8-1)+3) -> 53451 | K90: =VLOOKUP($H90,Conc_All!$A$5:$P$204,3*($C$8-1)+4) -> 64829 | L90: =VLOOKUP($H90,Conc_All_SDEIS!$A$5:$P$204,3*($C$8-1)+2) -> 58580 | M90: =VLOOKUP($H90,Conc_All_SDEIS!$A$5:$P$204,3*($C$8-1)+3) -> 64410 | N90: =VLOOKUP($H90,Conc_All_SDEIS!$A$5:$P$204,3*($C$8-1)+4) -> 73365 | P90: 45.41666667 | Q90: =VLOOKUP($P90,Conc_All!$R$5:$AG$245,3*($C$8-1)+2) -> 53707 | R90: =VLOOKUP($P90,Conc_All!$R$5:$AG$245,3*($C$8-1)+3) -> 62601 | S90: =VLOOKUP($P90,Conc_All!$R$5:$AG$245,3*($C$8-1)+4) -> 73950 | T90: =VLOOKUP($P90,Conc_All_SDEIS!$R$5:$AG$245,3*($C$8-1)+2) -> 65347 | U90: =VLOOKUP($P90,Conc_All_SDEIS!$R$5:$AG$245,3*($C$8-1)+3) -> 71727 | V90: =VLOOKUP($P90,Conc_All_SDEIS!$R$5:$AG$245,3*($C$8-1)+4) -> 81270
H91: 67 | I91: =VLOOKUP($H91,Conc_All!$A$5:$P$204,3*($C$8-1)+2) -> 45236 | J91: =VLOOKUP($H91,Conc_All!$A$5:$P$204,3*($C$8-1)+3) -> 53193 | K91: =VLOOKUP($H91,Conc_All!$A$5:$P$204,3*($C$8-1)+4) -> 64575 | L91: =VLOOKUP($H91,Conc_All_SDEIS!$A$5:$P$204,3*($C$8-1)+2) -> 58221 | M91: =VLOOKUP($H91,Conc_All_SDEIS!$A$5:$P$204,3*($C$8-1)+3) -> 64092 | N91: =VLOOKUP($H91,Conc_All_SDEIS!$A$5:$P$204,3*($C$8-1)+4) -> 72901 | P91: =P90+1/12 -> 45.5 | Q91: =VLOOKUP($P91,Conc_All!$R$5:$AG$245,3*($C$8-1)+2) -> 53634 | R91: =VLOOKUP($P91,Conc_All!$R$5:$AG$245,3*($C$8-1)+3) -> 62519 | S91: =VLOOKUP($P91,Conc_All!$R$5:$AG$245,3*($C$8-1)+4) -> 73906 | T91: =VLOOKUP($P91,Conc_All_SDEIS!$R$5:$AG$245,3*($C$8-1)+2) -> 65350 | U91: =VLOOKUP($P91,Conc_All_SDEIS!$R$5:$AG$245,3*($C$8-1)+3) -> 71728 | V91: =VLOOKUP($P91,Conc_All_SDEIS!$R$5:$AG$245,3*($C$8-1)+4) -> 81341
H92: 68 | I92: =VLOOKUP($H92,Conc_All!$A$5:$P$204,3*($C$8-1)+2) -> 44953 | J92: =VLOOKUP($H92,Conc_All!$A$5:$P$204,3*($C$8-1)+3) -> 52882 | K92: =VLOOKUP($H92,Conc_All!$A$5:$P$204,3*($C$8-1)+4) -> 64265 | L92: =VLOOKUP($H92,Conc_All_SDEIS!$A$5:$P$204,3*($C$8-1)+2) -> 57807 | M92: =VLOOKUP($H92,Conc_All_SDEIS!$A$5:$P$204,3*($C$8-1)+3) -> 63693 | N92: =VLOOKUP($H92,Conc_All_SDEIS!$A$5:$P$204,3*($C$8-1)+4) -> 72360 | P92: 45.58333333 | Q92: =VLOOKUP($P92,Conc_All!$R$5:$AG$245,3*($C$8-1)+2) -> 53613 | R92: =VLOOKUP($P92,Conc_All!$R$5:$AG$245,3*($C$8-1)+3) -> 62462 | S92: =VLOOKUP($P92,Conc_All!$R$5:$AG$245,3*($C$8-1)+4) -> 73874 | T92: =VLOOKUP($P92,Conc_All_SDEIS!$R$5:$AG$245,3*($C$8-1)+2) -> 65369 | U92: =VLOOKUP($P92,Conc_All_SDEIS!$R$5:$AG$245,3*($C$8-1)+3) -> 71742 | V92: =VLOOKUP($P92,Conc_All_SDEIS!$R$5:$AG$245,3*($C$8-1)+4) -> 81387
H93: 69 | I93: =VLOOKUP($H93,Conc_All!$A$5:$P$204,3*($C$8-1)+2) -> 44617 | J93: =VLOOKUP($H93,Conc_All!$A$5:$P$204,3*($C$8-1)+3) -> 52586 | K93: =VLOOKUP($H93,Conc_All!$A$5:$P$204,3*($C$8-1)+4) -> 64046 | L93: =VLOOKUP($H93,Conc_All_SDEIS!$A$5:$P$204,3*($C$8-1)+2) -> 57423 | M93: =VLOOKUP($H93,Conc_All_SDEIS!$A$5:$P$204,3*($C$8-1)+3) -> 63383 | N93: =VLOOKUP($H93,Conc_All_SDEIS!$A$5:$P$204,3*($C$8-1)+4) -> 72099 | P93: 45.66666667 | Q93: =VLOOKUP($P93,Conc_All!$R$5:$AG$245,3*($C$8-1)+2) -> 53569 | R93: =VLOOKUP($P93,Conc_All!$R$5:$AG$245,3*($C$8-1)+3) -> 62325 | S93: =VLOOKUP($P93,Conc_All!$R$5:$AG$245,3*($C$8-1)+4) -> 73861 | T93: =VLOOKUP($P93,Conc_All_SDEIS!$R$5:$AG$245,3*($C$8-1)+2) -> 65362 | U93: =VLOOKUP($P93,Conc_All_SDEIS!$R$5:$AG$245,3*($C$8-1)+3) -> 71724 | V93: =VLOOKUP($P93,Conc_All_SDEIS!$R$5:$AG$245,3*($C$8-1)+4) -> 81391
H94: 70 | I94: =VLOOKUP($H94,Conc_All!$A$5:$P$204,3*($C$8-1)+2) -> 44400 | J94: =VLOOKUP($H94,Conc_All!$A$5:$P$204,3*($C$8-1)+3) -> 52300 | K94: =VLOOKUP($H94,Conc_All!$A$5:$P$204,3*($C$8-1)+4) -> 63707 | L94: =VLOOKUP($H94,Conc_All_SDEIS!$A$5:$P$204,3*($C$8-1)+2) -> 57046 | M94: =VLOOKUP($H94,Conc_All_SDEIS!$A$5:$P$204,3*($C$8-1)+3) -> 62998 | N94: =VLOOKUP($H94,Conc_All_SDEIS!$A$5:$P$204,3*($C$8-1)+4) -> 71764 | P94: 45.75 | Q94: =VLOOKUP($P94,Conc_All!$R$5:$AG$245,3*($C$8-1)+2) -> 53504 | R94: =VLOOKUP($P94,Conc_All!$R$5:$AG$245,3*($C$8-1)+3) -> 62193 | S94: =VLOOKUP($P94,Conc_All!$R$5:$AG$245,3*($C$8-1)+4) -> 73876 | T94: =VLOOKUP($P94,Conc_All_SDEIS!$R$5:$AG$245,3*($C$8-1)+2) -> 65303 | U94: =VLOOKUP($P94,Conc_All_SDEIS!$R$5:$AG$245,3*($C$8-1)+3) -> 71638 | V94: =VLOOKUP($P94,Conc_All_SDEIS!$R$5:$AG$245,3*($C$8-1)+4) -> 81353
H95: 71 | I95: =VLOOKUP($H95,Conc_All!$A$5:$P$204,3*($C$8-1)+2) -> 44166 | J95: =VLOOKUP($H95,Conc_All!$A$5:$P$204,3*($C$8-1)+3) -> 52109 | K95: =VLOOKUP($H95,Conc_All!$A$5:$P$204,3*($C$8-1)+4) -> 63336 | L95: =VLOOKUP($H95,Conc_All_SDEIS!$A$5:$P$204,3*($C$8-1)+2) -> 56698 | M95: =VLOOKUP($H95,Conc_All_SDEIS!$A$5:$P$204,3*($C$8-1)+3) -> 62621 | N95: =VLOOKUP($H95,Conc_All_SDEIS!$A$5:$P$204,3*($C$8-1)+4) -> 71399 | P95: 45.83333333 | Q95: =VLOOKUP($P95,Conc_All!$R$5:$AG$245,3*($C$8-1)+2) -> 53429 | R95: =VLOOKUP($P95,Conc_All!$R$5:$AG$245,3*($C$8-1)+3) -> 62081 | S95: =VLOOKUP($P95,Conc_All!$R$5:$AG$245,3*($C$8-1)+4) -> 73813 | T95: =VLOOKUP($P95,Conc_All_SDEIS!$R$5:$AG$245,3*($C$8-1)+2) -> 65217 | U95: =VLOOKUP($P95,Conc_All_SDEIS!$R$5:$AG$245,3*($C$8-1)+3) -> 71562 | V95: =VLOOKUP($P95,Conc_All_SDEIS!$R$5:$AG$245,3*($C$8-1)+4) -> 81258
H96: 72 | I96: =VLOOKUP($H96,Conc_All!$A$5:$P$204,3*($C$8-1)+2) -> 43943 | J96: =VLOOKUP($H96,Conc_All!$A$5:$P$204,3*($C$8-1)+3) -> 51781 | K96: =VLOOKUP($H96,Conc_All!$A$5:$P$204,3*($C$8-1)+4) -> 63043 | L96: =VLOOKUP($H96,Conc_All_SDEIS!$A$5:$P$204,3*($C$8-1)+2) -> 56433 | M96: =VLOOKUP($H96,Conc_All_SDEIS!$A$5:$P$204,3*($C$8-1)+3) -> 62302 | N96: =VLOOKUP($H96,Conc_All_SDEIS!$A$5:$P$204,3*($C$8-1)+4) -> 71072 | P96: 45.91666667 | Q96: =VLOOKUP($P96,Conc_All!$R$5:$AG$245,3*($C$8-1)+2) -> 53393 | R96: =VLOOKUP($P96,Conc_All!$R$5:$AG$245,3*($C$8-1)+3) -> 62044 | S96: =VLOOKUP($P96,Conc_All!$R$5:$AG$245,3*($C$8-1)+4) -> 73820 | T96: =VLOOKUP($P96,Conc_All_SDEIS!$R$5:$AG$245,3*($C$8-1)+2) -> 65214 | U96: =VLOOKUP($P96,Conc_All_SDEIS!$R$5:$AG$245,3*($C$8-1)+3) -> 71544 | V96: =VLOOKUP($P96,Conc_All_SDEIS!$R$5:$AG$245,3*($C$8-1)+4) -> 81255
H97: 73 | I97: =VLOOKUP($H97,Conc_All!$A$5:$P$204,3*($C$8-1)+2) -> 43690 | J97: =VLOOKUP($H97,Conc_All!$A$5:$P$204,3*($C$8-1)+3) -> 51455 | K97: =VLOOKUP($H97,Conc_All!$A$5:$P$204,3*($C$8-1)+4) -> 62773 | L97: =VLOOKUP($H97,Conc_All_SDEIS!$A$5:$P$204,3*($C$8-1)+2) -> 56138 | M97: =VLOOKUP($H97,Conc_All_SDEIS!$A$5:$P$204,3*($C$8-1)+3) -> 61933 | N97: =VLOOKUP($H97,Conc_All_SDEIS!$A$5:$P$204,3*($C$8-1)+4) -> 70706 | P97: 46 | Q97: =VLOOKUP($P97,Conc_All!$R$5:$AG$245,3*($C$8-1)+2) -> 53355 | R97: =VLOOKUP($P97,Conc_All!$R$5:$AG$245,3*($C$8-1)+3) -> 62009 | S97: =VLOOKUP($P97,Conc_All!$R$5:$AG$245,3*($C$8-1)+4) -> 73825 | T97: =VLOOKUP($P97,Conc_All_SDEIS!$R$5:$AG$245,3*($C$8-1)+2) -> 65211 | U97: =VLOOKUP($P97,Conc_All_SDEIS!$R$5:$AG$245,3*($C$8-1)+3) -> 71540 | V97: =VLOOKUP($P97,Conc_All_SDEIS!$R$5:$AG$245,3*($C$8-1)+4) -> 81251
H98: 74 | I98: =VLOOKUP($H98,Conc_All!$A$5:$P$204,3*($C$8-1)+2) -> 43459 | J98: =VLOOKUP($H98,Conc_All!$A$5:$P$204,3*($C$8-1)+3) -> 51204 | K98: =VLOOKUP($H98,Conc_All!$A$5:$P$204,3*($C$8-1)+4) -> 62331 | L98: =VLOOKUP($H98,Conc_All_SDEIS!$A$5:$P$204,3*($C$8-1)+2) -> 55810 | M98: =VLOOKUP($H98,Conc_All_SDEIS!$A$5:$P$204,3*($C$8-1)+3) -> 61545 | N98: =VLOOKUP($H98,Conc_All_SDEIS!$A$5:$P$204,3*($C$8-1)+4) -> 70224 | P98: 46.08333333 | Q98: =VLOOKUP($P98,Conc_All!$R$5:$AG$245,3*($C$8-1)+2) -> 53333 | R98: =VLOOKUP($P98,Conc_All!$R$5:$AG$245,3*($C$8-1)+3) -> 61980 | S98: =VLOOKUP($P98,Conc_All!$R$5:$AG$245,3*($C$8-1)+4) -> 73791 | T98: =VLOOKUP($P98,Conc_All_SDEIS!$R$5:$AG$245,3*($C$8-1)+2) -> 65208 | U98: =VLOOKUP($P98,Conc_All_SDEIS!$R$5:$AG$245,3*($C$8-1)+3) -> 71536 | V98: =VLOOKUP($P98,Conc_All_SDEIS!$R$5:$AG$245,3*($C$8-1)+4) -> 81247
H99: 75 | I99: =VLOOKUP($H99,Conc_All!$A$5:$P$204,3*($C$8-1)+2) -> 43237 | J99: =VLOOKUP($H99,Conc_All!$A$5:$P$204,3*($C$8-1)+3) -> 50920 | K99: =VLOOKUP($H99,Conc_All!$A$5:$P$204,3*($C$8-1)+4) -> 61902 | L99: =VLOOKUP($H99,Conc_All_SDEIS!$A$5:$P$204,3*($C$8-1)+2) -> 55500 | M99: =VLOOKUP($H99,Conc_All_SDEIS!$A$5:$P$204,3*($C$8-1)+3) -> 61217 | N99: =VLOOKUP($H99,Conc_All_SDEIS!$A$5:$P$204,3*($C$8-1)+4) -> 69867 | P99: 46.16666667 | Q99: =VLOOKUP($P99,Conc_All!$R$5:$AG$245,3*($C$8-1)+2) -> 53313 | R99: =VLOOKUP($P99,Conc_All!$R$5:$AG$245,3*($C$8-1)+3) -> 61945 | S99: =VLOOKUP($P99,Conc_All!$R$5:$AG$245,3*($C$8-1)+4) -> 73770 | T99: =VLOOKUP($P99,Conc_All_SDEIS!$R$5:$AG$245,3*($C$8-1)+2) -> 65204 | U99: =VLOOKUP($P99,Conc_All_SDEIS!$R$5:$AG$245,3*($C$8-1)+3) -> 71532 | V99: =VLOOKUP($P99,Conc_All_SDEIS!$R$5:$AG$245,3*($C$8-1)+4) -> 81242
H100: 76 | I100: =VLOOKUP($H100,Conc_All!$A$5:$P$204,3*($C$8-1)+2) -> 42928 | J100: =VLOOKUP($H100,Conc_All!$A$5:$P$204,3*($C$8-1)+3) -> 50686 | K100: =VLOOKUP($H100,Conc_All!$A$5:$P$204,3*($C$8-1)+4) -> 61628 | L100: =VLOOKUP($H100,Conc_All_SDEIS!$A$5:$P$204,3*($C$8-1)+2) -> 55214 | M100: =VLOOKUP($H100,Conc_All_SDEIS!$A$5:$P$204,3*($C$8-1)+3) -> 60898 | N100: =VLOOKUP($H100,Conc_All_SDEIS!$A$5:$P$204,3*($C$8-1)+4) -> 69491 | P100: 46.25 | Q100: =VLOOKUP($P100,Conc_All!$R$5:$AG$245,3*($C$8-1)+2) -> 53296 | R100: =VLOOKUP($P100,Conc_All!$R$5:$AG$245,3*($C$8-1)+3) -> 61887 | S100: =VLOOKUP($P100,Conc_All!$R$5:$AG$245,3*($C$8-1)+4) -> 73761 | T100: =VLOOKUP($P100,Conc_All_SDEIS!$R$5:$AG$245,3*($C$8-1)+2) -> 65201 | U100: =VLOOKUP($P100,Conc_All_SDEIS!$R$5:$AG$245,3*($C$8-1)+3) -> 71528 | V100: =VLOOKUP($P100,Conc_All_SDEIS!$R$5:$AG$245,3*($C$8-1)+4) -> 81238
H101: 77 | I101: =VLOOKUP($H101,Conc_All!$A$5:$P$204,3*($C$8-1)+2) -> 42720 | J101: =VLOOKUP($H101,Conc_All!$A$5:$P$204,3*($C$8-1)+3) -> 50361 | K101: =VLOOKUP($H101,Conc_All!$A$5:$P$204,3*($C$8-1)+4) -> 61239 | L101: =VLOOKUP($H101,Conc_All_SDEIS!$A$5:$P$204,3*($C$8-1)+2) -> 54920 | M101: =VLOOKUP($H101,Conc_All_SDEIS!$A$5:$P$204,3*($C$8-1)+3) -> 60581 | N101: =VLOOKUP($H101,Conc_All_SDEIS!$A$5:$P$204,3*($C$8-1)+4) -> 69137 | P101: 46.33333333 | Q101: =VLOOKUP($P101,Conc_All!$R$5:$AG$245,3*($C$8-1)+2) -> 53031 | R101: =VLOOKUP($P101,Conc_All!$R$5:$AG$245,3*($C$8-1)+3) -> 61565 | S101: =VLOOKUP($P101,Conc_All!$R$5:$AG$245,3*($C$8-1)+4) -> 73395 | T101: =VLOOKUP($P101,Conc_All_SDEIS!$R$5:$AG$245,3*($C$8-1)+2) -> 65036 | U101: =VLOOKUP($P101,Conc_All_SDEIS!$R$5:$AG$245,3*($C$8-1)+3) -> 71308 | V101: =VLOOKUP($P101,Conc_All_SDEIS!$R$5:$AG$245,3*($C$8-1)+4) -> 80996
H102: 78 | I102: =VLOOKUP($H102,Conc_All!$A$5:$P$204,3*($C$8-1)+2) -> 42392 | J102: =VLOOKUP($H102,Conc_All!$A$5:$P$204,3*($C$8-1)+3) -> 50028 | K102: =VLOOKUP($H102,Conc_All!$A$5:$P$204,3*($C$8-1)+4) -> 60935 | L102: =VLOOKUP($H102,Conc_All_SDEIS!$A$5:$P$204,3*($C$8-1)+2) -> 54643 | M102: =VLOOKUP($H102,Conc_All_SDEIS!$A$5:$P$204,3*($C$8-1)+3) -> 60232 | N102: =VLOOKUP($H102,Conc_All_SDEIS!$A$5:$P$204,3*($C$8-1)+4) -> 68698 | P102: 46.41666667 | Q102: =VLOOKUP($P102,Conc_All!$R$5:$AG$245,3*($C$8-1)+2) -> 53023 | R102: =VLOOKUP($P102,Conc_All!$R$5:$AG$245,3*($C$8-1)+3) -> 61529 | S102: =VLOOKUP($P102,Conc_All!$R$5:$AG$245,3*($C$8-1)+4) -> 73380 | T102: =VLOOKUP($P102,Conc_All_SDEIS!$R$5:$AG$245,3*($C$8-1)+2) -> 65043 | U102: =VLOOKUP($P102,Conc_All_SDEIS!$R$5:$AG$245,3*($C$8-1)+3) -> 71314 | V102: =VLOOKUP($P102,Conc_All_SDEIS!$R$5:$AG$245,3*($C$8-1)+4) -> 81010
H103: 79 | I103: =VLOOKUP($H103,Conc_All!$A$5:$P$204,3*($C$8-1)+2) -> 42130 | J103: =VLOOKUP($H103,Conc_All!$A$5:$P$204,3*($C$8-1)+3) -> 49739 | K103: =VLOOKUP($H103,Conc_All!$A$5:$P$204,3*($C$8-1)+4) -> 60566 | L103: =VLOOKUP($H103,Conc_All_SDEIS!$A$5:$P$204,3*($C$8-1)+2) -> 54319 | M103: =VLOOKUP($H103,Conc_All_SDEIS!$A$5:$P$204,3*($C$8-1)+3) -> 59805 | N103: =VLOOKUP($H103,Conc_All_SDEIS!$A$5:$P$204,3*($C$8-1)+4) -> 68301 | P103: 46.5 | Q103: =VLOOKUP($P103,Conc_All!$R$5:$AG$245,3*($C$8-1)+2) -> 52964 | R103: =VLOOKUP($P103,Conc_All!$R$5:$AG$245,3*($C$8-1)+3) -> 61494 | S103: =VLOOKUP($P103,Conc_All!$R$5:$AG$245,3*($C$8-1)+4) -> 73314 | T103: =VLOOKUP($P103,Conc_All_SDEIS!$R$5:$AG$245,3*($C$8-1)+2) -> 65055 | U103: =VLOOKUP($P103,Conc_All_SDEIS!$R$5:$AG$245,3*($C$8-1)+3) -> 71317 | V103: =VLOOKUP($P103,Conc_All_SDEIS!$R$5:$AG$245,3*($C$8-1)+4) -> 81019
H104: 80 | I104: =VLOOKUP($H104,Conc_All!$A$5:$P$204,3*($C$8-1)+2) -> 41929 | J104: =VLOOKUP($H104,Conc_All!$A$5:$P$204,3*($C$8-1)+3) -> 49455 | K104: =VLOOKUP($H104,Conc_All!$A$5:$P$204,3*($C$8-1)+4) -> 60220 | L104: =VLOOKUP($H104,Conc_All_SDEIS!$A$5:$P$204,3*($C$8-1)+2) -> 53896 | M104: =VLOOKUP($H104,Conc_All_SDEIS!$A$5:$P$204,3*($C$8-1)+3) -> 59404 | N104: =VLOOKUP($H104,Conc_All_SDEIS!$A$5:$P$204,3*($C$8-1)+4) -> 67966 | P104: 46.58333333 | Q104: =VLOOKUP($P104,Conc_All!$R$5:$AG$245,3*($C$8-1)+2) -> 52906 | R104: =VLOOKUP($P104,Conc_All!$R$5:$AG$245,3*($C$8-1)+3) -> 61464 | S104: =VLOOKUP($P104,Conc_All!$R$5:$AG$245,3*($C$8-1)+4) -> 73280 | T104: =VLOOKUP($P104,Conc_All_SDEIS!$R$5:$AG$245,3*($C$8-1)+2) -> 65078 | U104: =VLOOKUP($P104,Conc_All_SDEIS!$R$5:$AG$245,3*($C$8-1)+3) -> 71327 | V104: =VLOOKUP($P104,Conc_All_SDEIS!$R$5:$AG$245,3*($C$8-1)+4) -> 81047
H105: 81 | I105: =VLOOKUP($H105,Conc_All!$A$5:$P$204,3*($C$8-1)+2) -> 41735 | J105: =VLOOKUP($H105,Conc_All!$A$5:$P$204,3*($C$8-1)+3) -> 49105 | K105: =VLOOKUP($H105,Conc_All!$A$5:$P$204,3*($C$8-1)+4) -> 59997 | L105: =VLOOKUP($H105,Conc_All_SDEIS!$A$5:$P$204,3*($C$8-1)+2) -> 53632 | M105: =VLOOKUP($H105,Conc_All_SDEIS!$A$5:$P$204,3*($C$8-1)+3) -> 59086 | N105: =VLOOKUP($H105,Conc_All_SDEIS!$A$5:$P$204,3*($C$8-1)+4) -> 67520 | P105: 46.66666667 | Q105: =VLOOKUP($P105,Conc_All!$R$5:$AG$245,3*($C$8-1)+2) -> 52805 | R105: =VLOOKUP($P105,Conc_All!$R$5:$AG$245,3*($C$8-1)+3) -> 61402 | S105: =VLOOKUP($P105,Conc_All!$R$5:$AG$245,3*($C$8-1)+4) -> 73223 | T105: =VLOOKUP($P105,Conc_All_SDEIS!$R$5:$AG$245,3*($C$8-1)+2) -> 65082 | U105: =VLOOKUP($P105,Conc_All_SDEIS!$R$5:$AG$245,3*($C$8-1)+3) -> 71325 | V105: =VLOOKUP($P105,Conc_All_SDEIS!$R$5:$AG$245,3*($C$8-1)+4) -> 81049
H106: 82 | I106: =VLOOKUP($H106,Conc_All!$A$5:$P$204,3*($C$8-1)+2) -> 41420 | J106: =VLOOKUP($H106,Conc_All!$A$5:$P$204,3*($C$8-1)+3) -> 48890 | K106: =VLOOKUP($H106,Conc_All!$A$5:$P$204,3*($C$8-1)+4) -> 59566 | L106: =VLOOKUP($H106,Conc_All_SDEIS!$A$5:$P$204,3*($C$8-1)+2) -> 53281 | M106: =VLOOKUP($H106,Conc_All_SDEIS!$A$5:$P$204,3*($C$8-1)+3) -> 58773 | N106: =VLOOKUP($H106,Conc_All_SDEIS!$A$5:$P$204,3*($C$8-1)+4) -> 67048 | P106: 46.75 | Q106: =VLOOKUP($P106,Conc_All!$R$5:$AG$245,3*($C$8-1)+2) -> 52669 | R106: =VLOOKUP($P106,Conc_All!$R$5:$AG$245,3*($C$8-1)+3) -> 61347 | S106: =VLOOKUP($P106,Conc_All!$R$5:$AG$245,3*($C$8-1)+4) -> 73152 | T106: =VLOOKUP($P106,Conc_All_SDEIS!$R$5:$AG$245,3*($C$8-1)+2) -> 65037 | U106: =VLOOKUP($P106,Conc_All_SDEIS!$R$5:$AG$245,3*($C$8-1)+3) -> 71267 | V106: =VLOOKUP($P106,Conc_All_SDEIS!$R$5:$AG$245,3*($C$8-1)+4) -> 80996
H107: 83 | I107: =VLOOKUP($H107,Conc_All!$A$5:$P$204,3*($C$8-1)+2) -> 41233 | J107: =VLOOKUP($H107,Conc_All!$A$5:$P$204,3*($C$8-1)+3) -> 48598 | K107: =VLOOKUP($H107,Conc_All!$A$5:$P$204,3*($C$8-1)+4) -> 59330 | L107: =VLOOKUP($H107,Conc_All_SDEIS!$A$5:$P$204,3*($C$8-1)+2) -> 53022 | M107: =VLOOKUP($H107,Conc_All_SDEIS!$A$5:$P$204,3*($C$8-1)+3) -> 58348 | N107: =VLOOKUP($H107,Conc_All_SDEIS!$A$5:$P$204,3*($C$8-1)+4) -> 66836 | P107: 46.83333333 | Q107: =VLOOKUP($P107,Conc_All!$R$5:$AG$245,3*($C$8-1)+2) -> 52540 | R107: =VLOOKUP($P107,Conc_All!$R$5:$AG$245,3*($C$8-1)+3) -> 61238 | S107: =VLOOKUP($P107,Conc_All!$R$5:$AG$245,3*($C$8-1)+4) -> 73051 | T107: =VLOOKUP($P107,Conc_All_SDEIS!$R$5:$AG$245,3*($C$8-1)+2) -> 64940 | U107: =VLOOKUP($P107,Conc_All_SDEIS!$R$5:$AG$245,3*($C$8-1)+3) -> 71200 | V107: =VLOOKUP($P107,Conc_All_SDEIS!$R$5:$AG$245,3*($C$8-1)+4) -> 80958
H108: 84 | I108: =VLOOKUP($H108,Conc_All!$A$5:$P$204,3*($C$8-1)+2) -> 40994 | J108: =VLOOKUP($H108,Conc_All!$A$5:$P$204,3*($C$8-1)+3) -> 48363 | K108: =VLOOKUP($H108,Conc_All!$A$5:$P$204,3*($C$8-1)+4) -> 59114 | L108: =VLOOKUP($H108,Conc_All_SDEIS!$A$5:$P$204,3*($C$8-1)+2) -> 52677 | M108: =VLOOKUP($H108,Conc_All_SDEIS!$A$5:$P$204,3*($C$8-1)+3) -> 58034 | N108: =VLOOKUP($H108,Conc_All_SDEIS!$A$5:$P$204,3*($C$8-1)+4) -> 66405 | P108: 46.91666667 | Q108: =VLOOKUP($P108,Conc_All!$R$5:$AG$245,3*($C$8-1)+2) -> 52513 | R108: =VLOOKUP($P108,Conc_All!$R$5:$AG$245,3*($C$8-1)+3) -> 61224 | S108: =VLOOKUP($P108,Conc_All!$R$5:$AG$245,3*($C$8-1)+4) -> 73011 | T108: =VLOOKUP($P108,Conc_All_SDEIS!$R$5:$AG$245,3*($C$8-1)+2) -> 64937 | U108: =VLOOKUP($P108,Conc_All_SDEIS!$R$5:$AG$245,3*($C$8-1)+3) -> 71191 | V108: =VLOOKUP($P108,Conc_All_SDEIS!$R$5:$AG$245,3*($C$8-1)+4) -> 80948
H109: 85 | I109: =VLOOKUP($H109,Conc_All!$A$5:$P$204,3*($C$8-1)+2) -> 40777 | J109: =VLOOKUP($H109,Conc_All!$A$5:$P$204,3*($C$8-1)+3) -> 48134 | K109: =VLOOKUP($H109,Conc_All!$A$5:$P$204,3*($C$8-1)+4) -> 58720 | L109: =VLOOKUP($H109,Conc_All_SDEIS!$A$5:$P$204,3*($C$8-1)+2) -> 52326 | M109: =VLOOKUP($H109,Conc_All_SDEIS!$A$5:$P$204,3*($C$8-1)+3) -> 57693 | N109: =VLOOKUP($H109,Conc_All_SDEIS!$A$5:$P$204,3*($C$8-1)+4) -> 66167 | P109: 47 | Q109: =VLOOKUP($P109,Conc_All!$R$5:$AG$245,3*($C$8-1)+2) -> 52476 | R109: =VLOOKUP($P109,Conc_All!$R$5:$AG$245,3*($C$8-1)+3) -> 61193 | S109: =VLOOKUP($P109,Conc_All!$R$5:$AG$245,3*($C$8-1)+4) -> 72995 | T109: =VLOOKUP($P109,Conc_All_SDEIS!$R$5:$AG$245,3*($C$8-1)+2) -> 64934 | U109: =VLOOKUP($P109,Conc_All_SDEIS!$R$5:$AG$245,3*($C$8-1)+3) -> 71187 | V109: =VLOOKUP($P109,Conc_All_SDEIS!$R$5:$AG$245,3*($C$8-1)+4) -> 80946
H110: 86 | I110: =VLOOKUP($H110,Conc_All!$A$5:$P$204,3*($C$8-1)+2) -> 40622 | J110: =VLOOKUP($H110,Conc_All!$A$5:$P$204,3*($C$8-1)+3) -> 47782 | K110: =VLOOKUP($H110,Conc_All!$A$5:$P$204,3*($C$8-1)+4) -> 58329 | L110: =VLOOKUP($H110,Conc_All_SDEIS!$A$5:$P$204,3*($C$8-1)+2) -> 51921 | M110: =VLOOKUP($H110,Conc_All_SDEIS!$A$5:$P$204,3*($C$8-1)+3) -> 57445 | N110: =VLOOKUP($H110,Conc_All_SDEIS!$A$5:$P$204,3*($C$8-1)+4) -> 65868 | P110: 47.08333333 | Q110: =VLOOKUP($P110,Conc_All!$R$5:$AG$245,3*($C$8-1)+2) -> 52435 | R110: =VLOOKUP($P110,Conc_All!$R$5:$AG$245,3*($C$8-1)+3) -> 61159 | S110: =VLOOKUP($P110,Conc_All!$R$5:$AG$245,3*($C$8-1)+4) -> 72975 | T110: =VLOOKUP($P110,Conc_All_SDEIS!$R$5:$AG$245,3*($C$8-1)+2) -> 64931 | U110: =VLOOKUP($P110,Conc_All_SDEIS!$R$5:$AG$245,3*($C$8-1)+3) -> 71183 | V110: =VLOOKUP($P110,Conc_All_SDEIS!$R$5:$AG$245,3*($C$8-1)+4) -> 80944
H111: 87 | I111: =VLOOKUP($H111,Conc_All!$A$5:$P$204,3*($C$8-1)+2) -> 40382 | J111: =VLOOKUP($H111,Conc_All!$A$5:$P$204,3*($C$8-1)+3) -> 47560 | K111: =VLOOKUP($H111,Conc_All!$A$5:$P$204,3*($C$8-1)+4) -> 57923 | L111: =VLOOKUP($H111,Conc_All_SDEIS!$A$5:$P$204,3*($C$8-1)+2) -> 51721 | M111: =VLOOKUP($H111,Conc_All_SDEIS!$A$5:$P$204,3*($C$8-1)+3) -> 57151 | N111: =VLOOKUP($H111,Conc_All_SDEIS!$A$5:$P$204,3*($C$8-1)+4) -> 65473 | P111: 47.16666667 | Q111: =VLOOKUP($P111,Conc_All!$R$5:$AG$245,3*($C$8-1)+2) -> 52397 | R111: =VLOOKUP($P111,Conc_All!$R$5:$AG$245,3*($C$8-1)+3) -> 61123 | S111: =VLOOKUP($P111,Conc_All!$R$5:$AG$245,3*($C$8-1)+4) -> 72949 | T111: =VLOOKUP($P111,Conc_All_SDEIS!$R$5:$AG$245,3*($C$8-1)+2) -> 64927 | U111: =VLOOKUP($P111,Conc_All_SDEIS!$R$5:$AG$245,3*($C$8-1)+3) -> 71180 | V111: =VLOOKUP($P111,Conc_All_SDEIS!$R$5:$AG$245,3*($C$8-1)+4) -> 80941
H112: 88 | I112: =VLOOKUP($H112,Conc_All!$A$5:$P$204,3*($C$8-1)+2) -> 40195 | J112: =VLOOKUP($H112,Conc_All!$A$5:$P$204,3*($C$8-1)+3) -> 47335 | K112: =VLOOKUP($H112,Conc_All!$A$5:$P$204,3*($C$8-1)+4) -> 57637 | L112: =VLOOKUP($H112,Conc_All_SDEIS!$A$5:$P$204,3*($C$8-1)+2) -> 51457 | M112: =VLOOKUP($H112,Conc_All_SDEIS!$A$5:$P$204,3*($C$8-1)+3) -> 56839 | N112: =VLOOKUP($H112,Conc_All_SDEIS!$A$5:$P$204,3*($C$8-1)+4) -> 65299 | P112: 47.25 | Q112: =VLOOKUP($P112,Conc_All!$R$5:$AG$245,3*($C$8-1)+2) -> 52354 | R112: =VLOOKUP($P112,Conc_All!$R$5:$AG$245,3*($C$8-1)+3) -> 61091 | S112: =VLOOKUP($P112,Conc_All!$R$5:$AG$245,3*($C$8-1)+4) -> 72930 | T112: =VLOOKUP($P112,Conc_All_SDEIS!$R$5:$AG$245,3*($C$8-1)+2) -> 64924 | U112: =VLOOKUP($P112,Conc_All_SDEIS!$R$5:$AG$245,3*($C$8-1)+3) -> 71181 | V112: =VLOOKUP($P112,Conc_All_SDEIS!$R$5:$AG$245,3*($C$8-1)+4) -> 80939
H113: 89 | I113: =VLOOKUP($H113,Conc_All!$A$5:$P$204,3*($C$8-1)+2) -> 39921 | J113: =VLOOKUP($H113,Conc_All!$A$5:$P$204,3*($C$8-1)+3) -> 47058 | K113: =VLOOKUP($H113,Conc_All!$A$5:$P$204,3*($C$8-1)+4) -> 57390 | L113: =VLOOKUP($H113,Conc_All_SDEIS!$A$5:$P$204,3*($C$8-1)+2) -> 51172 | M113: =VLOOKUP($H113,Conc_All_SDEIS!$A$5:$P$204,3*($C$8-1)+3) -> 56606 | N113: =VLOOKUP($H113,Conc_All_SDEIS!$A$5:$P$204,3*($C$8-1)+4) -> 64797 | P113: 47.33333333 | Q113: =VLOOKUP($P113,Conc_All!$R$5:$AG$245,3*($C$8-1)+2) -> 52092 | R113: =VLOOKUP($P113,Conc_All!$R$5:$AG$245,3*($C$8-1)+3) -> 60779 | S113: =VLOOKUP($P113,Conc_All!$R$5:$AG$245,3*($C$8-1)+4) -> 72616 | T113: =VLOOKUP($P113,Conc_All_SDEIS!$R$5:$AG$245,3*($C$8-1)+2) -> 64741 | U113: =VLOOKUP($P113,Conc_All_SDEIS!$R$5:$AG$245,3*($C$8-1)+3) -> 70973 | V113: =VLOOKUP($P113,Conc_All_SDEIS!$R$5:$AG$245,3*($C$8-1)+4) -> 80737
H114: 90 | I114: =VLOOKUP($H114,Conc_All!$A$5:$P$204,3*($C$8-1)+2) -> 39746 | J114: =VLOOKUP($H114,Conc_All!$A$5:$P$204,3*($C$8-1)+3) -> 46804 | K114: =VLOOKUP($H114,Conc_All!$A$5:$P$204,3*($C$8-1)+4) -> 57074 | L114: =VLOOKUP($H114,Conc_All_SDEIS!$A$5:$P$204,3*($C$8-1)+2) -> 50837 | M114: =VLOOKUP($H114,Conc_All_SDEIS!$A$5:$P$204,3*($C$8-1)+3) -> 56249 | N114: =VLOOKUP($H114,Conc_All_SDEIS!$A$5:$P$204,3*($C$8-1)+4) -> 64523 | P114: 47.41666667 | Q114: =VLOOKUP($P114,Conc_All!$R$5:$AG$245,3*($C$8-1)+2) -> 52040 | R114: =VLOOKUP($P114,Conc_All!$R$5:$AG$245,3*($C$8-1)+3) -> 60731 | S114: =VLOOKUP($P114,Conc_All!$R$5:$AG$245,3*($C$8-1)+4) -> 72593 | T114: =VLOOKUP($P114,Conc_All_SDEIS!$R$5:$AG$245,3*($C$8-1)+2) -> 64764 | U114: =VLOOKUP($P114,Conc_All_SDEIS!$R$5:$AG$245,3*($C$8-1)+3) -> 70981 | V114: =VLOOKUP($P114,Conc_All_SDEIS!$R$5:$AG$245,3*($C$8-1)+4) -> 80749
H115: 91 | I115: =VLOOKUP($H115,Conc_All!$A$5:$P$204,3*($C$8-1)+2) -> 39464 | J115: =VLOOKUP($H115,Conc_All!$A$5:$P$204,3*($C$8-1)+3) -> 46454 | K115: =VLOOKUP($H115,Conc_All!$A$5:$P$204,3*($C$8-1)+4) -> 56736 | L115: =VLOOKUP($H115,Conc_All_SDEIS!$A$5:$P$204,3*($C$8-1)+2) -> 50641 | M115: =VLOOKUP($H115,Conc_All_SDEIS!$A$5:$P$204,3*($C$8-1)+3) -> 55959 | N115: =VLOOKUP($H115,Conc_All_SDEIS!$A$5:$P$204,3*($C$8-1)+4) -> 64020 | P115: 47.5 | Q115: =VLOOKUP($P115,Conc_All!$R$5:$AG$245,3*($C$8-1)+2) -> 51973 | R115: =VLOOKUP($P115,Conc_All!$R$5:$AG$245,3*($C$8-1)+3) -> 60652 | S115: =VLOOKUP($P115,Conc_All!$R$5:$AG$245,3*($C$8-1)+4) -> 72576 | T115: =VLOOKUP($P115,Conc_All_SDEIS!$R$5:$AG$245,3*($C$8-1)+2) -> 64787 | U115: =VLOOKUP($P115,Conc_All_SDEIS!$R$5:$AG$245,3*($C$8-1)+3) -> 70985 | V115: =VLOOKUP($P115,Conc_All_SDEIS!$R$5:$AG$245,3*($C$8-1)+4) -> 80756
H116: 92 | I116: =VLOOKUP($H116,Conc_All!$A$5:$P$204,3*($C$8-1)+2) -> 39289 | J116: =VLOOKUP($H116,Conc_All!$A$5:$P$204,3*($C$8-1)+3) -> 46149 | K116: =VLOOKUP($H116,Conc_All!$A$5:$P$204,3*($C$8-1)+4) -> 56375 | L116: =VLOOKUP($H116,Conc_All_SDEIS!$A$5:$P$204,3*($C$8-1)+2) -> 50334 | M116: =VLOOKUP($H116,Conc_All_SDEIS!$A$5:$P$204,3*($C$8-1)+3) -> 55691 | N116: =VLOOKUP($H116,Conc_All_SDEIS!$A$5:$P$204,3*($C$8-1)+4) -> 63657 | P116: 47.58333333 | Q116: =VLOOKUP($P116,Conc_All!$R$5:$AG$245,3*($C$8-1)+2) -> 51933 | R116: =VLOOKUP($P116,Conc_All!$R$5:$AG$245,3*($C$8-1)+3) -> 60592 | S116: =VLOOKUP($P116,Conc_All!$R$5:$AG$245,3*($C$8-1)+4) -> 72573 | T116: =VLOOKUP($P116,Conc_All_SDEIS!$R$5:$AG$245,3*($C$8-1)+2) -> 64820 | U116: =VLOOKUP($P116,Conc_All_SDEIS!$R$5:$AG$245,3*($C$8-1)+3) -> 70997 | V116: =VLOOKUP($P116,Conc_All_SDEIS!$R$5:$AG$245,3*($C$8-1)+4) -> 80778
H117: 93 | I117: =VLOOKUP($H117,Conc_All!$A$5:$P$204,3*($C$8-1)+2) -> 39131 | J117: =VLOOKUP($H117,Conc_All!$A$5:$P$204,3*($C$8-1)+3) -> 45852 | K117: =VLOOKUP($H117,Conc_All!$A$5:$P$204,3*($C$8-1)+4) -> 56082 | L117: =VLOOKUP($H117,Conc_All_SDEIS!$A$5:$P$204,3*($C$8-1)+2) -> 50048 | M117: =VLOOKUP($H117,Conc_All_SDEIS!$A$5:$P$204,3*($C$8-1)+3) -> 55395 | N117: =VLOOKUP($H117,Conc_All_SDEIS!$A$5:$P$204,3*($C$8-1)+4) -> 63338 | P117: 47.66666667 | Q117: =VLOOKUP($P117,Conc_All!$R$5:$AG$245,3*($C$8-1)+2) -> 51869 | R117: =VLOOKUP($P117,Conc_All!$R$5:$AG$245,3*($C$8-1)+3) -> 60513 | S117: =VLOOKUP($P117,Conc_All!$R$5:$AG$245,3*($C$8-1)+4) -> 72546 | T117: =VLOOKUP($P117,Conc_All_SDEIS!$R$5:$AG$245,3*($C$8-1)+2) -> 64824 | U117: =VLOOKUP($P117,Conc_All_SDEIS!$R$5:$AG$245,3*($C$8-1)+3) -> 70985 | V117: =VLOOKUP($P117,Conc_All_SDEIS!$R$5:$AG$245,3*($C$8-1)+4) -> 80768
H118: 94 | I118: =VLOOKUP($H118,Conc_All!$A$5:$P$204,3*($C$8-1)+2) -> 38971 | J118: =VLOOKUP($H118,Conc_All!$A$5:$P$204,3*($C$8-1)+3) -> 45667 | K118: =VLOOKUP($H118,Conc_All!$A$5:$P$204,3*($C$8-1)+4) -> 55721 | L118: =VLOOKUP($H118,Conc_All_SDEIS!$A$5:$P$204,3*($C$8-1)+2) -> 49694 | M118: =VLOOKUP($H118,Conc_All_SDEIS!$A$5:$P$204,3*($C$8-1)+3) -> 55052 | N118: =VLOOKUP($H118,Conc_All_SDEIS!$A$5:$P$204,3*($C$8-1)+4) -> 62936 | P118: 47.75 | Q118: =VLOOKUP($P118,Conc_All!$R$5:$AG$245,3*($C$8-1)+2) -> 51751 | R118: =VLOOKUP($P118,Conc_All!$R$5:$AG$245,3*($C$8-1)+3) -> 60402 | S118: =VLOOKUP($P118,Conc_All!$R$5:$AG$245,3*($C$8-1)+4) -> 72491 | T118: =VLOOKUP($P118,Conc_All_SDEIS!$R$5:$AG$245,3*($C$8-1)+2) -> 64796 | U118: =VLOOKUP($P118,Conc_All_SDEIS!$R$5:$AG$245,3*($C$8-1)+3) -> 70933 | V118: =VLOOKUP($P118,Conc_All_SDEIS!$R$5:$AG$245,3*($C$8-1)+4) -> 80693
H119: 95 | I119: =VLOOKUP($H119,Conc_All!$A$5:$P$204,3*($C$8-1)+2) -> 38725 | J119: =VLOOKUP($H119,Conc_All!$A$5:$P$204,3*($C$8-1)+3) -> 45425 | K119: =VLOOKUP($H119,Conc_All!$A$5:$P$204,3*($C$8-1)+4) -> 55469 | L119: =VLOOKUP($H119,Conc_All_SDEIS!$A$5:$P$204,3*($C$8-1)+2) -> 49465 | M119: =VLOOKUP($H119,Conc_All_SDEIS!$A$5:$P$204,3*($C$8-1)+3) -> 54730 | N119: =VLOOKUP($H119,Conc_All_SDEIS!$A$5:$P$204,3*($C$8-1)+4) -> 62603 | P119: 47.83333333 | Q119: =VLOOKUP($P119,Conc_All!$R$5:$AG$245,3*($C$8-1)+2) -> 51632 | R119: =VLOOKUP($P119,Conc_All!$R$5:$AG$245,3*($C$8-1)+3) -> 60268 | S119: =VLOOKUP($P119,Conc_All!$R$5:$AG$245,3*($C$8-1)+4) -> 72401 | T119: =VLOOKUP($P119,Conc_All_SDEIS!$R$5:$AG$245,3*($C$8-1)+2) -> 64716 | U119: =VLOOKUP($P119,Conc_All_SDEIS!$R$5:$AG$245,3*($C$8-1)+3) -> 70862 | V119: =VLOOKUP($P119,Conc_All_SDEIS!$R$5:$AG$245,3*($C$8-1)+4) -> 80602
H120: 96 | I120: =VLOOKUP($H120,Conc_All!$A$5:$P$204,3*($C$8-1)+2) -> 38558 | J120: =VLOOKUP($H120,Conc_All!$A$5:$P$204,3*($C$8-1)+3) -> 45215 | K120: =VLOOKUP($H120,Conc_All!$A$5:$P$204,3*($C$8-1)+4) -> 55197 | L120: =VLOOKUP($H120,Conc_All_SDEIS!$A$5:$P$204,3*($C$8-1)+2) -> 49221 | M120: =VLOOKUP($H120,Conc_All_SDEIS!$A$5:$P$204,3*($C$8-1)+3) -> 54433 | N120: =VLOOKUP($H120,Conc_All_SDEIS!$A$5:$P$204,3*($C$8-1)+4) -> 62225 | P120: 47.91666667 | Q120: =VLOOKUP($P120,Conc_All!$R$5:$AG$245,3*($C$8-1)+2) -> 51604 | R120: =VLOOKUP($P120,Conc_All!$R$5:$AG$245,3*($C$8-1)+3) -> 60251 | S120: =VLOOKUP($P120,Conc_All!$R$5:$AG$245,3*($C$8-1)+4) -> 72389 | T120: =VLOOKUP($P120,Conc_All_SDEIS!$R$5:$AG$245,3*($C$8-1)+2) -> 64710 | U120: =VLOOKUP($P120,Conc_All_SDEIS!$R$5:$AG$245,3*($C$8-1)+3) -> 70857 | V120: =VLOOKUP($P120,Conc_All_SDEIS!$R$5:$AG$245,3*($C$8-1)+4) -> 80600
H121: 97 | I121: =VLOOKUP($H121,Conc_All!$A$5:$P$204,3*($C$8-1)+2) -> 38318 | J121: =VLOOKUP($H121,Conc_All!$A$5:$P$204,3*($C$8-1)+3) -> 44939 | K121: =VLOOKUP($H121,Conc_All!$A$5:$P$204,3*($C$8-1)+4) -> 54902 | L121: =VLOOKUP($H121,Conc_All_SDEIS!$A$5:$P$204,3*($C$8-1)+2) -> 48949 | M121: =VLOOKUP($H121,Conc_All_SDEIS!$A$5:$P$204,3*($C$8-1)+3) -> 54106 | N121: =VLOOKUP($H121,Conc_All_SDEIS!$A$5:$P$204,3*($C$8-1)+4) -> 61889 | P121: 48 | Q121: =VLOOKUP($P121,Conc_All!$R$5:$AG$245,3*($C$8-1)+2) -> 51576 | R121: =VLOOKUP($P121,Conc_All!$R$5:$AG$245,3*($C$8-1)+3) -> 60221 | S121: =VLOOKUP($P121,Conc_All!$R$5:$AG$245,3*($C$8-1)+4) -> 72368 | T121: =VLOOKUP($P121,Conc_All_SDEIS!$R$5:$AG$245,3*($C$8-1)+2) -> 64707 | U121: =VLOOKUP($P121,Conc_All_SDEIS!$R$5:$AG$245,3*($C$8-1)+3) -> 70852 | V121: =VLOOKUP($P121,Conc_All_SDEIS!$R$5:$AG$245,3*($C$8-1)+4) -> 80597
H122: 98 | I122: =VLOOKUP($H122,Conc_All!$A$5:$P$204,3*($C$8-1)+2) -> 38126 | J122: =VLOOKUP($H122,Conc_All!$A$5:$P$204,3*($C$8-1)+3) -> 44640 | K122: =VLOOKUP($H122,Conc_All!$A$5:$P$204,3*($C$8-1)+4) -> 54610 | L122: =VLOOKUP($H122,Conc_All_SDEIS!$A$5:$P$204,3*($C$8-1)+2) -> 48683 | M122: =VLOOKUP($H122,Conc_All_SDEIS!$A$5:$P$204,3*($C$8-1)+3) -> 53795 | N122: =VLOOKUP($H122,Conc_All_SDEIS!$A$5:$P$204,3*($C$8-1)+4) -> 61562 | P122: 48.08333333 | Q122: =VLOOKUP($P122,Conc_All!$R$5:$AG$245,3*($C$8-1)+2) -> 51550 | R122: =VLOOKUP($P122,Conc_All!$R$5:$AG$245,3*($C$8-1)+3) -> 60208 | S122: =VLOOKUP($P122,Conc_All!$R$5:$AG$245,3*($C$8-1)+4) -> 72347 | T122: =VLOOKUP($P122,Conc_All_SDEIS!$R$5:$AG$245,3*($C$8-1)+2) -> 64703 | U122: =VLOOKUP($P122,Conc_All_SDEIS!$R$5:$AG$245,3*($C$8-1)+3) -> 70847 | V122: =VLOOKUP($P122,Conc_All_SDEIS!$R$5:$AG$245,3*($C$8-1)+4) -> 80594
H123: 99 | I123: =VLOOKUP($H123,Conc_All!$A$5:$P$204,3*($C$8-1)+2) -> 37886 | J123: =VLOOKUP($H123,Conc_All!$A$5:$P$204,3*($C$8-1)+3) -> 44484 | K123: =VLOOKUP($H123,Conc_All!$A$5:$P$204,3*($C$8-1)+4) -> 54268 | L123: =VLOOKUP($H123,Conc_All_SDEIS!$A$5:$P$204,3*($C$8-1)+2) -> 48439 | M123: =VLOOKUP($H123,Conc_All_SDEIS!$A$5:$P$204,3*($C$8-1)+3) -> 53525 | N123: =VLOOKUP($H123,Conc_All_SDEIS!$A$5:$P$204,3*($C$8-1)+4) -> 61234 | P123: 48.16666667 | Q123: =VLOOKUP($P123,Conc_All!$R$5:$AG$245,3*($C$8-1)+2) -> 51523 | R123: =VLOOKUP($P123,Conc_All!$R$5:$AG$245,3*($C$8-1)+3) -> 60197 | S123: =VLOOKUP($P123,Conc_All!$R$5:$AG$245,3*($C$8-1)+4) -> 72329 | T123: =VLOOKUP($P123,Conc_All_SDEIS!$R$5:$AG$245,3*($C$8-1)+2) -> 64700 | U123: =VLOOKUP($P123,Conc_All_SDEIS!$R$5:$AG$245,3*($C$8-1)+3) -> 70842 | V123: =VLOOKUP($P123,Conc_All_SDEIS!$R$5:$AG$245,3*($C$8-1)+4) -> 80591
H124: 100 | I124: =VLOOKUP($H124,Conc_All!$A$5:$P$204,3*($C$8-1)+2) -> 37626 | J124: =VLOOKUP($H124,Conc_All!$A$5:$P$204,3*($C$8-1)+3) -> 44204 | K124: =VLOOKUP($H124,Conc_All!$A$5:$P$204,3*($C$8-1)+4) -> 53975 | L124: =VLOOKUP($H124,Conc_All_SDEIS!$A$5:$P$204,3*($C$8-1)+2) -> 48196 | M124: =VLOOKUP($H124,Conc_All_SDEIS!$A$5:$P$204,3*($C$8-1)+3) -> 53217 | N124: =VLOOKUP($H124,Conc_All_SDEIS!$A$5:$P$204,3*($C$8-1)+4) -> 60888 | P124: 48.25 | Q124: =VLOOKUP($P124,Conc_All!$R$5:$AG$245,3*($C$8-1)+2) -> 51502 | R124: =VLOOKUP($P124,Conc_All!$R$5:$AG$245,3*($C$8-1)+3) -> 60182 | S124: =VLOOKUP($P124,Conc_All!$R$5:$AG$245,3*($C$8-1)+4) -> 72319 | T124: =VLOOKUP($P124,Conc_All_SDEIS!$R$5:$AG$245,3*($C$8-1)+2) -> 64697 | U124: =VLOOKUP($P124,Conc_All_SDEIS!$R$5:$AG$245,3*($C$8-1)+3) -> 70838 | V124: =VLOOKUP($P124,Conc_All_SDEIS!$R$5:$AG$245,3*($C$8-1)+4) -> 80588
H125: 101 | I125: =VLOOKUP($H125,Conc_All!$A$5:$P$204,3*($C$8-1)+2) -> 37429 | J125: =VLOOKUP($H125,Conc_All!$A$5:$P$204,3*($C$8-1)+3) -> 43969 | K125: =VLOOKUP($H125,Conc_All!$A$5:$P$204,3*($C$8-1)+4) -> 53595 | L125: =VLOOKUP($H125,Conc_All_SDEIS!$A$5:$P$204,3*($C$8-1)+2) -> 47926 | M125: =VLOOKUP($H125,Conc_All_SDEIS!$A$5:$P$204,3*($C$8-1)+3) -> 52903 | N125: =VLOOKUP($H125,Conc_All_SDEIS!$A$5:$P$204,3*($C$8-1)+4) -> 60458 | P125: 48.33333333 | Q125: =VLOOKUP($P125,Conc_All!$R$5:$AG$245,3*($C$8-1)+2) -> 51242 | R125: =VLOOKUP($P125,Conc_All!$R$5:$AG$245,3*($C$8-1)+3) -> 59923 | S125: =VLOOKUP($P125,Conc_All!$R$5:$AG$245,3*($C$8-1)+4) -> 71937 | T125: =VLOOKUP($P125,Conc_All_SDEIS!$R$5:$AG$245,3*($C$8-1)+2) -> 64464 | U125: =VLOOKUP($P125,Conc_All_SDEIS!$R$5:$AG$245,3*($C$8-1)+3) -> 70625 | V125: =VLOOKUP($P125,Conc_All_SDEIS!$R$5:$AG$245,3*($C$8-1)+4) -> 80363
H126: 102 | I126: =VLOOKUP($H126,Conc_All!$A$5:$P$204,3*($C$8-1)+2) -> 37225 | J126: =VLOOKUP($H126,Conc_All!$A$5:$P$204,3*($C$8-1)+3) -> 43787 | K126: =VLOOKUP($H126,Conc_All!$A$5:$P$204,3*($C$8-1)+4) -> 53363 | L126: =VLOOKUP($H126,Conc_All_SDEIS!$A$5:$P$204,3*($C$8-1)+2) -> 47664 | M126: =VLOOKUP($H126,Conc_All_SDEIS!$A$5:$P$204,3*($C$8-1)+3) -> 52636 | N126: =VLOOKUP($H126,Conc_All_SDEIS!$A$5:$P$204,3*($C$8-1)+4) -> 60036 | P126: 48.41666667 | Q126: =VLOOKUP($P126,Conc_All!$R$5:$AG$245,3*($C$8-1)+2) -> 51192 | R126: =VLOOKUP($P126,Conc_All!$R$5:$AG$245,3*($C$8-1)+3) -> 59892 | S126: =VLOOKUP($P126,Conc_All!$R$5:$AG$245,3*($C$8-1)+4) -> 71862 | T126: =VLOOKUP($P126,Conc_All_SDEIS!$R$5:$AG$245,3*($C$8-1)+2) -> 64449 | U126: =VLOOKUP($P126,Conc_All_SDEIS!$R$5:$AG$245,3*($C$8-1)+3) -> 70639 | V126: =VLOOKUP($P126,Conc_All_SDEIS!$R$5:$AG$245,3*($C$8-1)+4) -> 80354
H127: 103 | I127: =VLOOKUP($H127,Conc_All!$A$5:$P$204,3*($C$8-1)+2) -> 36979 | J127: =VLOOKUP($H127,Conc_All!$A$5:$P$204,3*($C$8-1)+3) -> 43583 | K127: =VLOOKUP($H127,Conc_All!$A$5:$P$204,3*($C$8-1)+4) -> 53016 | L127: =VLOOKUP($H127,Conc_All_SDEIS!$A$5:$P$204,3*($C$8-1)+2) -> 47348 | M127: =VLOOKUP($H127,Conc_All_SDEIS!$A$5:$P$204,3*($C$8-1)+3) -> 52299 | N127: =VLOOKUP($H127,Conc_All_SDEIS!$A$5:$P$204,3*($C$8-1)+4) -> 59703 | P127: 48.5 | Q127: =VLOOKUP($P127,Conc_All!$R$5:$AG$245,3*($C$8-1)+2) -> 51156 | R127: =VLOOKUP($P127,Conc_All!$R$5:$AG$245,3*($C$8-1)+3) -> 59842 | S127: =VLOOKUP($P127,Conc_All!$R$5:$AG$245,3*($C$8-1)+4) -> 71850 | T127: =VLOOKUP($P127,Conc_All_SDEIS!$R$5:$AG$245,3*($C$8-1)+2) -> 64435 | U127: =VLOOKUP($P127,Conc_All_SDEIS!$R$5:$AG$245,3*($C$8-1)+3) -> 70633 | V127: =VLOOKUP($P127,Conc_All_SDEIS!$R$5:$AG$245,3*($C$8-1)+4) -> 80348
H128: 104 | I128: =VLOOKUP($H128,Conc_All!$A$5:$P$204,3*($C$8-1)+2) -> 36760 | J128: =VLOOKUP($H128,Conc_All!$A$5:$P$204,3*($C$8-1)+3) -> 43285 | K128: =VLOOKUP($H128,Conc_All!$A$5:$P$204,3*($C$8-1)+4) -> 52673 | L128: =VLOOKUP($H128,Conc_All_SDEIS!$A$5:$P$204,3*($C$8-1)+2) -> 47010 | M128: =VLOOKUP($H128,Conc_All_SDEIS!$A$5:$P$204,3*($C$8-1)+3) -> 52051 | N128: =VLOOKUP($H128,Conc_All_SDEIS!$A$5:$P$204,3*($C$8-1)+4) -> 59431 | P128: 48.58333333 | Q128: =VLOOKUP($P128,Conc_All!$R$5:$AG$245,3*($C$8-1)+2) -> 51138 | R128: =VLOOKUP($P128,Conc_All!$R$5:$AG$245,3*($C$8-1)+3) -> 59824 | S128: =VLOOKUP($P128,Conc_All!$R$5:$AG$245,3*($C$8-1)+4) -> 71898 | T128: =VLOOKUP($P128,Conc_All_SDEIS!$R$5:$AG$245,3*($C$8-1)+2) -> 64446 | U128: =VLOOKUP($P128,Conc_All_SDEIS!$R$5:$AG$245,3*($C$8-1)+3) -> 70649 | V128: =VLOOKUP($P128,Conc_All_SDEIS!$R$5:$AG$245,3*($C$8-1)+4) -> 80359
H129: 105 | I129: =VLOOKUP($H129,Conc_All!$A$5:$P$204,3*($C$8-1)+2) -> 36582 | J129: =VLOOKUP($H129,Conc_All!$A$5:$P$204,3*($C$8-1)+3) -> 43024 | K129: =VLOOKUP($H129,Conc_All!$A$5:$P$204,3*($C$8-1)+4) -> 52378 | L129: =VLOOKUP($H129,Conc_All_SDEIS!$A$5:$P$204,3*($C$8-1)+2) -> 46747 | M129: =VLOOKUP($H129,Conc_All_SDEIS!$A$5:$P$204,3*($C$8-1)+3) -> 51818 | N129: =VLOOKUP($H129,Conc_All_SDEIS!$A$5:$P$204,3*($C$8-1)+4) -> 59119 | P129: 48.66666667 | Q129: =VLOOKUP($P129,Conc_All!$R$5:$AG$245,3*($C$8-1)+2) -> 51095 | R129: =VLOOKUP($P129,Conc_All!$R$5:$AG$245,3*($C$8-1)+3) -> 59794 | S129: =VLOOKUP($P129,Conc_All!$R$5:$AG$245,3*($C$8-1)+4) -> 71923 | T129: =VLOOKUP($P129,Conc_All_SDEIS!$R$5:$AG$245,3*($C$8-1)+2) -> 64444 | U129: =VLOOKUP($P129,Conc_All_SDEIS!$R$5:$AG$245,3*($C$8-1)+3) -> 70652 | V129: =VLOOKUP($P129,Conc_All_SDEIS!$R$5:$AG$245,3*($C$8-1)+4) -> 80339
H130: 106 | I130: =VLOOKUP($H130,Conc_All!$A$5:$P$204,3*($C$8-1)+2) -> 36375 | J130: =VLOOKUP($H130,Conc_All!$A$5:$P$204,3*($C$8-1)+3) -> 42801 | K130: =VLOOKUP($H130,Conc_All!$A$5:$P$204,3*($C$8-1)+4) -> 52169 | L130: =VLOOKUP($H130,Conc_All_SDEIS!$A$5:$P$204,3*($C$8-1)+2) -> 46554 | M130: =VLOOKUP($H130,Conc_All_SDEIS!$A$5:$P$204,3*($C$8-1)+3) -> 51483 | N130: =VLOOKUP($H130,Conc_All_SDEIS!$A$5:$P$204,3*($C$8-1)+4) -> 58723 | P130: 48.75 | Q130: =VLOOKUP($P130,Conc_All!$R$5:$AG$245,3*($C$8-1)+2) -> 50997 | R130: =VLOOKUP($P130,Conc_All!$R$5:$AG$245,3*($C$8-1)+3) -> 59691 | S130: =VLOOKUP($P130,Conc_All!$R$5:$AG$245,3*($C$8-1)+4) -> 71863 | T130: =VLOOKUP($P130,Conc_All_SDEIS!$R$5:$AG$245,3*($C$8-1)+2) -> 64404 | U130: =VLOOKUP($P130,Conc_All_SDEIS!$R$5:$AG$245,3*($C$8-1)+3) -> 70575 | V130: =VLOOKUP($P130,Conc_All_SDEIS!$R$5:$AG$245,3*($C$8-1)+4) -> 80271
H131: 107 | I131: =VLOOKUP($H131,Conc_All!$A$5:$P$204,3*($C$8-1)+2) -> 36198 | J131: =VLOOKUP($H131,Conc_All!$A$5:$P$204,3*($C$8-1)+3) -> 42613 | K131: =VLOOKUP($H131,Conc_All!$A$5:$P$204,3*($C$8-1)+4) -> 51768 | L131: =VLOOKUP($H131,Conc_All_SDEIS!$A$5:$P$204,3*($C$8-1)+2) -> 46290 | M131: =VLOOKUP($H131,Conc_All_SDEIS!$A$5:$P$204,3*($C$8-1)+3) -> 51100 | N131: =VLOOKUP($H131,Conc_All_SDEIS!$A$5:$P$204,3*($C$8-1)+4) -> 58501 | P131: 48.83333333 | Q131: =VLOOKUP($P131,Conc_All!$R$5:$AG$245,3*($C$8-1)+2) -> 50902 | R131: =VLOOKUP($P131,Conc_All!$R$5:$AG$245,3*($C$8-1)+3) -> 59567 | S131: =VLOOKUP($P131,Conc_All!$R$5:$AG$245,3*($C$8-1)+4) -> 71720 | T131: =VLOOKUP($P131,Conc_All_SDEIS!$R$5:$AG$245,3*($C$8-1)+2) -> 64343 | U131: =VLOOKUP($P131,Conc_All_SDEIS!$R$5:$AG$245,3*($C$8-1)+3) -> 70486 | V131: =VLOOKUP($P131,Conc_All_SDEIS!$R$5:$AG$245,3*($C$8-1)+4) -> 80188
H132: 108 | I132: =VLOOKUP($H132,Conc_All!$A$5:$P$204,3*($C$8-1)+2) -> 35934 | J132: =VLOOKUP($H132,Conc_All!$A$5:$P$204,3*($C$8-1)+3) -> 42302 | K132: =VLOOKUP($H132,Conc_All!$A$5:$P$204,3*($C$8-1)+4) -> 51340 | L132: =VLOOKUP($H132,Conc_All_SDEIS!$A$5:$P$204,3*($C$8-1)+2) -> 46070 | M132: =VLOOKUP($H132,Conc_All_SDEIS!$A$5:$P$204,3*($C$8-1)+3) -> 50930 | N132: =VLOOKUP($H132,Conc_All_SDEIS!$A$5:$P$204,3*($C$8-1)+4) -> 58199 | P132: 48.91666667 | Q132: =VLOOKUP($P132,Conc_All!$R$5:$AG$245,3*($C$8-1)+2) -> 50896 | R132: =VLOOKUP($P132,Conc_All!$R$5:$AG$245,3*($C$8-1)+3) -> 59551 | S132: =VLOOKUP($P132,Conc_All!$R$5:$AG$245,3*($C$8-1)+4) -> 71678 | T132: =VLOOKUP($P132,Conc_All_SDEIS!$R$5:$AG$245,3*($C$8-1)+2) -> 64341 | U132: =VLOOKUP($P132,Conc_All_SDEIS!$R$5:$AG$245,3*($C$8-1)+3) -> 70484 | V132: =VLOOKUP($P132,Conc_All_SDEIS!$R$5:$AG$245,3*($C$8-1)+4) -> 80192
H133: 109 | I133: =VLOOKUP($H133,Conc_All!$A$5:$P$204,3*($C$8-1)+2) -> 35785 | J133: =VLOOKUP($H133,Conc_All!$A$5:$P$204,3*($C$8-1)+3) -> 42059 | K133: =VLOOKUP($H133,Conc_All!$A$5:$P$204,3*($C$8-1)+4) -> 50969 | L133: =VLOOKUP($H133,Conc_All_SDEIS!$A$5:$P$204,3*($C$8-1)+2) -> 45819 | M133: =VLOOKUP($H133,Conc_All_SDEIS!$A$5:$P$204,3*($C$8-1)+3) -> 50730 | N133: =VLOOKUP($H133,Conc_All_SDEIS!$A$5:$P$204,3*($C$8-1)+4) -> 57846 | P133: 49 | Q133: =VLOOKUP($P133,Conc_All!$R$5:$AG$245,3*($C$8-1)+2) -> 50887 | R133: =VLOOKUP($P133,Conc_All!$R$5:$AG$245,3*($C$8-1)+3) -> 59534 | S133: =VLOOKUP($P133,Conc_All!$R$5:$AG$245,3*($C$8-1)+4) -> 71629 | T133: =VLOOKUP($P133,Conc_All_SDEIS!$R$5:$AG$245,3*($C$8-1)+2) -> 64338 | U133: =VLOOKUP($P133,Conc_All_SDEIS!$R$5:$AG$245,3*($C$8-1)+3) -> 70481 | V133: =VLOOKUP($P133,Conc_All_SDEIS!$R$5:$AG$245,3*($C$8-1)+4) -> 80195
H134: 110 | I134: =VLOOKUP($H134,Conc_All!$A$5:$P$204,3*($C$8-1)+2) -> 35553 | J134: =VLOOKUP($H134,Conc_All!$A$5:$P$204,3*($C$8-1)+3) -> 41806 | K134: =VLOOKUP($H134,Conc_All!$A$5:$P$204,3*($C$8-1)+4) -> 50660 | L134: =VLOOKUP($H134,Conc_All_SDEIS!$A$5:$P$204,3*($C$8-1)+2) -> 45623 | M134: =VLOOKUP($H134,Conc_All_SDEIS!$A$5:$P$204,3*($C$8-1)+3) -> 50460 | N134: =VLOOKUP($H134,Conc_All_SDEIS!$A$5:$P$204,3*($C$8-1)+4) -> 57335 | P134: 49.08333333 | Q134: =VLOOKUP($P134,Conc_All!$R$5:$AG$245,3*($C$8-1)+2) -> 50868 | R134: =VLOOKUP($P134,Conc_All!$R$5:$AG$245,3*($C$8-1)+3) -> 59519 | S134: =VLOOKUP($P134,Conc_All!$R$5:$AG$245,3*($C$8-1)+4) -> 71565 | T134: =VLOOKUP($P134,Conc_All_SDEIS!$R$5:$AG$245,3*($C$8-1)+2) -> 64335 | U134: =VLOOKUP($P134,Conc_All_SDEIS!$R$5:$AG$245,3*($C$8-1)+3) -> 70478 | V134: =VLOOKUP($P134,Conc_All_SDEIS!$R$5:$AG$245,3*($C$8-1)+4) -> 80197
H135: 111 | I135: =VLOOKUP($H135,Conc_All!$A$5:$P$204,3*($C$8-1)+2) -> 35433 | J135: =VLOOKUP($H135,Conc_All!$A$5:$P$204,3*($C$8-1)+3) -> 41595 | K135: =VLOOKUP($H135,Conc_All!$A$5:$P$204,3*($C$8-1)+4) -> 50477 | L135: =VLOOKUP($H135,Conc_All_SDEIS!$A$5:$P$204,3*($C$8-1)+2) -> 45300 | M135: =VLOOKUP($H135,Conc_All_SDEIS!$A$5:$P$204,3*($C$8-1)+3) -> 50097 | N135: =VLOOKUP($H135,Conc_All_SDEIS!$A$5:$P$204,3*($C$8-1)+4) -> 56877 | P135: 49.16666667 | Q135: =VLOOKUP($P135,Conc_All!$R$5:$AG$245,3*($C$8-1)+2) -> 50847 | R135: =VLOOKUP($P135,Conc_All!$R$5:$AG$245,3*($C$8-1)+3) -> 59486 | S135: =VLOOKUP($P135,Conc_All!$R$5:$AG$245,3*($C$8-1)+4) -> 71504 | T135: =VLOOKUP($P135,Conc_All_SDEIS!$R$5:$AG$245,3*($C$8-1)+2) -> 64332 | U135: =VLOOKUP($P135,Conc_All_SDEIS!$R$5:$AG$245,3*($C$8-1)+3) -> 70476 | V135: =VLOOKUP($P135,Conc_All_SDEIS!$R$5:$AG$245,3*($C$8-1)+4) -> 80200
H136: 112 | I136: =VLOOKUP($H136,Conc_All!$A$5:$P$204,3*($C$8-1)+2) -> 35289 | J136: =VLOOKUP($H136,Conc_All!$A$5:$P$204,3*($C$8-1)+3) -> 41376 | K136: =VLOOKUP($H136,Conc_All!$A$5:$P$204,3*($C$8-1)+4) -> 50147 | L136: =VLOOKUP($H136,Conc_All_SDEIS!$A$5:$P$204,3*($C$8-1)+2) -> 45109 | M136: =VLOOKUP($H136,Conc_All_SDEIS!$A$5:$P$204,3*($C$8-1)+3) -> 49799 | N136: =VLOOKUP($H136,Conc_All_SDEIS!$A$5:$P$204,3*($C$8-1)+4) -> 56685 | P136: 49.25 | Q136: =VLOOKUP($P136,Conc_All!$R$5:$AG$245,3*($C$8-1)+2) -> 50830 | R136: =VLOOKUP($P136,Conc_All!$R$5:$AG$245,3*($C$8-1)+3) -> 59446 | S136: =VLOOKUP($P136,Conc_All!$R$5:$AG$245,3*($C$8-1)+4) -> 71452 | T136: =VLOOKUP($P136,Conc_All_SDEIS!$R$5:$AG$245,3*($C$8-1)+2) -> 64329 | U136: =VLOOKUP($P136,Conc_All_SDEIS!$R$5:$AG$245,3*($C$8-1)+3) -> 70473 | V136: =VLOOKUP($P136,Conc_All_SDEIS!$R$5:$AG$245,3*($C$8-1)+4) -> 80203
H137: 113 | I137: =VLOOKUP($H137,Conc_All!$A$5:$P$204,3*($C$8-1)+2) -> 35111 | J137: =VLOOKUP($H137,Conc_All!$A$5:$P$204,3*($C$8-1)+3) -> 41128 | K137: =VLOOKUP($H137,Conc_All!$A$5:$P$204,3*($C$8-1)+4) -> 49905 | L137: =VLOOKUP($H137,Conc_All_SDEIS!$A$5:$P$204,3*($C$8-1)+2) -> 44847 | M137: =VLOOKUP($H137,Conc_All_SDEIS!$A$5:$P$204,3*($C$8-1)+3) -> 49552 | N137: =VLOOKUP($H137,Conc_All_SDEIS!$A$5:$P$204,3*($C$8-1)+4) -> 56442 | P137: 49.33333333 | Q137: =VLOOKUP($P137,Conc_All!$R$5:$AG$245,3*($C$8-1)+2) -> 50563 | R137: =VLOOKUP($P137,Conc_All!$R$5:$AG$245,3*($C$8-1)+3) -> 59225 | S137: =VLOOKUP($P137,Conc_All!$R$5:$AG$245,3*($C$8-1)+4) -> 71102 | T137: =VLOOKUP($P137,Conc_All_SDEIS!$R$5:$AG$245,3*($C$8-1)+2) -> 64131 | U137: =VLOOKUP($P137,Conc_All_SDEIS!$R$5:$AG$245,3*($C$8-1)+3) -> 70251 | V137: =VLOOKUP($P137,Conc_All_SDEIS!$R$5:$AG$245,3*($C$8-1)+4) -> 80009
H138: 114 | I138: =VLOOKUP($H138,Conc_All!$A$5:$P$204,3*($C$8-1)+2) -> 34912 | J138: =VLOOKUP($H138,Conc_All!$A$5:$P$204,3*($C$8-1)+3) -> 40936 | K138: =VLOOKUP($H138,Conc_All!$A$5:$P$204,3*($C$8-1)+4) -> 49502 | L138: =VLOOKUP($H138,Conc_All_SDEIS!$A$5:$P$204,3*($C$8-1)+2) -> 44601 | M138: =VLOOKUP($H138,Conc_All_SDEIS!$A$5:$P$204,3*($C$8-1)+3) -> 49188 | N138: =VLOOKUP($H138,Conc_All_SDEIS!$A$5:$P$204,3*($C$8-1)+4) -> 56256 | P138: 49.41666667 | Q138: =VLOOKUP($P138,Conc_All!$R$5:$AG$245,3*($C$8-1)+2) -> 50534 | R138: =VLOOKUP($P138,Conc_All!$R$5:$AG$245,3*($C$8-1)+3) -> 59205 | S138: =VLOOKUP($P138,Conc_All!$R$5:$AG$245,3*($C$8-1)+4) -> 71036 | T138: =VLOOKUP($P138,Conc_All_SDEIS!$R$5:$AG$245,3*($C$8-1)+2) -> 64142 | U138: =VLOOKUP($P138,Conc_All_SDEIS!$R$5:$AG$245,3*($C$8-1)+3) -> 70262 | V138: =VLOOKUP($P138,Conc_All_SDEIS!$R$5:$AG$245,3*($C$8-1)+4) -> 80004
H139: 115 | I139: =VLOOKUP($H139,Conc_All!$A$5:$P$204,3*($C$8-1)+2) -> 34748 | J139: =VLOOKUP($H139,Conc_All!$A$5:$P$204,3*($C$8-1)+3) -> 40651 | K139: =VLOOKUP($H139,Conc_All!$A$5:$P$204,3*($C$8-1)+4) -> 49343 | L139: =VLOOKUP($H139,Conc_All_SDEIS!$A$5:$P$204,3*($C$8-1)+2) -> 44392 | M139: =VLOOKUP($H139,Conc_All_SDEIS!$A$5:$P$204,3*($C$8-1)+3) -> 48935 | N139: =VLOOKUP($H139,Conc_All_SDEIS!$A$5:$P$204,3*($C$8-1)+4) -> 56019 | P139: 49.5 | Q139: =VLOOKUP($P139,Conc_All!$R$5:$AG$245,3*($C$8-1)+2) -> 50496 | R139: =VLOOKUP($P139,Conc_All!$R$5:$AG$245,3*($C$8-1)+3) -> 59153 | S139: =VLOOKUP($P139,Conc_All!$R$5:$AG$245,3*($C$8-1)+4) -> 70968 | T139: =VLOOKUP($P139,Conc_All_SDEIS!$R$5:$AG$245,3*($C$8-1)+2) -> 64150 | U139: =VLOOKUP($P139,Conc_All_SDEIS!$R$5:$AG$245,3*($C$8-1)+3) -> 70269 | V139: =VLOOKUP($P139,Conc_All_SDEIS!$R$5:$AG$245,3*($C$8-1)+4) -> 79997
H140: 116 | I140: =VLOOKUP($H140,Conc_All!$A$5:$P$204,3*($C$8-1)+2) -> 34567 | J140: =VLOOKUP($H140,Conc_All!$A$5:$P$204,3*($C$8-1)+3) -> 40424 | K140: =VLOOKUP($H140,Conc_All!$A$5:$P$204,3*($C$8-1)+4) -> 49118 | L140: =VLOOKUP($H140,Conc_All_SDEIS!$A$5:$P$204,3*($C$8-1)+2) -> 44202 | M140: =VLOOKUP($H140,Conc_All_SDEIS!$A$5:$P$204,3*($C$8-1)+3) -> 48661 | N140: =VLOOKUP($H140,Conc_All_SDEIS!$A$5:$P$204,3*($C$8-1)+4) -> 55810 | P140: 49.58333333 | Q140: =VLOOKUP($P140,Conc_All!$R$5:$AG$245,3*($C$8-1)+2) -> 50440 | R140: =VLOOKUP($P140,Conc_All!$R$5:$AG$245,3*($C$8-1)+3) -> 59096 | S140: =VLOOKUP($P140,Conc_All!$R$5:$AG$245,3*($C$8-1)+4) -> 70970 | T140: =VLOOKUP($P140,Conc_All_SDEIS!$R$5:$AG$245,3*($C$8-1)+2) -> 64169 | U140: =VLOOKUP($P140,Conc_All_SDEIS!$R$5:$AG$245,3*($C$8-1)+3) -> 70284 | V140: =VLOOKUP($P140,Conc_All_SDEIS!$R$5:$AG$245,3*($C$8-1)+4) -> 80001
H141: 117 | I141: =VLOOKUP($H141,Conc_All!$A$5:$P$204,3*($C$8-1)+2) -> 34399 | J141: =VLOOKUP($H141,Conc_All!$A$5:$P$204,3*($C$8-1)+3) -> 40213 | K141: =VLOOKUP($H141,Conc_All!$A$5:$P$204,3*($C$8-1)+4) -> 49029 | L141: =VLOOKUP($H141,Conc_All_SDEIS!$A$5:$P$204,3*($C$8-1)+2) -> 43927 | M141: =VLOOKUP($H141,Conc_All_SDEIS!$A$5:$P$204,3*($C$8-1)+3) -> 48436 | N141: =VLOOKUP($H141,Conc_All_SDEIS!$A$5:$P$204,3*($C$8-1)+4) -> 55557 | P141: 49.66666667 | Q141: =VLOOKUP($P141,Conc_All!$R$5:$AG$245,3*($C$8-1)+2) -> 50408 | R141: =VLOOKUP($P141,Conc_All!$R$5:$AG$245,3*($C$8-1)+3) -> 59007 | S141: =VLOOKUP($P141,Conc_All!$R$5:$AG$245,3*($C$8-1)+4) -> 70966 | T141: =VLOOKUP($P141,Conc_All_SDEIS!$R$5:$AG$245,3*($C$8-1)+2) -> 64156 | U141: =VLOOKUP($P141,Conc_All_SDEIS!$R$5:$AG$245,3*($C$8-1)+3) -> 70267 | V141: =VLOOKUP($P141,Conc_All_SDEIS!$R$5:$AG$245,3*($C$8-1)+4) -> 79861
H142: 118 | I142: =VLOOKUP($H142,Conc_All!$A$5:$P$204,3*($C$8-1)+2) -> 34245 | J142: =VLOOKUP($H142,Conc_All!$A$5:$P$204,3*($C$8-1)+3) -> 40032 | K142: =VLOOKUP($H142,Conc_All!$A$5:$P$204,3*($C$8-1)+4) -> 48714 | L142: =VLOOKUP($H142,Conc_All_SDEIS!$A$5:$P$204,3*($C$8-1)+2) -> 43638 | M142: =VLOOKUP($H142,Conc_All_SDEIS!$A$5:$P$204,3*($C$8-1)+3) -> 48193 | N142: =VLOOKUP($H142,Conc_All_SDEIS!$A$5:$P$204,3*($C$8-1)+4) -> 55255 | P142: 49.75 | Q142: =VLOOKUP($P142,Conc_All!$R$5:$AG$245,3*($C$8-1)+2) -> 50342 | R142: =VLOOKUP($P142,Conc_All!$R$5:$AG$245,3*($C$8-1)+3) -> 58907 | S142: =VLOOKUP($P142,Conc_All!$R$5:$AG$245,3*($C$8-1)+4) -> 70890 | T142: =VLOOKUP($P142,Conc_All_SDEIS!$R$5:$AG$245,3*($C$8-1)+2) -> 64080 | U142: =VLOOKUP($P142,Conc_All_SDEIS!$R$5:$AG$245,3*($C$8-1)+3) -> 70196 | V142: =VLOOKUP($P142,Conc_All_SDEIS!$R$5:$AG$245,3*($C$8-1)+4) -> 79765
H143: 119 | I143: =VLOOKUP($H143,Conc_All!$A$5:$P$204,3*($C$8-1)+2) -> 34056 | J143: =VLOOKUP($H143,Conc_All!$A$5:$P$204,3*($C$8-1)+3) -> 39826 | K143: =VLOOKUP($H143,Conc_All!$A$5:$P$204,3*($C$8-1)+4) -> 48543 | L143: =VLOOKUP($H143,Conc_All_SDEIS!$A$5:$P$204,3*($C$8-1)+2) -> 43448 | M143: =VLOOKUP($H143,Conc_All_SDEIS!$A$5:$P$204,3*($C$8-1)+3) -> 47923 | N143: =VLOOKUP($H143,Conc_All_SDEIS!$A$5:$P$204,3*($C$8-1)+4) -> 55041 | P143: 49.83333333 | Q143: =VLOOKUP($P143,Conc_All!$R$5:$AG$245,3*($C$8-1)+2) -> 50255 | R143: =VLOOKUP($P143,Conc_All!$R$5:$AG$245,3*($C$8-1)+3) -> 58822 | S143: =VLOOKUP($P143,Conc_All!$R$5:$AG$245,3*($C$8-1)+4) -> 70812 | T143: =VLOOKUP($P143,Conc_All_SDEIS!$R$5:$AG$245,3*($C$8-1)+2) -> 63990 | U143: =VLOOKUP($P143,Conc_All_SDEIS!$R$5:$AG$245,3*($C$8-1)+3) -> 70125 | V143: =VLOOKUP($P143,Conc_All_SDEIS!$R$5:$AG$245,3*($C$8-1)+4) -> 79669
H144: 120 | I144: =VLOOKUP($H144,Conc_All!$A$5:$P$204,3*($C$8-1)+2) -> 33869 | J144: =VLOOKUP($H144,Conc_All!$A$5:$P$204,3*($C$8-1)+3) -> 39677 | K144: =VLOOKUP($H144,Conc_All!$A$5:$P$204,3*($C$8-1)+4) -> 48363 | L144: =VLOOKUP($H144,Conc_All_SDEIS!$A$5:$P$204,3*($C$8-1)+2) -> 43209 | M144: =VLOOKUP($H144,Conc_All_SDEIS!$A$5:$P$204,3*($C$8-1)+3) -> 47687 | N144: =VLOOKUP($H144,Conc_All_SDEIS!$A$5:$P$204,3*($C$8-1)+4) -> 54600 | P144: 49.91666667 | Q144: =VLOOKUP($P144,Conc_All!$R$5:$AG$245,3*($C$8-1)+2) -> 50226 | R144: =VLOOKUP($P144,Conc_All!$R$5:$AG$245,3*($C$8-1)+3) -> 58819 | S144: =VLOOKUP($P144,Conc_All!$R$5:$AG$245,3*($C$8-1)+4) -> 70805 | T144: =VLOOKUP($P144,Conc_All_SDEIS!$R$5:$AG$245,3*($C$8-1)+2) -> 63987 | U144: =VLOOKUP($P144,Conc_All_SDEIS!$R$5:$AG$245,3*($C$8-1)+3) -> 70108 | V144: =VLOOKUP($P144,Conc_All_SDEIS!$R$5:$AG$245,3*($C$8-1)+4) -> 79664
H145: 121 | I145: =VLOOKUP($H145,Conc_All!$A$5:$P$204,3*($C$8-1)+2) -> 33648 | J145: =VLOOKUP($H145,Conc_All!$A$5:$P$204,3*($C$8-1)+3) -> 39442 | K145: =VLOOKUP($H145,Conc_All!$A$5:$P$204,3*($C$8-1)+4) -> 48181 | L145: =VLOOKUP($H145,Conc_All_SDEIS!$A$5:$P$204,3*($C$8-1)+2) -> 42945 | M145: =VLOOKUP($H145,Conc_All_SDEIS!$A$5:$P$204,3*($C$8-1)+3) -> 47480 | N145: =VLOOKUP($H145,Conc_All_SDEIS!$A$5:$P$204,3*($C$8-1)+4) -> 54286 | P145: 50 | Q145: =VLOOKUP($P145,Conc_All!$R$5:$AG$245,3*($C$8-1)+2) -> 50210 | R145: =VLOOKUP($P145,Conc_All!$R$5:$AG$245,3*($C$8-1)+3) -> 58793 | S145: =VLOOKUP($P145,Conc_All!$R$5:$AG$245,3*($C$8-1)+4) -> 70796 | T145: =VLOOKUP($P145,Conc_All_SDEIS!$R$5:$AG$245,3*($C$8-1)+2) -> 63984 | U145: =VLOOKUP($P145,Conc_All_SDEIS!$R$5:$AG$245,3*($C$8-1)+3) -> 70105 | V145: =VLOOKUP($P145,Conc_All_SDEIS!$R$5:$AG$245,3*($C$8-1)+4) -> 79659
H146: 122 | I146: =VLOOKUP($H146,Conc_All!$A$5:$P$204,3*($C$8-1)+2) -> 33423 | J146: =VLOOKUP($H146,Conc_All!$A$5:$P$204,3*($C$8-1)+3) -> 39227 | K146: =VLOOKUP($H146,Conc_All!$A$5:$P$204,3*($C$8-1)+4) -> 47853 | L146: =VLOOKUP($H146,Conc_All_SDEIS!$A$5:$P$204,3*($C$8-1)+2) -> 42702 | M146: =VLOOKUP($H146,Conc_All_SDEIS!$A$5:$P$204,3*($C$8-1)+3) -> 47149 | N146: =VLOOKUP($H146,Conc_All_SDEIS!$A$5:$P$204,3*($C$8-1)+4) -> 54036 | P146: 50.08333333 | Q146: =VLOOKUP($P146,Conc_All!$R$5:$AG$245,3*($C$8-1)+2) -> 50187 | R146: =VLOOKUP($P146,Conc_All!$R$5:$AG$245,3*($C$8-1)+3) -> 58762 | S146: =VLOOKUP($P146,Conc_All!$R$5:$AG$245,3*($C$8-1)+4) -> 70787 | T146: =VLOOKUP($P146,Conc_All_SDEIS!$R$5:$AG$245,3*($C$8-1)+2) -> 63980 | U146: =VLOOKUP($P146,Conc_All_SDEIS!$R$5:$AG$245,3*($C$8-1)+3) -> 70102 | V146: =VLOOKUP($P146,Conc_All_SDEIS!$R$5:$AG$245,3*($C$8-1)+4) -> 79654
H147: 123 | I147: =VLOOKUP($H147,Conc_All!$A$5:$P$204,3*($C$8-1)+2) -> 33297 | J147: =VLOOKUP($H147,Conc_All!$A$5:$P$204,3*($C$8-1)+3) -> 39028 | K147: =VLOOKUP($H147,Conc_All!$A$5:$P$204,3*($C$8-1)+4) -> 47652 | L147: =VLOOKUP($H147,Conc_All_SDEIS!$A$5:$P$204,3*($C$8-1)+2) -> 42502 | M147: =VLOOKUP($H147,Conc_All_SDEIS!$A$5:$P$204,3*($C$8-1)+3) -> 46855 | N147: =VLOOKUP($H147,Conc_All_SDEIS!$A$5:$P$204,3*($C$8-1)+4) -> 53769 | P147: 50.16666667 | Q147: =VLOOKUP($P147,Conc_All!$R$5:$AG$245,3*($C$8-1)+2) -> 50166 | R147: =VLOOKUP($P147,Conc_All!$R$5:$AG$245,3*($C$8-1)+3) -> 58753 | S147: =VLOOKUP($P147,Conc_All!$R$5:$AG$245,3*($C$8-1)+4) -> 70771 | T147: =VLOOKUP($P147,Conc_All_SDEIS!$R$5:$AG$245,3*($C$8-1)+2) -> 63977 | U147: =VLOOKUP($P147,Conc_All_SDEIS!$R$5:$AG$245,3*($C$8-1)+3) -> 70100 | V147: =VLOOKUP($P147,Conc_All_SDEIS!$R$5:$AG$245,3*($C$8-1)+4) -> 79649
H148: 124 | I148: =VLOOKUP($H148,Conc_All!$A$5:$P$204,3*($C$8-1)+2) -> 33054 | J148: =VLOOKUP($H148,Conc_All!$A$5:$P$204,3*($C$8-1)+3) -> 38785 | K148: =VLOOKUP($H148,Conc_All!$A$5:$P$204,3*($C$8-1)+4) -> 47472 | L148: =VLOOKUP($H148,Conc_All_SDEIS!$A$5:$P$204,3*($C$8-1)+2) -> 42213 | M148: =VLOOKUP($H148,Conc_All_SDEIS!$A$5:$P$204,3*($C$8-1)+3) -> 46599 | N148: =VLOOKUP($H148,Conc_All_SDEIS!$A$5:$P$204,3*($C$8-1)+4) -> 53547 | P148: 50.25 | Q148: =VLOOKUP($P148,Conc_All!$R$5:$AG$245,3*($C$8-1)+2) -> 50145 | R148: =VLOOKUP($P148,Conc_All!$R$5:$AG$245,3*($C$8-1)+3) -> 58748 | S148: =VLOOKUP($P148,Conc_All!$R$5:$AG$245,3*($C$8-1)+4) -> 70749 | T148: =VLOOKUP($P148,Conc_All_SDEIS!$R$5:$AG$245,3*($C$8-1)+2) -> 63974 | U148: =VLOOKUP($P148,Conc_All_SDEIS!$R$5:$AG$245,3*($C$8-1)+3) -> 70097 | V148: =VLOOKUP($P148,Conc_All_SDEIS!$R$5:$AG$245,3*($C$8-1)+4) -> 79643
H149: 125 | I149: =VLOOKUP($H149,Conc_All!$A$5:$P$204,3*($C$8-1)+2) -> 32922 | J149: =VLOOKUP($H149,Conc_All!$A$5:$P$204,3*($C$8-1)+3) -> 38599 | K149: =VLOOKUP($H149,Conc_All!$A$5:$P$204,3*($C$8-1)+4) -> 47229 | L149: =VLOOKUP($H149,Conc_All_SDEIS!$A$5:$P$204,3*($C$8-1)+2) -> 41954 | M149: =VLOOKUP($H149,Conc_All_SDEIS!$A$5:$P$204,3*($C$8-1)+3) -> 46330 | N149: =VLOOKUP($H149,Conc_All_SDEIS!$A$5:$P$204,3*($C$8-1)+4) -> 53355 | P149: 50.33333333 | Q149: =VLOOKUP($P149,Conc_All!$R$5:$AG$245,3*($C$8-1)+2) -> 49918 | R149: =VLOOKUP($P149,Conc_All!$R$5:$AG$245,3*($C$8-1)+3) -> 58557 | S149: =VLOOKUP($P149,Conc_All!$R$5:$AG$245,3*($C$8-1)+4) -> 70387 | T149: =VLOOKUP($P149,Conc_All_SDEIS!$R$5:$AG$245,3*($C$8-1)+2) -> 63774 | U149: =VLOOKUP($P149,Conc_All_SDEIS!$R$5:$AG$245,3*($C$8-1)+3) -> 69905 | V149: =VLOOKUP($P149,Conc_All_SDEIS!$R$5:$AG$245,3*($C$8-1)+4) -> 79437
H150: 126 | I150: =VLOOKUP($H150,Conc_All!$A$5:$P$204,3*($C$8-1)+2) -> 32778 | J150: =VLOOKUP($H150,Conc_All!$A$5:$P$204,3*($C$8-1)+3) -> 38383 | K150: =VLOOKUP($H150,Conc_All!$A$5:$P$204,3*($C$8-1)+4) -> 46979 | L150: =VLOOKUP($H150,Conc_All_SDEIS!$A$5:$P$204,3*($C$8-1)+2) -> 41807 | M150: =VLOOKUP($H150,Conc_All_SDEIS!$A$5:$P$204,3*($C$8-1)+3) -> 46106 | N150: =VLOOKUP($H150,Conc_All_SDEIS!$A$5:$P$204,3*($C$8-1)+4) -> 53159 | P150: 50.41666667 | Q150: =VLOOKUP($P150,Conc_All!$R$5:$AG$245,3*($C$8-1)+2) -> 49917 | R150: =VLOOKUP($P150,Conc_All!$R$5:$AG$245,3*($C$8-1)+3) -> 58510 | S150: =VLOOKUP($P150,Conc_All!$R$5:$AG$245,3*($C$8-1)+4) -> 70384 | T150: =VLOOKUP($P150,Conc_All_SDEIS!$R$5:$AG$245,3*($C$8-1)+2) -> 63780 | U150: =VLOOKUP($P150,Conc_All_SDEIS!$R$5:$AG$245,3*($C$8-1)+3) -> 69896 | V150: =VLOOKUP($P150,Conc_All_SDEIS!$R$5:$AG$245,3*($C$8-1)+4) -> 79457
H151: 127 | I151: =VLOOKUP($H151,Conc_All!$A$5:$P$204,3*($C$8-1)+2) -> 32639 | J151: =VLOOKUP($H151,Conc_All!$A$5:$P$204,3*($C$8-1)+3) -> 38150 | K151: =VLOOKUP($H151,Conc_All!$A$5:$P$204,3*($C$8-1)+4) -> 46817 | L151: =VLOOKUP($H151,Conc_All_SDEIS!$A$5:$P$204,3*($C$8-1)+2) -> 41576 | M151: =VLOOKUP($H151,Conc_All_SDEIS!$A$5:$P$204,3*($C$8-1)+3) -> 45878 | N151: =VLOOKUP($H151,Conc_All_SDEIS!$A$5:$P$204,3*($C$8-1)+4) -> 52817 | P151: 50.5 | Q151: =VLOOKUP($P151,Conc_All!$R$5:$AG$245,3*($C$8-1)+2) -> 49910 | R151: =VLOOKUP($P151,Conc_All!$R$5:$AG$245,3*($C$8-1)+3) -> 58460 | S151: =VLOOKUP($P151,Conc_All!$R$5:$AG$245,3*($C$8-1)+4) -> 70379 | T151: =VLOOKUP($P151,Conc_All_SDEIS!$R$5:$AG$245,3*($C$8-1)+2) -> 63782 | U151: =VLOOKUP($P151,Conc_All_SDEIS!$R$5:$AG$245,3*($C$8-1)+3) -> 69889 | V151: =VLOOKUP($P151,Conc_All_SDEIS!$R$5:$AG$245,3*($C$8-1)+4) -> 79475
H152: 128 | I152: =VLOOKUP($H152,Conc_All!$A$5:$P$204,3*($C$8-1)+2) -> 32499 | J152: =VLOOKUP($H152,Conc_All!$A$5:$P$204,3*($C$8-1)+3) -> 37974 | K152: =VLOOKUP($H152,Conc_All!$A$5:$P$204,3*($C$8-1)+4) -> 46555 | L152: =VLOOKUP($H152,Conc_All_SDEIS!$A$5:$P$204,3*($C$8-1)+2) -> 41343 | M152: =VLOOKUP($H152,Conc_All_SDEIS!$A$5:$P$204,3*($C$8-1)+3) -> 45645 | N152: =VLOOKUP($H152,Conc_All_SDEIS!$A$5:$P$204,3*($C$8-1)+4) -> 52366 | P152: 50.58333333 | Q152: =VLOOKUP($P152,Conc_All!$R$5:$AG$245,3*($C$8-1)+2) -> 49907 | R152: =VLOOKUP($P152,Conc_All!$R$5:$AG$245,3*($C$8-1)+3) -> 58427 | S152: =VLOOKUP($P152,Conc_All!$R$5:$AG$245,3*($C$8-1)+4) -> 70397 | T152: =VLOOKUP($P152,Conc_All_SDEIS!$R$5:$AG$245,3*($C$8-1)+2) -> 63797 | U152: =VLOOKUP($P152,Conc_All_SDEIS!$R$5:$AG$245,3*($C$8-1)+3) -> 69887 | V152: =VLOOKUP($P152,Conc_All_SDEIS!$R$5:$AG$245,3*($C$8-1)+4) -> 79502
H153: 129 | I153: =VLOOKUP($H153,Conc_All!$A$5:$P$204,3*($C$8-1)+2) -> 32301 | J153: =VLOOKUP($H153,Conc_All!$A$5:$P$204,3*($C$8-1)+3) -> 37779 | K153: =VLOOKUP($H153,Conc_All!$A$5:$P$204,3*($C$8-1)+4) -> 46271 | L153: =VLOOKUP($H153,Conc_All_SDEIS!$A$5:$P$204,3*($C$8-1)+2) -> 41080 | M153: =VLOOKUP($H153,Conc_All_SDEIS!$A$5:$P$204,3*($C$8-1)+3) -> 45376 | N153: =VLOOKUP($H153,Conc_All_SDEIS!$A$5:$P$204,3*($C$8-1)+4) -> 52143 | P153: 50.66666667 | Q153: =VLOOKUP($P153,Conc_All!$R$5:$AG$245,3*($C$8-1)+2) -> 49869 | R153: =VLOOKUP($P153,Conc_All!$R$5:$AG$245,3*($C$8-1)+3) -> 58410 | S153: =VLOOKUP($P153,Conc_All!$R$5:$AG$245,3*($C$8-1)+4) -> 70401 | T153: =VLOOKUP($P153,Conc_All_SDEIS!$R$5:$AG$245,3*($C$8-1)+2) -> 63788 | U153: =VLOOKUP($P153,Conc_All_SDEIS!$R$5:$AG$245,3*($C$8-1)+3) -> 69870 | V153: =VLOOKUP($P153,Conc_All_SDEIS!$R$5:$AG$245,3*($C$8-1)+4) -> 79503
H154: 130 | I154: =VLOOKUP($H154,Conc_All!$A$5:$P$204,3*($C$8-1)+2) -> 32184 | J154: =VLOOKUP($H154,Conc_All!$A$5:$P$204,3*($C$8-1)+3) -> 37600 | K154: =VLOOKUP($H154,Conc_All!$A$5:$P$204,3*($C$8-1)+4) -> 46047 | L154: =VLOOKUP($H154,Conc_All_SDEIS!$A$5:$P$204,3*($C$8-1)+2) -> 40905 | M154: =VLOOKUP($H154,Conc_All_SDEIS!$A$5:$P$204,3*($C$8-1)+3) -> 45168 | N154: =VLOOKUP($H154,Conc_All_SDEIS!$A$5:$P$204,3*($C$8-1)+4) -> 51791 | P154: 50.75 | Q154: =VLOOKUP($P154,Conc_All!$R$5:$AG$245,3*($C$8-1)+2) -> 49789 | R154: =VLOOKUP($P154,Conc_All!$R$5:$AG$245,3*($C$8-1)+3) -> 58367 | S154: =VLOOKUP($P154,Conc_All!$R$5:$AG$245,3*($C$8-1)+4) -> 70369 | T154: =VLOOKUP($P154,Conc_All_SDEIS!$R$5:$AG$245,3*($C$8-1)+2) -> 63741 | U154: =VLOOKUP($P154,Conc_All_SDEIS!$R$5:$AG$245,3*($C$8-1)+3) -> 69800 | V154: =VLOOKUP($P154,Conc_All_SDEIS!$R$5:$AG$245,3*($C$8-1)+4) -> 79460
H155: 131 | I155: =VLOOKUP($H155,Conc_All!$A$5:$P$204,3*($C$8-1)+2) -> 32027 | J155: =VLOOKUP($H155,Conc_All!$A$5:$P$204,3*($C$8-1)+3) -> 37397 | K155: =VLOOKUP($H155,Conc_All!$A$5:$P$204,3*($C$8-1)+4) -> 45797 | L155: =VLOOKUP($H155,Conc_All_SDEIS!$A$5:$P$204,3*($C$8-1)+2) -> 40643 | M155: =VLOOKUP($H155,Conc_All_SDEIS!$A$5:$P$204,3*($C$8-1)+3) -> 44867 | N155: =VLOOKUP($H155,Conc_All_SDEIS!$A$5:$P$204,3*($C$8-1)+4) -> 51607 | P155: =P154+1/12 -> 50.83333333 | Q155: =VLOOKUP($P155,Conc_All!$R$5:$AG$245,3*($C$8-1)+2) -> 49708 | R155: =VLOOKUP($P155,Conc_All!$R$5:$AG$245,3*($C$8-1)+3) -> 58294 | S155: =VLOOKUP($P155,Conc_All!$R$5:$AG$245,3*($C$8-1)+4) -> 70319 | T155: =VLOOKUP($P155,Conc_All_SDEIS!$R$5:$AG$245,3*($C$8-1)+2) -> 63695 | U155: =VLOOKUP($P155,Conc_All_SDEIS!$R$5:$AG$245,3*($C$8-1)+3) -> 69718 | V155: =VLOOKUP($P155,Conc_All_SDEIS!$R$5:$AG$245,3*($C$8-1)+4) -> 79358
H156: 132 | I156: =VLOOKUP($H156,Conc_All!$A$5:$P$204,3*($C$8-1)+2) -> 31791 | J156: =VLOOKUP($H156,Conc_All!$A$5:$P$204,3*($C$8-1)+3) -> 37163 | K156: =VLOOKUP($H156,Conc_All!$A$5:$P$204,3*($C$8-1)+4) -> 45628 | L156: =VLOOKUP($H156,Conc_All_SDEIS!$A$5:$P$204,3*($C$8-1)+2) -> 40340 | M156: =VLOOKUP($H156,Conc_All_SDEIS!$A$5:$P$204,3*($C$8-1)+3) -> 44615 | N156: =VLOOKUP($H156,Conc_All_SDEIS!$A$5:$P$204,3*($C$8-1)+4) -> 51327 | P156: 50.91666667 | Q156: =VLOOKUP($P156,Conc_All!$R$5:$AG$245,3*($C$8-1)+2) -> 49700 | R156: =VLOOKUP($P156,Conc_All!$R$5:$AG$245,3*($C$8-1)+3) -> 58269 | S156: =VLOOKUP($P156,Conc_All!$R$5:$AG$245,3*($C$8-1)+4) -> 70341 | T156: =VLOOKUP($P156,Conc_All_SDEIS!$R$5:$AG$245,3*($C$8-1)+2) -> 63690 | U156: =VLOOKUP($P156,Conc_All_SDEIS!$R$5:$AG$245,3*($C$8-1)+3) -> 69715 | V156: =VLOOKUP($P156,Conc_All_SDEIS!$R$5:$AG$245,3*($C$8-1)+4) -> 79354
H157: 133 | I157: =VLOOKUP($H157,Conc_All!$A$5:$P$204,3*($C$8-1)+2) -> 31646 | J157: =VLOOKUP($H157,Conc_All!$A$5:$P$204,3*($C$8-1)+3) -> 36948 | K157: =VLOOKUP($H157,Conc_All!$A$5:$P$204,3*($C$8-1)+4) -> 45398 | L157: =VLOOKUP($H157,Conc_All_SDEIS!$A$5:$P$204,3*($C$8-1)+2) -> 40145 | M157: =VLOOKUP($H157,Conc_All_SDEIS!$A$5:$P$204,3*($C$8-1)+3) -> 44386 | N157: =VLOOKUP($H157,Conc_All_SDEIS!$A$5:$P$204,3*($C$8-1)+4) -> 50944 | P157: 51 | Q157: =VLOOKUP($P157,Conc_All!$R$5:$AG$245,3*($C$8-1)+2) -> 49686 | R157: =VLOOKUP($P157,Conc_All!$R$5:$AG$245,3*($C$8-1)+3) -> 58250 | S157: =VLOOKUP($P157,Conc_All!$R$5:$AG$245,3*($C$8-1)+4) -> 70345 | T157: =VLOOKUP($P157,Conc_All_SDEIS!$R$5:$AG$245,3*($C$8-1)+2) -> 63688 | U157: =VLOOKUP($P157,Conc_All_SDEIS!$R$5:$AG$245,3*($C$8-1)+3) -> 69709 | V157: =VLOOKUP($P157,Conc_All_SDEIS!$R$5:$AG$245,3*($C$8-1)+4) -> 79349
H158: 134 | I158: =VLOOKUP($H158,Conc_All!$A$5:$P$204,3*($C$8-1)+2) -> 31499 | J158: =VLOOKUP($H158,Conc_All!$A$5:$P$204,3*($C$8-1)+3) -> 36736 | K158: =VLOOKUP($H158,Conc_All!$A$5:$P$204,3*($C$8-1)+4) -> 45228 | L158: =VLOOKUP($H158,Conc_All_SDEIS!$A$5:$P$204,3*($C$8-1)+2) -> 39910 | M158: =VLOOKUP($H158,Conc_All_SDEIS!$A$5:$P$204,3*($C$8-1)+3) -> 44152 | N158: =VLOOKUP($H158,Conc_All_SDEIS!$A$5:$P$204,3*($C$8-1)+4) -> 50673 | P158: 51.08333333 | Q158: =VLOOKUP($P158,Conc_All!$R$5:$AG$245,3*($C$8-1)+2) -> 49677 | R158: =VLOOKUP($P158,Conc_All!$R$5:$AG$245,3*($C$8-1)+3) -> 58236 | S158: =VLOOKUP($P158,Conc_All!$R$5:$AG$245,3*($C$8-1)+4) -> 70339 | T158: =VLOOKUP($P158,Conc_All_SDEIS!$R$5:$AG$245,3*($C$8-1)+2) -> 63686 | U158: =VLOOKUP($P158,Conc_All_SDEIS!$R$5:$AG$245,3*($C$8-1)+3) -> 69703 | V158: =VLOOKUP($P158,Conc_All_SDEIS!$R$5:$AG$245,3*($C$8-1)+4) -> 79345
H159: 135 | I159: =VLOOKUP($H159,Conc_All!$A$5:$P$204,3*($C$8-1)+2) -> 31376 | J159: =VLOOKUP($H159,Conc_All!$A$5:$P$204,3*($C$8-1)+3) -> 36636 | K159: =VLOOKUP($H159,Conc_All!$A$5:$P$204,3*($C$8-1)+4) -> 44978 | L159: =VLOOKUP($H159,Conc_All_SDEIS!$A$5:$P$204,3*($C$8-1)+2) -> 39705 | M159: =VLOOKUP($H159,Conc_All_SDEIS!$A$5:$P$204,3*($C$8-1)+3) -> 43917 | N159: =VLOOKUP($H159,Conc_All_SDEIS!$A$5:$P$204,3*($C$8-1)+4) -> 50367 | P159: 51.16666667 | Q159: =VLOOKUP($P159,Conc_All!$R$5:$AG$245,3*($C$8-1)+2) -> 49667 | R159: =VLOOKUP($P159,Conc_All!$R$5:$AG$245,3*($C$8-1)+3) -> 58225 | S159: =VLOOKUP($P159,Conc_All!$R$5:$AG$245,3*($C$8-1)+4) -> 70340 | T159: =VLOOKUP($P159,Conc_All_SDEIS!$R$5:$AG$245,3*($C$8-1)+2) -> 63684 | U159: =VLOOKUP($P159,Conc_All_SDEIS!$R$5:$AG$245,3*($C$8-1)+3) -> 69697 | V159: =VLOOKUP($P159,Conc_All_SDEIS!$R$5:$AG$245,3*($C$8-1)+4) -> 79340
H160: 136 | I160: =VLOOKUP($H160,Conc_All!$A$5:$P$204,3*($C$8-1)+2) -> 31212 | J160: =VLOOKUP($H160,Conc_All!$A$5:$P$204,3*($C$8-1)+3) -> 36421 | K160: =VLOOKUP($H160,Conc_All!$A$5:$P$204,3*($C$8-1)+4) -> 44819 | L160: =VLOOKUP($H160,Conc_All_SDEIS!$A$5:$P$204,3*($C$8-1)+2) -> 39488 | M160: =VLOOKUP($H160,Conc_All_SDEIS!$A$5:$P$204,3*($C$8-1)+3) -> 43654 | N160: =VLOOKUP($H160,Conc_All_SDEIS!$A$5:$P$204,3*($C$8-1)+4) -> 50210 | P160: 51.25 | Q160: =VLOOKUP($P160,Conc_All!$R$5:$AG$245,3*($C$8-1)+2) -> 49663 | R160: =VLOOKUP($P160,Conc_All!$R$5:$AG$245,3*($C$8-1)+3) -> 58222 | S160: =VLOOKUP($P160,Conc_All!$R$5:$AG$245,3*($C$8-1)+4) -> 70342 | T160: =VLOOKUP($P160,Conc_All_SDEIS!$R$5:$AG$245,3*($C$8-1)+2) -> 63682 | U160: =VLOOKUP($P160,Conc_All_SDEIS!$R$5:$AG$245,3*($C$8-1)+3) -> 69691 | V160: =VLOOKUP($P160,Conc_All_SDEIS!$R$5:$AG$245,3*($C$8-1)+4) -> 79338
H161: 137 | I161: =VLOOKUP($H161,Conc_All!$A$5:$P$204,3*($C$8-1)+2) -> 31040 | J161: =VLOOKUP($H161,Conc_All!$A$5:$P$204,3*($C$8-1)+3) -> 36224 | K161: =VLOOKUP($H161,Conc_All!$A$5:$P$204,3*($C$8-1)+4) -> 44681 | L161: =VLOOKUP($H161,Conc_All_SDEIS!$A$5:$P$204,3*($C$8-1)+2) -> 39278 | M161: =VLOOKUP($H161,Conc_All_SDEIS!$A$5:$P$204,3*($C$8-1)+3) -> 43444 | N161: =VLOOKUP($H161,Conc_All_SDEIS!$A$5:$P$204,3*($C$8-1)+4) -> 50058 | P161: 51.33333333 | Q161: =VLOOKUP($P161,Conc_All!$R$5:$AG$245,3*($C$8-1)+2) -> 49490 | R161: =VLOOKUP($P161,Conc_All!$R$5:$AG$245,3*($C$8-1)+3) -> 58009 | S161: =VLOOKUP($P161,Conc_All!$R$5:$AG$245,3*($C$8-1)+4) -> 70095 | T161: =VLOOKUP($P161,Conc_All_SDEIS!$R$5:$AG$245,3*($C$8-1)+2) -> 63523 | U161: =VLOOKUP($P161,Conc_All_SDEIS!$R$5:$AG$245,3*($C$8-1)+3) -> 69487 | V161: =VLOOKUP($P161,Conc_All_SDEIS!$R$5:$AG$245,3*($C$8-1)+4) -> 79170
H162: 138 | I162: =VLOOKUP($H162,Conc_All!$A$5:$P$204,3*($C$8-1)+2) -> 30849 | J162: =VLOOKUP($H162,Conc_All!$A$5:$P$204,3*($C$8-1)+3) -> 36016 | K162: =VLOOKUP($H162,Conc_All!$A$5:$P$204,3*($C$8-1)+4) -> 44336 | L162: =VLOOKUP($H162,Conc_All_SDEIS!$A$5:$P$204,3*($C$8-1)+2) -> 39114 | M162: =VLOOKUP($H162,Conc_All_SDEIS!$A$5:$P$204,3*($C$8-1)+3) -> 43250 | N162: =VLOOKUP($H162,Conc_All_SDEIS!$A$5:$P$204,3*($C$8-1)+4) -> 49730 | P162: 51.41666667 | Q162: =VLOOKUP($P162,Conc_All!$R$5:$AG$245,3*($C$8-1)+2) -> 49477 | R162: =VLOOKUP($P162,Conc_All!$R$5:$AG$245,3*($C$8-1)+3) -> 57989 | S162: =VLOOKUP($P162,Conc_All!$R$5:$AG$245,3*($C$8-1)+4) -> 70119 | T162: =VLOOKUP($P162,Conc_All_SDEIS!$R$5:$AG$245,3*($C$8-1)+2) -> 63498 | U162: =VLOOKUP($P162,Conc_All_SDEIS!$R$5:$AG$245,3*($C$8-1)+3) -> 69505 | V162: =VLOOKUP($P162,Conc_All_SDEIS!$R$5:$AG$245,3*($C$8-1)+4) -> 79190
H163: 139 | I163: =VLOOKUP($H163,Conc_All!$A$5:$P$204,3*($C$8-1)+2) -> 30677 | J163: =VLOOKUP($H163,Conc_All!$A$5:$P$204,3*($C$8-1)+3) -> 35811 | K163: =VLOOKUP($H163,Conc_All!$A$5:$P$204,3*($C$8-1)+4) -> 44112 | L163: =VLOOKUP($H163,Conc_All_SDEIS!$A$5:$P$204,3*($C$8-1)+2) -> 38876 | M163: =VLOOKUP($H163,Conc_All_SDEIS!$A$5:$P$204,3*($C$8-1)+3) -> 42971 | N163: =VLOOKUP($H163,Conc_All_SDEIS!$A$5:$P$204,3*($C$8-1)+4) -> 49487 | P163: 51.5 | Q163: =VLOOKUP($P163,Conc_All!$R$5:$AG$245,3*($C$8-1)+2) -> 49457 | R163: =VLOOKUP($P163,Conc_All!$R$5:$AG$245,3*($C$8-1)+3) -> 57979 | S163: =VLOOKUP($P163,Conc_All!$R$5:$AG$245,3*($C$8-1)+4) -> 70145 | T163: =VLOOKUP($P163,Conc_All_SDEIS!$R$5:$AG$245,3*($C$8-1)+2) -> 63482 | U163: =VLOOKUP($P163,Conc_All_SDEIS!$R$5:$AG$245,3*($C$8-1)+3) -> 69488 | V163: =VLOOKUP($P163,Conc_All_SDEIS!$R$5:$AG$245,3*($C$8-1)+4) -> 79212
H164: 140 | I164: =VLOOKUP($H164,Conc_All!$A$5:$P$204,3*($C$8-1)+2) -> 30521 | J164: =VLOOKUP($H164,Conc_All!$A$5:$P$204,3*($C$8-1)+3) -> 35594 | K164: =VLOOKUP($H164,Conc_All!$A$5:$P$204,3*($C$8-1)+4) -> 43820 | L164: =VLOOKUP($H164,Conc_All_SDEIS!$A$5:$P$204,3*($C$8-1)+2) -> 38658 | M164: =VLOOKUP($H164,Conc_All_SDEIS!$A$5:$P$204,3*($C$8-1)+3) -> 42721 | N164: =VLOOKUP($H164,Conc_All_SDEIS!$A$5:$P$204,3*($C$8-1)+4) -> 49234 | P164: 51.58333333 | Q164: =VLOOKUP($P164,Conc_All!$R$5:$AG$245,3*($C$8-1)+2) -> 49432 | R164: =VLOOKUP($P164,Conc_All!$R$5:$AG$245,3*($C$8-1)+3) -> 57980 | S164: =VLOOKUP($P164,Conc_All!$R$5:$AG$245,3*($C$8-1)+4) -> 70186 | T164: =VLOOKUP($P164,Conc_All_SDEIS!$R$5:$AG$245,3*($C$8-1)+2) -> 63477 | U164: =VLOOKUP($P164,Conc_All_SDEIS!$R$5:$AG$245,3*($C$8-1)+3) -> 69465 | V164: =VLOOKUP($P164,Conc_All_SDEIS!$R$5:$AG$245,3*($C$8-1)+4) -> 79246
H165: 141 | I165: =VLOOKUP($H165,Conc_All!$A$5:$P$204,3*($C$8-1)+2) -> 30405 | J165: =VLOOKUP($H165,Conc_All!$A$5:$P$204,3*($C$8-1)+3) -> 35429 | K165: =VLOOKUP($H165,Conc_All!$A$5:$P$204,3*($C$8-1)+4) -> 43623 | L165: =VLOOKUP($H165,Conc_All_SDEIS!$A$5:$P$204,3*($C$8-1)+2) -> 38433 | M165: =VLOOKUP($H165,Conc_All_SDEIS!$A$5:$P$204,3*($C$8-1)+3) -> 42534 | N165: =VLOOKUP($H165,Conc_All_SDEIS!$A$5:$P$204,3*($C$8-1)+4) -> 49015 | P165: 51.66666667 | Q165: =VLOOKUP($P165,Conc_All!$R$5:$AG$245,3*($C$8-1)+2) -> 49387 | R165: =VLOOKUP($P165,Conc_All!$R$5:$AG$245,3*($C$8-1)+3) -> 57961 | S165: =VLOOKUP($P165,Conc_All!$R$5:$AG$245,3*($C$8-1)+4) -> 70202 | T165: =VLOOKUP($P165,Conc_All_SDEIS!$R$5:$AG$245,3*($C$8-1)+2) -> 63450 | U165: =VLOOKUP($P165,Conc_All_SDEIS!$R$5:$AG$245,3*($C$8-1)+3) -> 69412 | V165: =VLOOKUP($P165,Conc_All_SDEIS!$R$5:$AG$245,3*($C$8-1)+4) -> 79240
H166: 142 | I166: =VLOOKUP($H166,Conc_All!$A$5:$P$204,3*($C$8-1)+2) -> 30203 | J166: =VLOOKUP($H166,Conc_All!$A$5:$P$204,3*($C$8-1)+3) -> 35281 | K166: =VLOOKUP($H166,Conc_All!$A$5:$P$204,3*($C$8-1)+4) -> 43404 | L166: =VLOOKUP($H166,Conc_All_SDEIS!$A$5:$P$204,3*($C$8-1)+2) -> 38203 | M166: =VLOOKUP($H166,Conc_All_SDEIS!$A$5:$P$204,3*($C$8-1)+3) -> 42291 | N166: =VLOOKUP($H166,Conc_All_SDEIS!$A$5:$P$204,3*($C$8-1)+4) -> 48770 | P166: 51.75 | Q166: =VLOOKUP($P166,Conc_All!$R$5:$AG$245,3*($C$8-1)+2) -> 49314 | R166: =VLOOKUP($P166,Conc_All!$R$5:$AG$245,3*($C$8-1)+3) -> 57908 | S166: =VLOOKUP($P166,Conc_All!$R$5:$AG$245,3*($C$8-1)+4) -> 70126 | T166: =VLOOKUP($P166,Conc_All_SDEIS!$R$5:$AG$245,3*($C$8-1)+2) -> 63384 | U166: =VLOOKUP($P166,Conc_All_SDEIS!$R$5:$AG$245,3*($C$8-1)+3) -> 69359 | V166: =VLOOKUP($P166,Conc_All_SDEIS!$R$5:$AG$245,3*($C$8-1)+4) -> 79190
H167: 143 | I167: =VLOOKUP($H167,Conc_All!$A$5:$P$204,3*($C$8-1)+2) -> 30062 | J167: =VLOOKUP($H167,Conc_All!$A$5:$P$204,3*($C$8-1)+3) -> 35118 | K167: =VLOOKUP($H167,Conc_All!$A$5:$P$204,3*($C$8-1)+4) -> 43161 | L167: =VLOOKUP($H167,Conc_All_SDEIS!$A$5:$P$204,3*($C$8-1)+2) -> 37982 | M167: =VLOOKUP($H167,Conc_All_SDEIS!$A$5:$P$204,3*($C$8-1)+3) -> 42091 | N167: =VLOOKUP($H167,Conc_All_SDEIS!$A$5:$P$204,3*($C$8-1)+4) -> 48534 | P167: 51.83333333 | Q167: =VLOOKUP($P167,Conc_All!$R$5:$AG$245,3*($C$8-1)+2) -> 49236 | R167: =VLOOKUP($P167,Conc_All!$R$5:$AG$245,3*($C$8-1)+3) -> 57818 | S167: =VLOOKUP($P167,Conc_All!$R$5:$AG$245,3*($C$8-1)+4) -> 70021 | T167: =VLOOKUP($P167,Conc_All_SDEIS!$R$5:$AG$245,3*($C$8-1)+2) -> 63312 | U167: =VLOOKUP($P167,Conc_All_SDEIS!$R$5:$AG$245,3*($C$8-1)+3) -> 69292 | V167: =VLOOKUP($P167,Conc_All_SDEIS!$R$5:$AG$245,3*($C$8-1)+4) -> 79122
H168: 144 | I168: =VLOOKUP($H168,Conc_All!$A$5:$P$204,3*($C$8-1)+2) -> 29873 | J168: =VLOOKUP($H168,Conc_All!$A$5:$P$204,3*($C$8-1)+3) -> 34978 | K168: =VLOOKUP($H168,Conc_All!$A$5:$P$204,3*($C$8-1)+4) -> 42907 | L168: =VLOOKUP($H168,Conc_All_SDEIS!$A$5:$P$204,3*($C$8-1)+2) -> 37761 | M168: =VLOOKUP($H168,Conc_All_SDEIS!$A$5:$P$204,3*($C$8-1)+3) -> 41861 | N168: =VLOOKUP($H168,Conc_All_SDEIS!$A$5:$P$204,3*($C$8-1)+4) -> 48300 | P168: 51.91666667 | Q168: =VLOOKUP($P168,Conc_All!$R$5:$AG$245,3*($C$8-1)+2) -> 49229 | R168: =VLOOKUP($P168,Conc_All!$R$5:$AG$245,3*($C$8-1)+3) -> 57810 | S168: =VLOOKUP($P168,Conc_All!$R$5:$AG$245,3*($C$8-1)+4) -> 69982 | T168: =VLOOKUP($P168,Conc_All_SDEIS!$R$5:$AG$245,3*($C$8-1)+2) -> 63303 | U168: =VLOOKUP($P168,Conc_All_SDEIS!$R$5:$AG$245,3*($C$8-1)+3) -> 69290 | V168: =VLOOKUP($P168,Conc_All_SDEIS!$R$5:$AG$245,3*($C$8-1)+4) -> 79126
H169: 145 | I169: =VLOOKUP($H169,Conc_All!$A$5:$P$204,3*($C$8-1)+2) -> 29739 | J169: =VLOOKUP($H169,Conc_All!$A$5:$P$204,3*($C$8-1)+3) -> 34779 | K169: =VLOOKUP($H169,Conc_All!$A$5:$P$204,3*($C$8-1)+4) -> 42648 | L169: =VLOOKUP($H169,Conc_All_SDEIS!$A$5:$P$204,3*($C$8-1)+2) -> 37558 | M169: =VLOOKUP($H169,Conc_All_SDEIS!$A$5:$P$204,3*($C$8-1)+3) -> 41600 | N169: =VLOOKUP($H169,Conc_All_SDEIS!$A$5:$P$204,3*($C$8-1)+4) -> 48149 | P169: 52 | Q169: =VLOOKUP($P169,Conc_All!$R$5:$AG$245,3*($C$8-1)+2) -> 49227 | R169: =VLOOKUP($P169,Conc_All!$R$5:$AG$245,3*($C$8-1)+3) -> 57784 | S169: =VLOOKUP($P169,Conc_All!$R$5:$AG$245,3*($C$8-1)+4) -> 69948 | T169: =VLOOKUP($P169,Conc_All_SDEIS!$R$5:$AG$245,3*($C$8-1)+2) -> 63300 | U169: =VLOOKUP($P169,Conc_All_SDEIS!$R$5:$AG$245,3*($C$8-1)+3) -> 69288 | V169: =VLOOKUP($P169,Conc_All_SDEIS!$R$5:$AG$245,3*($C$8-1)+4) -> 79128
H170: 146 | I170: =VLOOKUP($H170,Conc_All!$A$5:$P$204,3*($C$8-1)+2) -> 29599 | J170: =VLOOKUP($H170,Conc_All!$A$5:$P$204,3*($C$8-1)+3) -> 34574 | K170: =VLOOKUP($H170,Conc_All!$A$5:$P$204,3*($C$8-1)+4) -> 42493 | L170: =VLOOKUP($H170,Conc_All_SDEIS!$A$5:$P$204,3*($C$8-1)+2) -> 37364 | M170: =VLOOKUP($H170,Conc_All_SDEIS!$A$5:$P$204,3*($C$8-1)+3) -> 41432 | N170: =VLOOKUP($H170,Conc_All_SDEIS!$A$5:$P$204,3*($C$8-1)+4) -> 47869 | P170: 52.08333333 | Q170: =VLOOKUP($P170,Conc_All!$R$5:$AG$245,3*($C$8-1)+2) -> 49222 | R170: =VLOOKUP($P170,Conc_All!$R$5:$AG$245,3*($C$8-1)+3) -> 57760 | S170: =VLOOKUP($P170,Conc_All!$R$5:$AG$245,3*($C$8-1)+4) -> 69902 | T170: =VLOOKUP($P170,Conc_All_SDEIS!$R$5:$AG$245,3*($C$8-1)+2) -> 63297 | U170: =VLOOKUP($P170,Conc_All_SDEIS!$R$5:$AG$245,3*($C$8-1)+3) -> 69286 | V170: =VLOOKUP($P170,Conc_All_SDEIS!$R$5:$AG$245,3*($C$8-1)+4) -> 79028
H171: 147 | I171: =VLOOKUP($H171,Conc_All!$A$5:$P$204,3*($C$8-1)+2) -> 29446 | J171: =VLOOKUP($H171,Conc_All!$A$5:$P$204,3*($C$8-1)+3) -> 34428 | K171: =VLOOKUP($H171,Conc_All!$A$5:$P$204,3*($C$8-1)+4) -> 42268 | L171: =VLOOKUP($H171,Conc_All_SDEIS!$A$5:$P$204,3*($C$8-1)+2) -> 37130 | M171: =VLOOKUP($H171,Conc_All_SDEIS!$A$5:$P$204,3*($C$8-1)+3) -> 41212 | N171: =VLOOKUP($H171,Conc_All_SDEIS!$A$5:$P$204,3*($C$8-1)+4) -> 47652 | P171: 52.16666667 | Q171: =VLOOKUP($P171,Conc_All!$R$5:$AG$245,3*($C$8-1)+2) -> 49213 | R171: =VLOOKUP($P171,Conc_All!$R$5:$AG$245,3*($C$8-1)+3) -> 57737 | S171: =VLOOKUP($P171,Conc_All!$R$5:$AG$245,3*($C$8-1)+4) -> 69880 | T171: =VLOOKUP($P171,Conc_All_SDEIS!$R$5:$AG$245,3*($C$8-1)+2) -> 63294 | U171: =VLOOKUP($P171,Conc_All_SDEIS!$R$5:$AG$245,3*($C$8-1)+3) -> 69285 | V171: =VLOOKUP($P171,Conc_All_SDEIS!$R$5:$AG$245,3*($C$8-1)+4) -> 79023
H172: 148 | I172: =VLOOKUP($H172,Conc_All!$A$5:$P$204,3*($C$8-1)+2) -> 29323 | J172: =VLOOKUP($H172,Conc_All!$A$5:$P$204,3*($C$8-1)+3) -> 34229 | K172: =VLOOKUP($H172,Conc_All!$A$5:$P$204,3*($C$8-1)+4) -> 42014 | L172: =VLOOKUP($H172,Conc_All_SDEIS!$A$5:$P$204,3*($C$8-1)+2) -> 36920 | M172: =VLOOKUP($H172,Conc_All_SDEIS!$A$5:$P$204,3*($C$8-1)+3) -> 41009 | N172: =VLOOKUP($H172,Conc_All_SDEIS!$A$5:$P$204,3*($C$8-1)+4) -> 47427 | P172: 52.25 | Q172: =VLOOKUP($P172,Conc_All!$R$5:$AG$245,3*($C$8-1)+2) -> 49203 | R172: =VLOOKUP($P172,Conc_All!$R$5:$AG$245,3*($C$8-1)+3) -> 57724 | S172: =VLOOKUP($P172,Conc_All!$R$5:$AG$245,3*($C$8-1)+4) -> 69876 | T172: =VLOOKUP($P172,Conc_All_SDEIS!$R$5:$AG$245,3*($C$8-1)+2) -> 63291 | U172: =VLOOKUP($P172,Conc_All_SDEIS!$R$5:$AG$245,3*($C$8-1)+3) -> 69283 | V172: =VLOOKUP($P172,Conc_All_SDEIS!$R$5:$AG$245,3*($C$8-1)+4) -> 79017
H173: 149 | I173: =VLOOKUP($H173,Conc_All!$A$5:$P$204,3*($C$8-1)+2) -> 29163 | J173: =VLOOKUP($H173,Conc_All!$A$5:$P$204,3*($C$8-1)+3) -> 34107 | K173: =VLOOKUP($H173,Conc_All!$A$5:$P$204,3*($C$8-1)+4) -> 41877 | L173: =VLOOKUP($H173,Conc_All_SDEIS!$A$5:$P$204,3*($C$8-1)+2) -> 36787 | M173: =VLOOKUP($H173,Conc_All_SDEIS!$A$5:$P$204,3*($C$8-1)+3) -> 40801 | N173: =VLOOKUP($H173,Conc_All_SDEIS!$A$5:$P$204,3*($C$8-1)+4) -> 47205 | P173: 52.33333333 | Q173: =VLOOKUP($P173,Conc_All!$R$5:$AG$245,3*($C$8-1)+2) -> 49015 | R173: =VLOOKUP($P173,Conc_All!$R$5:$AG$245,3*($C$8-1)+3) -> 57489 | S173: =VLOOKUP($P173,Conc_All!$R$5:$AG$245,3*($C$8-1)+4) -> 69626 | T173: =VLOOKUP($P173,Conc_All_SDEIS!$R$5:$AG$245,3*($C$8-1)+2) -> 63091 | U173: =VLOOKUP($P173,Conc_All_SDEIS!$R$5:$AG$245,3*($C$8-1)+3) -> 69074 | V173: =VLOOKUP($P173,Conc_All_SDEIS!$R$5:$AG$245,3*($C$8-1)+4) -> 78787
H174: 150 | I174: =VLOOKUP($H174,Conc_All!$A$5:$P$204,3*($C$8-1)+2) -> 29023 | J174: =VLOOKUP($H174,Conc_All!$A$5:$P$204,3*($C$8-1)+3) -> 33925 | K174: =VLOOKUP($H174,Conc_All!$A$5:$P$204,3*($C$8-1)+4) -> 41692 | L174: =VLOOKUP($H174,Conc_All_SDEIS!$A$5:$P$204,3*($C$8-1)+2) -> 36549 | M174: =VLOOKUP($H174,Conc_All_SDEIS!$A$5:$P$204,3*($C$8-1)+3) -> 40630 | N174: =VLOOKUP($H174,Conc_All_SDEIS!$A$5:$P$204,3*($C$8-1)+4) -> 46900 | P174: 52.41666667 | Q174: =VLOOKUP($P174,Conc_All!$R$5:$AG$245,3*($C$8-1)+2) -> 49002 | R174: =VLOOKUP($P174,Conc_All!$R$5:$AG$245,3*($C$8-1)+3) -> 57461 | S174: =VLOOKUP($P174,Conc_All!$R$5:$AG$245,3*($C$8-1)+4) -> 69610 | T174: =VLOOKUP($P174,Conc_All_SDEIS!$R$5:$AG$245,3*($C$8-1)+2) -> 63100 | U174: =VLOOKUP($P174,Conc_All_SDEIS!$R$5:$AG$245,3*($C$8-1)+3) -> 69077 | V174: =VLOOKUP($P174,Conc_All_SDEIS!$R$5:$AG$245,3*($C$8-1)+4) -> 78793
H175: 151 | I175: =VLOOKUP($H175,Conc_All!$A$5:$P$204,3*($C$8-1)+2) -> 28873 | J175: =VLOOKUP($H175,Conc_All!$A$5:$P$204,3*($C$8-1)+3) -> 33747 | K175: =VLOOKUP($H175,Conc_All!$A$5:$P$204,3*($C$8-1)+4) -> 41478 | L175: =VLOOKUP($H175,Conc_All_SDEIS!$A$5:$P$204,3*($C$8-1)+2) -> 36327 | M175: =VLOOKUP($H175,Conc_All_SDEIS!$A$5:$P$204,3*($C$8-1)+3) -> 40412 | N175: =VLOOKUP($H175,Conc_All_SDEIS!$A$5:$P$204,3*($C$8-1)+4) -> 46738 | P175: 52.5 | Q175: =VLOOKUP($P175,Conc_All!$R$5:$AG$245,3*($C$8-1)+2) -> 49011 | R175: =VLOOKUP($P175,Conc_All!$R$5:$AG$245,3*($C$8-1)+3) -> 57457 | S175: =VLOOKUP($P175,Conc_All!$R$5:$AG$245,3*($C$8-1)+4) -> 69585 | T175: =VLOOKUP($P175,Conc_All_SDEIS!$R$5:$AG$245,3*($C$8-1)+2) -> 63104 | U175: =VLOOKUP($P175,Conc_All_SDEIS!$R$5:$AG$245,3*($C$8-1)+3) -> 69069 | V175: =VLOOKUP($P175,Conc_All_SDEIS!$R$5:$AG$245,3*($C$8-1)+4) -> 78789
H176: 152 | I176: =VLOOKUP($H176,Conc_All!$A$5:$P$204,3*($C$8-1)+2) -> 28817 | J176: =VLOOKUP($H176,Conc_All!$A$5:$P$204,3*($C$8-1)+3) -> 33576 | K176: =VLOOKUP($H176,Conc_All!$A$5:$P$204,3*($C$8-1)+4) -> 41262 | L176: =VLOOKUP($H176,Conc_All_SDEIS!$A$5:$P$204,3*($C$8-1)+2) -> 36154 | M176: =VLOOKUP($H176,Conc_All_SDEIS!$A$5:$P$204,3*($C$8-1)+3) -> 40137 | N176: =VLOOKUP($H176,Conc_All_SDEIS!$A$5:$P$204,3*($C$8-1)+4) -> 46491 | P176: 52.58333333 | Q176: =VLOOKUP($P176,Conc_All!$R$5:$AG$245,3*($C$8-1)+2) -> 49031 | R176: =VLOOKUP($P176,Conc_All!$R$5:$AG$245,3*($C$8-1)+3) -> 57447 | S176: =VLOOKUP($P176,Conc_All!$R$5:$AG$245,3*($C$8-1)+4) -> 69572 | T176: =VLOOKUP($P176,Conc_All_SDEIS!$R$5:$AG$245,3*($C$8-1)+2) -> 63120 | U176: =VLOOKUP($P176,Conc_All_SDEIS!$R$5:$AG$245,3*($C$8-1)+3) -> 69073 | V176: =VLOOKUP($P176,Conc_All_SDEIS!$R$5:$AG$245,3*($C$8-1)+4) -> 78796
H177: 153 | I177: =VLOOKUP($H177,Conc_All!$A$5:$P$204,3*($C$8-1)+2) -> 28674 | J177: =VLOOKUP($H177,Conc_All!$A$5:$P$204,3*($C$8-1)+3) -> 33406 | K177: =VLOOKUP($H177,Conc_All!$A$5:$P$204,3*($C$8-1)+4) -> 40950 | L177: =VLOOKUP($H177,Conc_All_SDEIS!$A$5:$P$204,3*($C$8-1)+2) -> 36000 | M177: =VLOOKUP($H177,Conc_All_SDEIS!$A$5:$P$204,3*($C$8-1)+3) -> 39932 | N177: =VLOOKUP($H177,Conc_All_SDEIS!$A$5:$P$204,3*($C$8-1)+4) -> 46306 | P177: 52.66666667 | Q177: =VLOOKUP($P177,Conc_All!$R$5:$AG$245,3*($C$8-1)+2) -> 49036 | R177: =VLOOKUP($P177,Conc_All!$R$5:$AG$245,3*($C$8-1)+3) -> 57440 | S177: =VLOOKUP($P177,Conc_All!$R$5:$AG$245,3*($C$8-1)+4) -> 69528 | T177: =VLOOKUP($P177,Conc_All_SDEIS!$R$5:$AG$245,3*($C$8-1)+2) -> 63088 | U177: =VLOOKUP($P177,Conc_All_SDEIS!$R$5:$AG$245,3*($C$8-1)+3) -> 69074 | V177: =VLOOKUP($P177,Conc_All_SDEIS!$R$5:$AG$245,3*($C$8-1)+4) -> 78772
H178: 154 | I178: =VLOOKUP($H178,Conc_All!$A$5:$P$204,3*($C$8-1)+2) -> 28558 | J178: =VLOOKUP($H178,Conc_All!$A$5:$P$204,3*($C$8-1)+3) -> 33233 | K178: =VLOOKUP($H178,Conc_All!$A$5:$P$204,3*($C$8-1)+4) -> 40759 | L178: =VLOOKUP($H178,Conc_All_SDEIS!$A$5:$P$204,3*($C$8-1)+2) -> 35774 | M178: =VLOOKUP($H178,Conc_All_SDEIS!$A$5:$P$204,3*($C$8-1)+3) -> 39683 | N178: =VLOOKUP($H178,Conc_All_SDEIS!$A$5:$P$204,3*($C$8-1)+4) -> 46145 | P178: 52.75 | Q178: =VLOOKUP($P178,Conc_All!$R$5:$AG$245,3*($C$8-1)+2) -> 49000 | R178: =VLOOKUP($P178,Conc_All!$R$5:$AG$245,3*($C$8-1)+3) -> 57406 | S178: =VLOOKUP($P178,Conc_All!$R$5:$AG$245,3*($C$8-1)+4) -> 69442 | T178: =VLOOKUP($P178,Conc_All_SDEIS!$R$5:$AG$245,3*($C$8-1)+2) -> 63011 | U178: =VLOOKUP($P178,Conc_All_SDEIS!$R$5:$AG$245,3*($C$8-1)+3) -> 69036 | V178: =VLOOKUP($P178,Conc_All_SDEIS!$R$5:$AG$245,3*($C$8-1)+4) -> 78702
H179: 155 | I179: =VLOOKUP($H179,Conc_All!$A$5:$P$204,3*($C$8-1)+2) -> 28429 | J179: =VLOOKUP($H179,Conc_All!$A$5:$P$204,3*($C$8-1)+3) -> 33059 | K179: =VLOOKUP($H179,Conc_All!$A$5:$P$204,3*($C$8-1)+4) -> 40575 | L179: =VLOOKUP($H179,Conc_All_SDEIS!$A$5:$P$204,3*($C$8-1)+2) -> 35585 | M179: =VLOOKUP($H179,Conc_All_SDEIS!$A$5:$P$204,3*($C$8-1)+3) -> 39555 | N179: =VLOOKUP($H179,Conc_All_SDEIS!$A$5:$P$204,3*($C$8-1)+4) -> 45860 | P179: 52.83333333 | Q179: =VLOOKUP($P179,Conc_All!$R$5:$AG$245,3*($C$8-1)+2) -> 48940 | R179: =VLOOKUP($P179,Conc_All!$R$5:$AG$245,3*($C$8-1)+3) -> 57339 | S179: =VLOOKUP($P179,Conc_All!$R$5:$AG$245,3*($C$8-1)+4) -> 69343 | T179: =VLOOKUP($P179,Conc_All_SDEIS!$R$5:$AG$245,3*($C$8-1)+2) -> 62925 | U179: =VLOOKUP($P179,Conc_All_SDEIS!$R$5:$AG$245,3*($C$8-1)+3) -> 68972 | V179: =VLOOKUP($P179,Conc_All_SDEIS!$R$5:$AG$245,3*($C$8-1)+4) -> 78618
H180: 156 | I180: =VLOOKUP($H180,Conc_All!$A$5:$P$204,3*($C$8-1)+2) -> 28272 | J180: =VLOOKUP($H180,Conc_All!$A$5:$P$204,3*($C$8-1)+3) -> 32921 | K180: =VLOOKUP($H180,Conc_All!$A$5:$P$204,3*($C$8-1)+4) -> 40335 | L180: =VLOOKUP($H180,Conc_All_SDEIS!$A$5:$P$204,3*($C$8-1)+2) -> 35440 | M180: =VLOOKUP($H180,Conc_All_SDEIS!$A$5:$P$204,3*($C$8-1)+3) -> 39333 | N180: =VLOOKUP($H180,Conc_All_SDEIS!$A$5:$P$204,3*($C$8-1)+4) -> 45637 | P180: 52.91666667 | Q180: =VLOOKUP($P180,Conc_All!$R$5:$AG$245,3*($C$8-1)+2) -> 48904 | R180: =VLOOKUP($P180,Conc_All!$R$5:$AG$245,3*($C$8-1)+3) -> 57325 | S180: =VLOOKUP($P180,Conc_All!$R$5:$AG$245,3*($C$8-1)+4) -> 69329 | T180: =VLOOKUP($P180,Conc_All_SDEIS!$R$5:$AG$245,3*($C$8-1)+2) -> 62922 | U180: =VLOOKUP($P180,Conc_All_SDEIS!$R$5:$AG$245,3*($C$8-1)+3) -> 68960 | V180: =VLOOKUP($P180,Conc_All_SDEIS!$R$5:$AG$245,3*($C$8-1)+4) -> 78612
H181: 157 | I181: =VLOOKUP($H181,Conc_All!$A$5:$P$204,3*($C$8-1)+2) -> 28140 | J181: =VLOOKUP($H181,Conc_All!$A$5:$P$204,3*($C$8-1)+3) -> 32726 | K181: =VLOOKUP($H181,Conc_All!$A$5:$P$204,3*($C$8-1)+4) -> 40226 | L181: =VLOOKUP($H181,Conc_All_SDEIS!$A$5:$P$204,3*($C$8-1)+2) -> 35253 | M181: =VLOOKUP($H181,Conc_All_SDEIS!$A$5:$P$204,3*($C$8-1)+3) -> 39155 | N181: =VLOOKUP($H181,Conc_All_SDEIS!$A$5:$P$204,3*($C$8-1)+4) -> 45452 | P181: 53 | Q181: =VLOOKUP($P181,Conc_All!$R$5:$AG$245,3*($C$8-1)+2) -> 48879 | R181: =VLOOKUP($P181,Conc_All!$R$5:$AG$245,3*($C$8-1)+3) -> 57319 | S181: =VLOOKUP($P181,Conc_All!$R$5:$AG$245,3*($C$8-1)+4) -> 69305 | T181: =VLOOKUP($P181,Conc_All_SDEIS!$R$5:$AG$245,3*($C$8-1)+2) -> 62918 | U181: =VLOOKUP($P181,Conc_All_SDEIS!$R$5:$AG$245,3*($C$8-1)+3) -> 68956 | V181: =VLOOKUP($P181,Conc_All_SDEIS!$R$5:$AG$245,3*($C$8-1)+4) -> 78608
H182: 158 | I182: =VLOOKUP($H182,Conc_All!$A$5:$P$204,3*($C$8-1)+2) -> 28030 | J182: =VLOOKUP($H182,Conc_All!$A$5:$P$204,3*($C$8-1)+3) -> 32581 | K182: =VLOOKUP($H182,Conc_All!$A$5:$P$204,3*($C$8-1)+4) -> 40109 | L182: =VLOOKUP($H182,Conc_All_SDEIS!$A$5:$P$204,3*($C$8-1)+2) -> 35055 | M182: =VLOOKUP($H182,Conc_All_SDEIS!$A$5:$P$204,3*($C$8-1)+3) -> 38933 | N182: =VLOOKUP($H182,Conc_All_SDEIS!$A$5:$P$204,3*($C$8-1)+4) -> 45289 | P182: 53.08333333 | Q182: =VLOOKUP($P182,Conc_All!$R$5:$AG$245,3*($C$8-1)+2) -> 48873 | R182: =VLOOKUP($P182,Conc_All!$R$5:$AG$245,3*($C$8-1)+3) -> 57297 | S182: =VLOOKUP($P182,Conc_All!$R$5:$AG$245,3*($C$8-1)+4) -> 69281 | T182: =VLOOKUP($P182,Conc_All_SDEIS!$R$5:$AG$245,3*($C$8-1)+2) -> 62915 | U182: =VLOOKUP($P182,Conc_All_SDEIS!$R$5:$AG$245,3*($C$8-1)+3) -> 68953 | V182: =VLOOKUP($P182,Conc_All_SDEIS!$R$5:$AG$245,3*($C$8-1)+4) -> 78603
H183: 159 | I183: =VLOOKUP($H183,Conc_All!$A$5:$P$204,3*($C$8-1)+2) -> 27901 | J183: =VLOOKUP($H183,Conc_All!$A$5:$P$204,3*($C$8-1)+3) -> 32437 | K183: =VLOOKUP($H183,Conc_All!$A$5:$P$204,3*($C$8-1)+4) -> 39939 | L183: =VLOOKUP($H183,Conc_All_SDEIS!$A$5:$P$204,3*($C$8-1)+2) -> 34853 | M183: =VLOOKUP($H183,Conc_All_SDEIS!$A$5:$P$204,3*($C$8-1)+3) -> 38704 | N183: =VLOOKUP($H183,Conc_All_SDEIS!$A$5:$P$204,3*($C$8-1)+4) -> 45055 | P183: 53.16666667 | Q183: =VLOOKUP($P183,Conc_All!$R$5:$AG$245,3*($C$8-1)+2) -> 48870 | R183: =VLOOKUP($P183,Conc_All!$R$5:$AG$245,3*($C$8-1)+3) -> 57273 | S183: =VLOOKUP($P183,Conc_All!$R$5:$AG$245,3*($C$8-1)+4) -> 69265 | T183: =VLOOKUP($P183,Conc_All_SDEIS!$R$5:$AG$245,3*($C$8-1)+2) -> 62911 | U183: =VLOOKUP($P183,Conc_All_SDEIS!$R$5:$AG$245,3*($C$8-1)+3) -> 68949 | V183: =VLOOKUP($P183,Conc_All_SDEIS!$R$5:$AG$245,3*($C$8-1)+4) -> 78599
H184: 160 | I184: =VLOOKUP($H184,Conc_All!$A$5:$P$204,3*($C$8-1)+2) -> 27749 | J184: =VLOOKUP($H184,Conc_All!$A$5:$P$204,3*($C$8-1)+3) -> 32283 | K184: =VLOOKUP($H184,Conc_All!$A$5:$P$204,3*($C$8-1)+4) -> 39774 | L184: =VLOOKUP($H184,Conc_All_SDEIS!$A$5:$P$204,3*($C$8-1)+2) -> 34678 | M184: =VLOOKUP($H184,Conc_All_SDEIS!$A$5:$P$204,3*($C$8-1)+3) -> 38500 | N184: =VLOOKUP($H184,Conc_All_SDEIS!$A$5:$P$204,3*($C$8-1)+4) -> 44739 | P184: 53.25 | Q184: =VLOOKUP($P184,Conc_All!$R$5:$AG$245,3*($C$8-1)+2) -> 48859 | R184: =VLOOKUP($P184,Conc_All!$R$5:$AG$245,3*($C$8-1)+3) -> 57261 | S184: =VLOOKUP($P184,Conc_All!$R$5:$AG$245,3*($C$8-1)+4) -> 69254 | T184: =VLOOKUP($P184,Conc_All_SDEIS!$R$5:$AG$245,3*($C$8-1)+2) -> 62907 | U184: =VLOOKUP($P184,Conc_All_SDEIS!$R$5:$AG$245,3*($C$8-1)+3) -> 68946 | V184: =VLOOKUP($P184,Conc_All_SDEIS!$R$5:$AG$245,3*($C$8-1)+4) -> 78594
H185: 161 | I185: =VLOOKUP($H185,Conc_All!$A$5:$P$204,3*($C$8-1)+2) -> 27558 | J185: =VLOOKUP($H185,Conc_All!$A$5:$P$204,3*($C$8-1)+3) -> 32102 | K185: =VLOOKUP($H185,Conc_All!$A$5:$P$204,3*($C$8-1)+4) -> 39441 | L185: =VLOOKUP($H185,Conc_All_SDEIS!$A$5:$P$204,3*($C$8-1)+2) -> 34435 | M185: =VLOOKUP($H185,Conc_All_SDEIS!$A$5:$P$204,3*($C$8-1)+3) -> 38317 | N185: =VLOOKUP($H185,Conc_All_SDEIS!$A$5:$P$204,3*($C$8-1)+4) -> 44586 | P185: 53.33333333 | Q185: =VLOOKUP($P185,Conc_All!$R$5:$AG$245,3*($C$8-1)+2) -> 48659 | R185: =VLOOKUP($P185,Conc_All!$R$5:$AG$245,3*($C$8-1)+3) -> 57049 | S185: =VLOOKUP($P185,Conc_All!$R$5:$AG$245,3*($C$8-1)+4) -> 68999 | T185: =VLOOKUP($P185,Conc_All_SDEIS!$R$5:$AG$245,3*($C$8-1)+2) -> 62729 | U185: =VLOOKUP($P185,Conc_All_SDEIS!$R$5:$AG$245,3*($C$8-1)+3) -> 68716 | V185: =VLOOKUP($P185,Conc_All_SDEIS!$R$5:$AG$245,3*($C$8-1)+4) -> 78372
H186: 162 | I186: =VLOOKUP($H186,Conc_All!$A$5:$P$204,3*($C$8-1)+2) -> 27405 | J186: =VLOOKUP($H186,Conc_All!$A$5:$P$204,3*($C$8-1)+3) -> 31931 | K186: =VLOOKUP($H186,Conc_All!$A$5:$P$204,3*($C$8-1)+4) -> 39289 | L186: =VLOOKUP($H186,Conc_All_SDEIS!$A$5:$P$204,3*($C$8-1)+2) -> 34291 | M186: =VLOOKUP($H186,Conc_All_SDEIS!$A$5:$P$204,3*($C$8-1)+3) -> 38086 | N186: =VLOOKUP($H186,Conc_All_SDEIS!$A$5:$P$204,3*($C$8-1)+4) -> 44473 | P186: 53.41666667 | Q186: =VLOOKUP($P186,Conc_All!$R$5:$AG$245,3*($C$8-1)+2) -> 48644 | R186: =VLOOKUP($P186,Conc_All!$R$5:$AG$245,3*($C$8-1)+3) -> 57001 | S186: =VLOOKUP($P186,Conc_All!$R$5:$AG$245,3*($C$8-1)+4) -> 69006 | T186: =VLOOKUP($P186,Conc_All_SDEIS!$R$5:$AG$245,3*($C$8-1)+2) -> 62742 | U186: =VLOOKUP($P186,Conc_All_SDEIS!$R$5:$AG$245,3*($C$8-1)+3) -> 68688 | V186: =VLOOKUP($P186,Conc_All_SDEIS!$R$5:$AG$245,3*($C$8-1)+4) -> 78370
H187: 163 | I187: =VLOOKUP($H187,Conc_All!$A$5:$P$204,3*($C$8-1)+2) -> 27247 | J187: =VLOOKUP($H187,Conc_All!$A$5:$P$204,3*($C$8-1)+3) -> 31737 | K187: =VLOOKUP($H187,Conc_All!$A$5:$P$204,3*($C$8-1)+4) -> 39130 | L187: =VLOOKUP($H187,Conc_All_SDEIS!$A$5:$P$204,3*($C$8-1)+2) -> 34138 | M187: =VLOOKUP($H187,Conc_All_SDEIS!$A$5:$P$204,3*($C$8-1)+3) -> 37914 | N187: =VLOOKUP($H187,Conc_All_SDEIS!$A$5:$P$204,3*($C$8-1)+4) -> 44346 | P187: 53.5 | Q187: =VLOOKUP($P187,Conc_All!$R$5:$AG$245,3*($C$8-1)+2) -> 48641 | R187: =VLOOKUP($P187,Conc_All!$R$5:$AG$245,3*($C$8-1)+3) -> 56951 | S187: =VLOOKUP($P187,Conc_All!$R$5:$AG$245,3*($C$8-1)+4) -> 68993 | T187: =VLOOKUP($P187,Conc_All_SDEIS!$R$5:$AG$245,3*($C$8-1)+2) -> 62721 | U187: =VLOOKUP($P187,Conc_All_SDEIS!$R$5:$AG$245,3*($C$8-1)+3) -> 68657 | V187: =VLOOKUP($P187,Conc_All_SDEIS!$R$5:$AG$245,3*($C$8-1)+4) -> 78358
H188: 164 | I188: =VLOOKUP($H188,Conc_All!$A$5:$P$204,3*($C$8-1)+2) -> 27141 | J188: =VLOOKUP($H188,Conc_All!$A$5:$P$204,3*($C$8-1)+3) -> 31627 | K188: =VLOOKUP($H188,Conc_All!$A$5:$P$204,3*($C$8-1)+4) -> 39000 | L188: =VLOOKUP($H188,Conc_All_SDEIS!$A$5:$P$204,3*($C$8-1)+2) -> 33924 | M188: =VLOOKUP($H188,Conc_All_SDEIS!$A$5:$P$204,3*($C$8-1)+3) -> 37670 | N188: =VLOOKUP($H188,Conc_All_SDEIS!$A$5:$P$204,3*($C$8-1)+4) -> 44026 | P188: 53.58333333 | Q188: =VLOOKUP($P188,Conc_All!$R$5:$AG$245,3*($C$8-1)+2) -> 48661 | R188: =VLOOKUP($P188,Conc_All!$R$5:$AG$245,3*($C$8-1)+3) -> 56941 | S188: =VLOOKUP($P188,Conc_All!$R$5:$AG$245,3*($C$8-1)+4) -> 68993 | T188: =VLOOKUP($P188,Conc_All_SDEIS!$R$5:$AG$245,3*($C$8-1)+2) -> 62733 | U188: =VLOOKUP($P188,Conc_All_SDEIS!$R$5:$AG$245,3*($C$8-1)+3) -> 68669 | V188: =VLOOKUP($P188,Conc_All_SDEIS!$R$5:$AG$245,3*($C$8-1)+4) -> 78366
H189: 165 | I189: =VLOOKUP($H189,Conc_All!$A$5:$P$204,3*($C$8-1)+2) -> 26976 | J189: =VLOOKUP($H189,Conc_All!$A$5:$P$204,3*($C$8-1)+3) -> 31449 | K189: =VLOOKUP($H189,Conc_All!$A$5:$P$204,3*($C$8-1)+4) -> 38897 | L189: =VLOOKUP($H189,Conc_All_SDEIS!$A$5:$P$204,3*($C$8-1)+2) -> 33759 | M189: =VLOOKUP($H189,Conc_All_SDEIS!$A$5:$P$204,3*($C$8-1)+3) -> 37479 | N189: =VLOOKUP($H189,Conc_All_SDEIS!$A$5:$P$204,3*($C$8-1)+4) -> 43795 | P189: 53.66666667 | Q189: =VLOOKUP($P189,Conc_All!$R$5:$AG$245,3*($C$8-1)+2) -> 48656 | R189: =VLOOKUP($P189,Conc_All!$R$5:$AG$245,3*($C$8-1)+3) -> 56911 | S189: =VLOOKUP($P189,Conc_All!$R$5:$AG$245,3*($C$8-1)+4) -> 68960 | T189: =VLOOKUP($P189,Conc_All_SDEIS!$R$5:$AG$245,3*($C$8-1)+2) -> 62721 | U189: =VLOOKUP($P189,Conc_All_SDEIS!$R$5:$AG$245,3*($C$8-1)+3) -> 68651 | V189: =VLOOKUP($P189,Conc_All_SDEIS!$R$5:$AG$245,3*($C$8-1)+4) -> 78360
H190: 166 | I190: =VLOOKUP($H190,Conc_All!$A$5:$P$204,3*($C$8-1)+2) -> 26831 | J190: =VLOOKUP($H190,Conc_All!$A$5:$P$204,3*($C$8-1)+3) -> 31235 | K190: =VLOOKUP($H190,Conc_All!$A$5:$P$204,3*($C$8-1)+4) -> 38716 | L190: =VLOOKUP($H190,Conc_All_SDEIS!$A$5:$P$204,3*($C$8-1)+2) -> 33577 | M190: =VLOOKUP($H190,Conc_All_SDEIS!$A$5:$P$204,3*($C$8-1)+3) -> 37281 | N190: =VLOOKUP($H190,Conc_All_SDEIS!$A$5:$P$204,3*($C$8-1)+4) -> 43588 | P190: 53.75 | Q190: =VLOOKUP($P190,Conc_All!$R$5:$AG$245,3*($C$8-1)+2) -> 48621 | R190: =VLOOKUP($P190,Conc_All!$R$5:$AG$245,3*($C$8-1)+3) -> 56865 | S190: =VLOOKUP($P190,Conc_All!$R$5:$AG$245,3*($C$8-1)+4) -> 68913 | T190: =VLOOKUP($P190,Conc_All_SDEIS!$R$5:$AG$245,3*($C$8-1)+2) -> 62645 | U190: =VLOOKUP($P190,Conc_All_SDEIS!$R$5:$AG$245,3*($C$8-1)+3) -> 68562 | V190: =VLOOKUP($P190,Conc_All_SDEIS!$R$5:$AG$245,3*($C$8-1)+4) -> 78296
H191: 167 | I191: =VLOOKUP($H191,Conc_All!$A$5:$P$204,3*($C$8-1)+2) -> 26702 | J191: =VLOOKUP($H191,Conc_All!$A$5:$P$204,3*($C$8-1)+3) -> 31053 | K191: =VLOOKUP($H191,Conc_All!$A$5:$P$204,3*($C$8-1)+4) -> 38505 | L191: =VLOOKUP($H191,Conc_All_SDEIS!$A$5:$P$204,3*($C$8-1)+2) -> 33434 | M191: =VLOOKUP($H191,Conc_All_SDEIS!$A$5:$P$204,3*($C$8-1)+3) -> 37100 | N191: =VLOOKUP($H191,Conc_All_SDEIS!$A$5:$P$204,3*($C$8-1)+4) -> 43274 | P191: 53.83333333 | Q191: =VLOOKUP($P191,Conc_All!$R$5:$AG$245,3*($C$8-1)+2) -> 48574 | R191: =VLOOKUP($P191,Conc_All!$R$5:$AG$245,3*($C$8-1)+3) -> 56787 | S191: =VLOOKUP($P191,Conc_All!$R$5:$AG$245,3*($C$8-1)+4) -> 68806 | T191: =VLOOKUP($P191,Conc_All_SDEIS!$R$5:$AG$245,3*($C$8-1)+2) -> 62560 | U191: =VLOOKUP($P191,Conc_All_SDEIS!$R$5:$AG$245,3*($C$8-1)+3) -> 68486 | V191: =VLOOKUP($P191,Conc_All_SDEIS!$R$5:$AG$245,3*($C$8-1)+4) -> 78207
H192: 168 | I192: =VLOOKUP($H192,Conc_All!$A$5:$P$204,3*($C$8-1)+2) -> 26576 | J192: =VLOOKUP($H192,Conc_All!$A$5:$P$204,3*($C$8-1)+3) -> 30940 | K192: =VLOOKUP($H192,Conc_All!$A$5:$P$204,3*($C$8-1)+4) -> 38292 | L192: =VLOOKUP($H192,Conc_All_SDEIS!$A$5:$P$204,3*($C$8-1)+2) -> 33261 | M192: =VLOOKUP($H192,Conc_All_SDEIS!$A$5:$P$204,3*($C$8-1)+3) -> 36910 | N192: =VLOOKUP($H192,Conc_All_SDEIS!$A$5:$P$204,3*($C$8-1)+4) -> 43083 | P192: 53.91666667 | Q192: =VLOOKUP($P192,Conc_All!$R$5:$AG$245,3*($C$8-1)+2) -> 48572 | R192: =VLOOKUP($P192,Conc_All!$R$5:$AG$245,3*($C$8-1)+3) -> 56785 | S192: =VLOOKUP($P192,Conc_All!$R$5:$AG$245,3*($C$8-1)+4) -> 68791 | T192: =VLOOKUP($P192,Conc_All_SDEIS!$R$5:$AG$245,3*($C$8-1)+2) -> 62556 | U192: =VLOOKUP($P192,Conc_All_SDEIS!$R$5:$AG$245,3*($C$8-1)+3) -> 68484 | V192: =VLOOKUP($P192,Conc_All_SDEIS!$R$5:$AG$245,3*($C$8-1)+4) -> 78204
H193: 169 | I193: =VLOOKUP($H193,Conc_All!$A$5:$P$204,3*($C$8-1)+2) -> 26388 | J193: =VLOOKUP($H193,Conc_All!$A$5:$P$204,3*($C$8-1)+3) -> 30754 | K193: =VLOOKUP($H193,Conc_All!$A$5:$P$204,3*($C$8-1)+4) -> 38085 | L193: =VLOOKUP($H193,Conc_All_SDEIS!$A$5:$P$204,3*($C$8-1)+2) -> 33067 | M193: =VLOOKUP($H193,Conc_All_SDEIS!$A$5:$P$204,3*($C$8-1)+3) -> 36717 | N193: =VLOOKUP($H193,Conc_All_SDEIS!$A$5:$P$204,3*($C$8-1)+4) -> 42868 | P193: 54 | Q193: =VLOOKUP($P193,Conc_All!$R$5:$AG$245,3*($C$8-1)+2) -> 48570 | R193: =VLOOKUP($P193,Conc_All!$R$5:$AG$245,3*($C$8-1)+3) -> 56782 | S193: =VLOOKUP($P193,Conc_All!$R$5:$AG$245,3*($C$8-1)+4) -> 68765 | T193: =VLOOKUP($P193,Conc_All_SDEIS!$R$5:$AG$245,3*($C$8-1)+2) -> 62552 | U193: =VLOOKUP($P193,Conc_All_SDEIS!$R$5:$AG$245,3*($C$8-1)+3) -> 68482 | V193: =VLOOKUP($P193,Conc_All_SDEIS!$R$5:$AG$245,3*($C$8-1)+4) -> 78200
H194: 170 | I194: =VLOOKUP($H194,Conc_All!$A$5:$P$204,3*($C$8-1)+2) -> 26256 | J194: =VLOOKUP($H194,Conc_All!$A$5:$P$204,3*($C$8-1)+3) -> 30618 | K194: =VLOOKUP($H194,Conc_All!$A$5:$P$204,3*($C$8-1)+4) -> 37895 | L194: =VLOOKUP($H194,Conc_All_SDEIS!$A$5:$P$204,3*($C$8-1)+2) -> 32865 | M194: =VLOOKUP($H194,Conc_All_SDEIS!$A$5:$P$204,3*($C$8-1)+3) -> 36529 | N194: =VLOOKUP($H194,Conc_All_SDEIS!$A$5:$P$204,3*($C$8-1)+4) -> 42745 | P194: 54.08333333 | Q194: =VLOOKUP($P194,Conc_All!$R$5:$AG$245,3*($C$8-1)+2) -> 48567 | R194: =VLOOKUP($P194,Conc_All!$R$5:$AG$245,3*($C$8-1)+3) -> 56779 | S194: =VLOOKUP($P194,Conc_All!$R$5:$AG$245,3*($C$8-1)+4) -> 68740 | T194: =VLOOKUP($P194,Conc_All_SDEIS!$R$5:$AG$245,3*($C$8-1)+2) -> 62548 | U194: =VLOOKUP($P194,Conc_All_SDEIS!$R$5:$AG$245,3*($C$8-1)+3) -> 68480 | V194: =VLOOKUP($P194,Conc_All_SDEIS!$R$5:$AG$245,3*($C$8-1)+4) -> 78196
H195: 171 | I195: =VLOOKUP($H195,Conc_All!$A$5:$P$204,3*($C$8-1)+2) -> 26173 | J195: =VLOOKUP($H195,Conc_All!$A$5:$P$204,3*($C$8-1)+3) -> 30456 | K195: =VLOOKUP($H195,Conc_All!$A$5:$P$204,3*($C$8-1)+4) -> 37671 | L195: =VLOOKUP($H195,Conc_All_SDEIS!$A$5:$P$204,3*($C$8-1)+2) -> 32666 | M195: =VLOOKUP($H195,Conc_All_SDEIS!$A$5:$P$204,3*($C$8-1)+3) -> 36304 | N195: =VLOOKUP($H195,Conc_All_SDEIS!$A$5:$P$204,3*($C$8-1)+4) -> 42548 | P195: 54.16666667 | Q195: =VLOOKUP($P195,Conc_All!$R$5:$AG$245,3*($C$8-1)+2) -> 48559 | R195: =VLOOKUP($P195,Conc_All!$R$5:$AG$245,3*($C$8-1)+3) -> 56775 | S195: =VLOOKUP($P195,Conc_All!$R$5:$AG$245,3*($C$8-1)+4) -> 68716 | T195: =VLOOKUP($P195,Conc_All_SDEIS!$R$5:$AG$245,3*($C$8-1)+2) -> 62544 | U195: =VLOOKUP($P195,Conc_All_SDEIS!$R$5:$AG$245,3*($C$8-1)+3) -> 68478 | V195: =VLOOKUP($P195,Conc_All_SDEIS!$R$5:$AG$245,3*($C$8-1)+4) -> 78192
H196: 172 | I196: =VLOOKUP($H196,Conc_All!$A$5:$P$204,3*($C$8-1)+2) -> 26005 | J196: =VLOOKUP($H196,Conc_All!$A$5:$P$204,3*($C$8-1)+3) -> 30299 | K196: =VLOOKUP($H196,Conc_All!$A$5:$P$204,3*($C$8-1)+4) -> 37458 | L196: =VLOOKUP($H196,Conc_All_SDEIS!$A$5:$P$204,3*($C$8-1)+2) -> 32523 | M196: =VLOOKUP($H196,Conc_All_SDEIS!$A$5:$P$204,3*($C$8-1)+3) -> 36138 | N196: =VLOOKUP($H196,Conc_All_SDEIS!$A$5:$P$204,3*($C$8-1)+4) -> 42356 | P196: 54.25 | Q196: =VLOOKUP($P196,Conc_All!$R$5:$AG$245,3*($C$8-1)+2) -> 48544 | R196: =VLOOKUP($P196,Conc_All!$R$5:$AG$245,3*($C$8-1)+3) -> 56772 | S196: =VLOOKUP($P196,Conc_All!$R$5:$AG$245,3*($C$8-1)+4) -> 68691 | T196: =VLOOKUP($P196,Conc_All_SDEIS!$R$5:$AG$245,3*($C$8-1)+2) -> 62540 | U196: =VLOOKUP($P196,Conc_All_SDEIS!$R$5:$AG$245,3*($C$8-1)+3) -> 68476 | V196: =VLOOKUP($P196,Conc_All_SDEIS!$R$5:$AG$245,3*($C$8-1)+4) -> 78189
H197: 173 | I197: =VLOOKUP($H197,Conc_All!$A$5:$P$204,3*($C$8-1)+2) -> 25854 | J197: =VLOOKUP($H197,Conc_All!$A$5:$P$204,3*($C$8-1)+3) -> 30130 | K197: =VLOOKUP($H197,Conc_All!$A$5:$P$204,3*($C$8-1)+4) -> 37276 | L197: =VLOOKUP($H197,Conc_All_SDEIS!$A$5:$P$204,3*($C$8-1)+2) -> 32312 | M197: =VLOOKUP($H197,Conc_All_SDEIS!$A$5:$P$204,3*($C$8-1)+3) -> 35994 | N197: =VLOOKUP($H197,Conc_All_SDEIS!$A$5:$P$204,3*($C$8-1)+4) -> 42074 | P197: 54.33333333 | Q197: =VLOOKUP($P197,Conc_All!$R$5:$AG$245,3*($C$8-1)+2) -> 48320 | R197: =VLOOKUP($P197,Conc_All!$R$5:$AG$245,3*($C$8-1)+3) -> 56565 | S197: =VLOOKUP($P197,Conc_All!$R$5:$AG$245,3*($C$8-1)+4) -> 68440 | T197: =VLOOKUP($P197,Conc_All_SDEIS!$R$5:$AG$245,3*($C$8-1)+2) -> 62318 | U197: =VLOOKUP($P197,Conc_All_SDEIS!$R$5:$AG$245,3*($C$8-1)+3) -> 68291 | V197: =VLOOKUP($P197,Conc_All_SDEIS!$R$5:$AG$245,3*($C$8-1)+4) -> 77931
H198: 174 | I198: =VLOOKUP($H198,Conc_All!$A$5:$P$204,3*($C$8-1)+2) -> 25755 | J198: =VLOOKUP($H198,Conc_All!$A$5:$P$204,3*($C$8-1)+3) -> 29956 | K198: =VLOOKUP($H198,Conc_All!$A$5:$P$204,3*($C$8-1)+4) -> 37068 | L198: =VLOOKUP($H198,Conc_All_SDEIS!$A$5:$P$204,3*($C$8-1)+2) -> 32147 | M198: =VLOOKUP($H198,Conc_All_SDEIS!$A$5:$P$204,3*($C$8-1)+3) -> 35804 | N198: =VLOOKUP($H198,Conc_All_SDEIS!$A$5:$P$204,3*($C$8-1)+4) -> 41845 | P198: 54.41666667 | Q198: =VLOOKUP($P198,Conc_All!$R$5:$AG$245,3*($C$8-1)+2) -> 48289 | R198: =VLOOKUP($P198,Conc_All!$R$5:$AG$245,3*($C$8-1)+3) -> 56562 | S198: =VLOOKUP($P198,Conc_All!$R$5:$AG$245,3*($C$8-1)+4) -> 68455 | T198: =VLOOKUP($P198,Conc_All_SDEIS!$R$5:$AG$245,3*($C$8-1)+2) -> 62302 | U198: =VLOOKUP($P198,Conc_All_SDEIS!$R$5:$AG$245,3*($C$8-1)+3) -> 68299 | V198: =VLOOKUP($P198,Conc_All_SDEIS!$R$5:$AG$245,3*($C$8-1)+4) -> 77906
H199: 175 | I199: =VLOOKUP($H199,Conc_All!$A$5:$P$204,3*($C$8-1)+2) -> 25594 | J199: =VLOOKUP($H199,Conc_All!$A$5:$P$204,3*($C$8-1)+3) -> 29821 | K199: =VLOOKUP($H199,Conc_All!$A$5:$P$204,3*($C$8-1)+4) -> 36844 | L199: =VLOOKUP($H199,Conc_All_SDEIS!$A$5:$P$204,3*($C$8-1)+2) -> 31940 | M199: =VLOOKUP($H199,Conc_All_SDEIS!$A$5:$P$204,3*($C$8-1)+3) -> 35662 | N199: =VLOOKUP($H199,Conc_All_SDEIS!$A$5:$P$204,3*($C$8-1)+4) -> 41653 | P199: 54.5 | Q199: =VLOOKUP($P199,Conc_All!$R$5:$AG$245,3*($C$8-1)+2) -> 48265 | R199: =VLOOKUP($P199,Conc_All!$R$5:$AG$245,3*($C$8-1)+3) -> 56564 | S199: =VLOOKUP($P199,Conc_All!$R$5:$AG$245,3*($C$8-1)+4) -> 68468 | T199: =VLOOKUP($P199,Conc_All_SDEIS!$R$5:$AG$245,3*($C$8-1)+2) -> 62275 | U199: =VLOOKUP($P199,Conc_All_SDEIS!$R$5:$AG$245,3*($C$8-1)+3) -> 68295 | V199: =VLOOKUP($P199,Conc_All_SDEIS!$R$5:$AG$245,3*($C$8-1)+4) -> 77869
H200: 176 | I200: =VLOOKUP($H200,Conc_All!$A$5:$P$204,3*($C$8-1)+2) -> 25483 | J200: =VLOOKUP($H200,Conc_All!$A$5:$P$204,3*($C$8-1)+3) -> 29621 | K200: =VLOOKUP($H200,Conc_All!$A$5:$P$204,3*($C$8-1)+4) -> 36693 | L200: =VLOOKUP($H200,Conc_All_SDEIS!$A$5:$P$204,3*($C$8-1)+2) -> 31757 | M200: =VLOOKUP($H200,Conc_All_SDEIS!$A$5:$P$204,3*($C$8-1)+3) -> 35463 | N200: =VLOOKUP($H200,Conc_All_SDEIS!$A$5:$P$204,3*($C$8-1)+4) -> 41449 | P200: 54.58333333 | Q200: =VLOOKUP($P200,Conc_All!$R$5:$AG$245,3*($C$8-1)+2) -> 48255 | R200: =VLOOKUP($P200,Conc_All!$R$5:$AG$245,3*($C$8-1)+3) -> 56574 | S200: =VLOOKUP($P200,Conc_All!$R$5:$AG$245,3*($C$8-1)+4) -> 68492 | T200: =VLOOKUP($P200,Conc_All_SDEIS!$R$5:$AG$245,3*($C$8-1)+2) -> 62266 | U200: =VLOOKUP($P200,Conc_All_SDEIS!$R$5:$AG$245,3*($C$8-1)+3) -> 68298 | V200: =VLOOKUP($P200,Conc_All_SDEIS!$R$5:$AG$245,3*($C$8-1)+4) -> 77864
H201: 177 | I201: =VLOOKUP($H201,Conc_All!$A$5:$P$204,3*($C$8-1)+2) -> 25366 | J201: =VLOOKUP($H201,Conc_All!$A$5:$P$204,3*($C$8-1)+3) -> 29514 | K201: =VLOOKUP($H201,Conc_All!$A$5:$P$204,3*($C$8-1)+4) -> 36572 | L201: =VLOOKUP($H201,Conc_All_SDEIS!$A$5:$P$204,3*($C$8-1)+2) -> 31562 | M201: =VLOOKUP($H201,Conc_All_SDEIS!$A$5:$P$204,3*($C$8-1)+3) -> 35291 | N201: =VLOOKUP($H201,Conc_All_SDEIS!$A$5:$P$204,3*($C$8-1)+4) -> 41236 | P201: 54.66666667 | Q201: =VLOOKUP($P201,Conc_All!$R$5:$AG$245,3*($C$8-1)+2) -> 48226 | R201: =VLOOKUP($P201,Conc_All!$R$5:$AG$245,3*($C$8-1)+3) -> 56577 | S201: =VLOOKUP($P201,Conc_All!$R$5:$AG$245,3*($C$8-1)+4) -> 68497 | T201: =VLOOKUP($P201,Conc_All_SDEIS!$R$5:$AG$245,3*($C$8-1)+2) -> 62254 | U201: =VLOOKUP($P201,Conc_All_SDEIS!$R$5:$AG$245,3*($C$8-1)+3) -> 68277 | V201: =VLOOKUP($P201,Conc_All_SDEIS!$R$5:$AG$245,3*($C$8-1)+4) -> 77839
H202: 178 | I202: =VLOOKUP($H202,Conc_All!$A$5:$P$204,3*($C$8-1)+2) -> 25255 | J202: =VLOOKUP($H202,Conc_All!$A$5:$P$204,3*($C$8-1)+3) -> 29375 | K202: =VLOOKUP($H202,Conc_All!$A$5:$P$204,3*($C$8-1)+4) -> 36417 | L202: =VLOOKUP($H202,Conc_All_SDEIS!$A$5:$P$204,3*($C$8-1)+2) -> 31352 | M202: =VLOOKUP($H202,Conc_All_SDEIS!$A$5:$P$204,3*($C$8-1)+3) -> 35108 | N202: =VLOOKUP($H202,Conc_All_SDEIS!$A$5:$P$204,3*($C$8-1)+4) -> 40996 | P202: 54.75 | Q202: =VLOOKUP($P202,Conc_All!$R$5:$AG$245,3*($C$8-1)+2) -> 48163 | R202: =VLOOKUP($P202,Conc_All!$R$5:$AG$245,3*($C$8-1)+3) -> 56551 | S202: =VLOOKUP($P202,Conc_All!$R$5:$AG$245,3*($C$8-1)+4) -> 68447 | T202: =VLOOKUP($P202,Conc_All_SDEIS!$R$5:$AG$245,3*($C$8-1)+2) -> 62207 | U202: =VLOOKUP($P202,Conc_All_SDEIS!$R$5:$AG$245,3*($C$8-1)+3) -> 68202 | V202: =VLOOKUP($P202,Conc_All_SDEIS!$R$5:$AG$245,3*($C$8-1)+4) -> 77752
H203: 179 | I203: =VLOOKUP($H203,Conc_All!$A$5:$P$204,3*($C$8-1)+2) -> 25156 | J203: =VLOOKUP($H203,Conc_All!$A$5:$P$204,3*($C$8-1)+3) -> 29226 | K203: =VLOOKUP($H203,Conc_All!$A$5:$P$204,3*($C$8-1)+4) -> 36259 | L203: =VLOOKUP($H203,Conc_All_SDEIS!$A$5:$P$204,3*($C$8-1)+2) -> 31208 | M203: =VLOOKUP($H203,Conc_All_SDEIS!$A$5:$P$204,3*($C$8-1)+3) -> 34919 | N203: =VLOOKUP($H203,Conc_All_SDEIS!$A$5:$P$204,3*($C$8-1)+4) -> 40720 | P203: 54.83333333 | Q203: =VLOOKUP($P203,Conc_All!$R$5:$AG$245,3*($C$8-1)+2) -> 48091 | R203: =VLOOKUP($P203,Conc_All!$R$5:$AG$245,3*($C$8-1)+3) -> 56487 | S203: =VLOOKUP($P203,Conc_All!$R$5:$AG$245,3*($C$8-1)+4) -> 68343 | T203: =VLOOKUP($P203,Conc_All_SDEIS!$R$5:$AG$245,3*($C$8-1)+2) -> 62144 | U203: =VLOOKUP($P203,Conc_All_SDEIS!$R$5:$AG$245,3*($C$8-1)+3) -> 68131 | V203: =VLOOKUP($P203,Conc_All_SDEIS!$R$5:$AG$245,3*($C$8-1)+4) -> 77655
H204: 180 | I204: =VLOOKUP($H204,Conc_All!$A$5:$P$204,3*($C$8-1)+2) -> 24991 | J204: =VLOOKUP($H204,Conc_All!$A$5:$P$204,3*($C$8-1)+3) -> 29078 | K204: =VLOOKUP($H204,Conc_All!$A$5:$P$204,3*($C$8-1)+4) -> 36054 | L204: =VLOOKUP($H204,Conc_All_SDEIS!$A$5:$P$204,3*($C$8-1)+2) -> 31048 | M204: =VLOOKUP($H204,Conc_All_SDEIS!$A$5:$P$204,3*($C$8-1)+3) -> 34788 | N204: =VLOOKUP($H204,Conc_All_SDEIS!$A$5:$P$204,3*($C$8-1)+4) -> 40482 | P204: 54.91666667 | Q204: =VLOOKUP($P204,Conc_All!$R$5:$AG$245,3*($C$8-1)+2) -> 48089 | R204: =VLOOKUP($P204,Conc_All!$R$5:$AG$245,3*($C$8-1)+3) -> 56489 | S204: =VLOOKUP($P204,Conc_All!$R$5:$AG$245,3*($C$8-1)+4) -> 68320 | T204: =VLOOKUP($P204,Conc_All_SDEIS!$R$5:$AG$245,3*($C$8-1)+2) -> 62127 | U204: =VLOOKUP($P204,Conc_All_SDEIS!$R$5:$AG$245,3*($C$8-1)+3) -> 68124 | V204: =VLOOKUP($P204,Conc_All_SDEIS!$R$5:$AG$245,3*($C$8-1)+4) -> 77650
H205: 181 | I205: =VLOOKUP($H205,Conc_All!$A$5:$P$204,3*($C$8-1)+2) -> 24827 | J205: =VLOOKUP($H205,Conc_All!$A$5:$P$204,3*($C$8-1)+3) -> 28951 | K205: =VLOOKUP($H205,Conc_All!$A$5:$P$204,3*($C$8-1)+4) -> 35890 | L205: =VLOOKUP($H205,Conc_All_SDEIS!$A$5:$P$204,3*($C$8-1)+2) -> 30910 | M205: =VLOOKUP($H205,Conc_All_SDEIS!$A$5:$P$204,3*($C$8-1)+3) -> 34512 | N205: =VLOOKUP($H205,Conc_All_SDEIS!$A$5:$P$204,3*($C$8-1)+4) -> 40302 | P205: 55 | Q205: =VLOOKUP($P205,Conc_All!$R$5:$AG$245,3*($C$8-1)+2) -> 48086 | R205: =VLOOKUP($P205,Conc_All!$R$5:$AG$245,3*($C$8-1)+3) -> 56486 | S205: =VLOOKUP($P205,Conc_All!$R$5:$AG$245,3*($C$8-1)+4) -> 68295 | T205: =VLOOKUP($P205,Conc_All_SDEIS!$R$5:$AG$245,3*($C$8-1)+2) -> 62124 | U205: =VLOOKUP($P205,Conc_All_SDEIS!$R$5:$AG$245,3*($C$8-1)+3) -> 68120 | V205: =VLOOKUP($P205,Conc_All_SDEIS!$R$5:$AG$245,3*($C$8-1)+4) -> 77646
H206: 182 | I206: =VLOOKUP($H206,Conc_All!$A$5:$P$204,3*($C$8-1)+2) -> 24736 | J206: =VLOOKUP($H206,Conc_All!$A$5:$P$204,3*($C$8-1)+3) -> 28806 | K206: =VLOOKUP($H206,Conc_All!$A$5:$P$204,3*($C$8-1)+4) -> 35735 | L206: =VLOOKUP($H206,Conc_All_SDEIS!$A$5:$P$204,3*($C$8-1)+2) -> 30738 | M206: =VLOOKUP($H206,Conc_All_SDEIS!$A$5:$P$204,3*($C$8-1)+3) -> 34350 | N206: =VLOOKUP($H206,Conc_All_SDEIS!$A$5:$P$204,3*($C$8-1)+4) -> 40129 | P206: 55.08333333 | Q206: =VLOOKUP($P206,Conc_All!$R$5:$AG$245,3*($C$8-1)+2) -> 48084 | R206: =VLOOKUP($P206,Conc_All!$R$5:$AG$245,3*($C$8-1)+3) -> 56486 | S206: =VLOOKUP($P206,Conc_All!$R$5:$AG$245,3*($C$8-1)+4) -> 68290 | T206: =VLOOKUP($P206,Conc_All_SDEIS!$R$5:$AG$245,3*($C$8-1)+2) -> 62120 | U206: =VLOOKUP($P206,Conc_All_SDEIS!$R$5:$AG$245,3*($C$8-1)+3) -> 68117 | V206: =VLOOKUP($P206,Conc_All_SDEIS!$R$5:$AG$245,3*($C$8-1)+4) -> 77641
H207: 183 | I207: =VLOOKUP($H207,Conc_All!$A$5:$P$204,3*($C$8-1)+2) -> 24619 | J207: =VLOOKUP($H207,Conc_All!$A$5:$P$204,3*($C$8-1)+3) -> 28662 | K207: =VLOOKUP($H207,Conc_All!$A$5:$P$204,3*($C$8-1)+4) -> 35537 | L207: =VLOOKUP($H207,Conc_All_SDEIS!$A$5:$P$204,3*($C$8-1)+2) -> 30586 | M207: =VLOOKUP($H207,Conc_All_SDEIS!$A$5:$P$204,3*($C$8-1)+3) -> 34218 | N207: =VLOOKUP($H207,Conc_All_SDEIS!$A$5:$P$204,3*($C$8-1)+4) -> 39975 | P207: 55.16666667 | Q207: =VLOOKUP($P207,Conc_All!$R$5:$AG$245,3*($C$8-1)+2) -> 48081 | R207: =VLOOKUP($P207,Conc_All!$R$5:$AG$245,3*($C$8-1)+3) -> 56486 | S207: =VLOOKUP($P207,Conc_All!$R$5:$AG$245,3*($C$8-1)+4) -> 68289 | T207: =VLOOKUP($P207,Conc_All_SDEIS!$R$5:$AG$245,3*($C$8-1)+2) -> 62117 | U207: =VLOOKUP($P207,Conc_All_SDEIS!$R$5:$AG$245,3*($C$8-1)+3) -> 68113 | V207: =VLOOKUP($P207,Conc_All_SDEIS!$R$5:$AG$245,3*($C$8-1)+4) -> 77636
H208: 184 | I208: =VLOOKUP($H208,Conc_All!$A$5:$P$204,3*($C$8-1)+2) -> 24465 | J208: =VLOOKUP($H208,Conc_All!$A$5:$P$204,3*($C$8-1)+3) -> 28541 | K208: =VLOOKUP($H208,Conc_All!$A$5:$P$204,3*($C$8-1)+4) -> 35355 | L208: =VLOOKUP($H208,Conc_All_SDEIS!$A$5:$P$204,3*($C$8-1)+2) -> 30398 | M208: =VLOOKUP($H208,Conc_All_SDEIS!$A$5:$P$204,3*($C$8-1)+3) -> 34067 | N208: =VLOOKUP($H208,Conc_All_SDEIS!$A$5:$P$204,3*($C$8-1)+4) -> 39722 | P208: 55.25 | Q208: =VLOOKUP($P208,Conc_All!$R$5:$AG$245,3*($C$8-1)+2) -> 48078 | R208: =VLOOKUP($P208,Conc_All!$R$5:$AG$245,3*($C$8-1)+3) -> 56483 | S208: =VLOOKUP($P208,Conc_All!$R$5:$AG$245,3*($C$8-1)+4) -> 68284 | T208: =VLOOKUP($P208,Conc_All_SDEIS!$R$5:$AG$245,3*($C$8-1)+2) -> 62113 | U208: =VLOOKUP($P208,Conc_All_SDEIS!$R$5:$AG$245,3*($C$8-1)+3) -> 68110 | V208: =VLOOKUP($P208,Conc_All_SDEIS!$R$5:$AG$245,3*($C$8-1)+4) -> 77631
... 57 more rows

Sheet Conc_All
B1: Values shown for constituent selected on PlotControl tab | S1: Values shown for constituent selected on PlotControl tab
B2: =PlotControl!$A$15 -> East Pit Lower Porewater | E2: =PlotControl!$A$16 -> East Pit Upper/Wetland Porewater | H2: =PlotControl!$A$17 -> West Pit | K2: =PlotControl!$A$18 -> Long-term WWTF Effluent | N2: =PlotControl!$A$19 -> Category 1 Stockpile Drainage | S2: =PlotControl!$A$15 -> East Pit Lower Porewater | V2: =PlotControl!$A$16 -> East Pit Upper/Wetland Porewater | Y2: =PlotControl!$A$17 -> West Pit | AB2: =PlotControl!$A$18 -> Long-term WWTF Effluent | AE2: =PlotControl!$A$19 -> Category 1 Stockpile Drainage
B3: Annual Project Results | E3: Annual Project Results | H3: Annual Project Results | K3: Annual Project Results | N3: Annual Project Results | S3: Monthly Project Results | V3: Monthly Project Results | Y3: Monthly Project Results | AB3: Monthly Project Results | AE3: Monthly Project Results
A4: Time | B4: P10 | C4: P50 | D4: P90 | E4: P10 | F4: P50 | G4: P90 | H4: P10 | I4: P50 | J4: P90 | K4: P10 | L4: P50 | M4: P90 | N4: P10 | O4: P50 | P4: P90 | R4: Time | S4: P10 | T4: P50 | U4: P90 | V4: P10 | W4: P50 | X4: P90 | Y4: P10 | Z4: P50 | AA4: P90 | AB4: P10 | AC4: P50 | AD4: P90 | AE4: P10 | AF4: P50 | AG4: P90
A5: 1 | B5: =IF(PlotControl!$B$4 = "Annual Max",MAX(OFFSET(EP_Pore_Conc!$C$10,12*($A5-1),4*(PlotControl!$C$6-1),12,1)),AVERAGE(OFFSET(EP_Pore_Conc!$C$10,12*($A5-1),4*(PlotControl!$C$6-1),12,1))) -> 0 | C5: =IF(PlotControl!$B$4 = "Annual Max",MAX(OFFSET(EP_Pore_Conc!$D$10,12*($A5-1),4*(PlotControl!$C$6-1),12,1)),AVERAGE(OFFSET(EP_Pore_Conc!$D$10,12*($A5-1),4*(PlotControl!$C$6-1),12,1))) -> 0 | D5: =IF(PlotControl!$B$4 = "Annual Max",MAX(OFFSET(EP_Pore_Conc!$E$10,12*($A5-1),4*(PlotControl!$C$6-1),12,1)),AVERAGE(OFFSET(EP_Pore_Conc!$E$10,12*($A5-1),4*(PlotControl!$C$6-1),12,1))) -> 0 | E5: =IF(PlotControl!$B$4 = "Annual Max",MAX(OFFSET(EP_Wetland_Conc!$C$10,12*($A5-1),4*(PlotControl!$C$6-1),12,1)),AVERAGE(OFFSET(EP_Wetland_Conc!$C$10,12*($A5-1),4*(PlotControl!$C$6-1),12,1))) -> 0 | F5: =IF(PlotControl!$B$4 = "Annual Max",MAX(OFFSET(EP_Wetland_Conc!$D$10,12*($A5-1),4*(PlotControl!$C$6-1),12,1)),AVERAGE(OFFSET(EP_Wetland_Conc!$D$10,12*($A5-1),4*(PlotControl!$C$6-1),12,1))) -> 0 | G5: =IF(PlotControl!$B$4 = "Annual Max",MAX(OFFSET(EP_Wetland_Conc!$E$10,12*($A5-1),4*(PlotControl!$C$6-1),12,1)),AVERAGE(OFFSET(EP_Wetland_Conc!$E$10,12*($A5-1),4*(PlotControl!$C$6-1),12,1))) -> 0 | H5: =IF(PlotControl!$B$4 = "Annual Max",MAX(OFFSET(WP_Conc!$C$10,12*($A5-1),4*(PlotControl!$C$6-1),12,1)),AVERAGE(OFFSET(WP_Conc!$C$10,12*($A5-1),4*(PlotControl!$C$6-1),12,1))) -> 1913000 | I5: =IF(PlotControl!$B$4 = "Annual Max",MAX(OFFSET(WP_Conc!$D$10,12*($A5-1),4*(PlotControl!$C$6-1),12,1)),AVERAGE(OFFSET(WP_Conc!$D$10,12*($A5-1),4*(PlotControl!$C$6-1),12,1))) -> 2489400 | J5: =IF(PlotControl!$B$4 = "Annual Max",MAX(OFFSET(WP_Conc!$E$10,12*($A5-1),4*(PlotControl!$C$6-1),12,1)),AVERAGE(OFFSET(WP_Conc!$E$10,12*($A5-1),4*(PlotControl!$C$6-1),12,1))) -> 3142100 | K5: =IF(PlotControl!$B$4 = "Annual Max",MAX(OFFSET(WWTF_Outflow_Conc!$C$10,12*($A5-1),4*(PlotControl!$C$6-1),12,1)),AVERAGE(OFFSET(WWTF_Outflow_Conc!$C$10,12*($A5-1),4*(PlotControl!$C$6-1),12,1))) -> 0 | L5: =IF(PlotControl!$B$4 = "Annual Max",MAX(OFFSET(WWTF_Outflow_Conc!$D$10,12*($A5-1),4*(PlotControl!$C$6-1),12,1)),AVERAGE(OFFSET(WWTF_Outflow_Conc!$D$10,12*($A5-1),4*(PlotControl!$C$6-1),12,1))) -> 0 | M5: =IF(PlotControl!$B$4 = "Annual Max",MAX(OFFSET(WWTF_Outflow_Conc!$E$10,12*($A5-1),4*(PlotControl!$C$6-1),12,1)),AVERAGE(OFFSET(WWTF_Outflow_Conc!$E$10,12*($A5-1),4*(PlotControl!$C$6-1),12,1))) -> 0 | N5: =IF(PlotControl!$B$4 = "Annual Max",MAX(OFFSET(Cat1SP_Conc!$C$10,12*($A5-1),4*(PlotControl!$C$6-1),12,1)),AVERAGE(OFFSET(Cat1SP_Conc!$C$10,12*($A5-1),4*(PlotControl!$C$6-1),12,1))) -> 128150 | O5: =IF(PlotControl!$B$4 = "Annual Max",MAX(OFFSET(Cat1SP_Conc!$D$10,12*($A5-1),4*(PlotControl!$C$6-1),12,1)),AVERAGE(OFFSET(Cat1SP_Conc!$D$10,12*($A5-1),4*(PlotControl!$C$6-1),12,1))) -> 359870 | P5: =IF(PlotControl!$B$4 = "Annual Max",MAX(OFFSET(Cat1SP_Conc!$E$10,12*($A5-1),4*(PlotControl!$C$6-1),12,1)),AVERAGE(OFFSET(Cat1SP_Conc!$E$10,12*($A5-1),4*(PlotControl!$C$6-1),12,1))) -> 902250 | R5: =PlotControl!$B$10 -> 40 | S5: =OFFSET(EP_Pore_Conc!$C$10,ROUND(12*$R5,0),4*(PlotControl!$C$6-1),1,1) -> 255070 | T5: =OFFSET(EP_Pore_Conc!$D$10,ROUND(12*$R5,0),4*(PlotControl!$C$6-1),1,1) -> 256880 | U5: =OFFSET(EP_Pore_Conc!$E$10,ROUND(12*$R5,0),4*(PlotControl!$C$6-1),1,1) -> 263680 | V5: =OFFSET(EP_Wetland_Conc!$C$10,ROUND(12*$R5,0),4*(PlotControl!$C$6-1),1,1) -> 12547 | W5: =OFFSET(EP_Wetland_Conc!$D$10,ROUND(12*$R5,0),4*(PlotControl!$C$6-1),1,1) -> 20586 | X5: =OFFSET(EP_Wetland_Conc!$E$10,ROUND(12*$R5,0),4*(PlotControl!$C$6-1),1,1) -> 53209 | Y5: =OFFSET(WP_Conc!$C$10,ROUND(12*$R5,0),4*(PlotControl!$C$6-1),1,1) -> 59295 | Z5: =OFFSET(WP_Conc!$D$10,ROUND(12*$R5,0),4*(PlotControl!$C$6-1),1,1) -> 67601 | AA5: =OFFSET(WP_Conc!$E$10,ROUND(12*$R5,0),4*(PlotControl!$C$6-1),1,1) -> 79330 | AB5: =OFFSET(WWTF_Outflow_Conc!$C$10,ROUND(12*$R5,0),4*(PlotControl!$C$6-1),1,1) -> 0 | AC5: =OFFSET(WWTF_Outflow_Conc!$D$10,ROUND(12*$R5,0),4*(PlotControl!$C$6-1),1,1) -> 0 | AD5: =OFFSET(WWTF_Outflow_Conc!$E$10,ROUND(12*$R5,0),4*(PlotControl!$C$6-1),1,1) -> 0 | AE5: =OFFSET(Cat1SP_Conc!$C$10,ROUND(12*$R5,0),4*(PlotControl!$C$6-1),1,1) -> 2250900 | AF5: =OFFSET(Cat1SP_Conc!$D$10,ROUND(12*$R5,0),4*(PlotControl!$C$6-1),1,1) -> 2763300 | AG5: =OFFSET(Cat1SP_Conc!$E$10,ROUND(12*$R5,0),4*(PlotControl!$C$6-1),1,1) -> 4005400
A6: 2 | B6: =IF(PlotControl!$B$4 = "Annual Max",MAX(OFFSET(EP_Pore_Conc!$C$10,12*($A6-1),4*(PlotControl!$C$6-1),12,1)),AVERAGE(OFFSET(EP_Pore_Conc!$C$10,12*($A6-1),4*(PlotControl!$C$6-1),12,1))) -> 0 | C6: =IF(PlotControl!$B$4 = "Annual Max",MAX(OFFSET(EP_Pore_Conc!$D$10,12*($A6-1),4*(PlotControl!$C$6-1),12,1)),AVERAGE(OFFSET(EP_Pore_Conc!$D$10,12*($A6-1),4*(PlotControl!$C$6-1),12,1))) -> 0 | D6: =IF(PlotControl!$B$4 = "Annual Max",MAX(OFFSET(EP_Pore_Conc!$E$10,12*($A6-1),4*(PlotControl!$C$6-1),12,1)),AVERAGE(OFFSET(EP_Pore_Conc!$E$10,12*($A6-1),4*(PlotControl!$C$6-1),12,1))) -> 0 | E6: =IF(PlotControl!$B$4 = "Annual Max",MAX(OFFSET(EP_Wetland_Conc!$C$10,12*($A6-1),4*(PlotControl!$C$6-1),12,1)),AVERAGE(OFFSET(EP_Wetland_Conc!$C$10,12*($A6-1),4*(PlotControl!$C$6-1),12,1))) -> 0 | F6: =IF(PlotControl!$B$4 = "Annual Max",MAX(OFFSET(EP_Wetland_Conc!$D$10,12*($A6-1),4*(PlotControl!$C$6-1),12,1)),AVERAGE(OFFSET(EP_Wetland_Conc!$D$10,12*($A6-1),4*(PlotControl!$C$6-1),12,1))) -> 0 | G6: =IF(PlotControl!$B$4 = "Annual Max",MAX(OFFSET(EP_Wetland_Conc!$E$10,12*($A6-1),4*(PlotControl!$C$6-1),12,1)),AVERAGE(OFFSET(EP_Wetland_Conc!$E$10,12*($A6-1),4*(PlotControl!$C$6-1),12,1))) -> 0 | H6: =IF(PlotControl!$B$4 = "Annual Max",MAX(OFFSET(WP_Conc!$C$10,12*($A6-1),4*(PlotControl!$C$6-1),12,1)),AVERAGE(OFFSET(WP_Conc!$C$10,12*($A6-1),4*(PlotControl!$C$6-1),12,1))) -> 2260300 | I6: =IF(PlotControl!$B$4 = "Annual Max",MAX(OFFSET(WP_Conc!$D$10,12*($A6-1),4*(PlotControl!$C$6-1),12,1)),AVERAGE(OFFSET(WP_Conc!$D$10,12*($A6-1),4*(PlotControl!$C$6-1),12,1))) -> 2711700 | J6: =IF(PlotControl!$B$4 = "Annual Max",MAX(OFFSET(WP_Conc!$E$10,12*($A6-1),4*(PlotControl!$C$6-1),12,1)),AVERAGE(OFFSET(WP_Conc!$E$10,12*($A6-1),4*(PlotControl!$C$6-1),12,1))) -> 3470500 | K6: =IF(PlotControl!$B$4 = "Annual Max",MAX(OFFSET(WWTF_Outflow_Conc!$C$10,12*($A6-1),4*(PlotControl!$C$6-1),12,1)),AVERAGE(OFFSET(WWTF_Outflow_Conc!$C$10,12*($A6-1),4*(PlotControl!$C$6-1),12,1))) -> 0 | L6: =IF(PlotControl!$B$4 = "Annual Max",MAX(OFFSET(WWTF_Outflow_Conc!$D$10,12*($A6-1),4*(PlotControl!$C$6-1),12,1)),AVERAGE(OFFSET(WWTF_Outflow_Conc!$D$10,12*($A6-1),4*(PlotControl!$C$6-1),12,1))) -> 0 | M6: =IF(PlotControl!$B$4 = "Annual Max",MAX(OFFSET(WWTF_Outflow_Conc!$E$10,12*($A6-1),4*(PlotControl!$C$6-1),12,1)),AVERAGE(OFFSET(WWTF_Outflow_Conc!$E$10,12*($A6-1),4*(PlotControl!$C$6-1),12,1))) -> 0 | N6: =IF(PlotControl!$B$4 = "Annual Max",MAX(OFFSET(Cat1SP_Conc!$C$10,12*($A6-1),4*(PlotControl!$C$6-1),12,1)),AVERAGE(OFFSET(Cat1SP_Conc!$C$10,12*($A6-1),4*(PlotControl!$C$6-1),12,1))) -> 364120 | O6: =IF(PlotControl!$B$4 = "Annual Max",MAX(OFFSET(Cat1SP_Conc!$D$10,12*($A6-1),4*(PlotControl!$C$6-1),12,1)),AVERAGE(OFFSET(Cat1SP_Conc!$D$10,12*($A6-1),4*(PlotControl!$C$6-1),12,1))) -> 952760 | P6: =IF(PlotControl!$B$4 = "Annual Max",MAX(OFFSET(Cat1SP_Conc!$E$10,12*($A6-1),4*(PlotControl!$C$6-1),12,1)),AVERAGE(OFFSET(Cat1SP_Conc!$E$10,12*($A6-1),4*(PlotControl!$C$6-1),12,1))) -> 2169700 | R6: =R5+1/12 -> 40.08333333 | S6: =OFFSET(EP_Pore_Conc!$C$10,ROUND(12*$R6,0),4*(PlotControl!$C$6-1),1,1) -> 255050 | T6: =OFFSET(EP_Pore_Conc!$D$10,ROUND(12*$R6,0),4*(PlotControl!$C$6-1),1,1) -> 256880 | U6: =OFFSET(EP_Pore_Conc!$E$10,ROUND(12*$R6,0),4*(PlotControl!$C$6-1),1,1) -> 263290 | V6: =OFFSET(EP_Wetland_Conc!$C$10,ROUND(12*$R6,0),4*(PlotControl!$C$6-1),1,1) -> 12635 | W6: =OFFSET(EP_Wetland_Conc!$D$10,ROUND(12*$R6,0),4*(PlotControl!$C$6-1),1,1) -> 20642 | X6: =OFFSET(EP_Wetland_Conc!$E$10,ROUND(12*$R6,0),4*(PlotControl!$C$6-1),1,1) -> 53805 | Y6: =OFFSET(WP_Conc!$C$10,ROUND(12*$R6,0),4*(PlotControl!$C$6-1),1,1) -> 59254 | Z6: =OFFSET(WP_Conc!$D$10,ROUND(12*$R6,0),4*(PlotControl!$C$6-1),1,1) -> 67576 | AA6: =OFFSET(WP_Conc!$E$10,ROUND(12*$R6,0),4*(PlotControl!$C$6-1),1,1) -> 79308 | AB6: =OFFSET(WWTF_Outflow_Conc!$C$10,ROUND(12*$R6,0),4*(PlotControl!$C$6-1),1,1) -> 0 | AC6: =OFFSET(WWTF_Outflow_Conc!$D$10,ROUND(12*$R6,0),4*(PlotControl!$C$6-1),1,1) -> 0 | AD6: =OFFSET(WWTF_Outflow_Conc!$E$10,ROUND(12*$R6,0),4*(PlotControl!$C$6-1),1,1) -> 0 | AE6: =OFFSET(Cat1SP_Conc!$C$10,ROUND(12*$R6,0),4*(PlotControl!$C$6-1),1,1) -> 2250900 | AF6: =OFFSET(Cat1SP_Conc!$D$10,ROUND(12*$R6,0),4*(PlotControl!$C$6-1),1,1) -> 2763300 | AG6: =OFFSET(Cat1SP_Conc!$E$10,ROUND(12*$R6,0),4*(PlotControl!$C$6-1),1,1) -> 4005400
A7: 3 | B7: =IF(PlotControl!$B$4 = "Annual Max",MAX(OFFSET(EP_Pore_Conc!$C$10,12*($A7-1),4*(PlotControl!$C$6-1),12,1)),AVERAGE(OFFSET(EP_Pore_Conc!$C$10,12*($A7-1),4*(PlotControl!$C$6-1),12,1))) -> 0 | C7: =IF(PlotControl!$B$4 = "Annual Max",MAX(OFFSET(EP_Pore_Conc!$D$10,12*($A7-1),4*(PlotControl!$C$6-1),12,1)),AVERAGE(OFFSET(EP_Pore_Conc!$D$10,12*($A7-1),4*(PlotControl!$C$6-1),12,1))) -> 0 | D7: =IF(PlotControl!$B$4 = "Annual Max",MAX(OFFSET(EP_Pore_Conc!$E$10,12*($A7-1),4*(PlotControl!$C$6-1),12,1)),AVERAGE(OFFSET(EP_Pore_Conc!$E$10,12*($A7-1),4*(PlotControl!$C$6-1),12,1))) -> 0 | E7: =IF(PlotControl!$B$4 = "Annual Max",MAX(OFFSET(EP_Wetland_Conc!$C$10,12*($A7-1),4*(PlotControl!$C$6-1),12,1)),AVERAGE(OFFSET(EP_Wetland_Conc!$C$10,12*($A7-1),4*(PlotControl!$C$6-1),12,1))) -> 0 | F7: =IF(PlotControl!$B$4 = "Annual Max",MAX(OFFSET(EP_Wetland_Conc!$D$10,12*($A7-1),4*(PlotControl!$C$6-1),12,1)),AVERAGE(OFFSET(EP_Wetland_Conc!$D$10,12*($A7-1),4*(PlotControl!$C$6-1),12,1))) -> 0 | G7: =IF(PlotControl!$B$4 = "Annual Max",MAX(OFFSET(EP_Wetland_Conc!$E$10,12*($A7-1),4*(PlotControl!$C$6-1),12,1)),AVERAGE(OFFSET(EP_Wetland_Conc!$E$10,12*($A7-1),4*(PlotControl!$C$6-1),12,1))) -> 0 | H7: =IF(PlotControl!$B$4 = "Annual Max",MAX(OFFSET(WP_Conc!$C$10,12*($A7-1),4*(PlotControl!$C$6-1),12,1)),AVERAGE(OFFSET(WP_Conc!$C$10,12*($A7-1),4*(PlotControl!$C$6-1),12,1))) -> 416030 | I7: =IF(PlotControl!$B$4 = "Annual Max",MAX(OFFSET(WP_Conc!$D$10,12*($A7-1),4*(PlotControl!$C$6-1),12,1)),AVERAGE(OFFSET(WP_Conc!$D$10,12*($A7-1),4*(PlotControl!$C$6-1),12,1))) -> 668820 | J7: =IF(PlotControl!$B$4 = "Annual Max",MAX(OFFSET(WP_Conc!$E$10,12*($A7-1),4*(PlotControl!$C$6-1),12,1)),AVERAGE(OFFSET(WP_Conc!$E$10,12*($A7-1),4*(PlotControl!$C$6-1),12,1))) -> 1004900 | K7: =IF(PlotControl!$B$4 = "Annual Max",MAX(OFFSET(WWTF_Outflow_Conc!$C$10,12*($A7-1),4*(PlotControl!$C$6-1),12,1)),AVERAGE(OFFSET(WWTF_Outflow_Conc!$C$10,12*($A7-1),4*(PlotControl!$C$6-1),12,1))) -> 0 | L7: =IF(PlotControl!$B$4 = "Annual Max",MAX(OFFSET(WWTF_Outflow_Conc!$D$10,12*($A7-1),4*(PlotControl!$C$6-1),12,1)),AVERAGE(OFFSET(WWTF_Outflow_Conc!$D$10,12*($A7-1),4*(PlotControl!$C$6-1),12,1))) -> 0 | M7: =IF(PlotControl!$B$4 = "Annual Max",MAX(OFFSET(WWTF_Outflow_Conc!$E$10,12*($A7-1),4*(PlotControl!$C$6-1),12,1)),AVERAGE(OFFSET(WWTF_Outflow_Conc!$E$10,12*($A7-1),4*(PlotControl!$C$6-1),12,1))) -> 0 | N7: =IF(PlotControl!$B$4 = "Annual Max",MAX(OFFSET(Cat1SP_Conc!$C$10,12*($A7-1),4*(PlotControl!$C$6-1),12,1)),AVERAGE(OFFSET(Cat1SP_Conc!$C$10,12*($A7-1),4*(PlotControl!$C$6-1),12,1))) -> 602860 | O7: =IF(PlotControl!$B$4 = "Annual Max",MAX(OFFSET(Cat1SP_Conc!$D$10,12*($A7-1),4*(PlotControl!$C$6-1),12,1)),AVERAGE(OFFSET(Cat1SP_Conc!$D$10,12*($A7-1),4*(PlotControl!$C$6-1),12,1))) -> 1718800 | P7: =IF(PlotControl!$B$4 = "Annual Max",MAX(OFFSET(Cat1SP_Conc!$E$10,12*($A7-1),4*(PlotControl!$C$6-1),12,1)),AVERAGE(OFFSET(Cat1SP_Conc!$E$10,12*($A7-1),4*(PlotControl!$C$6-1),12,1))) -> 2839200 | R7: =R6+1/12 -> 40.16666667 | S7: =OFFSET(EP_Pore_Conc!$C$10,ROUND(12*$R7,0),4*(PlotControl!$C$6-1),1,1) -> 255070 | T7: =OFFSET(EP_Pore_Conc!$D$10,ROUND(12*$R7,0),4*(PlotControl!$C$6-1),1,1) -> 256870 | U7: =OFFSET(EP_Pore_Conc!$E$10,ROUND(12*$R7,0),4*(PlotControl!$C$6-1),1,1) -> 263290 | V7: =OFFSET(EP_Wetland_Conc!$C$10,ROUND(12*$R7,0),4*(PlotControl!$C$6-1),1,1) -> 12736 | W7: =OFFSET(EP_Wetland_Conc!$D$10,ROUND(12*$R7,0),4*(PlotControl!$C$6-1),1,1) -> 20705 | X7: =OFFSET(EP_Wetland_Conc!$E$10,ROUND(12*$R7,0),4*(PlotControl!$C$6-1),1,1) -> 54154 | Y7: =OFFSET(WP_Conc!$C$10,ROUND(12*$R7,0),4*(PlotControl!$C$6-1),1,1) -> 59213 | Z7: =OFFSET(WP_Conc!$D$10,ROUND(12*$R7,0),4*(PlotControl!$C$6-1),1,1) -> 67545 | AA7: =OFFSET(WP_Conc!$E$10,ROUND(12*$R7,0),4*(PlotControl!$C$6-1),1,1) -> 79291 | AB7: =OFFSET(WWTF_Outflow_Conc!$C$10,ROUND(12*$R7,0),4*(PlotControl!$C$6-1),1,1) -> 0 | AC7: =OFFSET(WWTF_Outflow_Conc!$D$10,ROUND(12*$R7,0),4*(PlotControl!$C$6-1),1,1) -> 0 | AD7: =OFFSET(WWTF_Outflow_Conc!$E$10,ROUND(12*$R7,0),4*(PlotControl!$C$6-1),1,1) -> 0 | AE7: =OFFSET(Cat1SP_Conc!$C$10,ROUND(12*$R7,0),4*(PlotControl!$C$6-1),1,1) -> 2250900 | AF7: =OFFSET(Cat1SP_Conc!$D$10,ROUND(12*$R7,0),4*(PlotControl!$C$6-1),1,1) -> 2763300 | AG7: =OFFSET(Cat1SP_Conc!$E$10,ROUND(12*$R7,0),4*(PlotControl!$C$6-1),1,1) -> 4005400
A8: 4 | B8: =IF(PlotControl!$B$4 = "Annual Max",MAX(OFFSET(EP_Pore_Conc!$C$10,12*($A8-1),4*(PlotControl!$C$6-1),12,1)),AVERAGE(OFFSET(EP_Pore_Conc!$C$10,12*($A8-1),4*(PlotControl!$C$6-1),12,1))) -> 0 | C8: =IF(PlotControl!$B$4 = "Annual Max",MAX(OFFSET(EP_Pore_Conc!$D$10,12*($A8-1),4*(PlotControl!$C$6-1),12,1)),AVERAGE(OFFSET(EP_Pore_Conc!$D$10,12*($A8-1),4*(PlotControl!$C$6-1),12,1))) -> 0 | D8: =IF(PlotControl!$B$4 = "Annual Max",MAX(OFFSET(EP_Pore_Conc!$E$10,12*($A8-1),4*(PlotControl!$C$6-1),12,1)),AVERAGE(OFFSET(EP_Pore_Conc!$E$10,12*($A8-1),4*(PlotControl!$C$6-1),12,1))) -> 0 | E8: =IF(PlotControl!$B$4 = "Annual Max",MAX(OFFSET(EP_Wetland_Conc!$C$10,12*($A8-1),4*(PlotControl!$C$6-1),12,1)),AVERAGE(OFFSET(EP_Wetland_Conc!$C$10,12*($A8-1),4*(PlotControl!$C$6-1),12,1))) -> 0 | F8: =IF(PlotControl!$B$4 = "Annual Max",MAX(OFFSET(EP_Wetland_Conc!$D$10,12*($A8-1),4*(PlotControl!$C$6-1),12,1)),AVERAGE(OFFSET(EP_Wetland_Conc!$D$10,12*($A8-1),4*(PlotControl!$C$6-1),12,1))) -> 0 | G8: =IF(PlotControl!$B$4 = "Annual Max",MAX(OFFSET(EP_Wetland_Conc!$E$10,12*($A8-1),4*(PlotControl!$C$6-1),12,1)),AVERAGE(OFFSET(EP_Wetland_Conc!$E$10,12*($A8-1),4*(PlotControl!$C$6-1),12,1))) -> 0 | H8: =IF(PlotControl!$B$4 = "Annual Max",MAX(OFFSET(WP_Conc!$C$10,12*($A8-1),4*(PlotControl!$C$6-1),12,1)),AVERAGE(OFFSET(WP_Conc!$C$10,12*($A8-1),4*(PlotControl!$C$6-1),12,1))) -> 532010 | I8: =IF(PlotControl!$B$4 = "Annual Max",MAX(OFFSET(WP_Conc!$D$10,12*($A8-1),4*(PlotControl!$C$6-1),12,1)),AVERAGE(OFFSET(WP_Conc!$D$10,12*($A8-1),4*(PlotControl!$C$6-1),12,1))) -> 866670 | J8: =IF(PlotControl!$B$4 = "Annual Max",MAX(OFFSET(WP_Conc!$E$10,12*($A8-1),4*(PlotControl!$C$6-1),12,1)),AVERAGE(OFFSET(WP_Conc!$E$10,12*($A8-1),4*(PlotControl!$C$6-1),12,1))) -> 1277600 | K8: =IF(PlotControl!$B$4 = "Annual Max",MAX(OFFSET(WWTF_Outflow_Conc!$C$10,12*($A8-1),4*(PlotControl!$C$6-1),12,1)),AVERAGE(OFFSET(WWTF_Outflow_Conc!$C$10,12*($A8-1),4*(PlotControl!$C$6-1),12,1))) -> 0 | L8: =IF(PlotControl!$B$4 = "Annual Max",MAX(OFFSET(WWTF_Outflow_Conc!$D$10,12*($A8-1),4*(PlotControl!$C$6-1),12,1)),AVERAGE(OFFSET(WWTF_Outflow_Conc!$D$10,12*($A8-1),4*(PlotControl!$C$6-1),12,1))) -> 0 | M8: =IF(PlotControl!$B$4 = "Annual Max",MAX(OFFSET(WWTF_Outflow_Conc!$E$10,12*($A8-1),4*(PlotControl!$C$6-1),12,1)),AVERAGE(OFFSET(WWTF_Outflow_Conc!$E$10,12*($A8-1),4*(PlotControl!$C$6-1),12,1))) -> 0 | N8: =IF(PlotControl!$B$4 = "Annual Max",MAX(OFFSET(Cat1SP_Conc!$C$10,12*($A8-1),4*(PlotControl!$C$6-1),12,1)),AVERAGE(OFFSET(Cat1SP_Conc!$C$10,12*($A8-1),4*(PlotControl!$C$6-1),12,1))) -> 593470 | O8: =IF(PlotControl!$B$4 = "Annual Max",MAX(OFFSET(Cat1SP_Conc!$D$10,12*($A8-1),4*(PlotControl!$C$6-1),12,1)),AVERAGE(OFFSET(Cat1SP_Conc!$D$10,12*($A8-1),4*(PlotControl!$C$6-1),12,1))) -> 1639400 | P8: =IF(PlotControl!$B$4 = "Annual Max",MAX(OFFSET(Cat1SP_Conc!$E$10,12*($A8-1),4*(PlotControl!$C$6-1),12,1)),AVERAGE(OFFSET(Cat1SP_Conc!$E$10,12*($A8-1),4*(PlotControl!$C$6-1),12,1))) -> 2849400 | R8: 40.25 | S8: =OFFSET(EP_Pore_Conc!$C$10,ROUND(12*$R8,0),4*(PlotControl!$C$6-1),1,1) -> 255050 | T8: =OFFSET(EP_Pore_Conc!$D$10,ROUND(12*$R8,0),4*(PlotControl!$C$6-1),1,1) -> 256850 | U8: =OFFSET(EP_Pore_Conc!$E$10,ROUND(12*$R8,0),4*(PlotControl!$C$6-1),1,1) -> 263130 | V8: =OFFSET(EP_Wetland_Conc!$C$10,ROUND(12*$R8,0),4*(PlotControl!$C$6-1),1,1) -> 12804 | W8: =OFFSET(EP_Wetland_Conc!$D$10,ROUND(12*$R8,0),4*(PlotControl!$C$6-1),1,1) -> 20751 | X8: =OFFSET(EP_Wetland_Conc!$E$10,ROUND(12*$R8,0),4*(PlotControl!$C$6-1),1,1) -> 54994 | Y8: =OFFSET(WP_Conc!$C$10,ROUND(12*$R8,0),4*(PlotControl!$C$6-1),1,1) -> 59166 | Z8: =OFFSET(WP_Conc!$D$10,ROUND(12*$R8,0),4*(PlotControl!$C$6-1),1,1) -> 67532 | AA8: =OFFSET(WP_Conc!$E$10,ROUND(12*$R8,0),4*(PlotControl!$C$6-1),1,1) -> 79286 | AB8: =OFFSET(WWTF_Outflow_Conc!$C$10,ROUND(12*$R8,0),4*(PlotControl!$C$6-1),1,1) -> 0 | AC8: =OFFSET(WWTF_Outflow_Conc!$D$10,ROUND(12*$R8,0),4*(PlotControl!$C$6-1),1,1) -> 0 | AD8: =OFFSET(WWTF_Outflow_Conc!$E$10,ROUND(12*$R8,0),4*(PlotControl!$C$6-1),1,1) -> 0 | AE8: =OFFSET(Cat1SP_Conc!$C$10,ROUND(12*$R8,0),4*(PlotControl!$C$6-1),1,1) -> 2250900 | AF8: =OFFSET(Cat1SP_Conc!$D$10,ROUND(12*$R8,0),4*(PlotControl!$C$6-1),1,1) -> 2763300 | AG8: =OFFSET(Cat1SP_Conc!$E$10,ROUND(12*$R8,0),4*(PlotControl!$C$6-1),1,1) -> 4005400
A9: 5 | B9: =IF(PlotControl!$B$4 = "Annual Max",MAX(OFFSET(EP_Pore_Conc!$C$10,12*($A9-1),4*(PlotControl!$C$6-1),12,1)),AVERAGE(OFFSET(EP_Pore_Conc!$C$10,12*($A9-1),4*(PlotControl!$C$6-1),12,1))) -> 0 | C9: =IF(PlotControl!$B$4 = "Annual Max",MAX(OFFSET(EP_Pore_Conc!$D$10,12*($A9-1),4*(PlotControl!$C$6-1),12,1)),AVERAGE(OFFSET(EP_Pore_Conc!$D$10,12*($A9-1),4*(PlotControl!$C$6-1),12,1))) -> 0 | D9: =IF(PlotControl!$B$4 = "Annual Max",MAX(OFFSET(EP_Pore_Conc!$E$10,12*($A9-1),4*(PlotControl!$C$6-1),12,1)),AVERAGE(OFFSET(EP_Pore_Conc!$E$10,12*($A9-1),4*(PlotControl!$C$6-1),12,1))) -> 0 | E9: =IF(PlotControl!$B$4 = "Annual Max",MAX(OFFSET(EP_Wetland_Conc!$C$10,12*($A9-1),4*(PlotControl!$C$6-1),12,1)),AVERAGE(OFFSET(EP_Wetland_Conc!$C$10,12*($A9-1),4*(PlotControl!$C$6-1),12,1))) -> 0 | F9: =IF(PlotControl!$B$4 = "Annual Max",MAX(OFFSET(EP_Wetland_Conc!$D$10,12*($A9-1),4*(PlotControl!$C$6-1),12,1)),AVERAGE(OFFSET(EP_Wetland_Conc!$D$10,12*($A9-1),4*(PlotControl!$C$6-1),12,1))) -> 0 | G9: =IF(PlotControl!$B$4 = "Annual Max",MAX(OFFSET(EP_Wetland_Conc!$E$10,12*($A9-1),4*(PlotControl!$C$6-1),12,1)),AVERAGE(OFFSET(EP_Wetland_Conc!$E$10,12*($A9-1),4*(PlotControl!$C$6-1),12,1))) -> 0 | H9: =IF(PlotControl!$B$4 = "Annual Max",MAX(OFFSET(WP_Conc!$C$10,12*($A9-1),4*(PlotControl!$C$6-1),12,1)),AVERAGE(OFFSET(WP_Conc!$C$10,12*($A9-1),4*(PlotControl!$C$6-1),12,1))) -> 557830 | I9: =IF(PlotControl!$B$4 = "Annual Max",MAX(OFFSET(WP_Conc!$D$10,12*($A9-1),4*(PlotControl!$C$6-1),12,1)),AVERAGE(OFFSET(WP_Conc!$D$10,12*($A9-1),4*(PlotControl!$C$6-1),12,1))) -> 917630 | J9: =IF(PlotControl!$B$4 = "Annual Max",MAX(OFFSET(WP_Conc!$E$10,12*($A9-1),4*(PlotControl!$C$6-1),12,1)),AVERAGE(OFFSET(WP_Conc!$E$10,12*($A9-1),4*(PlotControl!$C$6-1),12,1))) -> 1423300 | K9: =IF(PlotControl!$B$4 = "Annual Max",MAX(OFFSET(WWTF_Outflow_Conc!$C$10,12*($A9-1),4*(PlotControl!$C$6-1),12,1)),AVERAGE(OFFSET(WWTF_Outflow_Conc!$C$10,12*($A9-1),4*(PlotControl!$C$6-1),12,1))) -> 0 | L9: =IF(PlotControl!$B$4 = "Annual Max",MAX(OFFSET(WWTF_Outflow_Conc!$D$10,12*($A9-1),4*(PlotControl!$C$6-1),12,1)),AVERAGE(OFFSET(WWTF_Outflow_Conc!$D$10,12*($A9-1),4*(PlotControl!$C$6-1),12,1))) -> 0 | M9: =IF(PlotControl!$B$4 = "Annual Max",MAX(OFFSET(WWTF_Outflow_Conc!$E$10,12*($A9-1),4*(PlotControl!$C$6-1),12,1)),AVERAGE(OFFSET(WWTF_Outflow_Conc!$E$10,12*($A9-1),4*(PlotControl!$C$6-1),12,1))) -> 0 | N9: =IF(PlotControl!$B$4 = "Annual Max",MAX(OFFSET(Cat1SP_Conc!$C$10,12*($A9-1),4*(PlotControl!$C$6-1),12,1)),AVERAGE(OFFSET(Cat1SP_Conc!$C$10,12*($A9-1),4*(PlotControl!$C$6-1),12,1))) -> 649460 | O9: =IF(PlotControl!$B$4 = "Annual Max",MAX(OFFSET(Cat1SP_Conc!$D$10,12*($A9-1),4*(PlotControl!$C$6-1),12,1)),AVERAGE(OFFSET(Cat1SP_Conc!$D$10,12*($A9-1),4*(PlotControl!$C$6-1),12,1))) -> 1798200 | P9: =IF(PlotControl!$B$4 = "Annual Max",MAX(OFFSET(Cat1SP_Conc!$E$10,12*($A9-1),4*(PlotControl!$C$6-1),12,1)),AVERAGE(OFFSET(Cat1SP_Conc!$E$10,12*($A9-1),4*(PlotControl!$C$6-1),12,1))) -> 2946500 | R9: 40.33333333 | S9: =OFFSET(EP_Pore_Conc!$C$10,ROUND(12*$R9,0),4*(PlotControl!$C$6-1),1,1) -> 255060 | T9: =OFFSET(EP_Pore_Conc!$D$10,ROUND(12*$R9,0),4*(PlotControl!$C$6-1),1,1) -> 256850 | U9: =OFFSET(EP_Pore_Conc!$E$10,ROUND(12*$R9,0),4*(PlotControl!$C$6-1),1,1) -> 262900 | V9: =OFFSET(EP_Wetland_Conc!$C$10,ROUND(12*$R9,0),4*(PlotControl!$C$6-1),1,1) -> 11484 | W9: =OFFSET(EP_Wetland_Conc!$D$10,ROUND(12*$R9,0),4*(PlotControl!$C$6-1),1,1) -> 18648 | X9: =OFFSET(EP_Wetland_Conc!$E$10,ROUND(12*$R9,0),4*(PlotControl!$C$6-1),1,1) -> 50295 | Y9: =OFFSET(WP_Conc!$C$10,ROUND(12*$R9,0),4*(PlotControl!$C$6-1),1,1) -> 58867 | Z9: =OFFSET(WP_Conc!$D$10,ROUND(12*$R9,0),4*(PlotControl!$C$6-1),1,1) -> 67157 | AA9: =OFFSET(WP_Conc!$E$10,ROUND(12*$R9,0),4*(PlotControl!$C$6-1),1,1) -> 79058 | AB9: =OFFSET(WWTF_Outflow_Conc!$C$10,ROUND(12*$R9,0),4*(PlotControl!$C$6-1),1,1) -> 0 | AC9: =OFFSET(WWTF_Outflow_Conc!$D$10,ROUND(12*$R9,0),4*(PlotControl!$C$6-1),1,1) -> 0 | AD9: =OFFSET(WWTF_Outflow_Conc!$E$10,ROUND(12*$R9,0),4*(PlotControl!$C$6-1),1,1) -> 0 | AE9: =OFFSET(Cat1SP_Conc!$C$10,ROUND(12*$R9,0),4*(PlotControl!$C$6-1),1,1) -> 2250900 | AF9: =OFFSET(Cat1SP_Conc!$D$10,ROUND(12*$R9,0),4*(PlotControl!$C$6-1),1,1) -> 2763300 | AG9: =OFFSET(Cat1SP_Conc!$E$10,ROUND(12*$R9,0),4*(PlotControl!$C$6-1),1,1) -> 4005400
A10: 6 | B10: =IF(PlotControl!$B$4 = "Annual Max",MAX(OFFSET(EP_Pore_Conc!$C$10,12*($A10-1),4*(PlotControl!$C$6-1),12,1)),AVERAGE(OFFSET(EP_Pore_Conc!$C$10,12*($A10-1),4*(PlotControl!$C$6-1),12,1))) -> 0 | C10: =IF(PlotControl!$B$4 = "Annual Max",MAX(OFFSET(EP_Pore_Conc!$D$10,12*($A10-1),4*(PlotControl!$C$6-1),12,1)),AVERAGE(OFFSET(EP_Pore_Conc!$D$10,12*($A10-1),4*(PlotControl!$C$6-1),12,1))) -> 0 | D10: =IF(PlotControl!$B$4 = "Annual Max",MAX(OFFSET(EP_Pore_Conc!$E$10,12*($A10-1),4*(PlotControl!$C$6-1),12,1)),AVERAGE(OFFSET(EP_Pore_Conc!$E$10,12*($A10-1),4*(PlotControl!$C$6-1),12,1))) -> 0 | E10: =IF(PlotControl!$B$4 = "Annual Max",MAX(OFFSET(EP_Wetland_Conc!$C$10,12*($A10-1),4*(PlotControl!$C$6-1),12,1)),AVERAGE(OFFSET(EP_Wetland_Conc!$C$10,12*($A10-1),4*(PlotControl!$C$6-1),12,1))) -> 0 | F10: =IF(PlotControl!$B$4 = "Annual Max",MAX(OFFSET(EP_Wetland_Conc!$D$10,12*($A10-1),4*(PlotControl!$C$6-1),12,1)),AVERAGE(OFFSET(EP_Wetland_Conc!$D$10,12*($A10-1),4*(PlotControl!$C$6-1),12,1))) -> 0 | G10: =IF(PlotControl!$B$4 = "Annual Max",MAX(OFFSET(EP_Wetland_Conc!$E$10,12*($A10-1),4*(PlotControl!$C$6-1),12,1)),AVERAGE(OFFSET(EP_Wetland_Conc!$E$10,12*($A10-1),4*(PlotControl!$C$6-1),12,1))) -> 0 | H10: =IF(PlotControl!$B$4 = "Annual Max",MAX(OFFSET(WP_Conc!$C$10,12*($A10-1),4*(PlotControl!$C$6-1),12,1)),AVERAGE(OFFSET(WP_Conc!$C$10,12*($A10-1),4*(PlotControl!$C$6-1),12,1))) -> 551130 | I10: =IF(PlotControl!$B$4 = "Annual Max",MAX(OFFSET(WP_Conc!$D$10,12*($A10-1),4*(PlotControl!$C$6-1),12,1)),AVERAGE(OFFSET(WP_Conc!$D$10,12*($A10-1),4*(PlotControl!$C$6-1),12,1))) -> 879300 | J10: =IF(PlotControl!$B$4 = "Annual Max",MAX(OFFSET(WP_Conc!$E$10,12*($A10-1),4*(PlotControl!$C$6-1),12,1)),AVERAGE(OFFSET(WP_Conc!$E$10,12*($A10-1),4*(PlotControl!$C$6-1),12,1))) -> 1303000 | K10: =IF(PlotControl!$B$4 = "Annual Max",MAX(OFFSET(WWTF_Outflow_Conc!$C$10,12*($A10-1),4*(PlotControl!$C$6-1),12,1)),AVERAGE(OFFSET(WWTF_Outflow_Conc!$C$10,12*($A10-1),4*(PlotControl!$C$6-1),12,1))) -> 0 | L10: =IF(PlotControl!$B$4 = "Annual Max",MAX(OFFSET(WWTF_Outflow_Conc!$D$10,12*($A10-1),4*(PlotControl!$C$6-1),12,1)),AVERAGE(OFFSET(WWTF_Outflow_Conc!$D$10,12*($A10-1),4*(PlotControl!$C$6-1),12,1))) -> 0 | M10: =IF(PlotControl!$B$4 = "Annual Max",MAX(OFFSET(WWTF_Outflow_Conc!$E$10,12*($A10-1),4*(PlotControl!$C$6-1),12,1)),AVERAGE(OFFSET(WWTF_Outflow_Conc!$E$10,12*($A10-1),4*(PlotControl!$C$6-1),12,1))) -> 0 | N10: =IF(PlotControl!$B$4 = "Annual Max",MAX(OFFSET(Cat1SP_Conc!$C$10,12*($A10-1),4*(PlotControl!$C$6-1),12,1)),AVERAGE(OFFSET(Cat1SP_Conc!$C$10,12*($A10-1),4*(PlotControl!$C$6-1),12,1))) -> 631320 | O10: =IF(PlotControl!$B$4 = "Annual Max",MAX(OFFSET(Cat1SP_Conc!$D$10,12*($A10-1),4*(PlotControl!$C$6-1),12,1)),AVERAGE(OFFSET(Cat1SP_Conc!$D$10,12*($A10-1),4*(PlotControl!$C$6-1),12,1))) -> 1679900 | P10: =IF(PlotControl!$B$4 = "Annual Max",MAX(OFFSET(Cat1SP_Conc!$E$10,12*($A10-1),4*(PlotControl!$C$6-1),12,1)),AVERAGE(OFFSET(Cat1SP_Conc!$E$10,12*($A10-1),4*(PlotControl!$C$6-1),12,1))) -> 2833500 | R10: 40.41666667 | S10: =OFFSET(EP_Pore_Conc!$C$10,ROUND(12*$R10,0),4*(PlotControl!$C$6-1),1,1) -> 255090 | T10: =OFFSET(EP_Pore_Conc!$D$10,ROUND(12*$R10,0),4*(PlotControl!$C$6-1),1,1) -> 256850 | U10: =OFFSET(EP_Pore_Conc!$E$10,ROUND(12*$R10,0),4*(PlotControl!$C$6-1),1,1) -> 262900 | V10: =OFFSET(EP_Wetland_Conc!$C$10,ROUND(12*$R10,0),4*(PlotControl!$C$6-1),1,1) -> 11649 | W10: =OFFSET(EP_Wetland_Conc!$D$10,ROUND(12*$R10,0),4*(PlotControl!$C$6-1),1,1) -> 18730 | X10: =OFFSET(EP_Wetland_Conc!$E$10,ROUND(12*$R10,0),4*(PlotControl!$C$6-1),1,1) -> 50426 | Y10: =OFFSET(WP_Conc!$C$10,ROUND(12*$R10,0),4*(PlotControl!$C$6-1),1,1) -> 58760 | Z10: =OFFSET(WP_Conc!$D$10,ROUND(12*$R10,0),4*(PlotControl!$C$6-1),1,1) -> 67109 | AA10: =OFFSET(WP_Conc!$E$10,ROUND(12*$R10,0),4*(PlotControl!$C$6-1),1,1) -> 78954 | AB10: =OFFSET(WWTF_Outflow_Conc!$C$10,ROUND(12*$R10,0),4*(PlotControl!$C$6-1),1,1) -> 0 | AC10: =OFFSET(WWTF_Outflow_Conc!$D$10,ROUND(12*$R10,0),4*(PlotControl!$C$6-1),1,1) -> 0 | AD10: =OFFSET(WWTF_Outflow_Conc!$E$10,ROUND(12*$R10,0),4*(PlotControl!$C$6-1),1,1) -> 0 | AE10: =OFFSET(Cat1SP_Conc!$C$10,ROUND(12*$R10,0),4*(PlotControl!$C$6-1),1,1) -> 2250900 | AF10: =OFFSET(Cat1SP_Conc!$D$10,ROUND(12*$R10,0),4*(PlotControl!$C$6-1),1,1) -> 2763300 | AG10: =OFFSET(Cat1SP_Conc!$E$10,ROUND(12*$R10,0),4*(PlotControl!$C$6-1),1,1) -> 4005400
A11: 7 | B11: =IF(PlotControl!$B$4 = "Annual Max",MAX(OFFSET(EP_Pore_Conc!$C$10,12*($A11-1),4*(PlotControl!$C$6-1),12,1)),AVERAGE(OFFSET(EP_Pore_Conc!$C$10,12*($A11-1),4*(PlotControl!$C$6-1),12,1))) -> 0 | C11: =IF(PlotControl!$B$4 = "Annual Max",MAX(OFFSET(EP_Pore_Conc!$D$10,12*($A11-1),4*(PlotControl!$C$6-1),12,1)),AVERAGE(OFFSET(EP_Pore_Conc!$D$10,12*($A11-1),4*(PlotControl!$C$6-1),12,1))) -> 0 | D11: =IF(PlotControl!$B$4 = "Annual Max",MAX(OFFSET(EP_Pore_Conc!$E$10,12*($A11-1),4*(PlotControl!$C$6-1),12,1)),AVERAGE(OFFSET(EP_Pore_Conc!$E$10,12*($A11-1),4*(PlotControl!$C$6-1),12,1))) -> 0 | E11: =IF(PlotControl!$B$4 = "Annual Max",MAX(OFFSET(EP_Wetland_Conc!$C$10,12*($A11-1),4*(PlotControl!$C$6-1),12,1)),AVERAGE(OFFSET(EP_Wetland_Conc!$C$10,12*($A11-1),4*(PlotControl!$C$6-1),12,1))) -> 0 | F11: =IF(PlotControl!$B$4 = "Annual Max",MAX(OFFSET(EP_Wetland_Conc!$D$10,12*($A11-1),4*(PlotControl!$C$6-1),12,1)),AVERAGE(OFFSET(EP_Wetland_Conc!$D$10,12*($A11-1),4*(PlotControl!$C$6-1),12,1))) -> 0 | G11: =IF(PlotControl!$B$4 = "Annual Max",MAX(OFFSET(EP_Wetland_Conc!$E$10,12*($A11-1),4*(PlotControl!$C$6-1),12,1)),AVERAGE(OFFSET(EP_Wetland_Conc!$E$10,12*($A11-1),4*(PlotControl!$C$6-1),12,1))) -> 0 | H11: =IF(PlotControl!$B$4 = "Annual Max",MAX(OFFSET(WP_Conc!$C$10,12*($A11-1),4*(PlotControl!$C$6-1),12,1)),AVERAGE(OFFSET(WP_Conc!$C$10,12*($A11-1),4*(PlotControl!$C$6-1),12,1))) -> 463330 | I11: =IF(PlotControl!$B$4 = "Annual Max",MAX(OFFSET(WP_Conc!$D$10,12*($A11-1),4*(PlotControl!$C$6-1),12,1)),AVERAGE(OFFSET(WP_Conc!$D$10,12*($A11-1),4*(PlotControl!$C$6-1),12,1))) -> 758050 | J11: =IF(PlotControl!$B$4 = "Annual Max",MAX(OFFSET(WP_Conc!$E$10,12*($A11-1),4*(PlotControl!$C$6-1),12,1)),AVERAGE(OFFSET(WP_Conc!$E$10,12*($A11-1),4*(PlotControl!$C$6-1),12,1))) -> 1156400 | K11: =IF(PlotControl!$B$4 = "Annual Max",MAX(OFFSET(WWTF_Outflow_Conc!$C$10,12*($A11-1),4*(PlotControl!$C$6-1),12,1)),AVERAGE(OFFSET(WWTF_Outflow_Conc!$C$10,12*($A11-1),4*(PlotControl!$C$6-1),12,1))) -> 0 | L11: =IF(PlotControl!$B$4 = "Annual Max",MAX(OFFSET(WWTF_Outflow_Conc!$D$10,12*($A11-1),4*(PlotControl!$C$6-1),12,1)),AVERAGE(OFFSET(WWTF_Outflow_Conc!$D$10,12*($A11-1),4*(PlotControl!$C$6-1),12,1))) -> 0 | M11: =IF(PlotControl!$B$4 = "Annual Max",MAX(OFFSET(WWTF_Outflow_Conc!$E$10,12*($A11-1),4*(PlotControl!$C$6-1),12,1)),AVERAGE(OFFSET(WWTF_Outflow_Conc!$E$10,12*($A11-1),4*(PlotControl!$C$6-1),12,1))) -> 0 | N11: =IF(PlotControl!$B$4 = "Annual Max",MAX(OFFSET(Cat1SP_Conc!$C$10,12*($A11-1),4*(PlotControl!$C$6-1),12,1)),AVERAGE(OFFSET(Cat1SP_Conc!$C$10,12*($A11-1),4*(PlotControl!$C$6-1),12,1))) -> 808510 | O11: =IF(PlotControl!$B$4 = "Annual Max",MAX(OFFSET(Cat1SP_Conc!$D$10,12*($A11-1),4*(PlotControl!$C$6-1),12,1)),AVERAGE(OFFSET(Cat1SP_Conc!$D$10,12*($A11-1),4*(PlotControl!$C$6-1),12,1))) -> 1849800 | P11: =IF(PlotControl!$B$4 = "Annual Max",MAX(OFFSET(Cat1SP_Conc!$E$10,12*($A11-1),4*(PlotControl!$C$6-1),12,1)),AVERAGE(OFFSET(Cat1SP_Conc!$E$10,12*($A11-1),4*(PlotControl!$C$6-1),12,1))) -> 2980200 | R11: 40.5 | S11: =OFFSET(EP_Pore_Conc!$C$10,ROUND(12*$R11,0),4*(PlotControl!$C$6-1),1,1) -> 255090 | T11: =OFFSET(EP_Pore_Conc!$D$10,ROUND(12*$R11,0),4*(PlotControl!$C$6-1),1,1) -> 256830 | U11: =OFFSET(EP_Pore_Conc!$E$10,ROUND(12*$R11,0),4*(PlotControl!$C$6-1),1,1) -> 262790 | V11: =OFFSET(EP_Wetland_Conc!$C$10,ROUND(12*$R11,0),4*(PlotControl!$C$6-1),1,1) -> 11817 | W11: =OFFSET(EP_Wetland_Conc!$D$10,ROUND(12*$R11,0),4*(PlotControl!$C$6-1),1,1) -> 18797 | X11: =OFFSET(EP_Wetland_Conc!$E$10,ROUND(12*$R11,0),4*(PlotControl!$C$6-1),1,1) -> 50452 | Y11: =OFFSET(WP_Conc!$C$10,ROUND(12*$R11,0),4*(PlotControl!$C$6-1),1,1) -> 58666 | Z11: =OFFSET(WP_Conc!$D$10,ROUND(12*$R11,0),4*(PlotControl!$C$6-1),1,1) -> 67053 | AA11: =OFFSET(WP_Conc!$E$10,ROUND(12*$R11,0),4*(PlotControl!$C$6-1),1,1) -> 78876 | AB11: =OFFSET(WWTF_Outflow_Conc!$C$10,ROUND(12*$R11,0),4*(PlotControl!$C$6-1),1,1) -> 0 | AC11: =OFFSET(WWTF_Outflow_Conc!$D$10,ROUND(12*$R11,0),4*(PlotControl!$C$6-1),1,1) -> 0 | AD11: =OFFSET(WWTF_Outflow_Conc!$E$10,ROUND(12*$R11,0),4*(PlotControl!$C$6-1),1,1) -> 0 | AE11: =OFFSET(Cat1SP_Conc!$C$10,ROUND(12*$R11,0),4*(PlotControl!$C$6-1),1,1) -> 2250900 | AF11: =OFFSET(Cat1SP_Conc!$D$10,ROUND(12*$R11,0),4*(PlotControl!$C$6-1),1,1) -> 2763300 | AG11: =OFFSET(Cat1SP_Conc!$E$10,ROUND(12*$R11,0),4*(PlotControl!$C$6-1),1,1) -> 4005400
A12: 8 | B12: =IF(PlotControl!$B$4 = "Annual Max",MAX(OFFSET(EP_Pore_Conc!$C$10,12*($A12-1),4*(PlotControl!$C$6-1),12,1)),AVERAGE(OFFSET(EP_Pore_Conc!$C$10,12*($A12-1),4*(PlotControl!$C$6-1),12,1))) -> 0 | C12: =IF(PlotControl!$B$4 = "Annual Max",MAX(OFFSET(EP_Pore_Conc!$D$10,12*($A12-1),4*(PlotControl!$C$6-1),12,1)),AVERAGE(OFFSET(EP_Pore_Conc!$D$10,12*($A12-1),4*(PlotControl!$C$6-1),12,1))) -> 0 | D12: =IF(PlotControl!$B$4 = "Annual Max",MAX(OFFSET(EP_Pore_Conc!$E$10,12*($A12-1),4*(PlotControl!$C$6-1),12,1)),AVERAGE(OFFSET(EP_Pore_Conc!$E$10,12*($A12-1),4*(PlotControl!$C$6-1),12,1))) -> 0 | E12: =IF(PlotControl!$B$4 = "Annual Max",MAX(OFFSET(EP_Wetland_Conc!$C$10,12*($A12-1),4*(PlotControl!$C$6-1),12,1)),AVERAGE(OFFSET(EP_Wetland_Conc!$C$10,12*($A12-1),4*(PlotControl!$C$6-1),12,1))) -> 0 | F12: =IF(PlotControl!$B$4 = "Annual Max",MAX(OFFSET(EP_Wetland_Conc!$D$10,12*($A12-1),4*(PlotControl!$C$6-1),12,1)),AVERAGE(OFFSET(EP_Wetland_Conc!$D$10,12*($A12-1),4*(PlotControl!$C$6-1),12,1))) -> 0 | G12: =IF(PlotControl!$B$4 = "Annual Max",MAX(OFFSET(EP_Wetland_Conc!$E$10,12*($A12-1),4*(PlotControl!$C$6-1),12,1)),AVERAGE(OFFSET(EP_Wetland_Conc!$E$10,12*($A12-1),4*(PlotControl!$C$6-1),12,1))) -> 0 | H12: =IF(PlotControl!$B$4 = "Annual Max",MAX(OFFSET(WP_Conc!$C$10,12*($A12-1),4*(PlotControl!$C$6-1),12,1)),AVERAGE(OFFSET(WP_Conc!$C$10,12*($A12-1),4*(PlotControl!$C$6-1),12,1))) -> 493650 | I12: =IF(PlotControl!$B$4 = "Annual Max",MAX(OFFSET(WP_Conc!$D$10,12*($A12-1),4*(PlotControl!$C$6-1),12,1)),AVERAGE(OFFSET(WP_Conc!$D$10,12*($A12-1),4*(PlotControl!$C$6-1),12,1))) -> 784060 | J12: =IF(PlotControl!$B$4 = "Annual Max",MAX(OFFSET(WP_Conc!$E$10,12*($A12-1),4*(PlotControl!$C$6-1),12,1)),AVERAGE(OFFSET(WP_Conc!$E$10,12*($A12-1),4*(PlotControl!$C$6-1),12,1))) -> 1207800 | K12: =IF(PlotControl!$B$4 = "Annual Max",MAX(OFFSET(WWTF_Outflow_Conc!$C$10,12*($A12-1),4*(PlotControl!$C$6-1),12,1)),AVERAGE(OFFSET(WWTF_Outflow_Conc!$C$10,12*($A12-1),4*(PlotControl!$C$6-1),12,1))) -> 0 | L12: =IF(PlotControl!$B$4 = "Annual Max",MAX(OFFSET(WWTF_Outflow_Conc!$D$10,12*($A12-1),4*(PlotControl!$C$6-1),12,1)),AVERAGE(OFFSET(WWTF_Outflow_Conc!$D$10,12*($A12-1),4*(PlotControl!$C$6-1),12,1))) -> 0 | M12: =IF(PlotControl!$B$4 = "Annual Max",MAX(OFFSET(WWTF_Outflow_Conc!$E$10,12*($A12-1),4*(PlotControl!$C$6-1),12,1)),AVERAGE(OFFSET(WWTF_Outflow_Conc!$E$10,12*($A12-1),4*(PlotControl!$C$6-1),12,1))) -> 0 | N12: =IF(PlotControl!$B$4 = "Annual Max",MAX(OFFSET(Cat1SP_Conc!$C$10,12*($A12-1),4*(PlotControl!$C$6-1),12,1)),AVERAGE(OFFSET(Cat1SP_Conc!$C$10,12*($A12-1),4*(PlotControl!$C$6-1),12,1))) -> 685400 | O12: =IF(PlotControl!$B$4 = "Annual Max",MAX(OFFSET(Cat1SP_Conc!$D$10,12*($A12-1),4*(PlotControl!$C$6-1),12,1)),AVERAGE(OFFSET(Cat1SP_Conc!$D$10,12*($A12-1),4*(PlotControl!$C$6-1),12,1))) -> 2110300 | P12: =IF(PlotControl!$B$4 = "Annual Max",MAX(OFFSET(Cat1SP_Conc!$E$10,12*($A12-1),4*(PlotControl!$C$6-1),12,1)),AVERAGE(OFFSET(Cat1SP_Conc!$E$10,12*($A12-1),4*(PlotControl!$C$6-1),12,1))) -> 3049100 | R12: 40.58333333 | S12: =OFFSET(EP_Pore_Conc!$C$10,ROUND(12*$R12,0),4*(PlotControl!$C$6-1),1,1) -> 255080 | T12: =OFFSET(EP_Pore_Conc!$D$10,ROUND(12*$R12,0),4*(PlotControl!$C$6-1),1,1) -> 256820 | U12: =OFFSET(EP_Pore_Conc!$E$10,ROUND(12*$R12,0),4*(PlotControl!$C$6-1),1,1) -> 262790 | V12: =OFFSET(EP_Wetland_Conc!$C$10,ROUND(12*$R12,0),4*(PlotControl!$C$6-1),1,1) -> 12007 | W12: =OFFSET(EP_Wetland_Conc!$D$10,ROUND(12*$R12,0),4*(PlotControl!$C$6-1),1,1) -> 19022 | X12: =OFFSET(EP_Wetland_Conc!$E$10,ROUND(12*$R12,0),4*(PlotControl!$C$6-1),1,1) -> 51258 | Y12: =OFFSET(WP_Conc!$C$10,ROUND(12*$R12,0),4*(PlotControl!$C$6-1),1,1) -> 58550 | Z12: =OFFSET(WP_Conc!$D$10,ROUND(12*$R12,0),4*(PlotControl!$C$6-1),1,1) -> 67009 | AA12: =OFFSET(WP_Conc!$E$10,ROUND(12*$R12,0),4*(PlotControl!$C$6-1),1,1) -> 78901 | AB12: =OFFSET(WWTF_Outflow_Conc!$C$10,ROUND(12*$R12,0),4*(PlotControl!$C$6-1),1,1) -> 0 | AC12: =OFFSET(WWTF_Outflow_Conc!$D$10,ROUND(12*$R12,0),4*(PlotControl!$C$6-1),1,1) -> 0 | AD12: =OFFSET(WWTF_Outflow_Conc!$E$10,ROUND(12*$R12,0),4*(PlotControl!$C$6-1),1,1) -> 0 | AE12: =OFFSET(Cat1SP_Conc!$C$10,ROUND(12*$R12,0),4*(PlotControl!$C$6-1),1,1) -> 2250900 | AF12: =OFFSET(Cat1SP_Conc!$D$10,ROUND(12*$R12,0),4*(PlotControl!$C$6-1),1,1) -> 2763300 | AG12: =OFFSET(Cat1SP_Conc!$E$10,ROUND(12*$R12,0),4*(PlotControl!$C$6-1),1,1) -> 4005400
A13: 9 | B13: =IF(PlotControl!$B$4 = "Annual Max",MAX(OFFSET(EP_Pore_Conc!$C$10,12*($A13-1),4*(PlotControl!$C$6-1),12,1)),AVERAGE(OFFSET(EP_Pore_Conc!$C$10,12*($A13-1),4*(PlotControl!$C$6-1),12,1))) -> 0 | C13: =IF(PlotControl!$B$4 = "Annual Max",MAX(OFFSET(EP_Pore_Conc!$D$10,12*($A13-1),4*(PlotControl!$C$6-1),12,1)),AVERAGE(OFFSET(EP_Pore_Conc!$D$10,12*($A13-1),4*(PlotControl!$C$6-1),12,1))) -> 0 | D13: =IF(PlotControl!$B$4 = "Annual Max",MAX(OFFSET(EP_Pore_Conc!$E$10,12*($A13-1),4*(PlotControl!$C$6-1),12,1)),AVERAGE(OFFSET(EP_Pore_Conc!$E$10,12*($A13-1),4*(PlotControl!$C$6-1),12,1))) -> 0 | E13: =IF(PlotControl!$B$4 = "Annual Max",MAX(OFFSET(EP_Wetland_Conc!$C$10,12*($A13-1),4*(PlotControl!$C$6-1),12,1)),AVERAGE(OFFSET(EP_Wetland_Conc!$C$10,12*($A13-1),4*(PlotControl!$C$6-1),12,1))) -> 0 | F13: =IF(PlotControl!$B$4 = "Annual Max",MAX(OFFSET(EP_Wetland_Conc!$D$10,12*($A13-1),4*(PlotControl!$C$6-1),12,1)),AVERAGE(OFFSET(EP_Wetland_Conc!$D$10,12*($A13-1),4*(PlotControl!$C$6-1),12,1))) -> 0 | G13: =IF(PlotControl!$B$4 = "Annual Max",MAX(OFFSET(EP_Wetland_Conc!$E$10,12*($A13-1),4*(PlotControl!$C$6-1),12,1)),AVERAGE(OFFSET(EP_Wetland_Conc!$E$10,12*($A13-1),4*(PlotControl!$C$6-1),12,1))) -> 0 | H13: =IF(PlotControl!$B$4 = "Annual Max",MAX(OFFSET(WP_Conc!$C$10,12*($A13-1),4*(PlotControl!$C$6-1),12,1)),AVERAGE(OFFSET(WP_Conc!$C$10,12*($A13-1),4*(PlotControl!$C$6-1),12,1))) -> 588610 | I13: =IF(PlotControl!$B$4 = "Annual Max",MAX(OFFSET(WP_Conc!$D$10,12*($A13-1),4*(PlotControl!$C$6-1),12,1)),AVERAGE(OFFSET(WP_Conc!$D$10,12*($A13-1),4*(PlotControl!$C$6-1),12,1))) -> 981450 | J13: =IF(PlotControl!$B$4 = "Annual Max",MAX(OFFSET(WP_Conc!$E$10,12*($A13-1),4*(PlotControl!$C$6-1),12,1)),AVERAGE(OFFSET(WP_Conc!$E$10,12*($A13-1),4*(PlotControl!$C$6-1),12,1))) -> 1527500 | K13: =IF(PlotControl!$B$4 = "Annual Max",MAX(OFFSET(WWTF_Outflow_Conc!$C$10,12*($A13-1),4*(PlotControl!$C$6-1),12,1)),AVERAGE(OFFSET(WWTF_Outflow_Conc!$C$10,12*($A13-1),4*(PlotControl!$C$6-1),12,1))) -> 0 | L13: =IF(PlotControl!$B$4 = "Annual Max",MAX(OFFSET(WWTF_Outflow_Conc!$D$10,12*($A13-1),4*(PlotControl!$C$6-1),12,1)),AVERAGE(OFFSET(WWTF_Outflow_Conc!$D$10,12*($A13-1),4*(PlotControl!$C$6-1),12,1))) -> 0 | M13: =IF(PlotControl!$B$4 = "Annual Max",MAX(OFFSET(WWTF_Outflow_Conc!$E$10,12*($A13-1),4*(PlotControl!$C$6-1),12,1)),AVERAGE(OFFSET(WWTF_Outflow_Conc!$E$10,12*($A13-1),4*(PlotControl!$C$6-1),12,1))) -> 0 | N13: =IF(PlotControl!$B$4 = "Annual Max",MAX(OFFSET(Cat1SP_Conc!$C$10,12*($A13-1),4*(PlotControl!$C$6-1),12,1)),AVERAGE(OFFSET(Cat1SP_Conc!$C$10,12*($A13-1),4*(PlotControl!$C$6-1),12,1))) -> 881620 | O13: =IF(PlotControl!$B$4 = "Annual Max",MAX(OFFSET(Cat1SP_Conc!$D$10,12*($A13-1),4*(PlotControl!$C$6-1),12,1)),AVERAGE(OFFSET(Cat1SP_Conc!$D$10,12*($A13-1),4*(PlotControl!$C$6-1),12,1))) -> 2274700 | P13: =IF(PlotControl!$B$4 = "Annual Max",MAX(OFFSET(Cat1SP_Conc!$E$10,12*($A13-1),4*(PlotControl!$C$6-1),12,1)),AVERAGE(OFFSET(Cat1SP_Conc!$E$10,12*($A13-1),4*(PlotControl!$C$6-1),12,1))) -> 3186300 | R13: 40.66666667 | S13: =OFFSET(EP_Pore_Conc!$C$10,ROUND(12*$R13,0),4*(PlotControl!$C$6-1),1,1) -> 255080 | T13: =OFFSET(EP_Pore_Conc!$D$10,ROUND(12*$R13,0),4*(PlotControl!$C$6-1),1,1) -> 256810 | U13: =OFFSET(EP_Pore_Conc!$E$10,ROUND(12*$R13,0),4*(PlotControl!$C$6-1),1,1) -> 262790 | V13: =OFFSET(EP_Wetland_Conc!$C$10,ROUND(12*$R13,0),4*(PlotControl!$C$6-1),1,1) -> 12059 | W13: =OFFSET(EP_Wetland_Conc!$D$10,ROUND(12*$R13,0),4*(PlotControl!$C$6-1),1,1) -> 18925 | X13: =OFFSET(EP_Wetland_Conc!$E$10,ROUND(12*$R13,0),4*(PlotControl!$C$6-1),1,1) -> 50934 | Y13: =OFFSET(WP_Conc!$C$10,ROUND(12*$R13,0),4*(PlotControl!$C$6-1),1,1) -> 58460 | Z13: =OFFSET(WP_Conc!$D$10,ROUND(12*$R13,0),4*(PlotControl!$C$6-1),1,1) -> 66952 | AA13: =OFFSET(WP_Conc!$E$10,ROUND(12*$R13,0),4*(PlotControl!$C$6-1),1,1) -> 78835 | AB13: =OFFSET(WWTF_Outflow_Conc!$C$10,ROUND(12*$R13,0),4*(PlotControl!$C$6-1),1,1) -> 0 | AC13: =OFFSET(WWTF_Outflow_Conc!$D$10,ROUND(12*$R13,0),4*(PlotControl!$C$6-1),1,1) -> 0 | AD13: =OFFSET(WWTF_Outflow_Conc!$E$10,ROUND(12*$R13,0),4*(PlotControl!$C$6-1),1,1) -> 0 | AE13: =OFFSET(Cat1SP_Conc!$C$10,ROUND(12*$R13,0),4*(PlotControl!$C$6-1),1,1) -> 2250900 | AF13: =OFFSET(Cat1SP_Conc!$D$10,ROUND(12*$R13,0),4*(PlotControl!$C$6-1),1,1) -> 2763300 | AG13: =OFFSET(Cat1SP_Conc!$E$10,ROUND(12*$R13,0),4*(PlotControl!$C$6-1),1,1) -> 4005400
A14: 10 | B14: =IF(PlotControl!$B$4 = "Annual Max",MAX(OFFSET(EP_Pore_Conc!$C$10,12*($A14-1),4*(PlotControl!$C$6-1),12,1)),AVERAGE(OFFSET(EP_Pore_Conc!$C$10,12*($A14-1),4*(PlotControl!$C$6-1),12,1))) -> 0 | C14: =IF(PlotControl!$B$4 = "Annual Max",MAX(OFFSET(EP_Pore_Conc!$D$10,12*($A14-1),4*(PlotControl!$C$6-1),12,1)),AVERAGE(OFFSET(EP_Pore_Conc!$D$10,12*($A14-1),4*(PlotControl!$C$6-1),12,1))) -> 0 | D14: =IF(PlotControl!$B$4 = "Annual Max",MAX(OFFSET(EP_Pore_Conc!$E$10,12*($A14-1),4*(PlotControl!$C$6-1),12,1)),AVERAGE(OFFSET(EP_Pore_Conc!$E$10,12*($A14-1),4*(PlotControl!$C$6-1),12,1))) -> 0 | E14: =IF(PlotControl!$B$4 = "Annual Max",MAX(OFFSET(EP_Wetland_Conc!$C$10,12*($A14-1),4*(PlotControl!$C$6-1),12,1)),AVERAGE(OFFSET(EP_Wetland_Conc!$C$10,12*($A14-1),4*(PlotControl!$C$6-1),12,1))) -> 0 | F14: =IF(PlotControl!$B$4 = "Annual Max",MAX(OFFSET(EP_Wetland_Conc!$D$10,12*($A14-1),4*(PlotControl!$C$6-1),12,1)),AVERAGE(OFFSET(EP_Wetland_Conc!$D$10,12*($A14-1),4*(PlotControl!$C$6-1),12,1))) -> 0 | G14: =IF(PlotControl!$B$4 = "Annual Max",MAX(OFFSET(EP_Wetland_Conc!$E$10,12*($A14-1),4*(PlotControl!$C$6-1),12,1)),AVERAGE(OFFSET(EP_Wetland_Conc!$E$10,12*($A14-1),4*(PlotControl!$C$6-1),12,1))) -> 0 | H14: =IF(PlotControl!$B$4 = "Annual Max",MAX(OFFSET(WP_Conc!$C$10,12*($A14-1),4*(PlotControl!$C$6-1),12,1)),AVERAGE(OFFSET(WP_Conc!$C$10,12*($A14-1),4*(PlotControl!$C$6-1),12,1))) -> 633820 | I14: =IF(PlotControl!$B$4 = "Annual Max",MAX(OFFSET(WP_Conc!$D$10,12*($A14-1),4*(PlotControl!$C$6-1),12,1)),AVERAGE(OFFSET(WP_Conc!$D$10,12*($A14-1),4*(PlotControl!$C$6-1),12,1))) -> 1044300 | J14: =IF(PlotControl!$B$4 = "Annual Max",MAX(OFFSET(WP_Conc!$E$10,12*($A14-1),4*(PlotControl!$C$6-1),12,1)),AVERAGE(OFFSET(WP_Conc!$E$10,12*($A14-1),4*(PlotControl!$C$6-1),12,1))) -> 1575800 | K14: =IF(PlotControl!$B$4 = "Annual Max",MAX(OFFSET(WWTF_Outflow_Conc!$C$10,12*($A14-1),4*(PlotControl!$C$6-1),12,1)),AVERAGE(OFFSET(WWTF_Outflow_Conc!$C$10,12*($A14-1),4*(PlotControl!$C$6-1),12,1))) -> 0 | L14: =IF(PlotControl!$B$4 = "Annual Max",MAX(OFFSET(WWTF_Outflow_Conc!$D$10,12*($A14-1),4*(PlotControl!$C$6-1),12,1)),AVERAGE(OFFSET(WWTF_Outflow_Conc!$D$10,12*($A14-1),4*(PlotControl!$C$6-1),12,1))) -> 0 | M14: =IF(PlotControl!$B$4 = "Annual Max",MAX(OFFSET(WWTF_Outflow_Conc!$E$10,12*($A14-1),4*(PlotControl!$C$6-1),12,1)),AVERAGE(OFFSET(WWTF_Outflow_Conc!$E$10,12*($A14-1),4*(PlotControl!$C$6-1),12,1))) -> 0 | N14: =IF(PlotControl!$B$4 = "Annual Max",MAX(OFFSET(Cat1SP_Conc!$C$10,12*($A14-1),4*(PlotControl!$C$6-1),12,1)),AVERAGE(OFFSET(Cat1SP_Conc!$C$10,12*($A14-1),4*(PlotControl!$C$6-1),12,1))) -> 877130 | O14: =IF(PlotControl!$B$4 = "Annual Max",MAX(OFFSET(Cat1SP_Conc!$D$10,12*($A14-1),4*(PlotControl!$C$6-1),12,1)),AVERAGE(OFFSET(Cat1SP_Conc!$D$10,12*($A14-1),4*(PlotControl!$C$6-1),12,1))) -> 2297800 | P14: =IF(PlotControl!$B$4 = "Annual Max",MAX(OFFSET(Cat1SP_Conc!$E$10,12*($A14-1),4*(PlotControl!$C$6-1),12,1)),AVERAGE(OFFSET(Cat1SP_Conc!$E$10,12*($A14-1),4*(PlotControl!$C$6-1),12,1))) -> 3277300 | R14: 40.75 | S14: =OFFSET(EP_Pore_Conc!$C$10,ROUND(12*$R14,0),4*(PlotControl!$C$6-1),1,1) -> 255060 | T14: =OFFSET(EP_Pore_Conc!$D$10,ROUND(12*$R14,0),4*(PlotControl!$C$6-1),1,1) -> 256810 | U14: =OFFSET(EP_Pore_Conc!$E$10,ROUND(12*$R14,0),4*(PlotControl!$C$6-1),1,1) -> 262790 | V14: =OFFSET(EP_Wetland_Conc!$C$10,ROUND(12*$R14,0),4*(PlotControl!$C$6-1),1,1) -> 11826 | W14: =OFFSET(EP_Wetland_Conc!$D$10,ROUND(12*$R14,0),4*(PlotControl!$C$6-1),1,1) -> 18245 | X14: =OFFSET(EP_Wetland_Conc!$E$10,ROUND(12*$R14,0),4*(PlotControl!$C$6-1),1,1) -> 49755 | Y14: =OFFSET(WP_Conc!$C$10,ROUND(12*$R14,0),4*(PlotControl!$C$6-1),1,1) -> 58360 | Z14: =OFFSET(WP_Conc!$D$10,ROUND(12*$R14,0),4*(PlotControl!$C$6-1),1,1) -> 66816 | AA14: =OFFSET(WP_Conc!$E$10,ROUND(12*$R14,0),4*(PlotControl!$C$6-1),1,1) -> 78681 | AB14: =OFFSET(WWTF_Outflow_Conc!$C$10,ROUND(12*$R14,0),4*(PlotControl!$C$6-1),1,1) -> 0 | AC14: =OFFSET(WWTF_Outflow_Conc!$D$10,ROUND(12*$R14,0),4*(PlotControl!$C$6-1),1,1) -> 0 | AD14: =OFFSET(WWTF_Outflow_Conc!$E$10,ROUND(12*$R14,0),4*(PlotControl!$C$6-1),1,1) -> 0 | AE14: =OFFSET(Cat1SP_Conc!$C$10,ROUND(12*$R14,0),4*(PlotControl!$C$6-1),1,1) -> 2250900 | AF14: =OFFSET(Cat1SP_Conc!$D$10,ROUND(12*$R14,0),4*(PlotControl!$C$6-1),1,1) -> 2763300 | AG14: =OFFSET(Cat1SP_Conc!$E$10,ROUND(12*$R14,0),4*(PlotControl!$C$6-1),1,1) -> 4005400
A15: 11 | B15: =IF(PlotControl!$B$4 = "Annual Max",MAX(OFFSET(EP_Pore_Conc!$C$10,12*($A15-1),4*(PlotControl!$C$6-1),12,1)),AVERAGE(OFFSET(EP_Pore_Conc!$C$10,12*($A15-1),4*(PlotControl!$C$6-1),12,1))) -> 2071400 | C15: =IF(PlotControl!$B$4 = "Annual Max",MAX(OFFSET(EP_Pore_Conc!$D$10,12*($A15-1),4*(PlotControl!$C$6-1),12,1)),AVERAGE(OFFSET(EP_Pore_Conc!$D$10,12*($A15-1),4*(PlotControl!$C$6-1),12,1))) -> 2630300 | D15: =IF(PlotControl!$B$4 = "Annual Max",MAX(OFFSET(EP_Pore_Conc!$E$10,12*($A15-1),4*(PlotControl!$C$6-1),12,1)),AVERAGE(OFFSET(EP_Pore_Conc!$E$10,12*($A15-1),4*(PlotControl!$C$6-1),12,1))) -> 3827100 | E15: =IF(PlotControl!$B$4 = "Annual Max",MAX(OFFSET(EP_Wetland_Conc!$C$10,12*($A15-1),4*(PlotControl!$C$6-1),12,1)),AVERAGE(OFFSET(EP_Wetland_Conc!$C$10,12*($A15-1),4*(PlotControl!$C$6-1),12,1))) -> 0 | F15: =IF(PlotControl!$B$4 = "Annual Max",MAX(OFFSET(EP_Wetland_Conc!$D$10,12*($A15-1),4*(PlotControl!$C$6-1),12,1)),AVERAGE(OFFSET(EP_Wetland_Conc!$D$10,12*($A15-1),4*(PlotControl!$C$6-1),12,1))) -> 0 | G15: =IF(PlotControl!$B$4 = "Annual Max",MAX(OFFSET(EP_Wetland_Conc!$E$10,12*($A15-1),4*(PlotControl!$C$6-1),12,1)),AVERAGE(OFFSET(EP_Wetland_Conc!$E$10,12*($A15-1),4*(PlotControl!$C$6-1),12,1))) -> 0.00075301 | H15: =IF(PlotControl!$B$4 = "Annual Max",MAX(OFFSET(WP_Conc!$C$10,12*($A15-1),4*(PlotControl!$C$6-1),12,1)),AVERAGE(OFFSET(WP_Conc!$C$10,12*($A15-1),4*(PlotControl!$C$6-1),12,1))) -> 653330 | I15: =IF(PlotControl!$B$4 = "Annual Max",MAX(OFFSET(WP_Conc!$D$10,12*($A15-1),4*(PlotControl!$C$6-1),12,1)),AVERAGE(OFFSET(WP_Conc!$D$10,12*($A15-1),4*(PlotControl!$C$6-1),12,1))) -> 1018900 | J15: =IF(PlotControl!$B$4 = "Annual Max",MAX(OFFSET(WP_Conc!$E$10,12*($A15-1),4*(PlotControl!$C$6-1),12,1)),AVERAGE(OFFSET(WP_Conc!$E$10,12*($A15-1),4*(PlotControl!$C$6-1),12,1))) -> 1478600 | K15: =IF(PlotControl!$B$4 = "Annual Max",MAX(OFFSET(WWTF_Outflow_Conc!$C$10,12*($A15-1),4*(PlotControl!$C$6-1),12,1)),AVERAGE(OFFSET(WWTF_Outflow_Conc!$C$10,12*($A15-1),4*(PlotControl!$C$6-1),12,1))) -> 0 | L15: =IF(PlotControl!$B$4 = "Annual Max",MAX(OFFSET(WWTF_Outflow_Conc!$D$10,12*($A15-1),4*(PlotControl!$C$6-1),12,1)),AVERAGE(OFFSET(WWTF_Outflow_Conc!$D$10,12*($A15-1),4*(PlotControl!$C$6-1),12,1))) -> 0 | M15: =IF(PlotControl!$B$4 = "Annual Max",MAX(OFFSET(WWTF_Outflow_Conc!$E$10,12*($A15-1),4*(PlotControl!$C$6-1),12,1)),AVERAGE(OFFSET(WWTF_Outflow_Conc!$E$10,12*($A15-1),4*(PlotControl!$C$6-1),12,1))) -> 0 | N15: =IF(PlotControl!$B$4 = "Annual Max",MAX(OFFSET(Cat1SP_Conc!$C$10,12*($A15-1),4*(PlotControl!$C$6-1),12,1)),AVERAGE(OFFSET(Cat1SP_Conc!$C$10,12*($A15-1),4*(PlotControl!$C$6-1),12,1))) -> 961670 | O15: =IF(PlotControl!$B$4 = "Annual Max",MAX(OFFSET(Cat1SP_Conc!$D$10,12*($A15-1),4*(PlotControl!$C$6-1),12,1)),AVERAGE(OFFSET(Cat1SP_Conc!$D$10,12*($A15-1),4*(PlotControl!$C$6-1),12,1))) -> 2299400 | P15: =IF(PlotControl!$B$4 = "Annual Max",MAX(OFFSET(Cat1SP_Conc!$E$10,12*($A15-1),4*(PlotControl!$C$6-1),12,1)),AVERAGE(OFFSET(Cat1SP_Conc!$E$10,12*($A15-1),4*(PlotControl!$C$6-1),12,1))) -> 3430900 | R15: 40.83333333 | S15: =OFFSET(EP_Pore_Conc!$C$10,ROUND(12*$R15,0),4*(PlotControl!$C$6-1),1,1) -> 255060 | T15: =OFFSET(EP_Pore_Conc!$D$10,ROUND(12*$R15,0),4*(PlotControl!$C$6-1),1,1) -> 256810 | U15: =OFFSET(EP_Pore_Conc!$E$10,ROUND(12*$R15,0),4*(PlotControl!$C$6-1),1,1) -> 262670 | V15: =OFFSET(EP_Wetland_Conc!$C$10,ROUND(12*$R15,0),4*(PlotControl!$C$6-1),1,1) -> 11497 | W15: =OFFSET(EP_Wetland_Conc!$D$10,ROUND(12*$R15,0),4*(PlotControl!$C$6-1),1,1) -> 17817 | X15: =OFFSET(EP_Wetland_Conc!$E$10,ROUND(12*$R15,0),4*(PlotControl!$C$6-1),1,1) -> 48114 | Y15: =OFFSET(WP_Conc!$C$10,ROUND(12*$R15,0),4*(PlotControl!$C$6-1),1,1) -> 58230 | Z15: =OFFSET(WP_Conc!$D$10,ROUND(12*$R15,0),4*(PlotControl!$C$6-1),1,1) -> 66695 | AA15: =OFFSET(WP_Conc!$E$10,ROUND(12*$R15,0),4*(PlotControl!$C$6-1),1,1) -> 78531 | AB15: =OFFSET(WWTF_Outflow_Conc!$C$10,ROUND(12*$R15,0),4*(PlotControl!$C$6-1),1,1) -> 0 | AC15: =OFFSET(WWTF_Outflow_Conc!$D$10,ROUND(12*$R15,0),4*(PlotControl!$C$6-1),1,1) -> 0 | AD15: =OFFSET(WWTF_Outflow_Conc!$E$10,ROUND(12*$R15,0),4*(PlotControl!$C$6-1),1,1) -> 0 | AE15: =OFFSET(Cat1SP_Conc!$C$10,ROUND(12*$R15,0),4*(PlotControl!$C$6-1),1,1) -> 2250900 | AF15: =OFFSET(Cat1SP_Conc!$D$10,ROUND(12*$R15,0),4*(PlotControl!$C$6-1),1,1) -> 2763300 | AG15: =OFFSET(Cat1SP_Conc!$E$10,ROUND(12*$R15,0),4*(PlotControl!$C$6-1),1,1) -> 4005400
A16: 12 | B16: =IF(PlotControl!$B$4 = "Annual Max",MAX(OFFSET(EP_Pore_Conc!$C$10,12*($A16-1),4*(PlotControl!$C$6-1),12,1)),AVERAGE(OFFSET(EP_Pore_Conc!$C$10,12*($A16-1),4*(PlotControl!$C$6-1),12,1))) -> 2069800 | C16: =IF(PlotControl!$B$4 = "Annual Max",MAX(OFFSET(EP_Pore_Conc!$D$10,12*($A16-1),4*(PlotControl!$C$6-1),12,1)),AVERAGE(OFFSET(EP_Pore_Conc!$D$10,12*($A16-1),4*(PlotControl!$C$6-1),12,1))) -> 2628000 | D16: =IF(PlotControl!$B$4 = "Annual Max",MAX(OFFSET(EP_Pore_Conc!$E$10,12*($A16-1),4*(PlotControl!$C$6-1),12,1)),AVERAGE(OFFSET(EP_Pore_Conc!$E$10,12*($A16-1),4*(PlotControl!$C$6-1),12,1))) -> 3824300 | E16: =IF(PlotControl!$B$4 = "Annual Max",MAX(OFFSET(EP_Wetland_Conc!$C$10,12*($A16-1),4*(PlotControl!$C$6-1),12,1)),AVERAGE(OFFSET(EP_Wetland_Conc!$C$10,12*($A16-1),4*(PlotControl!$C$6-1),12,1))) -> 0.00041432 | F16: =IF(PlotControl!$B$4 = "Annual Max",MAX(OFFSET(EP_Wetland_Conc!$D$10,12*($A16-1),4*(PlotControl!$C$6-1),12,1)),AVERAGE(OFFSET(EP_Wetland_Conc!$D$10,12*($A16-1),4*(PlotControl!$C$6-1),12,1))) -> 0.001454 | G16: =IF(PlotControl!$B$4 = "Annual Max",MAX(OFFSET(EP_Wetland_Conc!$E$10,12*($A16-1),4*(PlotControl!$C$6-1),12,1)),AVERAGE(OFFSET(EP_Wetland_Conc!$E$10,12*($A16-1),4*(PlotControl!$C$6-1),12,1))) -> 0.0030712 | H16: =IF(PlotControl!$B$4 = "Annual Max",MAX(OFFSET(WP_Conc!$C$10,12*($A16-1),4*(PlotControl!$C$6-1),12,1)),AVERAGE(OFFSET(WP_Conc!$C$10,12*($A16-1),4*(PlotControl!$C$6-1),12,1))) -> 347730 | I16: =IF(PlotControl!$B$4 = "Annual Max",MAX(OFFSET(WP_Conc!$D$10,12*($A16-1),4*(PlotControl!$C$6-1),12,1)),AVERAGE(OFFSET(WP_Conc!$D$10,12*($A16-1),4*(PlotControl!$C$6-1),12,1))) -> 578360 | J16: =IF(PlotControl!$B$4 = "Annual Max",MAX(OFFSET(WP_Conc!$E$10,12*($A16-1),4*(PlotControl!$C$6-1),12,1)),AVERAGE(OFFSET(WP_Conc!$E$10,12*($A16-1),4*(PlotControl!$C$6-1),12,1))) -> 871130 | K16: =IF(PlotControl!$B$4 = "Annual Max",MAX(OFFSET(WWTF_Outflow_Conc!$C$10,12*($A16-1),4*(PlotControl!$C$6-1),12,1)),AVERAGE(OFFSET(WWTF_Outflow_Conc!$C$10,12*($A16-1),4*(PlotControl!$C$6-1),12,1))) -> 0 | L16: =IF(PlotControl!$B$4 = "Annual Max",MAX(OFFSET(WWTF_Outflow_Conc!$D$10,12*($A16-1),4*(PlotControl!$C$6-1),12,1)),AVERAGE(OFFSET(WWTF_Outflow_Conc!$D$10,12*($A16-1),4*(PlotControl!$C$6-1),12,1))) -> 0 | M16: =IF(PlotControl!$B$4 = "Annual Max",MAX(OFFSET(WWTF_Outflow_Conc!$E$10,12*($A16-1),4*(PlotControl!$C$6-1),12,1)),AVERAGE(OFFSET(WWTF_Outflow_Conc!$E$10,12*($A16-1),4*(PlotControl!$C$6-1),12,1))) -> 0 | N16: =IF(PlotControl!$B$4 = "Annual Max",MAX(OFFSET(Cat1SP_Conc!$C$10,12*($A16-1),4*(PlotControl!$C$6-1),12,1)),AVERAGE(OFFSET(Cat1SP_Conc!$C$10,12*($A16-1),4*(PlotControl!$C$6-1),12,1))) -> 1134700 | O16: =IF(PlotControl!$B$4 = "Annual Max",MAX(OFFSET(Cat1SP_Conc!$D$10,12*($A16-1),4*(PlotControl!$C$6-1),12,1)),AVERAGE(OFFSET(Cat1SP_Conc!$D$10,12*($A16-1),4*(PlotControl!$C$6-1),12,1))) -> 2383700 | P16: =IF(PlotControl!$B$4 = "Annual Max",MAX(OFFSET(Cat1SP_Conc!$E$10,12*($A16-1),4*(PlotControl!$C$6-1),12,1)),AVERAGE(OFFSET(Cat1SP_Conc!$E$10,12*($A16-1),4*(PlotControl!$C$6-1),12,1))) -> 3330600 | R16: 40.91666667 | S16: =OFFSET(EP_Pore_Conc!$C$10,ROUND(12*$R16,0),4*(PlotControl!$C$6-1),1,1) -> 255080 | T16: =OFFSET(EP_Pore_Conc!$D$10,ROUND(12*$R16,0),4*(PlotControl!$C$6-1),1,1) -> 256810 | U16: =OFFSET(EP_Pore_Conc!$E$10,ROUND(12*$R16,0),4*(PlotControl!$C$6-1),1,1) -> 262670 | V16: =OFFSET(EP_Wetland_Conc!$C$10,ROUND(12*$R16,0),4*(PlotControl!$C$6-1),1,1) -> 11630 | W16: =OFFSET(EP_Wetland_Conc!$D$10,ROUND(12*$R16,0),4*(PlotControl!$C$6-1),1,1) -> 17937 | X16: =OFFSET(EP_Wetland_Conc!$E$10,ROUND(12*$R16,0),4*(PlotControl!$C$6-1),1,1) -> 48602 | Y16: =OFFSET(WP_Conc!$C$10,ROUND(12*$R16,0),4*(PlotControl!$C$6-1),1,1) -> 58174 | Z16: =OFFSET(WP_Conc!$D$10,ROUND(12*$R16,0),4*(PlotControl!$C$6-1),1,1) -> 66616 | AA16: =OFFSET(WP_Conc!$E$10,ROUND(12*$R16,0),4*(PlotControl!$C$6-1),1,1) -> 78547 | AB16: =OFFSET(WWTF_Outflow_Conc!$C$10,ROUND(12*$R16,0),4*(PlotControl!$C$6-1),1,1) -> 0 | AC16: =OFFSET(WWTF_Outflow_Conc!$D$10,ROUND(12*$R16,0),4*(PlotControl!$C$6-1),1,1) -> 0 | AD16: =OFFSET(WWTF_Outflow_Conc!$E$10,ROUND(12*$R16,0),4*(PlotControl!$C$6-1),1,1) -> 0 | AE16: =OFFSET(Cat1SP_Conc!$C$10,ROUND(12*$R16,0),4*(PlotControl!$C$6-1),1,1) -> 2250900 | AF16: =OFFSET(Cat1SP_Conc!$D$10,ROUND(12*$R16,0),4*(PlotControl!$C$6-1),1,1) -> 2763300 | AG16: =OFFSET(Cat1SP_Conc!$E$10,ROUND(12*$R16,0),4*(PlotControl!$C$6-1),1,1) -> 4005400
A17: 13 | B17: =IF(PlotControl!$B$4 = "Annual Max",MAX(OFFSET(EP_Pore_Conc!$C$10,12*($A17-1),4*(PlotControl!$C$6-1),12,1)),AVERAGE(OFFSET(EP_Pore_Conc!$C$10,12*($A17-1),4*(PlotControl!$C$6-1),12,1))) -> 2042500 | C17: =IF(PlotControl!$B$4 = "Annual Max",MAX(OFFSET(EP_Pore_Conc!$D$10,12*($A17-1),4*(PlotControl!$C$6-1),12,1)),AVERAGE(OFFSET(EP_Pore_Conc!$D$10,12*($A17-1),4*(PlotControl!$C$6-1),12,1))) -> 2599700 | D17: =IF(PlotControl!$B$4 = "Annual Max",MAX(OFFSET(EP_Pore_Conc!$E$10,12*($A17-1),4*(PlotControl!$C$6-1),12,1)),AVERAGE(OFFSET(EP_Pore_Conc!$E$10,12*($A17-1),4*(PlotControl!$C$6-1),12,1))) -> 3800700 | E17: =IF(PlotControl!$B$4 = "Annual Max",MAX(OFFSET(EP_Wetland_Conc!$C$10,12*($A17-1),4*(PlotControl!$C$6-1),12,1)),AVERAGE(OFFSET(EP_Wetland_Conc!$C$10,12*($A17-1),4*(PlotControl!$C$6-1),12,1))) -> 0.00097552 | F17: =IF(PlotControl!$B$4 = "Annual Max",MAX(OFFSET(EP_Wetland_Conc!$D$10,12*($A17-1),4*(PlotControl!$C$6-1),12,1)),AVERAGE(OFFSET(EP_Wetland_Conc!$D$10,12*($A17-1),4*(PlotControl!$C$6-1),12,1))) -> 0.0024356 | G17: =IF(PlotControl!$B$4 = "Annual Max",MAX(OFFSET(EP_Wetland_Conc!$E$10,12*($A17-1),4*(PlotControl!$C$6-1),12,1)),AVERAGE(OFFSET(EP_Wetland_Conc!$E$10,12*($A17-1),4*(PlotControl!$C$6-1),12,1))) -> 0.0053532 | H17: =IF(PlotControl!$B$4 = "Annual Max",MAX(OFFSET(WP_Conc!$C$10,12*($A17-1),4*(PlotControl!$C$6-1),12,1)),AVERAGE(OFFSET(WP_Conc!$C$10,12*($A17-1),4*(PlotControl!$C$6-1),12,1))) -> 467150 | I17: =IF(PlotControl!$B$4 = "Annual Max",MAX(OFFSET(WP_Conc!$D$10,12*($A17-1),4*(PlotControl!$C$6-1),12,1)),AVERAGE(OFFSET(WP_Conc!$D$10,12*($A17-1),4*(PlotControl!$C$6-1),12,1))) -> 748170 | J17: =IF(PlotControl!$B$4 = "Annual Max",MAX(OFFSET(WP_Conc!$E$10,12*($A17-1),4*(PlotControl!$C$6-1),12,1)),AVERAGE(OFFSET(WP_Conc!$E$10,12*($A17-1),4*(PlotControl!$C$6-1),12,1))) -> 1143800 | K17: =IF(PlotControl!$B$4 = "Annual Max",MAX(OFFSET(WWTF_Outflow_Conc!$C$10,12*($A17-1),4*(PlotControl!$C$6-1),12,1)),AVERAGE(OFFSET(WWTF_Outflow_Conc!$C$10,12*($A17-1),4*(PlotControl!$C$6-1),12,1))) -> 0 | L17: =IF(PlotControl!$B$4 = "Annual Max",MAX(OFFSET(WWTF_Outflow_Conc!$D$10,12*($A17-1),4*(PlotControl!$C$6-1),12,1)),AVERAGE(OFFSET(WWTF_Outflow_Conc!$D$10,12*($A17-1),4*(PlotControl!$C$6-1),12,1))) -> 0 | M17: =IF(PlotControl!$B$4 = "Annual Max",MAX(OFFSET(WWTF_Outflow_Conc!$E$10,12*($A17-1),4*(PlotControl!$C$6-1),12,1)),AVERAGE(OFFSET(WWTF_Outflow_Conc!$E$10,12*($A17-1),4*(PlotControl!$C$6-1),12,1))) -> 0 | N17: =IF(PlotControl!$B$4 = "Annual Max",MAX(OFFSET(Cat1SP_Conc!$C$10,12*($A17-1),4*(PlotControl!$C$6-1),12,1)),AVERAGE(OFFSET(Cat1SP_Conc!$C$10,12*($A17-1),4*(PlotControl!$C$6-1),12,1))) -> 1246700 | O17: =IF(PlotControl!$B$4 = "Annual Max",MAX(OFFSET(Cat1SP_Conc!$D$10,12*($A17-1),4*(PlotControl!$C$6-1),12,1)),AVERAGE(OFFSET(Cat1SP_Conc!$D$10,12*($A17-1),4*(PlotControl!$C$6-1),12,1))) -> 2434500 | P17: =IF(PlotControl!$B$4 = "Annual Max",MAX(OFFSET(Cat1SP_Conc!$E$10,12*($A17-1),4*(PlotControl!$C$6-1),12,1)),AVERAGE(OFFSET(Cat1SP_Conc!$E$10,12*($A17-1),4*(PlotControl!$C$6-1),12,1))) -> 3324200 | R17: 41 | S17: =OFFSET(EP_Pore_Conc!$C$10,ROUND(12*$R17,0),4*(PlotControl!$C$6-1),1,1) -> 255080 | T17: =OFFSET(EP_Pore_Conc!$D$10,ROUND(12*$R17,0),4*(PlotControl!$C$6-1),1,1) -> 256800 | U17: =OFFSET(EP_Pore_Conc!$E$10,ROUND(12*$R17,0),4*(PlotControl!$C$6-1),1,1) -> 262630 | V17: =OFFSET(EP_Wetland_Conc!$C$10,ROUND(12*$R17,0),4*(PlotControl!$C$6-1),1,1) -> 11740 | W17: =OFFSET(EP_Wetland_Conc!$D$10,ROUND(12*$R17,0),4*(PlotControl!$C$6-1),1,1) -> 18015 | X17: =OFFSET(EP_Wetland_Conc!$E$10,ROUND(12*$R17,0),4*(PlotControl!$C$6-1),1,1) -> 48674 | Y17: =OFFSET(WP_Conc!$C$10,ROUND(12*$R17,0),4*(PlotControl!$C$6-1),1,1) -> 58103 | Z17: =OFFSET(WP_Conc!$D$10,ROUND(12*$R17,0),4*(PlotControl!$C$6-1),1,1) -> 66563 | AA17: =OFFSET(WP_Conc!$E$10,ROUND(12*$R17,0),4*(PlotControl!$C$6-1),1,1) -> 78578 | AB17: =OFFSET(WWTF_Outflow_Conc!$C$10,ROUND(12*$R17,0),4*(PlotControl!$C$6-1),1,1) -> 0 | AC17: =OFFSET(WWTF_Outflow_Conc!$D$10,ROUND(12*$R17,0),4*(PlotControl!$C$6-1),1,1) -> 0 | AD17: =OFFSET(WWTF_Outflow_Conc!$E$10,ROUND(12*$R17,0),4*(PlotControl!$C$6-1),1,1) -> 0 | AE17: =OFFSET(Cat1SP_Conc!$C$10,ROUND(12*$R17,0),4*(PlotControl!$C$6-1),1,1) -> 2251000 | AF17: =OFFSET(Cat1SP_Conc!$D$10,ROUND(12*$R17,0),4*(PlotControl!$C$6-1),1,1) -> 2763300 | AG17: =OFFSET(Cat1SP_Conc!$E$10,ROUND(12*$R17,0),4*(PlotControl!$C$6-1),1,1) -> 4005400
A18: 14 | B18: =IF(PlotControl!$B$4 = "Annual Max",MAX(OFFSET(EP_Pore_Conc!$C$10,12*($A18-1),4*(PlotControl!$C$6-1),12,1)),AVERAGE(OFFSET(EP_Pore_Conc!$C$10,12*($A18-1),4*(PlotControl!$C$6-1),12,1))) -> 1989100 | C18: =IF(PlotControl!$B$4 = "Annual Max",MAX(OFFSET(EP_Pore_Conc!$D$10,12*($A18-1),4*(PlotControl!$C$6-1),12,1)),AVERAGE(OFFSET(EP_Pore_Conc!$D$10,12*($A18-1),4*(PlotControl!$C$6-1),12,1))) -> 2540400 | D18: =IF(PlotControl!$B$4 = "Annual Max",MAX(OFFSET(EP_Pore_Conc!$E$10,12*($A18-1),4*(PlotControl!$C$6-1),12,1)),AVERAGE(OFFSET(EP_Pore_Conc!$E$10,12*($A18-1),4*(PlotControl!$C$6-1),12,1))) -> 3754000 | E18: =IF(PlotControl!$B$4 = "Annual Max",MAX(OFFSET(EP_Wetland_Conc!$C$10,12*($A18-1),4*(PlotControl!$C$6-1),12,1)),AVERAGE(OFFSET(EP_Wetland_Conc!$C$10,12*($A18-1),4*(PlotControl!$C$6-1),12,1))) -> 0.0014922 | F18: =IF(PlotControl!$B$4 = "Annual Max",MAX(OFFSET(EP_Wetland_Conc!$D$10,12*($A18-1),4*(PlotControl!$C$6-1),12,1)),AVERAGE(OFFSET(EP_Wetland_Conc!$D$10,12*($A18-1),4*(PlotControl!$C$6-1),12,1))) -> 0.0035555 | G18: =IF(PlotControl!$B$4 = "Annual Max",MAX(OFFSET(EP_Wetland_Conc!$E$10,12*($A18-1),4*(PlotControl!$C$6-1),12,1)),AVERAGE(OFFSET(EP_Wetland_Conc!$E$10,12*($A18-1),4*(PlotControl!$C$6-1),12,1))) -> 0.0072886 | H18: =IF(PlotControl!$B$4 = "Annual Max",MAX(OFFSET(WP_Conc!$C$10,12*($A18-1),4*(PlotControl!$C$6-1),12,1)),AVERAGE(OFFSET(WP_Conc!$C$10,12*($A18-1),4*(PlotControl!$C$6-1),12,1))) -> 458960 | I18: =IF(PlotControl!$B$4 = "Annual Max",MAX(OFFSET(WP_Conc!$D$10,12*($A18-1),4*(PlotControl!$C$6-1),12,1)),AVERAGE(OFFSET(WP_Conc!$D$10,12*($A18-1),4*(PlotControl!$C$6-1),12,1))) -> 758300 | J18: =IF(PlotControl!$B$4 = "Annual Max",MAX(OFFSET(WP_Conc!$E$10,12*($A18-1),4*(PlotControl!$C$6-1),12,1)),AVERAGE(OFFSET(WP_Conc!$E$10,12*($A18-1),4*(PlotControl!$C$6-1),12,1))) -> 1143000 | K18: =IF(PlotControl!$B$4 = "Annual Max",MAX(OFFSET(WWTF_Outflow_Conc!$C$10,12*($A18-1),4*(PlotControl!$C$6-1),12,1)),AVERAGE(OFFSET(WWTF_Outflow_Conc!$C$10,12*($A18-1),4*(PlotControl!$C$6-1),12,1))) -> 0 | L18: =IF(PlotControl!$B$4 = "Annual Max",MAX(OFFSET(WWTF_Outflow_Conc!$D$10,12*($A18-1),4*(PlotControl!$C$6-1),12,1)),AVERAGE(OFFSET(WWTF_Outflow_Conc!$D$10,12*($A18-1),4*(PlotControl!$C$6-1),12,1))) -> 0 | M18: =IF(PlotControl!$B$4 = "Annual Max",MAX(OFFSET(WWTF_Outflow_Conc!$E$10,12*($A18-1),4*(PlotControl!$C$6-1),12,1)),AVERAGE(OFFSET(WWTF_Outflow_Conc!$E$10,12*($A18-1),4*(PlotControl!$C$6-1),12,1))) -> 0 | N18: =IF(PlotControl!$B$4 = "Annual Max",MAX(OFFSET(Cat1SP_Conc!$C$10,12*($A18-1),4*(PlotControl!$C$6-1),12,1)),AVERAGE(OFFSET(Cat1SP_Conc!$C$10,12*($A18-1),4*(PlotControl!$C$6-1),12,1))) -> 1148500 | O18: =IF(PlotControl!$B$4 = "Annual Max",MAX(OFFSET(Cat1SP_Conc!$D$10,12*($A18-1),4*(PlotControl!$C$6-1),12,1)),AVERAGE(OFFSET(Cat1SP_Conc!$D$10,12*($A18-1),4*(PlotControl!$C$6-1),12,1))) -> 2422900 | P18: =IF(PlotControl!$B$4 = "Annual Max",MAX(OFFSET(Cat1SP_Conc!$E$10,12*($A18-1),4*(PlotControl!$C$6-1),12,1)),AVERAGE(OFFSET(Cat1SP_Conc!$E$10,12*($A18-1),4*(PlotControl!$C$6-1),12,1))) -> 3422100 | R18: 41.08333333 | S18: =OFFSET(EP_Pore_Conc!$C$10,ROUND(12*$R18,0),4*(PlotControl!$C$6-1),1,1) -> 255080 | T18: =OFFSET(EP_Pore_Conc!$D$10,ROUND(12*$R18,0),4*(PlotControl!$C$6-1),1,1) -> 256800 | U18: =OFFSET(EP_Pore_Conc!$E$10,ROUND(12*$R18,0),4*(PlotControl!$C$6-1),1,1) -> 262630 | V18: =OFFSET(EP_Wetland_Conc!$C$10,ROUND(12*$R18,0),4*(PlotControl!$C$6-1),1,1) -> 11859 | W18: =OFFSET(EP_Wetland_Conc!$D$10,ROUND(12*$R18,0),4*(PlotControl!$C$6-1),1,1) -> 18076 | X18: =OFFSET(EP_Wetland_Conc!$E$10,ROUND(12*$R18,0),4*(PlotControl!$C$6-1),1,1) -> 48992 | Y18: =OFFSET(WP_Conc!$C$10,ROUND(12*$R18,0),4*(PlotControl!$C$6-1),1,1) -> 58036 | Z18: =OFFSET(WP_Conc!$D$10,ROUND(12*$R18,0),4*(PlotControl!$C$6-1),1,1) -> 66696 | AA18: =OFFSET(WP_Conc!$E$10,ROUND(12*$R18,0),4*(PlotControl!$C$6-1),1,1) -> 78571 | AB18: =OFFSET(WWTF_Outflow_Conc!$C$10,ROUND(12*$R18,0),4*(PlotControl!$C$6-1),1,1) -> 0 | AC18: =OFFSET(WWTF_Outflow_Conc!$D$10,ROUND(12*$R18,0),4*(PlotControl!$C$6-1),1,1) -> 0 | AD18: =OFFSET(WWTF_Outflow_Conc!$E$10,ROUND(12*$R18,0),4*(PlotControl!$C$6-1),1,1) -> 0 | AE18: =OFFSET(Cat1SP_Conc!$C$10,ROUND(12*$R18,0),4*(PlotControl!$C$6-1),1,1) -> 2251000 | AF18: =OFFSET(Cat1SP_Conc!$D$10,ROUND(12*$R18,0),4*(PlotControl!$C$6-1),1,1) -> 2763300 | AG18: =OFFSET(Cat1SP_Conc!$E$10,ROUND(12*$R18,0),4*(PlotControl!$C$6-1),1,1) -> 4005400
A19: 15 | B19: =IF(PlotControl!$B$4 = "Annual Max",MAX(OFFSET(EP_Pore_Conc!$C$10,12*($A19-1),4*(PlotControl!$C$6-1),12,1)),AVERAGE(OFFSET(EP_Pore_Conc!$C$10,12*($A19-1),4*(PlotControl!$C$6-1),12,1))) -> 1509000 | C19: =IF(PlotControl!$B$4 = "Annual Max",MAX(OFFSET(EP_Pore_Conc!$D$10,12*($A19-1),4*(PlotControl!$C$6-1),12,1)),AVERAGE(OFFSET(EP_Pore_Conc!$D$10,12*($A19-1),4*(PlotControl!$C$6-1),12,1))) -> 2410300 | D19: =IF(PlotControl!$B$4 = "Annual Max",MAX(OFFSET(EP_Pore_Conc!$E$10,12*($A19-1),4*(PlotControl!$C$6-1),12,1)),AVERAGE(OFFSET(EP_Pore_Conc!$E$10,12*($A19-1),4*(PlotControl!$C$6-1),12,1))) -> 3539800 | E19: =IF(PlotControl!$B$4 = "Annual Max",MAX(OFFSET(EP_Wetland_Conc!$C$10,12*($A19-1),4*(PlotControl!$C$6-1),12,1)),AVERAGE(OFFSET(EP_Wetland_Conc!$C$10,12*($A19-1),4*(PlotControl!$C$6-1),12,1))) -> 0.001998 | F19: =IF(PlotControl!$B$4 = "Annual Max",MAX(OFFSET(EP_Wetland_Conc!$D$10,12*($A19-1),4*(PlotControl!$C$6-1),12,1)),AVERAGE(OFFSET(EP_Wetland_Conc!$D$10,12*($A19-1),4*(PlotControl!$C$6-1),12,1))) -> 0.0046899 | G19: =IF(PlotControl!$B$4 = "Annual Max",MAX(OFFSET(EP_Wetland_Conc!$E$10,12*($A19-1),4*(PlotControl!$C$6-1),12,1)),AVERAGE(OFFSET(EP_Wetland_Conc!$E$10,12*($A19-1),4*(PlotControl!$C$6-1),12,1))) -> 0.0092796 | H19: =IF(PlotControl!$B$4 = "Annual Max",MAX(OFFSET(WP_Conc!$C$10,12*($A19-1),4*(PlotControl!$C$6-1),12,1)),AVERAGE(OFFSET(WP_Conc!$C$10,12*($A19-1),4*(PlotControl!$C$6-1),12,1))) -> 557450 | I19: =IF(PlotControl!$B$4 = "Annual Max",MAX(OFFSET(WP_Conc!$D$10,12*($A19-1),4*(PlotControl!$C$6-1),12,1)),AVERAGE(OFFSET(WP_Conc!$D$10,12*($A19-1),4*(PlotControl!$C$6-1),12,1))) -> 844120 | J19: =IF(PlotControl!$B$4 = "Annual Max",MAX(OFFSET(WP_Conc!$E$10,12*($A19-1),4*(PlotControl!$C$6-1),12,1)),AVERAGE(OFFSET(WP_Conc!$E$10,12*($A19-1),4*(PlotControl!$C$6-1),12,1))) -> 1291700 | K19: =IF(PlotControl!$B$4 = "Annual Max",MAX(OFFSET(WWTF_Outflow_Conc!$C$10,12*($A19-1),4*(PlotControl!$C$6-1),12,1)),AVERAGE(OFFSET(WWTF_Outflow_Conc!$C$10,12*($A19-1),4*(PlotControl!$C$6-1),12,1))) -> 0 | L19: =IF(PlotControl!$B$4 = "Annual Max",MAX(OFFSET(WWTF_Outflow_Conc!$D$10,12*($A19-1),4*(PlotControl!$C$6-1),12,1)),AVERAGE(OFFSET(WWTF_Outflow_Conc!$D$10,12*($A19-1),4*(PlotControl!$C$6-1),12,1))) -> 0 | M19: =IF(PlotControl!$B$4 = "Annual Max",MAX(OFFSET(WWTF_Outflow_Conc!$E$10,12*($A19-1),4*(PlotControl!$C$6-1),12,1)),AVERAGE(OFFSET(WWTF_Outflow_Conc!$E$10,12*($A19-1),4*(PlotControl!$C$6-1),12,1))) -> 0 | N19: =IF(PlotControl!$B$4 = "Annual Max",MAX(OFFSET(Cat1SP_Conc!$C$10,12*($A19-1),4*(PlotControl!$C$6-1),12,1)),AVERAGE(OFFSET(Cat1SP_Conc!$C$10,12*($A19-1),4*(PlotControl!$C$6-1),12,1))) -> 1152900 | O19: =IF(PlotControl!$B$4 = "Annual Max",MAX(OFFSET(Cat1SP_Conc!$D$10,12*($A19-1),4*(PlotControl!$C$6-1),12,1)),AVERAGE(OFFSET(Cat1SP_Conc!$D$10,12*($A19-1),4*(PlotControl!$C$6-1),12,1))) -> 2376300 | P19: =IF(PlotControl!$B$4 = "Annual Max",MAX(OFFSET(Cat1SP_Conc!$E$10,12*($A19-1),4*(PlotControl!$C$6-1),12,1)),AVERAGE(OFFSET(Cat1SP_Conc!$E$10,12*($A19-1),4*(PlotControl!$C$6-1),12,1))) -> 3241400 | R19: 41.16666667 | S19: =OFFSET(EP_Pore_Conc!$C$10,ROUND(12*$R19,0),4*(PlotControl!$C$6-1),1,1) -> 255080 | T19: =OFFSET(EP_Pore_Conc!$D$10,ROUND(12*$R19,0),4*(PlotControl!$C$6-1),1,1) -> 256800 | U19: =OFFSET(EP_Pore_Conc!$E$10,ROUND(12*$R19,0),4*(PlotControl!$C$6-1),1,1) -> 262630 | V19: =OFFSET(EP_Wetland_Conc!$C$10,ROUND(12*$R19,0),4*(PlotControl!$C$6-1),1,1) -> 11973 | W19: =OFFSET(EP_Wetland_Conc!$D$10,ROUND(12*$R19,0),4*(PlotControl!$C$6-1),1,1) -> 18155 | X19: =OFFSET(EP_Wetland_Conc!$E$10,ROUND(12*$R19,0),4*(PlotControl!$C$6-1),1,1) -> 49753 | Y19: =OFFSET(WP_Conc!$C$10,ROUND(12*$R19,0),4*(PlotControl!$C$6-1),1,1) -> 57964 | Z19: =OFFSET(WP_Conc!$D$10,ROUND(12*$R19,0),4*(PlotControl!$C$6-1),1,1) -> 66635 | AA19: =OFFSET(WP_Conc!$E$10,ROUND(12*$R19,0),4*(PlotControl!$C$6-1),1,1) -> 78554 | AB19: =OFFSET(WWTF_Outflow_Conc!$C$10,ROUND(12*$R19,0),4*(PlotControl!$C$6-1),1,1) -> 0 | AC19: =OFFSET(WWTF_Outflow_Conc!$D$10,ROUND(12*$R19,0),4*(PlotControl!$C$6-1),1,1) -> 0 | AD19: =OFFSET(WWTF_Outflow_Conc!$E$10,ROUND(12*$R19,0),4*(PlotControl!$C$6-1),1,1) -> 0 | AE19: =OFFSET(Cat1SP_Conc!$C$10,ROUND(12*$R19,0),4*(PlotControl!$C$6-1),1,1) -> 2251000 | AF19: =OFFSET(Cat1SP_Conc!$D$10,ROUND(12*$R19,0),4*(PlotControl!$C$6-1),1,1) -> 2763300 | AG19: =OFFSET(Cat1SP_Conc!$E$10,ROUND(12*$R19,0),4*(PlotControl!$C$6-1),1,1) -> 4005400
A20: 16 | B20: =IF(PlotControl!$B$4 = "Annual Max",MAX(OFFSET(EP_Pore_Conc!$C$10,12*($A20-1),4*(PlotControl!$C$6-1),12,1)),AVERAGE(OFFSET(EP_Pore_Conc!$C$10,12*($A20-1),4*(PlotControl!$C$6-1),12,1))) -> 923980 | C20: =IF(PlotControl!$B$4 = "Annual Max",MAX(OFFSET(EP_Pore_Conc!$D$10,12*($A20-1),4*(PlotControl!$C$6-1),12,1)),AVERAGE(OFFSET(EP_Pore_Conc!$D$10,12*($A20-1),4*(PlotControl!$C$6-1),12,1))) -> 2174700 | D20: =IF(PlotControl!$B$4 = "Annual Max",MAX(OFFSET(EP_Pore_Conc!$E$10,12*($A20-1),4*(PlotControl!$C$6-1),12,1)),AVERAGE(OFFSET(EP_Pore_Conc!$E$10,12*($A20-1),4*(PlotControl!$C$6-1),12,1))) -> 3244600 | E20: =IF(PlotControl!$B$4 = "Annual Max",MAX(OFFSET(EP_Wetland_Conc!$C$10,12*($A20-1),4*(PlotControl!$C$6-1),12,1)),AVERAGE(OFFSET(EP_Wetland_Conc!$C$10,12*($A20-1),4*(PlotControl!$C$6-1),12,1))) -> 0.0021714 | F20: =IF(PlotControl!$B$4 = "Annual Max",MAX(OFFSET(EP_Wetland_Conc!$D$10,12*($A20-1),4*(PlotControl!$C$6-1),12,1)),AVERAGE(OFFSET(EP_Wetland_Conc!$D$10,12*($A20-1),4*(PlotControl!$C$6-1),12,1))) -> 0.0050532 | G20: =IF(PlotControl!$B$4 = "Annual Max",MAX(OFFSET(EP_Wetland_Conc!$E$10,12*($A20-1),4*(PlotControl!$C$6-1),12,1)),AVERAGE(OFFSET(EP_Wetland_Conc!$E$10,12*($A20-1),4*(PlotControl!$C$6-1),12,1))) -> 0.0099293 | H20: =IF(PlotControl!$B$4 = "Annual Max",MAX(OFFSET(WP_Conc!$C$10,12*($A20-1),4*(PlotControl!$C$6-1),12,1)),AVERAGE(OFFSET(WP_Conc!$C$10,12*($A20-1),4*(PlotControl!$C$6-1),12,1))) -> 555730 | I20: =IF(PlotControl!$B$4 = "Annual Max",MAX(OFFSET(WP_Conc!$D$10,12*($A20-1),4*(PlotControl!$C$6-1),12,1)),AVERAGE(OFFSET(WP_Conc!$D$10,12*($A20-1),4*(PlotControl!$C$6-1),12,1))) -> 842450 | J20: =IF(PlotControl!$B$4 = "Annual Max",MAX(OFFSET(WP_Conc!$E$10,12*($A20-1),4*(PlotControl!$C$6-1),12,1)),AVERAGE(OFFSET(WP_Conc!$E$10,12*($A20-1),4*(PlotControl!$C$6-1),12,1))) -> 1238200 | K20: =IF(PlotControl!$B$4 = "Annual Max",MAX(OFFSET(WWTF_Outflow_Conc!$C$10,12*($A20-1),4*(PlotControl!$C$6-1),12,1)),AVERAGE(OFFSET(WWTF_Outflow_Conc!$C$10,12*($A20-1),4*(PlotControl!$C$6-1),12,1))) -> 0 | L20: =IF(PlotControl!$B$4 = "Annual Max",MAX(OFFSET(WWTF_Outflow_Conc!$D$10,12*($A20-1),4*(PlotControl!$C$6-1),12,1)),AVERAGE(OFFSET(WWTF_Outflow_Conc!$D$10,12*($A20-1),4*(PlotControl!$C$6-1),12,1))) -> 0 | M20: =IF(PlotControl!$B$4 = "Annual Max",MAX(OFFSET(WWTF_Outflow_Conc!$E$10,12*($A20-1),4*(PlotControl!$C$6-1),12,1)),AVERAGE(OFFSET(WWTF_Outflow_Conc!$E$10,12*($A20-1),4*(PlotControl!$C$6-1),12,1))) -> 0 | N20: =IF(PlotControl!$B$4 = "Annual Max",MAX(OFFSET(Cat1SP_Conc!$C$10,12*($A20-1),4*(PlotControl!$C$6-1),12,1)),AVERAGE(OFFSET(Cat1SP_Conc!$C$10,12*($A20-1),4*(PlotControl!$C$6-1),12,1))) -> 1171900 | O20: =IF(PlotControl!$B$4 = "Annual Max",MAX(OFFSET(Cat1SP_Conc!$D$10,12*($A20-1),4*(PlotControl!$C$6-1),12,1)),AVERAGE(OFFSET(Cat1SP_Conc!$D$10,12*($A20-1),4*(PlotControl!$C$6-1),12,1))) -> 2350300 | P20: =IF(PlotControl!$B$4 = "Annual Max",MAX(OFFSET(Cat1SP_Conc!$E$10,12*($A20-1),4*(PlotControl!$C$6-1),12,1)),AVERAGE(OFFSET(Cat1SP_Conc!$E$10,12*($A20-1),4*(PlotControl!$C$6-1),12,1))) -> 3308900 | R20: 41.25 | S20: =OFFSET(EP_Pore_Conc!$C$10,ROUND(12*$R20,0),4*(PlotControl!$C$6-1),1,1) -> 255080 | T20: =OFFSET(EP_Pore_Conc!$D$10,ROUND(12*$R20,0),4*(PlotControl!$C$6-1),1,1) -> 256800 | U20: =OFFSET(EP_Pore_Conc!$E$10,ROUND(12*$R20,0),4*(PlotControl!$C$6-1),1,1) -> 262630 | V20: =OFFSET(EP_Wetland_Conc!$C$10,ROUND(12*$R20,0),4*(PlotControl!$C$6-1),1,1) -> 12084 | W20: =OFFSET(EP_Wetland_Conc!$D$10,ROUND(12*$R20,0),4*(PlotControl!$C$6-1),1,1) -> 18249 | X20: =OFFSET(EP_Wetland_Conc!$E$10,ROUND(12*$R20,0),4*(PlotControl!$C$6-1),1,1) -> 50463 | Y20: =OFFSET(WP_Conc!$C$10,ROUND(12*$R20,0),4*(PlotControl!$C$6-1),1,1) -> 57883 | Z20: =OFFSET(WP_Conc!$D$10,ROUND(12*$R20,0),4*(PlotControl!$C$6-1),1,1) -> 66554 | AA20: =OFFSET(WP_Conc!$E$10,ROUND(12*$R20,0),4*(PlotControl!$C$6-1),1,1) -> 78520 | AB20: =OFFSET(WWTF_Outflow_Conc!$C$10,ROUND(12*$R20,0),4*(PlotControl!$C$6-1),1,1) -> 0 | AC20: =OFFSET(WWTF_Outflow_Conc!$D$10,ROUND(12*$R20,0),4*(PlotControl!$C$6-1),1,1) -> 0 | AD20: =OFFSET(WWTF_Outflow_Conc!$E$10,ROUND(12*$R20,0),4*(PlotControl!$C$6-1),1,1) -> 0 | AE20: =OFFSET(Cat1SP_Conc!$C$10,ROUND(12*$R20,0),4*(PlotControl!$C$6-1),1,1) -> 2251000 | AF20: =OFFSET(Cat1SP_Conc!$D$10,ROUND(12*$R20,0),4*(PlotControl!$C$6-1),1,1) -> 2763300 | AG20: =OFFSET(Cat1SP_Conc!$E$10,ROUND(12*$R20,0),4*(PlotControl!$C$6-1),1,1) -> 4005400
A21: 17 | B21: =IF(PlotControl!$B$4 = "Annual Max",MAX(OFFSET(EP_Pore_Conc!$C$10,12*($A21-1),4*(PlotControl!$C$6-1),12,1)),AVERAGE(OFFSET(EP_Pore_Conc!$C$10,12*($A21-1),4*(PlotControl!$C$6-1),12,1))) -> 957500 | C21: =IF(PlotControl!$B$4 = "Annual Max",MAX(OFFSET(EP_Pore_Conc!$D$10,12*($A21-1),4*(PlotControl!$C$6-1),12,1)),AVERAGE(OFFSET(EP_Pore_Conc!$D$10,12*($A21-1),4*(PlotControl!$C$6-1),12,1))) -> 2142400 | D21: =IF(PlotControl!$B$4 = "Annual Max",MAX(OFFSET(EP_Pore_Conc!$E$10,12*($A21-1),4*(PlotControl!$C$6-1),12,1)),AVERAGE(OFFSET(EP_Pore_Conc!$E$10,12*($A21-1),4*(PlotControl!$C$6-1),12,1))) -> 3209800 | E21: =IF(PlotControl!$B$4 = "Annual Max",MAX(OFFSET(EP_Wetland_Conc!$C$10,12*($A21-1),4*(PlotControl!$C$6-1),12,1)),AVERAGE(OFFSET(EP_Wetland_Conc!$C$10,12*($A21-1),4*(PlotControl!$C$6-1),12,1))) -> 0.0021714 | F21: =IF(PlotControl!$B$4 = "Annual Max",MAX(OFFSET(EP_Wetland_Conc!$D$10,12*($A21-1),4*(PlotControl!$C$6-1),12,1)),AVERAGE(OFFSET(EP_Wetland_Conc!$D$10,12*($A21-1),4*(PlotControl!$C$6-1),12,1))) -> 0.0050532 | G21: =IF(PlotControl!$B$4 = "Annual Max",MAX(OFFSET(EP_Wetland_Conc!$E$10,12*($A21-1),4*(PlotControl!$C$6-1),12,1)),AVERAGE(OFFSET(EP_Wetland_Conc!$E$10,12*($A21-1),4*(PlotControl!$C$6-1),12,1))) -> 0.0099293 | H21: =IF(PlotControl!$B$4 = "Annual Max",MAX(OFFSET(WP_Conc!$C$10,12*($A21-1),4*(PlotControl!$C$6-1),12,1)),AVERAGE(OFFSET(WP_Conc!$C$10,12*($A21-1),4*(PlotControl!$C$6-1),12,1))) -> 528050 | I21: =IF(PlotControl!$B$4 = "Annual Max",MAX(OFFSET(WP_Conc!$D$10,12*($A21-1),4*(PlotControl!$C$6-1),12,1)),AVERAGE(OFFSET(WP_Conc!$D$10,12*($A21-1),4*(PlotControl!$C$6-1),12,1))) -> 820710 | J21: =IF(PlotControl!$B$4 = "Annual Max",MAX(OFFSET(WP_Conc!$E$10,12*($A21-1),4*(PlotControl!$C$6-1),12,1)),AVERAGE(OFFSET(WP_Conc!$E$10,12*($A21-1),4*(PlotControl!$C$6-1),12,1))) -> 1226400 | K21: =IF(PlotControl!$B$4 = "Annual Max",MAX(OFFSET(WWTF_Outflow_Conc!$C$10,12*($A21-1),4*(PlotControl!$C$6-1),12,1)),AVERAGE(OFFSET(WWTF_Outflow_Conc!$C$10,12*($A21-1),4*(PlotControl!$C$6-1),12,1))) -> 0 | L21: =IF(PlotControl!$B$4 = "Annual Max",MAX(OFFSET(WWTF_Outflow_Conc!$D$10,12*($A21-1),4*(PlotControl!$C$6-1),12,1)),AVERAGE(OFFSET(WWTF_Outflow_Conc!$D$10,12*($A21-1),4*(PlotControl!$C$6-1),12,1))) -> 0 | M21: =IF(PlotControl!$B$4 = "Annual Max",MAX(OFFSET(WWTF_Outflow_Conc!$E$10,12*($A21-1),4*(PlotControl!$C$6-1),12,1)),AVERAGE(OFFSET(WWTF_Outflow_Conc!$E$10,12*($A21-1),4*(PlotControl!$C$6-1),12,1))) -> 0 | N21: =IF(PlotControl!$B$4 = "Annual Max",MAX(OFFSET(Cat1SP_Conc!$C$10,12*($A21-1),4*(PlotControl!$C$6-1),12,1)),AVERAGE(OFFSET(Cat1SP_Conc!$C$10,12*($A21-1),4*(PlotControl!$C$6-1),12,1))) -> 1108200 | O21: =IF(PlotControl!$B$4 = "Annual Max",MAX(OFFSET(Cat1SP_Conc!$D$10,12*($A21-1),4*(PlotControl!$C$6-1),12,1)),AVERAGE(OFFSET(Cat1SP_Conc!$D$10,12*($A21-1),4*(PlotControl!$C$6-1),12,1))) -> 2350100 | P21: =IF(PlotControl!$B$4 = "Annual Max",MAX(OFFSET(Cat1SP_Conc!$E$10,12*($A21-1),4*(PlotControl!$C$6-1),12,1)),AVERAGE(OFFSET(Cat1SP_Conc!$E$10,12*($A21-1),4*(PlotControl!$C$6-1),12,1))) -> 3252500 | R21: 41.33333333 | S21: =OFFSET(EP_Pore_Conc!$C$10,ROUND(12*$R21,0),4*(PlotControl!$C$6-1),1,1) -> 255050 | T21: =OFFSET(EP_Pore_Conc!$D$10,ROUND(12*$R21,0),4*(PlotControl!$C$6-1),1,1) -> 256800 | U21: =OFFSET(EP_Pore_Conc!$E$10,ROUND(12*$R21,0),4*(PlotControl!$C$6-1),1,1) -> 262580 | V21: =OFFSET(EP_Wetland_Conc!$C$10,ROUND(12*$R21,0),4*(PlotControl!$C$6-1),1,1) -> 10873 | W21: =OFFSET(EP_Wetland_Conc!$D$10,ROUND(12*$R21,0),4*(PlotControl!$C$6-1),1,1) -> 16364 | X21: =OFFSET(EP_Wetland_Conc!$E$10,ROUND(12*$R21,0),4*(PlotControl!$C$6-1),1,1) -> 46220 | Y21: =OFFSET(WP_Conc!$C$10,ROUND(12*$R21,0),4*(PlotControl!$C$6-1),1,1) -> 57511 | Z21: =OFFSET(WP_Conc!$D$10,ROUND(12*$R21,0),4*(PlotControl!$C$6-1),1,1) -> 66213 | AA21: =OFFSET(WP_Conc!$E$10,ROUND(12*$R21,0),4*(PlotControl!$C$6-1),1,1) -> 78173 | AB21: =OFFSET(WWTF_Outflow_Conc!$C$10,ROUND(12*$R21,0),4*(PlotControl!$C$6-1),1,1) -> 0 | AC21: =OFFSET(WWTF_Outflow_Conc!$D$10,ROUND(12*$R21,0),4*(PlotControl!$C$6-1),1,1) -> 0 | AD21: =OFFSET(WWTF_Outflow_Conc!$E$10,ROUND(12*$R21,0),4*(PlotControl!$C$6-1),1,1) -> 0 | AE21: =OFFSET(Cat1SP_Conc!$C$10,ROUND(12*$R21,0),4*(PlotControl!$C$6-1),1,1) -> 2251000 | AF21: =OFFSET(Cat1SP_Conc!$D$10,ROUND(12*$R21,0),4*(PlotControl!$C$6-1),1,1) -> 2763300 | AG21: =OFFSET(Cat1SP_Conc!$E$10,ROUND(12*$R21,0),4*(PlotControl!$C$6-1),1,1) -> 4005400
A22: 18 | B22: =IF(PlotControl!$B$4 = "Annual Max",MAX(OFFSET(EP_Pore_Conc!$C$10,12*($A22-1),4*(PlotControl!$C$6-1),12,1)),AVERAGE(OFFSET(EP_Pore_Conc!$C$10,12*($A22-1),4*(PlotControl!$C$6-1),12,1))) -> 943110 | C22: =IF(PlotControl!$B$4 = "Annual Max",MAX(OFFSET(EP_Pore_Conc!$D$10,12*($A22-1),4*(PlotControl!$C$6-1),12,1)),AVERAGE(OFFSET(EP_Pore_Conc!$D$10,12*($A22-1),4*(PlotControl!$C$6-1),12,1))) -> 2126500 | D22: =IF(PlotControl!$B$4 = "Annual Max",MAX(OFFSET(EP_Pore_Conc!$E$10,12*($A22-1),4*(PlotControl!$C$6-1),12,1)),AVERAGE(OFFSET(EP_Pore_Conc!$E$10,12*($A22-1),4*(PlotControl!$C$6-1),12,1))) -> 3215400 | E22: =IF(PlotControl!$B$4 = "Annual Max",MAX(OFFSET(EP_Wetland_Conc!$C$10,12*($A22-1),4*(PlotControl!$C$6-1),12,1)),AVERAGE(OFFSET(EP_Wetland_Conc!$C$10,12*($A22-1),4*(PlotControl!$C$6-1),12,1))) -> 0.0021714 | F22: =IF(PlotControl!$B$4 = "Annual Max",MAX(OFFSET(EP_Wetland_Conc!$D$10,12*($A22-1),4*(PlotControl!$C$6-1),12,1)),AVERAGE(OFFSET(EP_Wetland_Conc!$D$10,12*($A22-1),4*(PlotControl!$C$6-1),12,1))) -> 0.0050532 | G22: =IF(PlotControl!$B$4 = "Annual Max",MAX(OFFSET(EP_Wetland_Conc!$E$10,12*($A22-1),4*(PlotControl!$C$6-1),12,1)),AVERAGE(OFFSET(EP_Wetland_Conc!$E$10,12*($A22-1),4*(PlotControl!$C$6-1),12,1))) -> 0.0099293 | H22: =IF(PlotControl!$B$4 = "Annual Max",MAX(OFFSET(WP_Conc!$C$10,12*($A22-1),4*(PlotControl!$C$6-1),12,1)),AVERAGE(OFFSET(WP_Conc!$C$10,12*($A22-1),4*(PlotControl!$C$6-1),12,1))) -> 539050 | I22: =IF(PlotControl!$B$4 = "Annual Max",MAX(OFFSET(WP_Conc!$D$10,12*($A22-1),4*(PlotControl!$C$6-1),12,1)),AVERAGE(OFFSET(WP_Conc!$D$10,12*($A22-1),4*(PlotControl!$C$6-1),12,1))) -> 803950 | J22: =IF(PlotControl!$B$4 = "Annual Max",MAX(OFFSET(WP_Conc!$E$10,12*($A22-1),4*(PlotControl!$C$6-1),12,1)),AVERAGE(OFFSET(WP_Conc!$E$10,12*($A22-1),4*(PlotControl!$C$6-1),12,1))) -> 1186300 | K22: =IF(PlotControl!$B$4 = "Annual Max",MAX(OFFSET(WWTF_Outflow_Conc!$C$10,12*($A22-1),4*(PlotControl!$C$6-1),12,1)),AVERAGE(OFFSET(WWTF_Outflow_Conc!$C$10,12*($A22-1),4*(PlotControl!$C$6-1),12,1))) -> 0 | L22: =IF(PlotControl!$B$4 = "Annual Max",MAX(OFFSET(WWTF_Outflow_Conc!$D$10,12*($A22-1),4*(PlotControl!$C$6-1),12,1)),AVERAGE(OFFSET(WWTF_Outflow_Conc!$D$10,12*($A22-1),4*(PlotControl!$C$6-1),12,1))) -> 0 | M22: =IF(PlotControl!$B$4 = "Annual Max",MAX(OFFSET(WWTF_Outflow_Conc!$E$10,12*($A22-1),4*(PlotControl!$C$6-1),12,1)),AVERAGE(OFFSET(WWTF_Outflow_Conc!$E$10,12*($A22-1),4*(PlotControl!$C$6-1),12,1))) -> 0 | N22: =IF(PlotControl!$B$4 = "Annual Max",MAX(OFFSET(Cat1SP_Conc!$C$10,12*($A22-1),4*(PlotControl!$C$6-1),12,1)),AVERAGE(OFFSET(Cat1SP_Conc!$C$10,12*($A22-1),4*(PlotControl!$C$6-1),12,1))) -> 1176200 | O22: =IF(PlotControl!$B$4 = "Annual Max",MAX(OFFSET(Cat1SP_Conc!$D$10,12*($A22-1),4*(PlotControl!$C$6-1),12,1)),AVERAGE(OFFSET(Cat1SP_Conc!$D$10,12*($A22-1),4*(PlotControl!$C$6-1),12,1))) -> 2402500 | P22: =IF(PlotControl!$B$4 = "Annual Max",MAX(OFFSET(Cat1SP_Conc!$E$10,12*($A22-1),4*(PlotControl!$C$6-1),12,1)),AVERAGE(OFFSET(Cat1SP_Conc!$E$10,12*($A22-1),4*(PlotControl!$C$6-1),12,1))) -> 3297000 | R22: 41.41666667 | S22: =OFFSET(EP_Pore_Conc!$C$10,ROUND(12*$R22,0),4*(PlotControl!$C$6-1),1,1) -> 255080 | T22: =OFFSET(EP_Pore_Conc!$D$10,ROUND(12*$R22,0),4*(PlotControl!$C$6-1),1,1) -> 256800 | U22: =OFFSET(EP_Pore_Conc!$E$10,ROUND(12*$R22,0),4*(PlotControl!$C$6-1),1,1) -> 262580 | V22: =OFFSET(EP_Wetland_Conc!$C$10,ROUND(12*$R22,0),4*(PlotControl!$C$6-1),1,1) -> 11016 | W22: =OFFSET(EP_Wetland_Conc!$D$10,ROUND(12*$R22,0),4*(PlotControl!$C$6-1),1,1) -> 16406 | X22: =OFFSET(EP_Wetland_Conc!$E$10,ROUND(12*$R22,0),4*(PlotControl!$C$6-1),1,1) -> 46395 | Y22: =OFFSET(WP_Conc!$C$10,ROUND(12*$R22,0),4*(PlotControl!$C$6-1),1,1) -> 57555 | Z22: =OFFSET(WP_Conc!$D$10,ROUND(12*$R22,0),4*(PlotControl!$C$6-1),1,1) -> 66126 | AA22: =OFFSET(WP_Conc!$E$10,ROUND(12*$R22,0),4*(PlotControl!$C$6-1),1,1) -> 78176 | AB22: =OFFSET(WWTF_Outflow_Conc!$C$10,ROUND(12*$R22,0),4*(PlotControl!$C$6-1),1,1) -> 0 | AC22: =OFFSET(WWTF_Outflow_Conc!$D$10,ROUND(12*$R22,0),4*(PlotControl!$C$6-1),1,1) -> 0 | AD22: =OFFSET(WWTF_Outflow_Conc!$E$10,ROUND(12*$R22,0),4*(PlotControl!$C$6-1),1,1) -> 0 | AE22: =OFFSET(Cat1SP_Conc!$C$10,ROUND(12*$R22,0),4*(PlotControl!$C$6-1),1,1) -> 2251000 | AF22: =OFFSET(Cat1SP_Conc!$D$10,ROUND(12*$R22,0),4*(PlotControl!$C$6-1),1,1) -> 2763300 | AG22: =OFFSET(Cat1SP_Conc!$E$10,ROUND(12*$R22,0),4*(PlotControl!$C$6-1),1,1) -> 4005400
A23: 19 | B23: =IF(PlotControl!$B$4 = "Annual Max",MAX(OFFSET(EP_Pore_Conc!$C$10,12*($A23-1),4*(PlotControl!$C$6-1),12,1)),AVERAGE(OFFSET(EP_Pore_Conc!$C$10,12*($A23-1),4*(PlotControl!$C$6-1),12,1))) -> 929550 | C23: =IF(PlotControl!$B$4 = "Annual Max",MAX(OFFSET(EP_Pore_Conc!$D$10,12*($A23-1),4*(PlotControl!$C$6-1),12,1)),AVERAGE(OFFSET(EP_Pore_Conc!$D$10,12*($A23-1),4*(PlotControl!$C$6-1),12,1))) -> 2103100 | D23: =IF(PlotControl!$B$4 = "Annual Max",MAX(OFFSET(EP_Pore_Conc!$E$10,12*($A23-1),4*(PlotControl!$C$6-1),12,1)),AVERAGE(OFFSET(EP_Pore_Conc!$E$10,12*($A23-1),4*(PlotControl!$C$6-1),12,1))) -> 3222600 | E23: =IF(PlotControl!$B$4 = "Annual Max",MAX(OFFSET(EP_Wetland_Conc!$C$10,12*($A23-1),4*(PlotControl!$C$6-1),12,1)),AVERAGE(OFFSET(EP_Wetland_Conc!$C$10,12*($A23-1),4*(PlotControl!$C$6-1),12,1))) -> 0.0021714 | F23: =IF(PlotControl!$B$4 = "Annual Max",MAX(OFFSET(EP_Wetland_Conc!$D$10,12*($A23-1),4*(PlotControl!$C$6-1),12,1)),AVERAGE(OFFSET(EP_Wetland_Conc!$D$10,12*($A23-1),4*(PlotControl!$C$6-1),12,1))) -> 0.0050532 | G23: =IF(PlotControl!$B$4 = "Annual Max",MAX(OFFSET(EP_Wetland_Conc!$E$10,12*($A23-1),4*(PlotControl!$C$6-1),12,1)),AVERAGE(OFFSET(EP_Wetland_Conc!$E$10,12*($A23-1),4*(PlotControl!$C$6-1),12,1))) -> 0.0099293 | H23: =IF(PlotControl!$B$4 = "Annual Max",MAX(OFFSET(WP_Conc!$C$10,12*($A23-1),4*(PlotControl!$C$6-1),12,1)),AVERAGE(OFFSET(WP_Conc!$C$10,12*($A23-1),4*(PlotControl!$C$6-1),12,1))) -> 507710 | I23: =IF(PlotControl!$B$4 = "Annual Max",MAX(OFFSET(WP_Conc!$D$10,12*($A23-1),4*(PlotControl!$C$6-1),12,1)),AVERAGE(OFFSET(WP_Conc!$D$10,12*($A23-1),4*(PlotControl!$C$6-1),12,1))) -> 789590 | J23: =IF(PlotControl!$B$4 = "Annual Max",MAX(OFFSET(WP_Conc!$E$10,12*($A23-1),4*(PlotControl!$C$6-1),12,1)),AVERAGE(OFFSET(WP_Conc!$E$10,12*($A23-1),4*(PlotControl!$C$6-1),12,1))) -> 1184500 | K23: =IF(PlotControl!$B$4 = "Annual Max",MAX(OFFSET(WWTF_Outflow_Conc!$C$10,12*($A23-1),4*(PlotControl!$C$6-1),12,1)),AVERAGE(OFFSET(WWTF_Outflow_Conc!$C$10,12*($A23-1),4*(PlotControl!$C$6-1),12,1))) -> 0 | L23: =IF(PlotControl!$B$4 = "Annual Max",MAX(OFFSET(WWTF_Outflow_Conc!$D$10,12*($A23-1),4*(PlotControl!$C$6-1),12,1)),AVERAGE(OFFSET(WWTF_Outflow_Conc!$D$10,12*($A23-1),4*(PlotControl!$C$6-1),12,1))) -> 0 | M23: =IF(PlotControl!$B$4 = "Annual Max",MAX(OFFSET(WWTF_Outflow_Conc!$E$10,12*($A23-1),4*(PlotControl!$C$6-1),12,1)),AVERAGE(OFFSET(WWTF_Outflow_Conc!$E$10,12*($A23-1),4*(PlotControl!$C$6-1),12,1))) -> 0 | N23: =IF(PlotControl!$B$4 = "Annual Max",MAX(OFFSET(Cat1SP_Conc!$C$10,12*($A23-1),4*(PlotControl!$C$6-1),12,1)),AVERAGE(OFFSET(Cat1SP_Conc!$C$10,12*($A23-1),4*(PlotControl!$C$6-1),12,1))) -> 1261900 | O23: =IF(PlotControl!$B$4 = "Annual Max",MAX(OFFSET(Cat1SP_Conc!$D$10,12*($A23-1),4*(PlotControl!$C$6-1),12,1)),AVERAGE(OFFSET(Cat1SP_Conc!$D$10,12*($A23-1),4*(PlotControl!$C$6-1),12,1))) -> 2367200 | P23: =IF(PlotControl!$B$4 = "Annual Max",MAX(OFFSET(Cat1SP_Conc!$E$10,12*($A23-1),4*(PlotControl!$C$6-1),12,1)),AVERAGE(OFFSET(Cat1SP_Conc!$E$10,12*($A23-1),4*(PlotControl!$C$6-1),12,1))) -> 3274800 | R23: 41.5 | S23: =OFFSET(EP_Pore_Conc!$C$10,ROUND(12*$R23,0),4*(PlotControl!$C$6-1),1,1) -> 255080 | T23: =OFFSET(EP_Pore_Conc!$D$10,ROUND(12*$R23,0),4*(PlotControl!$C$6-1),1,1) -> 256790 | U23: =OFFSET(EP_Pore_Conc!$E$10,ROUND(12*$R23,0),4*(PlotControl!$C$6-1),1,1) -> 261550 | V23: =OFFSET(EP_Wetland_Conc!$C$10,ROUND(12*$R23,0),4*(PlotControl!$C$6-1),1,1) -> 10980 | W23: =OFFSET(EP_Wetland_Conc!$D$10,ROUND(12*$R23,0),4*(PlotControl!$C$6-1),1,1) -> 16299 | X23: =OFFSET(EP_Wetland_Conc!$E$10,ROUND(12*$R23,0),4*(PlotControl!$C$6-1),1,1) -> 45875 | Y23: =OFFSET(WP_Conc!$C$10,ROUND(12*$R23,0),4*(PlotControl!$C$6-1),1,1) -> 57509 | Z23: =OFFSET(WP_Conc!$D$10,ROUND(12*$R23,0),4*(PlotControl!$C$6-1),1,1) -> 66023 | AA23: =OFFSET(WP_Conc!$E$10,ROUND(12*$R23,0),4*(PlotControl!$C$6-1),1,1) -> 78102 | AB23: =OFFSET(WWTF_Outflow_Conc!$C$10,ROUND(12*$R23,0),4*(PlotControl!$C$6-1),1,1) -> 0 | AC23: =OFFSET(WWTF_Outflow_Conc!$D$10,ROUND(12*$R23,0),4*(PlotControl!$C$6-1),1,1) -> 0 | AD23: =OFFSET(WWTF_Outflow_Conc!$E$10,ROUND(12*$R23,0),4*(PlotControl!$C$6-1),1,1) -> 0 | AE23: =OFFSET(Cat1SP_Conc!$C$10,ROUND(12*$R23,0),4*(PlotControl!$C$6-1),1,1) -> 2251000 | AF23: =OFFSET(Cat1SP_Conc!$D$10,ROUND(12*$R23,0),4*(PlotControl!$C$6-1),1,1) -> 2763300 | AG23: =OFFSET(Cat1SP_Conc!$E$10,ROUND(12*$R23,0),4*(PlotControl!$C$6-1),1,1) -> 4005400
A24: 20 | B24: =IF(PlotControl!$B$4 = "Annual Max",MAX(OFFSET(EP_Pore_Conc!$C$10,12*($A24-1),4*(PlotControl!$C$6-1),12,1)),AVERAGE(OFFSET(EP_Pore_Conc!$C$10,12*($A24-1),4*(PlotControl!$C$6-1),12,1))) -> 906460 | C24: =IF(PlotControl!$B$4 = "Annual Max",MAX(OFFSET(EP_Pore_Conc!$D$10,12*($A24-1),4*(PlotControl!$C$6-1),12,1)),AVERAGE(OFFSET(EP_Pore_Conc!$D$10,12*($A24-1),4*(PlotControl!$C$6-1),12,1))) -> 2087300 | D24: =IF(PlotControl!$B$4 = "Annual Max",MAX(OFFSET(EP_Pore_Conc!$E$10,12*($A24-1),4*(PlotControl!$C$6-1),12,1)),AVERAGE(OFFSET(EP_Pore_Conc!$E$10,12*($A24-1),4*(PlotControl!$C$6-1),12,1))) -> 3223800 | E24: =IF(PlotControl!$B$4 = "Annual Max",MAX(OFFSET(EP_Wetland_Conc!$C$10,12*($A24-1),4*(PlotControl!$C$6-1),12,1)),AVERAGE(OFFSET(EP_Wetland_Conc!$C$10,12*($A24-1),4*(PlotControl!$C$6-1),12,1))) -> 1034200 | F24: =IF(PlotControl!$B$4 = "Annual Max",MAX(OFFSET(EP_Wetland_Conc!$D$10,12*($A24-1),4*(PlotControl!$C$6-1),12,1)),AVERAGE(OFFSET(EP_Wetland_Conc!$D$10,12*($A24-1),4*(PlotControl!$C$6-1),12,1))) -> 2153200 | G24: =IF(PlotControl!$B$4 = "Annual Max",MAX(OFFSET(EP_Wetland_Conc!$E$10,12*($A24-1),4*(PlotControl!$C$6-1),12,1)),AVERAGE(OFFSET(EP_Wetland_Conc!$E$10,12*($A24-1),4*(PlotControl!$C$6-1),12,1))) -> 3328300 | H24: =IF(PlotControl!$B$4 = "Annual Max",MAX(OFFSET(WP_Conc!$C$10,12*($A24-1),4*(PlotControl!$C$6-1),12,1)),AVERAGE(OFFSET(WP_Conc!$C$10,12*($A24-1),4*(PlotControl!$C$6-1),12,1))) -> 408820 | I24: =IF(PlotControl!$B$4 = "Annual Max",MAX(OFFSET(WP_Conc!$D$10,12*($A24-1),4*(PlotControl!$C$6-1),12,1)),AVERAGE(OFFSET(WP_Conc!$D$10,12*($A24-1),4*(PlotControl!$C$6-1),12,1))) -> 743560 | J24: =IF(PlotControl!$B$4 = "Annual Max",MAX(OFFSET(WP_Conc!$E$10,12*($A24-1),4*(PlotControl!$C$6-1),12,1)),AVERAGE(OFFSET(WP_Conc!$E$10,12*($A24-1),4*(PlotControl!$C$6-1),12,1))) -> 1225200 | K24: =IF(PlotControl!$B$4 = "Annual Max",MAX(OFFSET(WWTF_Outflow_Conc!$C$10,12*($A24-1),4*(PlotControl!$C$6-1),12,1)),AVERAGE(OFFSET(WWTF_Outflow_Conc!$C$10,12*($A24-1),4*(PlotControl!$C$6-1),12,1))) -> 0 | L24: =IF(PlotControl!$B$4 = "Annual Max",MAX(OFFSET(WWTF_Outflow_Conc!$D$10,12*($A24-1),4*(PlotControl!$C$6-1),12,1)),AVERAGE(OFFSET(WWTF_Outflow_Conc!$D$10,12*($A24-1),4*(PlotControl!$C$6-1),12,1))) -> 0 | M24: =IF(PlotControl!$B$4 = "Annual Max",MAX(OFFSET(WWTF_Outflow_Conc!$E$10,12*($A24-1),4*(PlotControl!$C$6-1),12,1)),AVERAGE(OFFSET(WWTF_Outflow_Conc!$E$10,12*($A24-1),4*(PlotControl!$C$6-1),12,1))) -> 0 | N24: =IF(PlotControl!$B$4 = "Annual Max",MAX(OFFSET(Cat1SP_Conc!$C$10,12*($A24-1),4*(PlotControl!$C$6-1),12,1)),AVERAGE(OFFSET(Cat1SP_Conc!$C$10,12*($A24-1),4*(PlotControl!$C$6-1),12,1))) -> 1173500 | O24: =IF(PlotControl!$B$4 = "Annual Max",MAX(OFFSET(Cat1SP_Conc!$D$10,12*($A24-1),4*(PlotControl!$C$6-1),12,1)),AVERAGE(OFFSET(Cat1SP_Conc!$D$10,12*($A24-1),4*(PlotControl!$C$6-1),12,1))) -> 2276200 | P24: =IF(PlotControl!$B$4 = "Annual Max",MAX(OFFSET(Cat1SP_Conc!$E$10,12*($A24-1),4*(PlotControl!$C$6-1),12,1)),AVERAGE(OFFSET(Cat1SP_Conc!$E$10,12*($A24-1),4*(PlotControl!$C$6-1),12,1))) -> 3130300 | R24: 41.58333333 | S24: =OFFSET(EP_Pore_Conc!$C$10,ROUND(12*$R24,0),4*(PlotControl!$C$6-1),1,1) -> 255050 | T24: =OFFSET(EP_Pore_Conc!$D$10,ROUND(12*$R24,0),4*(PlotControl!$C$6-1),1,1) -> 256790 | U24: =OFFSET(EP_Pore_Conc!$E$10,ROUND(12*$R24,0),4*(PlotControl!$C$6-1),1,1) -> 261380 | V24: =OFFSET(EP_Wetland_Conc!$C$10,ROUND(12*$R24,0),4*(PlotControl!$C$6-1),1,1) -> 11111 | W24: =OFFSET(EP_Wetland_Conc!$D$10,ROUND(12*$R24,0),4*(PlotControl!$C$6-1),1,1) -> 16528 | X24: =OFFSET(EP_Wetland_Conc!$E$10,ROUND(12*$R24,0),4*(PlotControl!$C$6-1),1,1) -> 46271 | Y24: =OFFSET(WP_Conc!$C$10,ROUND(12*$R24,0),4*(PlotControl!$C$6-1),1,1) -> 57424 | Z24: =OFFSET(WP_Conc!$D$10,ROUND(12*$R24,0),4*(PlotControl!$C$6-1),1,1) -> 65964 | AA24: =OFFSET(WP_Conc!$E$10,ROUND(12*$R24,0),4*(PlotControl!$C$6-1),1,1) -> 78048 | AB24: =OFFSET(WWTF_Outflow_Conc!$C$10,ROUND(12*$R24,0),4*(PlotControl!$C$6-1),1,1) -> 0 | AC24: =OFFSET(WWTF_Outflow_Conc!$D$10,ROUND(12*$R24,0),4*(PlotControl!$C$6-1),1,1) -> 0 | AD24: =OFFSET(WWTF_Outflow_Conc!$E$10,ROUND(12*$R24,0),4*(PlotControl!$C$6-1),1,1) -> 0 | AE24: =OFFSET(Cat1SP_Conc!$C$10,ROUND(12*$R24,0),4*(PlotControl!$C$6-1),1,1) -> 2251000 | AF24: =OFFSET(Cat1SP_Conc!$D$10,ROUND(12*$R24,0),4*(PlotControl!$C$6-1),1,1) -> 2763300 | AG24: =OFFSET(Cat1SP_Conc!$E$10,ROUND(12*$R24,0),4*(PlotControl!$C$6-1),1,1) -> 4005400
A25: 21 | B25: =IF(PlotControl!$B$4 = "Annual Max",MAX(OFFSET(EP_Pore_Conc!$C$10,12*($A25-1),4*(PlotControl!$C$6-1),12,1)),AVERAGE(OFFSET(EP_Pore_Conc!$C$10,12*($A25-1),4*(PlotControl!$C$6-1),12,1))) -> 860930 | C25: =IF(PlotControl!$B$4 = "Annual Max",MAX(OFFSET(EP_Pore_Conc!$D$10,12*($A25-1),4*(PlotControl!$C$6-1),12,1)),AVERAGE(OFFSET(EP_Pore_Conc!$D$10,12*($A25-1),4*(PlotControl!$C$6-1),12,1))) -> 2058700 | D25: =IF(PlotControl!$B$4 = "Annual Max",MAX(OFFSET(EP_Pore_Conc!$E$10,12*($A25-1),4*(PlotControl!$C$6-1),12,1)),AVERAGE(OFFSET(EP_Pore_Conc!$E$10,12*($A25-1),4*(PlotControl!$C$6-1),12,1))) -> 3191500 | E25: =IF(PlotControl!$B$4 = "Annual Max",MAX(OFFSET(EP_Wetland_Conc!$C$10,12*($A25-1),4*(PlotControl!$C$6-1),12,1)),AVERAGE(OFFSET(EP_Wetland_Conc!$C$10,12*($A25-1),4*(PlotControl!$C$6-1),12,1))) -> 354590 | F25: =IF(PlotControl!$B$4 = "Annual Max",MAX(OFFSET(EP_Wetland_Conc!$D$10,12*($A25-1),4*(PlotControl!$C$6-1),12,1)),AVERAGE(OFFSET(EP_Wetland_Conc!$D$10,12*($A25-1),4*(PlotControl!$C$6-1),12,1))) -> 586870 | G25: =IF(PlotControl!$B$4 = "Annual Max",MAX(OFFSET(EP_Wetland_Conc!$E$10,12*($A25-1),4*(PlotControl!$C$6-1),12,1)),AVERAGE(OFFSET(EP_Wetland_Conc!$E$10,12*($A25-1),4*(PlotControl!$C$6-1),12,1))) -> 1005200 | H25: =IF(PlotControl!$B$4 = "Annual Max",MAX(OFFSET(WP_Conc!$C$10,12*($A25-1),4*(PlotControl!$C$6-1),12,1)),AVERAGE(OFFSET(WP_Conc!$C$10,12*($A25-1),4*(PlotControl!$C$6-1),12,1))) -> 264150 | I25: =IF(PlotControl!$B$4 = "Annual Max",MAX(OFFSET(WP_Conc!$D$10,12*($A25-1),4*(PlotControl!$C$6-1),12,1)),AVERAGE(OFFSET(WP_Conc!$D$10,12*($A25-1),4*(PlotControl!$C$6-1),12,1))) -> 605460 | J25: =IF(PlotControl!$B$4 = "Annual Max",MAX(OFFSET(WP_Conc!$E$10,12*($A25-1),4*(PlotControl!$C$6-1),12,1)),AVERAGE(OFFSET(WP_Conc!$E$10,12*($A25-1),4*(PlotControl!$C$6-1),12,1))) -> 1086400 | K25: =IF(PlotControl!$B$4 = "Annual Max",MAX(OFFSET(WWTF_Outflow_Conc!$C$10,12*($A25-1),4*(PlotControl!$C$6-1),12,1)),AVERAGE(OFFSET(WWTF_Outflow_Conc!$C$10,12*($A25-1),4*(PlotControl!$C$6-1),12,1))) -> 0 | L25: =IF(PlotControl!$B$4 = "Annual Max",MAX(OFFSET(WWTF_Outflow_Conc!$D$10,12*($A25-1),4*(PlotControl!$C$6-1),12,1)),AVERAGE(OFFSET(WWTF_Outflow_Conc!$D$10,12*($A25-1),4*(PlotControl!$C$6-1),12,1))) -> 0 | M25: =IF(PlotControl!$B$4 = "Annual Max",MAX(OFFSET(WWTF_Outflow_Conc!$E$10,12*($A25-1),4*(PlotControl!$C$6-1),12,1)),AVERAGE(OFFSET(WWTF_Outflow_Conc!$E$10,12*($A25-1),4*(PlotControl!$C$6-1),12,1))) -> 0 | N25: =IF(PlotControl!$B$4 = "Annual Max",MAX(OFFSET(Cat1SP_Conc!$C$10,12*($A25-1),4*(PlotControl!$C$6-1),12,1)),AVERAGE(OFFSET(Cat1SP_Conc!$C$10,12*($A25-1),4*(PlotControl!$C$6-1),12,1))) -> 1100400 | O25: =IF(PlotControl!$B$4 = "Annual Max",MAX(OFFSET(Cat1SP_Conc!$D$10,12*($A25-1),4*(PlotControl!$C$6-1),12,1)),AVERAGE(OFFSET(Cat1SP_Conc!$D$10,12*($A25-1),4*(PlotControl!$C$6-1),12,1))) -> 2119600 | P25: =IF(PlotControl!$B$4 = "Annual Max",MAX(OFFSET(Cat1SP_Conc!$E$10,12*($A25-1),4*(PlotControl!$C$6-1),12,1)),AVERAGE(OFFSET(Cat1SP_Conc!$E$10,12*($A25-1),4*(PlotControl!$C$6-1),12,1))) -> 2881400 | R25: 41.66666667 | S25: =OFFSET(EP_Pore_Conc!$C$10,ROUND(12*$R25,0),4*(PlotControl!$C$6-1),1,1) -> 255050 | T25: =OFFSET(EP_Pore_Conc!$D$10,ROUND(12*$R25,0),4*(PlotControl!$C$6-1),1,1) -> 256760 | U25: =OFFSET(EP_Pore_Conc!$E$10,ROUND(12*$R25,0),4*(PlotControl!$C$6-1),1,1) -> 261370 | V25: =OFFSET(EP_Wetland_Conc!$C$10,ROUND(12*$R25,0),4*(PlotControl!$C$6-1),1,1) -> 11117 | W25: =OFFSET(EP_Wetland_Conc!$D$10,ROUND(12*$R25,0),4*(PlotControl!$C$6-1),1,1) -> 16486 | X25: =OFFSET(EP_Wetland_Conc!$E$10,ROUND(12*$R25,0),4*(PlotControl!$C$6-1),1,1) -> 45568 | Y25: =OFFSET(WP_Conc!$C$10,ROUND(12*$R25,0),4*(PlotControl!$C$6-1),1,1) -> 57324 | Z25: =OFFSET(WP_Conc!$D$10,ROUND(12*$R25,0),4*(PlotControl!$C$6-1),1,1) -> 65870 | AA25: =OFFSET(WP_Conc!$E$10,ROUND(12*$R25,0),4*(PlotControl!$C$6-1),1,1) -> 77970 | AB25: =OFFSET(WWTF_Outflow_Conc!$C$10,ROUND(12*$R25,0),4*(PlotControl!$C$6-1),1,1) -> 0 | AC25: =OFFSET(WWTF_Outflow_Conc!$D$10,ROUND(12*$R25,0),4*(PlotControl!$C$6-1),1,1) -> 0 | AD25: =OFFSET(WWTF_Outflow_Conc!$E$10,ROUND(12*$R25,0),4*(PlotControl!$C$6-1),1,1) -> 0 | AE25: =OFFSET(Cat1SP_Conc!$C$10,ROUND(12*$R25,0),4*(PlotControl!$C$6-1),1,1) -> 2251000 | AF25: =OFFSET(Cat1SP_Conc!$D$10,ROUND(12*$R25,0),4*(PlotControl!$C$6-1),1,1) -> 2763300 | AG25: =OFFSET(Cat1SP_Conc!$E$10,ROUND(12*$R25,0),4*(PlotControl!$C$6-1),1,1) -> 4005400
A26: 22 | B26: =IF(PlotControl!$B$4 = "Annual Max",MAX(OFFSET(EP_Pore_Conc!$C$10,12*($A26-1),4*(PlotControl!$C$6-1),12,1)),AVERAGE(OFFSET(EP_Pore_Conc!$C$10,12*($A26-1),4*(PlotControl!$C$6-1),12,1))) -> 821760 | C26: =IF(PlotControl!$B$4 = "Annual Max",MAX(OFFSET(EP_Pore_Conc!$D$10,12*($A26-1),4*(PlotControl!$C$6-1),12,1)),AVERAGE(OFFSET(EP_Pore_Conc!$D$10,12*($A26-1),4*(PlotControl!$C$6-1),12,1))) -> 2020900 | D26: =IF(PlotControl!$B$4 = "Annual Max",MAX(OFFSET(EP_Pore_Conc!$E$10,12*($A26-1),4*(PlotControl!$C$6-1),12,1)),AVERAGE(OFFSET(EP_Pore_Conc!$E$10,12*($A26-1),4*(PlotControl!$C$6-1),12,1))) -> 3100300 | E26: =IF(PlotControl!$B$4 = "Annual Max",MAX(OFFSET(EP_Wetland_Conc!$C$10,12*($A26-1),4*(PlotControl!$C$6-1),12,1)),AVERAGE(OFFSET(EP_Wetland_Conc!$C$10,12*($A26-1),4*(PlotControl!$C$6-1),12,1))) -> 262440 | F26: =IF(PlotControl!$B$4 = "Annual Max",MAX(OFFSET(EP_Wetland_Conc!$D$10,12*($A26-1),4*(PlotControl!$C$6-1),12,1)),AVERAGE(OFFSET(EP_Wetland_Conc!$D$10,12*($A26-1),4*(PlotControl!$C$6-1),12,1))) -> 347580 | G26: =IF(PlotControl!$B$4 = "Annual Max",MAX(OFFSET(EP_Wetland_Conc!$E$10,12*($A26-1),4*(PlotControl!$C$6-1),12,1)),AVERAGE(OFFSET(EP_Wetland_Conc!$E$10,12*($A26-1),4*(PlotControl!$C$6-1),12,1))) -> 466020 | H26: =IF(PlotControl!$B$4 = "Annual Max",MAX(OFFSET(WP_Conc!$C$10,12*($A26-1),4*(PlotControl!$C$6-1),12,1)),AVERAGE(OFFSET(WP_Conc!$C$10,12*($A26-1),4*(PlotControl!$C$6-1),12,1))) -> 107260 | I26: =IF(PlotControl!$B$4 = "Annual Max",MAX(OFFSET(WP_Conc!$D$10,12*($A26-1),4*(PlotControl!$C$6-1),12,1)),AVERAGE(OFFSET(WP_Conc!$D$10,12*($A26-1),4*(PlotControl!$C$6-1),12,1))) -> 134480 | J26: =IF(PlotControl!$B$4 = "Annual Max",MAX(OFFSET(WP_Conc!$E$10,12*($A26-1),4*(PlotControl!$C$6-1),12,1)),AVERAGE(OFFSET(WP_Conc!$E$10,12*($A26-1),4*(PlotControl!$C$6-1),12,1))) -> 167280 | K26: =IF(PlotControl!$B$4 = "Annual Max",MAX(OFFSET(WWTF_Outflow_Conc!$C$10,12*($A26-1),4*(PlotControl!$C$6-1),12,1)),AVERAGE(OFFSET(WWTF_Outflow_Conc!$C$10,12*($A26-1),4*(PlotControl!$C$6-1),12,1))) -> 0 | L26: =IF(PlotControl!$B$4 = "Annual Max",MAX(OFFSET(WWTF_Outflow_Conc!$D$10,12*($A26-1),4*(PlotControl!$C$6-1),12,1)),AVERAGE(OFFSET(WWTF_Outflow_Conc!$D$10,12*($A26-1),4*(PlotControl!$C$6-1),12,1))) -> 0 | M26: =IF(PlotControl!$B$4 = "Annual Max",MAX(OFFSET(WWTF_Outflow_Conc!$E$10,12*($A26-1),4*(PlotControl!$C$6-1),12,1)),AVERAGE(OFFSET(WWTF_Outflow_Conc!$E$10,12*($A26-1),4*(PlotControl!$C$6-1),12,1))) -> 0 | N26: =IF(PlotControl!$B$4 = "Annual Max",MAX(OFFSET(Cat1SP_Conc!$C$10,12*($A26-1),4*(PlotControl!$C$6-1),12,1)),AVERAGE(OFFSET(Cat1SP_Conc!$C$10,12*($A26-1),4*(PlotControl!$C$6-1),12,1))) -> 1194800 | O26: =IF(PlotControl!$B$4 = "Annual Max",MAX(OFFSET(Cat1SP_Conc!$D$10,12*($A26-1),4*(PlotControl!$C$6-1),12,1)),AVERAGE(OFFSET(Cat1SP_Conc!$D$10,12*($A26-1),4*(PlotControl!$C$6-1),12,1))) -> 2126000 | P26: =IF(PlotControl!$B$4 = "Annual Max",MAX(OFFSET(Cat1SP_Conc!$E$10,12*($A26-1),4*(PlotControl!$C$6-1),12,1)),AVERAGE(OFFSET(Cat1SP_Conc!$E$10,12*($A26-1),4*(PlotControl!$C$6-1),12,1))) -> 2983900 | R26: 41.75 | S26: =OFFSET(EP_Pore_Conc!$C$10,ROUND(12*$R26,0),4*(PlotControl!$C$6-1),1,1) -> 255000 | T26: =OFFSET(EP_Pore_Conc!$D$10,ROUND(12*$R26,0),4*(PlotControl!$C$6-1),1,1) -> 256750 | U26: =OFFSET(EP_Pore_Conc!$E$10,ROUND(12*$R26,0),4*(PlotControl!$C$6-1),1,1) -> 261160 | V26: =OFFSET(EP_Wetland_Conc!$C$10,ROUND(12*$R26,0),4*(PlotControl!$C$6-1),1,1) -> 10940 | W26: =OFFSET(EP_Wetland_Conc!$D$10,ROUND(12*$R26,0),4*(PlotControl!$C$6-1),1,1) -> 16248 | X26: =OFFSET(EP_Wetland_Conc!$E$10,ROUND(12*$R26,0),4*(PlotControl!$C$6-1),1,1) -> 44475 | Y26: =OFFSET(WP_Conc!$C$10,ROUND(12*$R26,0),4*(PlotControl!$C$6-1),1,1) -> 57180 | Z26: =OFFSET(WP_Conc!$D$10,ROUND(12*$R26,0),4*(PlotControl!$C$6-1),1,1) -> 65797 | AA26: =OFFSET(WP_Conc!$E$10,ROUND(12*$R26,0),4*(PlotControl!$C$6-1),1,1) -> 77865 | AB26: =OFFSET(WWTF_Outflow_Conc!$C$10,ROUND(12*$R26,0),4*(PlotControl!$C$6-1),1,1) -> 0 | AC26: =OFFSET(WWTF_Outflow_Conc!$D$10,ROUND(12*$R26,0),4*(PlotControl!$C$6-1),1,1) -> 0 | AD26: =OFFSET(WWTF_Outflow_Conc!$E$10,ROUND(12*$R26,0),4*(PlotControl!$C$6-1),1,1) -> 0 | AE26: =OFFSET(Cat1SP_Conc!$C$10,ROUND(12*$R26,0),4*(PlotControl!$C$6-1),1,1) -> 2251000 | AF26: =OFFSET(Cat1SP_Conc!$D$10,ROUND(12*$R26,0),4*(PlotControl!$C$6-1),1,1) -> 2763300 | AG26: =OFFSET(Cat1SP_Conc!$E$10,ROUND(12*$R26,0),4*(PlotControl!$C$6-1),1,1) -> 4005400
A27: 23 | B27: =IF(PlotControl!$B$4 = "Annual Max",MAX(OFFSET(EP_Pore_Conc!$C$10,12*($A27-1),4*(PlotControl!$C$6-1),12,1)),AVERAGE(OFFSET(EP_Pore_Conc!$C$10,12*($A27-1),4*(PlotControl!$C$6-1),12,1))) -> 673950 | C27: =IF(PlotControl!$B$4 = "Annual Max",MAX(OFFSET(EP_Pore_Conc!$D$10,12*($A27-1),4*(PlotControl!$C$6-1),12,1)),AVERAGE(OFFSET(EP_Pore_Conc!$D$10,12*($A27-1),4*(PlotControl!$C$6-1),12,1))) -> 1777300 | D27: =IF(PlotControl!$B$4 = "Annual Max",MAX(OFFSET(EP_Pore_Conc!$E$10,12*($A27-1),4*(PlotControl!$C$6-1),12,1)),AVERAGE(OFFSET(EP_Pore_Conc!$E$10,12*($A27-1),4*(PlotControl!$C$6-1),12,1))) -> 2944000 | E27: =IF(PlotControl!$B$4 = "Annual Max",MAX(OFFSET(EP_Wetland_Conc!$C$10,12*($A27-1),4*(PlotControl!$C$6-1),12,1)),AVERAGE(OFFSET(EP_Wetland_Conc!$C$10,12*($A27-1),4*(PlotControl!$C$6-1),12,1))) -> 185220 | F27: =IF(PlotControl!$B$4 = "Annual Max",MAX(OFFSET(EP_Wetland_Conc!$D$10,12*($A27-1),4*(PlotControl!$C$6-1),12,1)),AVERAGE(OFFSET(EP_Wetland_Conc!$D$10,12*($A27-1),4*(PlotControl!$C$6-1),12,1))) -> 250940 | G27: =IF(PlotControl!$B$4 = "Annual Max",MAX(OFFSET(EP_Wetland_Conc!$E$10,12*($A27-1),4*(PlotControl!$C$6-1),12,1)),AVERAGE(OFFSET(EP_Wetland_Conc!$E$10,12*($A27-1),4*(PlotControl!$C$6-1),12,1))) -> 333620 | H27: =IF(PlotControl!$B$4 = "Annual Max",MAX(OFFSET(WP_Conc!$C$10,12*($A27-1),4*(PlotControl!$C$6-1),12,1)),AVERAGE(OFFSET(WP_Conc!$C$10,12*($A27-1),4*(PlotControl!$C$6-1),12,1))) -> 100780 | I27: =IF(PlotControl!$B$4 = "Annual Max",MAX(OFFSET(WP_Conc!$D$10,12*($A27-1),4*(PlotControl!$C$6-1),12,1)),AVERAGE(OFFSET(WP_Conc!$D$10,12*($A27-1),4*(PlotControl!$C$6-1),12,1))) -> 113400 | J27: =IF(PlotControl!$B$4 = "Annual Max",MAX(OFFSET(WP_Conc!$E$10,12*($A27-1),4*(PlotControl!$C$6-1),12,1)),AVERAGE(OFFSET(WP_Conc!$E$10,12*($A27-1),4*(PlotControl!$C$6-1),12,1))) -> 134930 | K27: =IF(PlotControl!$B$4 = "Annual Max",MAX(OFFSET(WWTF_Outflow_Conc!$C$10,12*($A27-1),4*(PlotControl!$C$6-1),12,1)),AVERAGE(OFFSET(WWTF_Outflow_Conc!$C$10,12*($A27-1),4*(PlotControl!$C$6-1),12,1))) -> 0 | L27: =IF(PlotControl!$B$4 = "Annual Max",MAX(OFFSET(WWTF_Outflow_Conc!$D$10,12*($A27-1),4*(PlotControl!$C$6-1),12,1)),AVERAGE(OFFSET(WWTF_Outflow_Conc!$D$10,12*($A27-1),4*(PlotControl!$C$6-1),12,1))) -> 0 | M27: =IF(PlotControl!$B$4 = "Annual Max",MAX(OFFSET(WWTF_Outflow_Conc!$E$10,12*($A27-1),4*(PlotControl!$C$6-1),12,1)),AVERAGE(OFFSET(WWTF_Outflow_Conc!$E$10,12*($A27-1),4*(PlotControl!$C$6-1),12,1))) -> 0 | N27: =IF(PlotControl!$B$4 = "Annual Max",MAX(OFFSET(Cat1SP_Conc!$C$10,12*($A27-1),4*(PlotControl!$C$6-1),12,1)),AVERAGE(OFFSET(Cat1SP_Conc!$C$10,12*($A27-1),4*(PlotControl!$C$6-1),12,1))) -> 1605600 | O27: =IF(PlotControl!$B$4 = "Annual Max",MAX(OFFSET(Cat1SP_Conc!$D$10,12*($A27-1),4*(PlotControl!$C$6-1),12,1)),AVERAGE(OFFSET(Cat1SP_Conc!$D$10,12*($A27-1),4*(PlotControl!$C$6-1),12,1))) -> 2423600 | P27: =IF(PlotControl!$B$4 = "Annual Max",MAX(OFFSET(Cat1SP_Conc!$E$10,12*($A27-1),4*(PlotControl!$C$6-1),12,1)),AVERAGE(OFFSET(Cat1SP_Conc!$E$10,12*($A27-1),4*(PlotControl!$C$6-1),12,1))) -> 3396700 | R27: 41.83333333 | S27: =OFFSET(EP_Pore_Conc!$C$10,ROUND(12*$R27,0),4*(PlotControl!$C$6-1),1,1) -> 255000 | T27: =OFFSET(EP_Pore_Conc!$D$10,ROUND(12*$R27,0),4*(PlotControl!$C$6-1),1,1) -> 256750 | U27: =OFFSET(EP_Pore_Conc!$E$10,ROUND(12*$R27,0),4*(PlotControl!$C$6-1),1,1) -> 261010 | V27: =OFFSET(EP_Wetland_Conc!$C$10,ROUND(12*$R27,0),4*(PlotControl!$C$6-1),1,1) -> 10613 | W27: =OFFSET(EP_Wetland_Conc!$D$10,ROUND(12*$R27,0),4*(PlotControl!$C$6-1),1,1) -> 15739 | X27: =OFFSET(EP_Wetland_Conc!$E$10,ROUND(12*$R27,0),4*(PlotControl!$C$6-1),1,1) -> 43359 | Y27: =OFFSET(WP_Conc!$C$10,ROUND(12*$R27,0),4*(PlotControl!$C$6-1),1,1) -> 57154 | Z27: =OFFSET(WP_Conc!$D$10,ROUND(12*$R27,0),4*(PlotControl!$C$6-1),1,1) -> 65713 | AA27: =OFFSET(WP_Conc!$E$10,ROUND(12*$R27,0),4*(PlotControl!$C$6-1),1,1) -> 77719 | AB27: =OFFSET(WWTF_Outflow_Conc!$C$10,ROUND(12*$R27,0),4*(PlotControl!$C$6-1),1,1) -> 0 | AC27: =OFFSET(WWTF_Outflow_Conc!$D$10,ROUND(12*$R27,0),4*(PlotControl!$C$6-1),1,1) -> 0 | AD27: =OFFSET(WWTF_Outflow_Conc!$E$10,ROUND(12*$R27,0),4*(PlotControl!$C$6-1),1,1) -> 0 | AE27: =OFFSET(Cat1SP_Conc!$C$10,ROUND(12*$R27,0),4*(PlotControl!$C$6-1),1,1) -> 2251000 | AF27: =OFFSET(Cat1SP_Conc!$D$10,ROUND(12*$R27,0),4*(PlotControl!$C$6-1),1,1) -> 2763300 | AG27: =OFFSET(Cat1SP_Conc!$E$10,ROUND(12*$R27,0),4*(PlotControl!$C$6-1),1,1) -> 4005400
A28: 24 | B28: =IF(PlotControl!$B$4 = "Annual Max",MAX(OFFSET(EP_Pore_Conc!$C$10,12*($A28-1),4*(PlotControl!$C$6-1),12,1)),AVERAGE(OFFSET(EP_Pore_Conc!$C$10,12*($A28-1),4*(PlotControl!$C$6-1),12,1))) -> 558150 | C28: =IF(PlotControl!$B$4 = "Annual Max",MAX(OFFSET(EP_Pore_Conc!$D$10,12*($A28-1),4*(PlotControl!$C$6-1),12,1)),AVERAGE(OFFSET(EP_Pore_Conc!$D$10,12*($A28-1),4*(PlotControl!$C$6-1),12,1))) -> 1418100 | D28: =IF(PlotControl!$B$4 = "Annual Max",MAX(OFFSET(EP_Pore_Conc!$E$10,12*($A28-1),4*(PlotControl!$C$6-1),12,1)),AVERAGE(OFFSET(EP_Pore_Conc!$E$10,12*($A28-1),4*(PlotControl!$C$6-1),12,1))) -> 2758700 | E28: =IF(PlotControl!$B$4 = "Annual Max",MAX(OFFSET(EP_Wetland_Conc!$C$10,12*($A28-1),4*(PlotControl!$C$6-1),12,1)),AVERAGE(OFFSET(EP_Wetland_Conc!$C$10,12*($A28-1),4*(PlotControl!$C$6-1),12,1))) -> 142970 | F28: =IF(PlotControl!$B$4 = "Annual Max",MAX(OFFSET(EP_Wetland_Conc!$D$10,12*($A28-1),4*(PlotControl!$C$6-1),12,1)),AVERAGE(OFFSET(EP_Wetland_Conc!$D$10,12*($A28-1),4*(PlotControl!$C$6-1),12,1))) -> 187350 | G28: =IF(PlotControl!$B$4 = "Annual Max",MAX(OFFSET(EP_Wetland_Conc!$E$10,12*($A28-1),4*(PlotControl!$C$6-1),12,1)),AVERAGE(OFFSET(EP_Wetland_Conc!$E$10,12*($A28-1),4*(PlotControl!$C$6-1),12,1))) -> 243490 | H28: =IF(PlotControl!$B$4 = "Annual Max",MAX(OFFSET(WP_Conc!$C$10,12*($A28-1),4*(PlotControl!$C$6-1),12,1)),AVERAGE(OFFSET(WP_Conc!$C$10,12*($A28-1),4*(PlotControl!$C$6-1),12,1))) -> 98156 | I28: =IF(PlotControl!$B$4 = "Annual Max",MAX(OFFSET(WP_Conc!$D$10,12*($A28-1),4*(PlotControl!$C$6-1),12,1)),AVERAGE(OFFSET(WP_Conc!$D$10,12*($A28-1),4*(PlotControl!$C$6-1),12,1))) -> 108400 | J28: =IF(PlotControl!$B$4 = "Annual Max",MAX(OFFSET(WP_Conc!$E$10,12*($A28-1),4*(PlotControl!$C$6-1),12,1)),AVERAGE(OFFSET(WP_Conc!$E$10,12*($A28-1),4*(PlotControl!$C$6-1),12,1))) -> 127080 | K28: =IF(PlotControl!$B$4 = "Annual Max",MAX(OFFSET(WWTF_Outflow_Conc!$C$10,12*($A28-1),4*(PlotControl!$C$6-1),12,1)),AVERAGE(OFFSET(WWTF_Outflow_Conc!$C$10,12*($A28-1),4*(PlotControl!$C$6-1),12,1))) -> 0 | L28: =IF(PlotControl!$B$4 = "Annual Max",MAX(OFFSET(WWTF_Outflow_Conc!$D$10,12*($A28-1),4*(PlotControl!$C$6-1),12,1)),AVERAGE(OFFSET(WWTF_Outflow_Conc!$D$10,12*($A28-1),4*(PlotControl!$C$6-1),12,1))) -> 0 | M28: =IF(PlotControl!$B$4 = "Annual Max",MAX(OFFSET(WWTF_Outflow_Conc!$E$10,12*($A28-1),4*(PlotControl!$C$6-1),12,1)),AVERAGE(OFFSET(WWTF_Outflow_Conc!$E$10,12*($A28-1),4*(PlotControl!$C$6-1),12,1))) -> 0 | N28: =IF(PlotControl!$B$4 = "Annual Max",MAX(OFFSET(Cat1SP_Conc!$C$10,12*($A28-1),4*(PlotControl!$C$6-1),12,1)),AVERAGE(OFFSET(Cat1SP_Conc!$C$10,12*($A28-1),4*(PlotControl!$C$6-1),12,1))) -> 1861400 | O28: =IF(PlotControl!$B$4 = "Annual Max",MAX(OFFSET(Cat1SP_Conc!$D$10,12*($A28-1),4*(PlotControl!$C$6-1),12,1)),AVERAGE(OFFSET(Cat1SP_Conc!$D$10,12*($A28-1),4*(PlotControl!$C$6-1),12,1))) -> 2556800 | P28: =IF(PlotControl!$B$4 = "Annual Max",MAX(OFFSET(Cat1SP_Conc!$E$10,12*($A28-1),4*(PlotControl!$C$6-1),12,1)),AVERAGE(OFFSET(Cat1SP_Conc!$E$10,12*($A28-1),4*(PlotControl!$C$6-1),12,1))) -> 3577100 | R28: 41.91666667 | S28: =OFFSET(EP_Pore_Conc!$C$10,ROUND(12*$R28,0),4*(PlotControl!$C$6-1),1,1) -> 255000 | T28: =OFFSET(EP_Pore_Conc!$D$10,ROUND(12*$R28,0),4*(PlotControl!$C$6-1),1,1) -> 256730 | U28: =OFFSET(EP_Pore_Conc!$E$10,ROUND(12*$R28,0),4*(PlotControl!$C$6-1),1,1) -> 261010 | V28: =OFFSET(EP_Wetland_Conc!$C$10,ROUND(12*$R28,0),4*(PlotControl!$C$6-1),1,1) -> 10746 | W28: =OFFSET(EP_Wetland_Conc!$D$10,ROUND(12*$R28,0),4*(PlotControl!$C$6-1),1,1) -> 15843 | X28: =OFFSET(EP_Wetland_Conc!$E$10,ROUND(12*$R28,0),4*(PlotControl!$C$6-1),1,1) -> 44191 | Y28: =OFFSET(WP_Conc!$C$10,ROUND(12*$R28,0),4*(PlotControl!$C$6-1),1,1) -> 57085 | Z28: =OFFSET(WP_Conc!$D$10,ROUND(12*$R28,0),4*(PlotControl!$C$6-1),1,1) -> 65664 | AA28: =OFFSET(WP_Conc!$E$10,ROUND(12*$R28,0),4*(PlotControl!$C$6-1),1,1) -> 77684 | AB28: =OFFSET(WWTF_Outflow_Conc!$C$10,ROUND(12*$R28,0),4*(PlotControl!$C$6-1),1,1) -> 0 | AC28: =OFFSET(WWTF_Outflow_Conc!$D$10,ROUND(12*$R28,0),4*(PlotControl!$C$6-1),1,1) -> 0 | AD28: =OFFSET(WWTF_Outflow_Conc!$E$10,ROUND(12*$R28,0),4*(PlotControl!$C$6-1),1,1) -> 0 | AE28: =OFFSET(Cat1SP_Conc!$C$10,ROUND(12*$R28,0),4*(PlotControl!$C$6-1),1,1) -> 2251000 | AF28: =OFFSET(Cat1SP_Conc!$D$10,ROUND(12*$R28,0),4*(PlotControl!$C$6-1),1,1) -> 2763300 | AG28: =OFFSET(Cat1SP_Conc!$E$10,ROUND(12*$R28,0),4*(PlotControl!$C$6-1),1,1) -> 4005400
A29: 25 | B29: =IF(PlotControl!$B$4 = "Annual Max",MAX(OFFSET(EP_Pore_Conc!$C$10,12*($A29-1),4*(PlotControl!$C$6-1),12,1)),AVERAGE(OFFSET(EP_Pore_Conc!$C$10,12*($A29-1),4*(PlotControl!$C$6-1),12,1))) -> 467580 | C29: =IF(PlotControl!$B$4 = "Annual Max",MAX(OFFSET(EP_Pore_Conc!$D$10,12*($A29-1),4*(PlotControl!$C$6-1),12,1)),AVERAGE(OFFSET(EP_Pore_Conc!$D$10,12*($A29-1),4*(PlotControl!$C$6-1),12,1))) -> 1137400 | D29: =IF(PlotControl!$B$4 = "Annual Max",MAX(OFFSET(EP_Pore_Conc!$E$10,12*($A29-1),4*(PlotControl!$C$6-1),12,1)),AVERAGE(OFFSET(EP_Pore_Conc!$E$10,12*($A29-1),4*(PlotControl!$C$6-1),12,1))) -> 2624900 | E29: =IF(PlotControl!$B$4 = "Annual Max",MAX(OFFSET(EP_Wetland_Conc!$C$10,12*($A29-1),4*(PlotControl!$C$6-1),12,1)),AVERAGE(OFFSET(EP_Wetland_Conc!$C$10,12*($A29-1),4*(PlotControl!$C$6-1),12,1))) -> 114300 | F29: =IF(PlotControl!$B$4 = "Annual Max",MAX(OFFSET(EP_Wetland_Conc!$D$10,12*($A29-1),4*(PlotControl!$C$6-1),12,1)),AVERAGE(OFFSET(EP_Wetland_Conc!$D$10,12*($A29-1),4*(PlotControl!$C$6-1),12,1))) -> 149010 | G29: =IF(PlotControl!$B$4 = "Annual Max",MAX(OFFSET(EP_Wetland_Conc!$E$10,12*($A29-1),4*(PlotControl!$C$6-1),12,1)),AVERAGE(OFFSET(EP_Wetland_Conc!$E$10,12*($A29-1),4*(PlotControl!$C$6-1),12,1))) -> 192450 | H29: =IF(PlotControl!$B$4 = "Annual Max",MAX(OFFSET(WP_Conc!$C$10,12*($A29-1),4*(PlotControl!$C$6-1),12,1)),AVERAGE(OFFSET(WP_Conc!$C$10,12*($A29-1),4*(PlotControl!$C$6-1),12,1))) -> 95748 | I29: =IF(PlotControl!$B$4 = "Annual Max",MAX(OFFSET(WP_Conc!$D$10,12*($A29-1),4*(PlotControl!$C$6-1),12,1)),AVERAGE(OFFSET(WP_Conc!$D$10,12*($A29-1),4*(PlotControl!$C$6-1),12,1))) -> 105180 | J29: =IF(PlotControl!$B$4 = "Annual Max",MAX(OFFSET(WP_Conc!$E$10,12*($A29-1),4*(PlotControl!$C$6-1),12,1)),AVERAGE(OFFSET(WP_Conc!$E$10,12*($A29-1),4*(PlotControl!$C$6-1),12,1))) -> 124620 | K29: =IF(PlotControl!$B$4 = "Annual Max",MAX(OFFSET(WWTF_Outflow_Conc!$C$10,12*($A29-1),4*(PlotControl!$C$6-1),12,1)),AVERAGE(OFFSET(WWTF_Outflow_Conc!$C$10,12*($A29-1),4*(PlotControl!$C$6-1),12,1))) -> 0 | L29: =IF(PlotControl!$B$4 = "Annual Max",MAX(OFFSET(WWTF_Outflow_Conc!$D$10,12*($A29-1),4*(PlotControl!$C$6-1),12,1)),AVERAGE(OFFSET(WWTF_Outflow_Conc!$D$10,12*($A29-1),4*(PlotControl!$C$6-1),12,1))) -> 0 | M29: =IF(PlotControl!$B$4 = "Annual Max",MAX(OFFSET(WWTF_Outflow_Conc!$E$10,12*($A29-1),4*(PlotControl!$C$6-1),12,1)),AVERAGE(OFFSET(WWTF_Outflow_Conc!$E$10,12*($A29-1),4*(PlotControl!$C$6-1),12,1))) -> 0 | N29: =IF(PlotControl!$B$4 = "Annual Max",MAX(OFFSET(Cat1SP_Conc!$C$10,12*($A29-1),4*(PlotControl!$C$6-1),12,1)),AVERAGE(OFFSET(Cat1SP_Conc!$C$10,12*($A29-1),4*(PlotControl!$C$6-1),12,1))) -> 2050600 | O29: =IF(PlotControl!$B$4 = "Annual Max",MAX(OFFSET(Cat1SP_Conc!$D$10,12*($A29-1),4*(PlotControl!$C$6-1),12,1)),AVERAGE(OFFSET(Cat1SP_Conc!$D$10,12*($A29-1),4*(PlotControl!$C$6-1),12,1))) -> 2635100 | P29: =IF(PlotControl!$B$4 = "Annual Max",MAX(OFFSET(Cat1SP_Conc!$E$10,12*($A29-1),4*(PlotControl!$C$6-1),12,1)),AVERAGE(OFFSET(Cat1SP_Conc!$E$10,12*($A29-1),4*(PlotControl!$C$6-1),12,1))) -> 3684600 | R29: 42 | S29: =OFFSET(EP_Pore_Conc!$C$10,ROUND(12*$R29,0),4*(PlotControl!$C$6-1),1,1) -> 255000 | T29: =OFFSET(EP_Pore_Conc!$D$10,ROUND(12*$R29,0),4*(PlotControl!$C$6-1),1,1) -> 256720 | U29: =OFFSET(EP_Pore_Conc!$E$10,ROUND(12*$R29,0),4*(PlotControl!$C$6-1),1,1) -> 261010 | V29: =OFFSET(EP_Wetland_Conc!$C$10,ROUND(12*$R29,0),4*(PlotControl!$C$6-1),1,1) -> 10871 | W29: =OFFSET(EP_Wetland_Conc!$D$10,ROUND(12*$R29,0),4*(PlotControl!$C$6-1),1,1) -> 15943 | X29: =OFFSET(EP_Wetland_Conc!$E$10,ROUND(12*$R29,0),4*(PlotControl!$C$6-1),1,1) -> 44675 | Y29: =OFFSET(WP_Conc!$C$10,ROUND(12*$R29,0),4*(PlotControl!$C$6-1),1,1) -> 57018 | Z29: =OFFSET(WP_Conc!$D$10,ROUND(12*$R29,0),4*(PlotControl!$C$6-1),1,1) -> 65596 | AA29: =OFFSET(WP_Conc!$E$10,ROUND(12*$R29,0),4*(PlotControl!$C$6-1),1,1) -> 77652 | AB29: =OFFSET(WWTF_Outflow_Conc!$C$10,ROUND(12*$R29,0),4*(PlotControl!$C$6-1),1,1) -> 0 | AC29: =OFFSET(WWTF_Outflow_Conc!$D$10,ROUND(12*$R29,0),4*(PlotControl!$C$6-1),1,1) -> 0 | AD29: =OFFSET(WWTF_Outflow_Conc!$E$10,ROUND(12*$R29,0),4*(PlotControl!$C$6-1),1,1) -> 0 | AE29: =OFFSET(Cat1SP_Conc!$C$10,ROUND(12*$R29,0),4*(PlotControl!$C$6-1),1,1) -> 2251000 | AF29: =OFFSET(Cat1SP_Conc!$D$10,ROUND(12*$R29,0),4*(PlotControl!$C$6-1),1,1) -> 2763300 | AG29: =OFFSET(Cat1SP_Conc!$E$10,ROUND(12*$R29,0),4*(PlotControl!$C$6-1),1,1) -> 4005400
A30: 26 | B30: =IF(PlotControl!$B$4 = "Annual Max",MAX(OFFSET(EP_Pore_Conc!$C$10,12*($A30-1),4*(PlotControl!$C$6-1),12,1)),AVERAGE(OFFSET(EP_Pore_Conc!$C$10,12*($A30-1),4*(PlotControl!$C$6-1),12,1))) -> 396720 | C30: =IF(PlotControl!$B$4 = "Annual Max",MAX(OFFSET(EP_Pore_Conc!$D$10,12*($A30-1),4*(PlotControl!$C$6-1),12,1)),AVERAGE(OFFSET(EP_Pore_Conc!$D$10,12*($A30-1),4*(PlotControl!$C$6-1),12,1))) -> 917930 | D30: =IF(PlotControl!$B$4 = "Annual Max",MAX(OFFSET(EP_Pore_Conc!$E$10,12*($A30-1),4*(PlotControl!$C$6-1),12,1)),AVERAGE(OFFSET(EP_Pore_Conc!$E$10,12*($A30-1),4*(PlotControl!$C$6-1),12,1))) -> 2491700 | E30: =IF(PlotControl!$B$4 = "Annual Max",MAX(OFFSET(EP_Wetland_Conc!$C$10,12*($A30-1),4*(PlotControl!$C$6-1),12,1)),AVERAGE(OFFSET(EP_Wetland_Conc!$C$10,12*($A30-1),4*(PlotControl!$C$6-1),12,1))) -> 96216 | F30: =IF(PlotControl!$B$4 = "Annual Max",MAX(OFFSET(EP_Wetland_Conc!$D$10,12*($A30-1),4*(PlotControl!$C$6-1),12,1)),AVERAGE(OFFSET(EP_Wetland_Conc!$D$10,12*($A30-1),4*(PlotControl!$C$6-1),12,1))) -> 121570 | G30: =IF(PlotControl!$B$4 = "Annual Max",MAX(OFFSET(EP_Wetland_Conc!$E$10,12*($A30-1),4*(PlotControl!$C$6-1),12,1)),AVERAGE(OFFSET(EP_Wetland_Conc!$E$10,12*($A30-1),4*(PlotControl!$C$6-1),12,1))) -> 155870 | H30: =IF(PlotControl!$B$4 = "Annual Max",MAX(OFFSET(WP_Conc!$C$10,12*($A30-1),4*(PlotControl!$C$6-1),12,1)),AVERAGE(OFFSET(WP_Conc!$C$10,12*($A30-1),4*(PlotControl!$C$6-1),12,1))) -> 94735 | I30: =IF(PlotControl!$B$4 = "Annual Max",MAX(OFFSET(WP_Conc!$D$10,12*($A30-1),4*(PlotControl!$C$6-1),12,1)),AVERAGE(OFFSET(WP_Conc!$D$10,12*($A30-1),4*(PlotControl!$C$6-1),12,1))) -> 104840 | J30: =IF(PlotControl!$B$4 = "Annual Max",MAX(OFFSET(WP_Conc!$E$10,12*($A30-1),4*(PlotControl!$C$6-1),12,1)),AVERAGE(OFFSET(WP_Conc!$E$10,12*($A30-1),4*(PlotControl!$C$6-1),12,1))) -> 124720 | K30: =IF(PlotControl!$B$4 = "Annual Max",MAX(OFFSET(WWTF_Outflow_Conc!$C$10,12*($A30-1),4*(PlotControl!$C$6-1),12,1)),AVERAGE(OFFSET(WWTF_Outflow_Conc!$C$10,12*($A30-1),4*(PlotControl!$C$6-1),12,1))) -> 0 | L30: =IF(PlotControl!$B$4 = "Annual Max",MAX(OFFSET(WWTF_Outflow_Conc!$D$10,12*($A30-1),4*(PlotControl!$C$6-1),12,1)),AVERAGE(OFFSET(WWTF_Outflow_Conc!$D$10,12*($A30-1),4*(PlotControl!$C$6-1),12,1))) -> 0 | M30: =IF(PlotControl!$B$4 = "Annual Max",MAX(OFFSET(WWTF_Outflow_Conc!$E$10,12*($A30-1),4*(PlotControl!$C$6-1),12,1)),AVERAGE(OFFSET(WWTF_Outflow_Conc!$E$10,12*($A30-1),4*(PlotControl!$C$6-1),12,1))) -> 0 | N30: =IF(PlotControl!$B$4 = "Annual Max",MAX(OFFSET(Cat1SP_Conc!$C$10,12*($A30-1),4*(PlotControl!$C$6-1),12,1)),AVERAGE(OFFSET(Cat1SP_Conc!$C$10,12*($A30-1),4*(PlotControl!$C$6-1),12,1))) -> 2130200 | O30: =IF(PlotControl!$B$4 = "Annual Max",MAX(OFFSET(Cat1SP_Conc!$D$10,12*($A30-1),4*(PlotControl!$C$6-1),12,1)),AVERAGE(OFFSET(Cat1SP_Conc!$D$10,12*($A30-1),4*(PlotControl!$C$6-1),12,1))) -> 2657800 | P30: =IF(PlotControl!$B$4 = "Annual Max",MAX(OFFSET(Cat1SP_Conc!$E$10,12*($A30-1),4*(PlotControl!$C$6-1),12,1)),AVERAGE(OFFSET(Cat1SP_Conc!$E$10,12*($A30-1),4*(PlotControl!$C$6-1),12,1))) -> 3740400 | R30: 42.08333333 | S30: =OFFSET(EP_Pore_Conc!$C$10,ROUND(12*$R30,0),4*(PlotControl!$C$6-1),1,1) -> 255020 | T30: =OFFSET(EP_Pore_Conc!$D$10,ROUND(12*$R30,0),4*(PlotControl!$C$6-1),1,1) -> 256720 | U30: =OFFSET(EP_Pore_Conc!$E$10,ROUND(12*$R30,0),4*(PlotControl!$C$6-1),1,1) -> 261010 | V30: =OFFSET(EP_Wetland_Conc!$C$10,ROUND(12*$R30,0),4*(PlotControl!$C$6-1),1,1) -> 10959 | W30: =OFFSET(EP_Wetland_Conc!$D$10,ROUND(12*$R30,0),4*(PlotControl!$C$6-1),1,1) -> 16016 | X30: =OFFSET(EP_Wetland_Conc!$E$10,ROUND(12*$R30,0),4*(PlotControl!$C$6-1),1,1) -> 45058 | Y30: =OFFSET(WP_Conc!$C$10,ROUND(12*$R30,0),4*(PlotControl!$C$6-1),1,1) -> 56944 | Z30: =OFFSET(WP_Conc!$D$10,ROUND(12*$R30,0),4*(PlotControl!$C$6-1),1,1) -> 65568 | AA30: =OFFSET(WP_Conc!$E$10,ROUND(12*$R30,0),4*(PlotControl!$C$6-1),1,1) -> 77626 | AB30: =OFFSET(WWTF_Outflow_Conc!$C$10,ROUND(12*$R30,0),4*(PlotControl!$C$6-1),1,1) -> 0 | AC30: =OFFSET(WWTF_Outflow_Conc!$D$10,ROUND(12*$R30,0),4*(PlotControl!$C$6-1),1,1) -> 0 | AD30: =OFFSET(WWTF_Outflow_Conc!$E$10,ROUND(12*$R30,0),4*(PlotControl!$C$6-1),1,1) -> 0 | AE30: =OFFSET(Cat1SP_Conc!$C$10,ROUND(12*$R30,0),4*(PlotControl!$C$6-1),1,1) -> 2251000 | AF30: =OFFSET(Cat1SP_Conc!$D$10,ROUND(12*$R30,0),4*(PlotControl!$C$6-1),1,1) -> 2763300 | AG30: =OFFSET(Cat1SP_Conc!$E$10,ROUND(12*$R30,0),4*(PlotControl!$C$6-1),1,1) -> 4005400
A31: 27 | B31: =IF(PlotControl!$B$4 = "Annual Max",MAX(OFFSET(EP_Pore_Conc!$C$10,12*($A31-1),4*(PlotControl!$C$6-1),12,1)),AVERAGE(OFFSET(EP_Pore_Conc!$C$10,12*($A31-1),4*(PlotControl!$C$6-1),12,1))) -> 341330 | C31: =IF(PlotControl!$B$4 = "Annual Max",MAX(OFFSET(EP_Pore_Conc!$D$10,12*($A31-1),4*(PlotControl!$C$6-1),12,1)),AVERAGE(OFFSET(EP_Pore_Conc!$D$10,12*($A31-1),4*(PlotControl!$C$6-1),12,1))) -> 746710 | D31: =IF(PlotControl!$B$4 = "Annual Max",MAX(OFFSET(EP_Pore_Conc!$E$10,12*($A31-1),4*(PlotControl!$C$6-1),12,1)),AVERAGE(OFFSET(EP_Pore_Conc!$E$10,12*($A31-1),4*(PlotControl!$C$6-1),12,1))) -> 2277600 | E31: =IF(PlotControl!$B$4 = "Annual Max",MAX(OFFSET(EP_Wetland_Conc!$C$10,12*($A31-1),4*(PlotControl!$C$6-1),12,1)),AVERAGE(OFFSET(EP_Wetland_Conc!$C$10,12*($A31-1),4*(PlotControl!$C$6-1),12,1))) -> 85534 | F31: =IF(PlotControl!$B$4 = "Annual Max",MAX(OFFSET(EP_Wetland_Conc!$D$10,12*($A31-1),4*(PlotControl!$C$6-1),12,1)),AVERAGE(OFFSET(EP_Wetland_Conc!$D$10,12*($A31-1),4*(PlotControl!$C$6-1),12,1))) -> 103400 | G31: =IF(PlotControl!$B$4 = "Annual Max",MAX(OFFSET(EP_Wetland_Conc!$E$10,12*($A31-1),4*(PlotControl!$C$6-1),12,1)),AVERAGE(OFFSET(EP_Wetland_Conc!$E$10,12*($A31-1),4*(PlotControl!$C$6-1),12,1))) -> 130110 | H31: =IF(PlotControl!$B$4 = "Annual Max",MAX(OFFSET(WP_Conc!$C$10,12*($A31-1),4*(PlotControl!$C$6-1),12,1)),AVERAGE(OFFSET(WP_Conc!$C$10,12*($A31-1),4*(PlotControl!$C$6-1),12,1))) -> 90843 | I31: =IF(PlotControl!$B$4 = "Annual Max",MAX(OFFSET(WP_Conc!$D$10,12*($A31-1),4*(PlotControl!$C$6-1),12,1)),AVERAGE(OFFSET(WP_Conc!$D$10,12*($A31-1),4*(PlotControl!$C$6-1),12,1))) -> 100850 | J31: =IF(PlotControl!$B$4 = "Annual Max",MAX(OFFSET(WP_Conc!$E$10,12*($A31-1),4*(PlotControl!$C$6-1),12,1)),AVERAGE(OFFSET(WP_Conc!$E$10,12*($A31-1),4*(PlotControl!$C$6-1),12,1))) -> 119500 | K31: =IF(PlotControl!$B$4 = "Annual Max",MAX(OFFSET(WWTF_Outflow_Conc!$C$10,12*($A31-1),4*(PlotControl!$C$6-1),12,1)),AVERAGE(OFFSET(WWTF_Outflow_Conc!$C$10,12*($A31-1),4*(PlotControl!$C$6-1),12,1))) -> 0 | L31: =IF(PlotControl!$B$4 = "Annual Max",MAX(OFFSET(WWTF_Outflow_Conc!$D$10,12*($A31-1),4*(PlotControl!$C$6-1),12,1)),AVERAGE(OFFSET(WWTF_Outflow_Conc!$D$10,12*($A31-1),4*(PlotControl!$C$6-1),12,1))) -> 0 | M31: =IF(PlotControl!$B$4 = "Annual Max",MAX(OFFSET(WWTF_Outflow_Conc!$E$10,12*($A31-1),4*(PlotControl!$C$6-1),12,1)),AVERAGE(OFFSET(WWTF_Outflow_Conc!$E$10,12*($A31-1),4*(PlotControl!$C$6-1),12,1))) -> 0 | N31: =IF(PlotControl!$B$4 = "Annual Max",MAX(OFFSET(Cat1SP_Conc!$C$10,12*($A31-1),4*(PlotControl!$C$6-1),12,1)),AVERAGE(OFFSET(Cat1SP_Conc!$C$10,12*($A31-1),4*(PlotControl!$C$6-1),12,1))) -> 2170800 | O31: =IF(PlotControl!$B$4 = "Annual Max",MAX(OFFSET(Cat1SP_Conc!$D$10,12*($A31-1),4*(PlotControl!$C$6-1),12,1)),AVERAGE(OFFSET(Cat1SP_Conc!$D$10,12*($A31-1),4*(PlotControl!$C$6-1),12,1))) -> 2692300 | P31: =IF(PlotControl!$B$4 = "Annual Max",MAX(OFFSET(Cat1SP_Conc!$E$10,12*($A31-1),4*(PlotControl!$C$6-1),12,1)),AVERAGE(OFFSET(Cat1SP_Conc!$E$10,12*($A31-1),4*(PlotControl!$C$6-1),12,1))) -> 3875800 | R31: 42.16666667 | S31: =OFFSET(EP_Pore_Conc!$C$10,ROUND(12*$R31,0),4*(PlotControl!$C$6-1),1,1) -> 255020 | T31: =OFFSET(EP_Pore_Conc!$D$10,ROUND(12*$R31,0),4*(PlotControl!$C$6-1),1,1) -> 256720 | U31: =OFFSET(EP_Pore_Conc!$E$10,ROUND(12*$R31,0),4*(PlotControl!$C$6-1),1,1) -> 260860 | V31: =OFFSET(EP_Wetland_Conc!$C$10,ROUND(12*$R31,0),4*(PlotControl!$C$6-1),1,1) -> 11061 | W31: =OFFSET(EP_Wetland_Conc!$D$10,ROUND(12*$R31,0),4*(PlotControl!$C$6-1),1,1) -> 16090 | X31: =OFFSET(EP_Wetland_Conc!$E$10,ROUND(12*$R31,0),4*(PlotControl!$C$6-1),1,1) -> 45398 | Y31: =OFFSET(WP_Conc!$C$10,ROUND(12*$R31,0),4*(PlotControl!$C$6-1),1,1) -> 56856 | Z31: =OFFSET(WP_Conc!$D$10,ROUND(12*$R31,0),4*(PlotControl!$C$6-1),1,1) -> 65525 | AA31: =OFFSET(WP_Conc!$E$10,ROUND(12*$R31,0),4*(PlotControl!$C$6-1),1,1) -> 77598 | AB31: =OFFSET(WWTF_Outflow_Conc!$C$10,ROUND(12*$R31,0),4*(PlotControl!$C$6-1),1,1) -> 0 | AC31: =OFFSET(WWTF_Outflow_Conc!$D$10,ROUND(12*$R31,0),4*(PlotControl!$C$6-1),1,1) -> 0 | AD31: =OFFSET(WWTF_Outflow_Conc!$E$10,ROUND(12*$R31,0),4*(PlotControl!$C$6-1),1,1) -> 0 | AE31: =OFFSET(Cat1SP_Conc!$C$10,ROUND(12*$R31,0),4*(PlotControl!$C$6-1),1,1) -> 2251000 | AF31: =OFFSET(Cat1SP_Conc!$D$10,ROUND(12*$R31,0),4*(PlotControl!$C$6-1),1,1) -> 2763300 | AG31: =OFFSET(Cat1SP_Conc!$E$10,ROUND(12*$R31,0),4*(PlotControl!$C$6-1),1,1) -> 4005400
A32: 28 | B32: =IF(PlotControl!$B$4 = "Annual Max",MAX(OFFSET(EP_Pore_Conc!$C$10,12*($A32-1),4*(PlotControl!$C$6-1),12,1)),AVERAGE(OFFSET(EP_Pore_Conc!$C$10,12*($A32-1),4*(PlotControl!$C$6-1),12,1))) -> 298080 | C32: =IF(PlotControl!$B$4 = "Annual Max",MAX(OFFSET(EP_Pore_Conc!$D$10,12*($A32-1),4*(PlotControl!$C$6-1),12,1)),AVERAGE(OFFSET(EP_Pore_Conc!$D$10,12*($A32-1),4*(PlotControl!$C$6-1),12,1))) -> 613430 | D32: =IF(PlotControl!$B$4 = "Annual Max",MAX(OFFSET(EP_Pore_Conc!$E$10,12*($A32-1),4*(PlotControl!$C$6-1),12,1)),AVERAGE(OFFSET(EP_Pore_Conc!$E$10,12*($A32-1),4*(PlotControl!$C$6-1),12,1))) -> 2240700 | E32: =IF(PlotControl!$B$4 = "Annual Max",MAX(OFFSET(EP_Wetland_Conc!$C$10,12*($A32-1),4*(PlotControl!$C$6-1),12,1)),AVERAGE(OFFSET(EP_Wetland_Conc!$C$10,12*($A32-1),4*(PlotControl!$C$6-1),12,1))) -> 74756 | F32: =IF(PlotControl!$B$4 = "Annual Max",MAX(OFFSET(EP_Wetland_Conc!$D$10,12*($A32-1),4*(PlotControl!$C$6-1),12,1)),AVERAGE(OFFSET(EP_Wetland_Conc!$D$10,12*($A32-1),4*(PlotControl!$C$6-1),12,1))) -> 90479 | G32: =IF(PlotControl!$B$4 = "Annual Max",MAX(OFFSET(EP_Wetland_Conc!$E$10,12*($A32-1),4*(PlotControl!$C$6-1),12,1)),AVERAGE(OFFSET(EP_Wetland_Conc!$E$10,12*($A32-1),4*(PlotControl!$C$6-1),12,1))) -> 111520 | H32: =IF(PlotControl!$B$4 = "Annual Max",MAX(OFFSET(WP_Conc!$C$10,12*($A32-1),4*(PlotControl!$C$6-1),12,1)),AVERAGE(OFFSET(WP_Conc!$C$10,12*($A32-1),4*(PlotControl!$C$6-1),12,1))) -> 86029 | I32: =IF(PlotControl!$B$4 = "Annual Max",MAX(OFFSET(WP_Conc!$D$10,12*($A32-1),4*(PlotControl!$C$6-1),12,1)),AVERAGE(OFFSET(WP_Conc!$D$10,12*($A32-1),4*(PlotControl!$C$6-1),12,1))) -> 95316 | J32: =IF(PlotControl!$B$4 = "Annual Max",MAX(OFFSET(WP_Conc!$E$10,12*($A32-1),4*(PlotControl!$C$6-1),12,1)),AVERAGE(OFFSET(WP_Conc!$E$10,12*($A32-1),4*(PlotControl!$C$6-1),12,1))) -> 112150 | K32: =IF(PlotControl!$B$4 = "Annual Max",MAX(OFFSET(WWTF_Outflow_Conc!$C$10,12*($A32-1),4*(PlotControl!$C$6-1),12,1)),AVERAGE(OFFSET(WWTF_Outflow_Conc!$C$10,12*($A32-1),4*(PlotControl!$C$6-1),12,1))) -> 0 | L32: =IF(PlotControl!$B$4 = "Annual Max",MAX(OFFSET(WWTF_Outflow_Conc!$D$10,12*($A32-1),4*(PlotControl!$C$6-1),12,1)),AVERAGE(OFFSET(WWTF_Outflow_Conc!$D$10,12*($A32-1),4*(PlotControl!$C$6-1),12,1))) -> 0 | M32: =IF(PlotControl!$B$4 = "Annual Max",MAX(OFFSET(WWTF_Outflow_Conc!$E$10,12*($A32-1),4*(PlotControl!$C$6-1),12,1)),AVERAGE(OFFSET(WWTF_Outflow_Conc!$E$10,12*($A32-1),4*(PlotControl!$C$6-1),12,1))) -> 0 | N32: =IF(PlotControl!$B$4 = "Annual Max",MAX(OFFSET(Cat1SP_Conc!$C$10,12*($A32-1),4*(PlotControl!$C$6-1),12,1)),AVERAGE(OFFSET(Cat1SP_Conc!$C$10,12*($A32-1),4*(PlotControl!$C$6-1),12,1))) -> 2189900 | O32: =IF(PlotControl!$B$4 = "Annual Max",MAX(OFFSET(Cat1SP_Conc!$D$10,12*($A32-1),4*(PlotControl!$C$6-1),12,1)),AVERAGE(OFFSET(Cat1SP_Conc!$D$10,12*($A32-1),4*(PlotControl!$C$6-1),12,1))) -> 2707400 | P32: =IF(PlotControl!$B$4 = "Annual Max",MAX(OFFSET(Cat1SP_Conc!$E$10,12*($A32-1),4*(PlotControl!$C$6-1),12,1)),AVERAGE(OFFSET(Cat1SP_Conc!$E$10,12*($A32-1),4*(PlotControl!$C$6-1),12,1))) -> 3906800 | R32: 42.25 | S32: =OFFSET(EP_Pore_Conc!$C$10,ROUND(12*$R32,0),4*(PlotControl!$C$6-1),1,1) -> 255020 | T32: =OFFSET(EP_Pore_Conc!$D$10,ROUND(12*$R32,0),4*(PlotControl!$C$6-1),1,1) -> 256720 | U32: =OFFSET(EP_Pore_Conc!$E$10,ROUND(12*$R32,0),4*(PlotControl!$C$6-1),1,1) -> 260700 | V32: =OFFSET(EP_Wetland_Conc!$C$10,ROUND(12*$R32,0),4*(PlotControl!$C$6-1),1,1) -> 11169 | W32: =OFFSET(EP_Wetland_Conc!$D$10,ROUND(12*$R32,0),4*(PlotControl!$C$6-1),1,1) -> 16163 | X32: =OFFSET(EP_Wetland_Conc!$E$10,ROUND(12*$R32,0),4*(PlotControl!$C$6-1),1,1) -> 45376 | Y32: =OFFSET(WP_Conc!$C$10,ROUND(12*$R32,0),4*(PlotControl!$C$6-1),1,1) -> 56771 | Z32: =OFFSET(WP_Conc!$D$10,ROUND(12*$R32,0),4*(PlotControl!$C$6-1),1,1) -> 65483 | AA32: =OFFSET(WP_Conc!$E$10,ROUND(12*$R32,0),4*(PlotControl!$C$6-1),1,1) -> 77531 | AB32: =OFFSET(WWTF_Outflow_Conc!$C$10,ROUND(12*$R32,0),4*(PlotControl!$C$6-1),1,1) -> 0 | AC32: =OFFSET(WWTF_Outflow_Conc!$D$10,ROUND(12*$R32,0),4*(PlotControl!$C$6-1),1,1) -> 0 | AD32: =OFFSET(WWTF_Outflow_Conc!$E$10,ROUND(12*$R32,0),4*(PlotControl!$C$6-1),1,1) -> 0 | AE32: =OFFSET(Cat1SP_Conc!$C$10,ROUND(12*$R32,0),4*(PlotControl!$C$6-1),1,1) -> 2251000 | AF32: =OFFSET(Cat1SP_Conc!$D$10,ROUND(12*$R32,0),4*(PlotControl!$C$6-1),1,1) -> 2763300 | AG32: =OFFSET(Cat1SP_Conc!$E$10,ROUND(12*$R32,0),4*(PlotControl!$C$6-1),1,1) -> 4005400
A33: 29 | B33: =IF(PlotControl!$B$4 = "Annual Max",MAX(OFFSET(EP_Pore_Conc!$C$10,12*($A33-1),4*(PlotControl!$C$6-1),12,1)),AVERAGE(OFFSET(EP_Pore_Conc!$C$10,12*($A33-1),4*(PlotControl!$C$6-1),12,1))) -> 264600 | C33: =IF(PlotControl!$B$4 = "Annual Max",MAX(OFFSET(EP_Pore_Conc!$D$10,12*($A33-1),4*(PlotControl!$C$6-1),12,1)),AVERAGE(OFFSET(EP_Pore_Conc!$D$10,12*($A33-1),4*(PlotControl!$C$6-1),12,1))) -> 509590 | D33: =IF(PlotControl!$B$4 = "Annual Max",MAX(OFFSET(EP_Pore_Conc!$E$10,12*($A33-1),4*(PlotControl!$C$6-1),12,1)),AVERAGE(OFFSET(EP_Pore_Conc!$E$10,12*($A33-1),4*(PlotControl!$C$6-1),12,1))) -> 2093500 | E33: =IF(PlotControl!$B$4 = "Annual Max",MAX(OFFSET(EP_Wetland_Conc!$C$10,12*($A33-1),4*(PlotControl!$C$6-1),12,1)),AVERAGE(OFFSET(EP_Wetland_Conc!$C$10,12*($A33-1),4*(PlotControl!$C$6-1),12,1))) -> 68217 | F33: =IF(PlotControl!$B$4 = "Annual Max",MAX(OFFSET(EP_Wetland_Conc!$D$10,12*($A33-1),4*(PlotControl!$C$6-1),12,1)),AVERAGE(OFFSET(EP_Wetland_Conc!$D$10,12*($A33-1),4*(PlotControl!$C$6-1),12,1))) -> 81871 | G33: =IF(PlotControl!$B$4 = "Annual Max",MAX(OFFSET(EP_Wetland_Conc!$E$10,12*($A33-1),4*(PlotControl!$C$6-1),12,1)),AVERAGE(OFFSET(EP_Wetland_Conc!$E$10,12*($A33-1),4*(PlotControl!$C$6-1),12,1))) -> 97928 | H33: =IF(PlotControl!$B$4 = "Annual Max",MAX(OFFSET(WP_Conc!$C$10,12*($A33-1),4*(PlotControl!$C$6-1),12,1)),AVERAGE(OFFSET(WP_Conc!$C$10,12*($A33-1),4*(PlotControl!$C$6-1),12,1))) -> 81611 | I33: =IF(PlotControl!$B$4 = "Annual Max",MAX(OFFSET(WP_Conc!$D$10,12*($A33-1),4*(PlotControl!$C$6-1),12,1)),AVERAGE(OFFSET(WP_Conc!$D$10,12*($A33-1),4*(PlotControl!$C$6-1),12,1))) -> 90575 | J33: =IF(PlotControl!$B$4 = "Annual Max",MAX(OFFSET(WP_Conc!$E$10,12*($A33-1),4*(PlotControl!$C$6-1),12,1)),AVERAGE(OFFSET(WP_Conc!$E$10,12*($A33-1),4*(PlotControl!$C$6-1),12,1))) -> 107130 | K33: =IF(PlotControl!$B$4 = "Annual Max",MAX(OFFSET(WWTF_Outflow_Conc!$C$10,12*($A33-1),4*(PlotControl!$C$6-1),12,1)),AVERAGE(OFFSET(WWTF_Outflow_Conc!$C$10,12*($A33-1),4*(PlotControl!$C$6-1),12,1))) -> 0 | L33: =IF(PlotControl!$B$4 = "Annual Max",MAX(OFFSET(WWTF_Outflow_Conc!$D$10,12*($A33-1),4*(PlotControl!$C$6-1),12,1)),AVERAGE(OFFSET(WWTF_Outflow_Conc!$D$10,12*($A33-1),4*(PlotControl!$C$6-1),12,1))) -> 0 | M33: =IF(PlotControl!$B$4 = "Annual Max",MAX(OFFSET(WWTF_Outflow_Conc!$E$10,12*($A33-1),4*(PlotControl!$C$6-1),12,1)),AVERAGE(OFFSET(WWTF_Outflow_Conc!$E$10,12*($A33-1),4*(PlotControl!$C$6-1),12,1))) -> 0 | N33: =IF(PlotControl!$B$4 = "Annual Max",MAX(OFFSET(Cat1SP_Conc!$C$10,12*($A33-1),4*(PlotControl!$C$6-1),12,1)),AVERAGE(OFFSET(Cat1SP_Conc!$C$10,12*($A33-1),4*(PlotControl!$C$6-1),12,1))) -> 2203200 | O33: =IF(PlotControl!$B$4 = "Annual Max",MAX(OFFSET(Cat1SP_Conc!$D$10,12*($A33-1),4*(PlotControl!$C$6-1),12,1)),AVERAGE(OFFSET(Cat1SP_Conc!$D$10,12*($A33-1),4*(PlotControl!$C$6-1),12,1))) -> 2719100 | P33: =IF(PlotControl!$B$4 = "Annual Max",MAX(OFFSET(Cat1SP_Conc!$E$10,12*($A33-1),4*(PlotControl!$C$6-1),12,1)),AVERAGE(OFFSET(Cat1SP_Conc!$E$10,12*($A33-1),4*(PlotControl!$C$6-1),12,1))) -> 3929500 | R33: 42.33333333 | S33: =OFFSET(EP_Pore_Conc!$C$10,ROUND(12*$R33,0),4*(PlotControl!$C$6-1),1,1) -> 255020 | T33: =OFFSET(EP_Pore_Conc!$D$10,ROUND(12*$R33,0),4*(PlotControl!$C$6-1),1,1) -> 256710 | U33: =OFFSET(EP_Pore_Conc!$E$10,ROUND(12*$R33,0),4*(PlotControl!$C$6-1),1,1) -> 260700 | V33: =OFFSET(EP_Wetland_Conc!$C$10,ROUND(12*$R33,0),4*(PlotControl!$C$6-1),1,1) -> 10145 | W33: =OFFSET(EP_Wetland_Conc!$D$10,ROUND(12*$R33,0),4*(PlotControl!$C$6-1),1,1) -> 14383 | X33: =OFFSET(EP_Wetland_Conc!$E$10,ROUND(12*$R33,0),4*(PlotControl!$C$6-1),1,1) -> 41253 | Y33: =OFFSET(WP_Conc!$C$10,ROUND(12*$R33,0),4*(PlotControl!$C$6-1),1,1) -> 56434 | Z33: =OFFSET(WP_Conc!$D$10,ROUND(12*$R33,0),4*(PlotControl!$C$6-1),1,1) -> 65100 | AA33: =OFFSET(WP_Conc!$E$10,ROUND(12*$R33,0),4*(PlotControl!$C$6-1),1,1) -> 77155 | AB33: =OFFSET(WWTF_Outflow_Conc!$C$10,ROUND(12*$R33,0),4*(PlotControl!$C$6-1),1,1) -> 0 | AC33: =OFFSET(WWTF_Outflow_Conc!$D$10,ROUND(12*$R33,0),4*(PlotControl!$C$6-1),1,1) -> 0 | AD33: =OFFSET(WWTF_Outflow_Conc!$E$10,ROUND(12*$R33,0),4*(PlotControl!$C$6-1),1,1) -> 0 | AE33: =OFFSET(Cat1SP_Conc!$C$10,ROUND(12*$R33,0),4*(PlotControl!$C$6-1),1,1) -> 2251000 | AF33: =OFFSET(Cat1SP_Conc!$D$10,ROUND(12*$R33,0),4*(PlotControl!$C$6-1),1,1) -> 2763300 | AG33: =OFFSET(Cat1SP_Conc!$E$10,ROUND(12*$R33,0),4*(PlotControl!$C$6-1),1,1) -> 4005400
A34: 30 | B34: =IF(PlotControl!$B$4 = "Annual Max",MAX(OFFSET(EP_Pore_Conc!$C$10,12*($A34-1),4*(PlotControl!$C$6-1),12,1)),AVERAGE(OFFSET(EP_Pore_Conc!$C$10,12*($A34-1),4*(PlotControl!$C$6-1),12,1))) -> 260260 | C34: =IF(PlotControl!$B$4 = "Annual Max",MAX(OFFSET(EP_Pore_Conc!$D$10,12*($A34-1),4*(PlotControl!$C$6-1),12,1)),AVERAGE(OFFSET(EP_Pore_Conc!$D$10,12*($A34-1),4*(PlotControl!$C$6-1),12,1))) -> 428750 | D34: =IF(PlotControl!$B$4 = "Annual Max",MAX(OFFSET(EP_Pore_Conc!$E$10,12*($A34-1),4*(PlotControl!$C$6-1),12,1)),AVERAGE(OFFSET(EP_Pore_Conc!$E$10,12*($A34-1),4*(PlotControl!$C$6-1),12,1))) -> 1926200 | E34: =IF(PlotControl!$B$4 = "Annual Max",MAX(OFFSET(EP_Wetland_Conc!$C$10,12*($A34-1),4*(PlotControl!$C$6-1),12,1)),AVERAGE(OFFSET(EP_Wetland_Conc!$C$10,12*($A34-1),4*(PlotControl!$C$6-1),12,1))) -> 62248 | F34: =IF(PlotControl!$B$4 = "Annual Max",MAX(OFFSET(EP_Wetland_Conc!$D$10,12*($A34-1),4*(PlotControl!$C$6-1),12,1)),AVERAGE(OFFSET(EP_Wetland_Conc!$D$10,12*($A34-1),4*(PlotControl!$C$6-1),12,1))) -> 74163 | G34: =IF(PlotControl!$B$4 = "Annual Max",MAX(OFFSET(EP_Wetland_Conc!$E$10,12*($A34-1),4*(PlotControl!$C$6-1),12,1)),AVERAGE(OFFSET(EP_Wetland_Conc!$E$10,12*($A34-1),4*(PlotControl!$C$6-1),12,1))) -> 87312 | H34: =IF(PlotControl!$B$4 = "Annual Max",MAX(OFFSET(WP_Conc!$C$10,12*($A34-1),4*(PlotControl!$C$6-1),12,1)),AVERAGE(OFFSET(WP_Conc!$C$10,12*($A34-1),4*(PlotControl!$C$6-1),12,1))) -> 78465 | I34: =IF(PlotControl!$B$4 = "Annual Max",MAX(OFFSET(WP_Conc!$D$10,12*($A34-1),4*(PlotControl!$C$6-1),12,1)),AVERAGE(OFFSET(WP_Conc!$D$10,12*($A34-1),4*(PlotControl!$C$6-1),12,1))) -> 86621 | J34: =IF(PlotControl!$B$4 = "Annual Max",MAX(OFFSET(WP_Conc!$E$10,12*($A34-1),4*(PlotControl!$C$6-1),12,1)),AVERAGE(OFFSET(WP_Conc!$E$10,12*($A34-1),4*(PlotControl!$C$6-1),12,1))) -> 102260 | K34: =IF(PlotControl!$B$4 = "Annual Max",MAX(OFFSET(WWTF_Outflow_Conc!$C$10,12*($A34-1),4*(PlotControl!$C$6-1),12,1)),AVERAGE(OFFSET(WWTF_Outflow_Conc!$C$10,12*($A34-1),4*(PlotControl!$C$6-1),12,1))) -> 0 | L34: =IF(PlotControl!$B$4 = "Annual Max",MAX(OFFSET(WWTF_Outflow_Conc!$D$10,12*($A34-1),4*(PlotControl!$C$6-1),12,1)),AVERAGE(OFFSET(WWTF_Outflow_Conc!$D$10,12*($A34-1),4*(PlotControl!$C$6-1),12,1))) -> 0 | M34: =IF(PlotControl!$B$4 = "Annual Max",MAX(OFFSET(WWTF_Outflow_Conc!$E$10,12*($A34-1),4*(PlotControl!$C$6-1),12,1)),AVERAGE(OFFSET(WWTF_Outflow_Conc!$E$10,12*($A34-1),4*(PlotControl!$C$6-1),12,1))) -> 0 | N34: =IF(PlotControl!$B$4 = "Annual Max",MAX(OFFSET(Cat1SP_Conc!$C$10,12*($A34-1),4*(PlotControl!$C$6-1),12,1)),AVERAGE(OFFSET(Cat1SP_Conc!$C$10,12*($A34-1),4*(PlotControl!$C$6-1),12,1))) -> 2214900 | O34: =IF(PlotControl!$B$4 = "Annual Max",MAX(OFFSET(Cat1SP_Conc!$D$10,12*($A34-1),4*(PlotControl!$C$6-1),12,1)),AVERAGE(OFFSET(Cat1SP_Conc!$D$10,12*($A34-1),4*(PlotControl!$C$6-1),12,1))) -> 2733700 | P34: =IF(PlotControl!$B$4 = "Annual Max",MAX(OFFSET(Cat1SP_Conc!$E$10,12*($A34-1),4*(PlotControl!$C$6-1),12,1)),AVERAGE(OFFSET(Cat1SP_Conc!$E$10,12*($A34-1),4*(PlotControl!$C$6-1),12,1))) -> 3934200 | R34: 42.41666667 | S34: =OFFSET(EP_Pore_Conc!$C$10,ROUND(12*$R34,0),4*(PlotControl!$C$6-1),1,1) -> 255010 | T34: =OFFSET(EP_Pore_Conc!$D$10,ROUND(12*$R34,0),4*(PlotControl!$C$6-1),1,1) -> 256710 | U34: =OFFSET(EP_Pore_Conc!$E$10,ROUND(12*$R34,0),4*(PlotControl!$C$6-1),1,1) -> 260700 | V34: =OFFSET(EP_Wetland_Conc!$C$10,ROUND(12*$R34,0),4*(PlotControl!$C$6-1),1,1) -> 10234 | W34: =OFFSET(EP_Wetland_Conc!$D$10,ROUND(12*$R34,0),4*(PlotControl!$C$6-1),1,1) -> 14391 | X34: =OFFSET(EP_Wetland_Conc!$E$10,ROUND(12*$R34,0),4*(PlotControl!$C$6-1),1,1) -> 41444 | Y34: =OFFSET(WP_Conc!$C$10,ROUND(12*$R34,0),4*(PlotControl!$C$6-1),1,1) -> 56348 | Z34: =OFFSET(WP_Conc!$D$10,ROUND(12*$R34,0),4*(PlotControl!$C$6-1),1,1) -> 65042 | AA34: =OFFSET(WP_Conc!$E$10,ROUND(12*$R34,0),4*(PlotControl!$C$6-1),1,1) -> 77071 | AB34: =OFFSET(WWTF_Outflow_Conc!$C$10,ROUND(12*$R34,0),4*(PlotControl!$C$6-1),1,1) -> 0 | AC34: =OFFSET(WWTF_Outflow_Conc!$D$10,ROUND(12*$R34,0),4*(PlotControl!$C$6-1),1,1) -> 0 | AD34: =OFFSET(WWTF_Outflow_Conc!$E$10,ROUND(12*$R34,0),4*(PlotControl!$C$6-1),1,1) -> 0 | AE34: =OFFSET(Cat1SP_Conc!$C$10,ROUND(12*$R34,0),4*(PlotControl!$C$6-1),1,1) -> 2251000 | AF34: =OFFSET(Cat1SP_Conc!$D$10,ROUND(12*$R34,0),4*(PlotControl!$C$6-1),1,1) -> 2763300 | AG34: =OFFSET(Cat1SP_Conc!$E$10,ROUND(12*$R34,0),4*(PlotControl!$C$6-1),1,1) -> 4005400
